{"text_format":"1","workbook":"xlsx","n_sheets":7,"sheets":["prv","HOME","DATA","Store Order","SEALS","TRANSFIR OUT","TRANSFIR IN "],"not_rendered":{"charts":0,"images":0,"macros":1,"external_links":0,"defined_names":0,"comments":0,"pivot_tables":0},"unopened":[],"bounds":{"document_bytes":16777216,"sheet_cells":100000,"rows_first":2000,"rows_last":500,"rows_between":2000,"halvings":0,"cell_chars":16384,"cell_head_chars":4096},"cells_cut":0,"cells_raw":0,"read":"whole","date_system":"1900"}

{"sheet":"prv","index":0,"n_rows":2,"n_cols":4,"rows_kept":2,"cut":false,"hidden":true,"merged":[]}
["user","pass","user","pass"]
[0,0,"admin","ogd;tdphg;"]

{"sheet":"HOME","index":1,"n_rows":18,"n_cols":17,"rows_kept":18,"cut":false,"hidden":false,"merged":[]}
["كود المشترك","أســــم المشترك","الوظيفه","رقم الموبايـــل","ايام الشهر","الاجمالي","مده الاشتراك","المدفوع","البــــاقي","الاجمالي2","سعر الاشتراك","بدايه الاشتراك","نهايه الاشتراك","Column14","Column15","Column16","Column17"]
[1,"سعيد محمود المليجي","مسئول فرع","01127101990",30,90,null,300,null,null,100,"2018-10-27","2018-11-28"]
[2," سعيد محمود المليجي","مسئول فرع","01127101990",30,90,null,300,null,null,100,"2018-10-27","2018-11-28"]
[3," سعيد محمود المليجي","مسئول فرع","01127101990",30,90,null,300,null,null,100,"2018-10-27","2018-11-28"]
[4,"yasser hamada saed mahmousd","مسئول فرع","01127101990",30,90,null,300,null,null,100,"2018-10-27","2018-11-28"]
[5,"محمود ","مسئول فرع","01127101990",30,90,null,300,null,null,100,"2018-10-27","2018-11-28"]
[30,"علي حماده سعيد محمود المليجي","مسئول فرع","01000271090",30,90,null,300,null,null,100,"2018-10-27","2018-11-28"]
[7,"علي حماده سعيد محمود المليجي","مسئول فرع","01127101990",30,90,null,300,null,null,100,"2018-10-27","2018-11-28"]
[28,"علي حماده سعيد محمود المليجي","مسئول فرع","01127101990",30,90,null,300,null,null,100,"2018-10-27","2018-11-28"]
[9," حماده سعيد محمود المليجي","مسئول فرع","01127101990",30,90,null,300,null,null,100,"2018-10-27","2018-11-28"]
[30," حماده سعيد محمود المليجي","مسئول فرع","01127101990",30,90,null,300,null,null,100,"2018-10-27","2018-11-28"]
[11,"حماده سعيد محمود المليجي","مسئول فرع","01127101990",30,90,null,300,null,null,100,"2018-10-27","2018-11-28"]
[12,"حماده سعيد محمود المليجي",2710,"01127101990",30,90,null,300,null,null,100,"2018-10-27","2018-11-28"]
[30,"علي حماده سعيد محمود المليجي","مسئول فرع","01127101990",30,90,null,300,null,null,100,"2018-10-27","2018-11-28"]
[26,"علي حماده سعيد محمود المليجي","مدير","01127101990",30,90,null,300,null,null,100,"17/1","2018-11-28"]
["sssssssssss","sssssssss","ssssssssssssssssssssssssssssss","01004516749","s",null,null,"ssss",null,null,"ssss"]
[1,"انا ويكا ","عامل","01127101990",null,null,null,30,null,null,100,"27-10-2018","28-11-2018"]
[1,1,1,"1",5,5,1,1,5,5,1,"12/31/1899","12/31/1899"]

{"sheet":"DATA","index":2,"n_rows":1000,"n_cols":7,"rows_kept":1000,"cut":false,"hidden":false,"merged":[]}
["أســــم المشترك","كود المشترك","رقم الموبايـــل","مده الاشتراك","بدايه الاشتراك","نهايه الاشتراك","نهايه الاشتراك"]
[{"$f":"Table1[[#This Row],[أســــم المشترك]]","v":"سعيد محمود المليجي"},{"$f":"Table1[[#This Row],[كود المشترك]]","v":1},{"$f":"Table1[[#This Row],[رقم الموبايـــل]]","v":"01127101990"},{"$f":"Table1[[#This Row],[مده الاشتراك]]","v":0},{"$f":"Table1[[#This Row],[بدايه الاشتراك]]","v":"2018-10-27"},{"$f":"Table1[[#This Row],[نهايه الاشتراك]]","v":"2018-11-28"}]
[{"$f":"Table1[[#This Row],[أســــم المشترك]]","v":" سعيد محمود المليجي"},{"$f":"Table1[[#This Row],[كود المشترك]]","v":2},{"$f":"Table1[[#This Row],[رقم الموبايـــل]]","v":"01127101990"},{"$f":"Table1[[#This Row],[مده الاشتراك]]","v":0},{"$f":"Table1[[#This Row],[بدايه الاشتراك]]","v":"2018-10-27"},{"$f":"Table1[[#This Row],[نهايه الاشتراك]]","v":"2018-11-28"}]
[{"$f":"Table1[[#This Row],[أســــم المشترك]]","v":" سعيد محمود المليجي"},{"$f":"Table1[[#This Row],[كود المشترك]]","v":3},{"$f":"Table1[[#This Row],[رقم الموبايـــل]]","v":"01127101990"},{"$f":"Table1[[#This Row],[مده الاشتراك]]","v":0},{"$f":"Table1[[#This Row],[بدايه الاشتراك]]","v":"2018-10-27"},{"$f":"Table1[[#This Row],[نهايه الاشتراك]]","v":"2018-11-28"}]
[{"$f":"Table1[[#This Row],[أســــم المشترك]]","v":"yasser hamada saed mahmousd"},{"$f":"Table1[[#This Row],[كود المشترك]]","v":4},{"$f":"Table1[[#This Row],[رقم الموبايـــل]]","v":"01127101990"},{"$f":"Table1[[#This Row],[مده الاشتراك]]","v":0},{"$f":"Table1[[#This Row],[بدايه الاشتراك]]","v":"2018-10-27"},{"$f":"Table1[[#This Row],[نهايه الاشتراك]]","v":"2018-11-28"}]
[{"$f":"Table1[[#This Row],[أســــم المشترك]]","v":"محمود "},{"$f":"Table1[[#This Row],[كود المشترك]]","v":5},{"$f":"Table1[[#This Row],[رقم الموبايـــل]]","v":"01127101990"},{"$f":"Table1[[#This Row],[مده الاشتراك]]","v":0},{"$f":"Table1[[#This Row],[بدايه الاشتراك]]","v":"2018-10-27"},{"$f":"Table1[[#This Row],[نهايه الاشتراك]]","v":"2018-11-28"}]
[{"$f":"Table1[[#This Row],[أســــم المشترك]]","v":"علي حماده سعيد محمود المليجي"},{"$f":"Table1[[#This Row],[كود المشترك]]","v":30},{"$f":"Table1[[#This Row],[رقم الموبايـــل]]","v":"01000271090"},{"$f":"Table1[[#This Row],[مده الاشتراك]]","v":0},{"$f":"Table1[[#This Row],[بدايه الاشتراك]]","v":"2018-10-27"},{"$f":"Table1[[#This Row],[نهايه الاشتراك]]","v":"2018-11-28"}]
[{"$f":"Table1[[#This Row],[أســــم المشترك]]","v":"علي حماده سعيد محمود المليجي"},{"$f":"Table1[[#This Row],[كود المشترك]]","v":7},{"$f":"Table1[[#This Row],[رقم الموبايـــل]]","v":"01127101990"},{"$f":"Table1[[#This Row],[مده الاشتراك]]","v":0},{"$f":"Table1[[#This Row],[بدايه الاشتراك]]","v":"2018-10-27"},{"$f":"Table1[[#This Row],[نهايه الاشتراك]]","v":"2018-11-28"}]
[{"$f":"Table1[[#This Row],[أســــم المشترك]]","v":"علي حماده سعيد محمود المليجي"},{"$f":"Table1[[#This Row],[كود المشترك]]","v":28},{"$f":"Table1[[#This Row],[رقم الموبايـــل]]","v":"01127101990"},{"$f":"Table1[[#This Row],[مده الاشتراك]]","v":0},{"$f":"Table1[[#This Row],[بدايه الاشتراك]]","v":"2018-10-27"},{"$f":"Table1[[#This Row],[نهايه الاشتراك]]","v":"2018-11-28"}]
[{"$f":"Table1[[#This Row],[أســــم المشترك]]","v":" حماده سعيد محمود المليجي"},{"$f":"Table1[[#This Row],[كود المشترك]]","v":9},{"$f":"Table1[[#This Row],[رقم الموبايـــل]]","v":"01127101990"},{"$f":"Table1[[#This Row],[مده الاشتراك]]","v":0},{"$f":"Table1[[#This Row],[بدايه الاشتراك]]","v":"2018-10-27"},{"$f":"Table1[[#This Row],[نهايه الاشتراك]]","v":"2018-11-28"}]
[{"$f":"Table1[[#This Row],[أســــم المشترك]]","v":" حماده سعيد محمود المليجي"},{"$f":"Table1[[#This Row],[كود المشترك]]","v":30},{"$f":"Table1[[#This Row],[رقم الموبايـــل]]","v":"01127101990"},{"$f":"Table1[[#This Row],[مده الاشتراك]]","v":0},{"$f":"Table1[[#This Row],[بدايه الاشتراك]]","v":"2018-10-27"},{"$f":"Table1[[#This Row],[نهايه الاشتراك]]","v":"2018-11-28"}]
[{"$f":"Table1[[#This Row],[أســــم المشترك]]","v":"حماده سعيد محمود المليجي"},{"$f":"Table1[[#This Row],[كود المشترك]]","v":11},{"$f":"Table1[[#This Row],[رقم الموبايـــل]]","v":"01127101990"},{"$f":"Table1[[#This Row],[مده الاشتراك]]","v":0},{"$f":"Table1[[#This Row],[بدايه الاشتراك]]","v":"2018-10-27"},{"$f":"Table1[[#This Row],[نهايه الاشتراك]]","v":"2018-11-28"}]
[{"$f":"Table1[[#This Row],[أســــم المشترك]]","v":"حماده سعيد محمود المليجي"},{"$f":"Table1[[#This Row],[كود المشترك]]","v":12},{"$f":"Table1[[#This Row],[رقم الموبايـــل]]","v":"01127101990"},{"$f":"Table1[[#This Row],[مده الاشتراك]]","v":0},{"$f":"Table1[[#This Row],[بدايه الاشتراك]]","v":"2018-10-27"},{"$f":"Table1[[#This Row],[نهايه الاشتراك]]","v":"2018-11-28"}]
[{"$f":"Table1[[#This Row],[أســــم المشترك]]","v":"علي حماده سعيد محمود المليجي"},{"$f":"Table1[[#This Row],[كود المشترك]]","v":30},{"$f":"Table1[[#This Row],[رقم الموبايـــل]]","v":"01127101990"},{"$f":"Table1[[#This Row],[مده الاشتراك]]","v":0},{"$f":"Table1[[#This Row],[بدايه الاشتراك]]","v":"2018-10-27"},{"$f":"Table1[[#This Row],[نهايه الاشتراك]]","v":"2018-11-28"}]
[{"$f":"Table1[[#This Row],[أســــم المشترك]]","v":"علي حماده سعيد محمود المليجي"},{"$f":"Table1[[#This Row],[كود المشترك]]","v":26},{"$f":"Table1[[#This Row],[رقم الموبايـــل]]","v":"01127101990"},{"$f":"Table1[[#This Row],[مده الاشتراك]]","v":0},{"$f":"Table1[[#This Row],[بدايه الاشتراك]]","v":"17/1"},{"$f":"Table1[[#This Row],[نهايه الاشتراك]]","v":"2018-11-28"}]
[{"$f":"Table1[[#This Row],[أســــم المشترك]]","v":"sssssssss"},{"$f":"Table1[[#This Row],[كود المشترك]]","v":"sssssssssss"},{"$f":"Table1[[#This Row],[رقم الموبايـــل]]","v":"01004516749"},{"$f":"Table1[[#This Row],[مده الاشتراك]]","v":0},{"$f":"Table1[[#This Row],[بدايه الاشتراك]]","v":"00:00:00"},{"$f":"Table1[[#This Row],[نهايه الاشتراك]]","v":"00:00:00"}]
[{"$f":"Table1[[#This Row],[أســــم المشترك]]","v":"انا ويكا "},{"$f":"Table1[[#This Row],[كود المشترك]]","v":1},{"$f":"Table1[[#This Row],[رقم الموبايـــل]]","v":"01127101990"},{"$f":"Table1[[#This Row],[مده الاشتراك]]","v":0},{"$f":"Table1[[#This Row],[بدايه الاشتراك]]","v":"27-10-2018"},{"$f":"Table1[[#This Row],[نهايه الاشتراك]]","v":"28-11-2018"}]
[{"$f":"Table1[[#This Row],[أســــم المشترك]]","v":1},{"$f":"Table1[[#This Row],[كود المشترك]]","v":1},{"$f":"Table1[[#This Row],[رقم الموبايـــل]]","v":"1"},{"$f":"Table1[[#This Row],[مده الاشتراك]]","v":1},{"$f":"Table1[[#This Row],[بدايه الاشتراك]]","v":"12/31/1899"},{"$f":"Table1[[#This Row],[نهايه الاشتراك]]","v":"12/31/1899"}]
[{"$f":"Table1[[#This Row],[أســــم المشترك]]","v":0},{"$f":"Table1[[#This Row],[كود المشترك]]","v":0},{"$f":"Table1[[#This Row],[رقم الموبايـــل]]","v":0},{"$f":"Table1[[#This Row],[مده الاشتراك]]","v":0},{"$f":"Table1[[#This Row],[بدايه الاشتراك]]","v":"00:00:00"},{"$f":"Table1[[#This Row],[نهايه الاشتراك]]","v":"00:00:00"}]
[{"$f":"Table1[[#This Row],[أســــم المشترك]]","v":0},{"$f":"Table1[[#This Row],[كود المشترك]]","v":0},{"$f":"Table1[[#This Row],[رقم الموبايـــل]]","v":0},{"$f":"Table1[[#This Row],[مده الاشتراك]]","v":0},{"$f":"Table1[[#This Row],[بدايه الاشتراك]]","v":"00:00:00"},{"$f":"Table1[[#This Row],[نهايه الاشتراك]]","v":"00:00:00"}]
[{"$f":"Table1[[#This Row],[أســــم المشترك]]","v":0},{"$f":"Table1[[#This Row],[كود المشترك]]","v":0},{"$f":"Table1[[#This Row],[رقم الموبايـــل]]","v":0},{"$f":"Table1[[#This Row],[مده الاشتراك]]","v":0},{"$f":"Table1[[#This Row],[بدايه الاشتراك]]","v":"00:00:00"},{"$f":"Table1[[#This Row],[نهايه الاشتراك]]","v":"00:00:00"}]
[{"$f":"Table1[[#This Row],[أســــم المشترك]]","v":0},{"$f":"Table1[[#This Row],[كود المشترك]]","v":0},{"$f":"Table1[[#This Row],[رقم الموبايـــل]]","v":0},{"$f":"Table1[[#This Row],[مده الاشتراك]]","v":0},{"$f":"Table1[[#This Row],[بدايه الاشتراك]]","v":"00:00:00"},{"$f":"Table1[[#This Row],[نهايه الاشتراك]]","v":"00:00:00"}]
[{"$f":"Table1[[#This Row],[أســــم المشترك]]","v":0},{"$f":"Table1[[#This Row],[كود المشترك]]","v":0},{"$f":"Table1[[#This Row],[رقم الموبايـــل]]","v":0},{"$f":"Table1[[#This Row],[مده الاشتراك]]","v":0},{"$f":"Table1[[#This Row],[بدايه الاشتراك]]","v":"00:00:00"},{"$f":"Table1[[#This Row],[نهايه الاشتراك]]","v":"00:00:00"}]
[{"$f":"Table1[[#This Row],[أســــم المشترك]]","v":0},{"$f":"Table1[[#This Row],[كود المشترك]]","v":0},{"$f":"Table1[[#This Row],[رقم الموبايـــل]]","v":0},{"$f":"Table1[[#This Row],[مده الاشتراك]]","v":0},{"$f":"Table1[[#This Row],[بدايه الاشتراك]]","v":"00:00:00"},{"$f":"Table1[[#This Row],[نهايه الاشتراك]]","v":"00:00:00"}]
[{"$f":"Table1[[#This Row],[أســــم المشترك]]","v":0},{"$f":"Table1[[#This Row],[كود المشترك]]","v":0},{"$f":"Table1[[#This Row],[رقم الموبايـــل]]","v":0},{"$f":"Table1[[#This Row],[مده الاشتراك]]","v":0},{"$f":"Table1[[#This Row],[بدايه الاشتراك]]","v":"00:00:00"},{"$f":"Table1[[#This Row],[نهايه الاشتراك]]","v":"00:00:00"}]
[{"$f":"Table1[[#This Row],[أســــم المشترك]]","v":0},{"$f":"Table1[[#This Row],[كود المشترك]]","v":0},{"$f":"Table1[[#This Row],[رقم الموبايـــل]]","v":0},{"$f":"Table1[[#This Row],[مده الاشتراك]]","v":0},{"$f":"Table1[[#This Row],[بدايه الاشتراك]]","v":"00:00:00"},{"$f":"Table1[[#This Row],[نهايه الاشتراك]]","v":"00:00:00"}]
[{"$f":"Table1[[#This Row],[أســــم المشترك]]","v":0},{"$f":"Table1[[#This Row],[كود المشترك]]","v":0},{"$f":"Table1[[#This Row],[رقم الموبايـــل]]","v":0},{"$f":"Table1[[#This Row],[مده الاشتراك]]","v":0},{"$f":"Table1[[#This Row],[بدايه الاشتراك]]","v":"00:00:00"},{"$f":"Table1[[#This Row],[نهايه الاشتراك]]","v":"00:00:00"}]
[{"$f":"Table1[[#This Row],[أســــم المشترك]]","v":0},{"$f":"Table1[[#This Row],[كود المشترك]]","v":0},{"$f":"Table1[[#This Row],[رقم الموبايـــل]]","v":0},{"$f":"Table1[[#This Row],[مده الاشتراك]]","v":0},{"$f":"Table1[[#This Row],[بدايه الاشتراك]]","v":"00:00:00"},{"$f":"Table1[[#This Row],[نهايه الاشتراك]]","v":"00:00:00"}]
[{"$f":"Table1[[#This Row],[أســــم المشترك]]","v":0},{"$f":"Table1[[#This Row],[كود المشترك]]","v":0},{"$f":"Table1[[#This Row],[رقم الموبايـــل]]","v":0},{"$f":"Table1[[#This Row],[مده الاشتراك]]","v":0},{"$f":"Table1[[#This Row],[بدايه الاشتراك]]","v":"00:00:00"},{"$f":"Table1[[#This Row],[نهايه الاشتراك]]","v":"00:00:00"}]
[{"$f":"Table1[[#This Row],[أســــم المشترك]]","v":0},{"$f":"Table1[[#This Row],[كود المشترك]]","v":0},{"$f":"Table1[[#This Row],[رقم الموبايـــل]]","v":0},{"$f":"Table1[[#This Row],[مده الاشتراك]]","v":0},{"$f":"Table1[[#This Row],[بدايه الاشتراك]]","v":"00:00:00"},{"$f":"Table1[[#This Row],[نهايه الاشتراك]]","v":"00:00:00"}]
[{"$f":"Table1[[#This Row],[أســــم المشترك]]","v":0},{"$f":"Table1[[#This Row],[كود المشترك]]","v":0},{"$f":"Table1[[#This Row],[رقم الموبايـــل]]","v":0},{"$f":"Table1[[#This Row],[مده الاشتراك]]","v":0},{"$f":"Table1[[#This Row],[بدايه الاشتراك]]","v":"00:00:00"},{"$f":"Table1[[#This Row],[نهايه الاشتراك]]","v":"00:00:00"}]
[{"$f":"Table1[[#This Row],[أســــم المشترك]]","v":0},{"$f":"Table1[[#This Row],[كود المشترك]]","v":0},{"$f":"Table1[[#This Row],[رقم الموبايـــل]]","v":0},{"$f":"Table1[[#This Row],[مده الاشتراك]]","v":0},{"$f":"Table1[[#This Row],[بدايه الاشتراك]]","v":"00:00:00"},{"$f":"Table1[[#This Row],[نهايه الاشتراك]]","v":"00:00:00"}]
[{"$f":"Table1[[#This Row],[أســــم المشترك]]","v":0},{"$f":"Table1[[#This Row],[كود المشترك]]","v":0},{"$f":"Table1[[#This Row],[رقم الموبايـــل]]","v":0},{"$f":"Table1[[#This Row],[مده الاشتراك]]","v":0},{"$f":"Table1[[#This Row],[بدايه الاشتراك]]","v":"00:00:00"},{"$f":"Table1[[#This Row],[نهايه الاشتراك]]","v":"00:00:00"}]
[{"$f":"Table1[[#This Row],[أســــم المشترك]]","v":0},{"$f":"Table1[[#This Row],[كود المشترك]]","v":0},{"$f":"Table1[[#This Row],[رقم الموبايـــل]]","v":0},{"$f":"Table1[[#This Row],[مده الاشتراك]]","v":0},{"$f":"Table1[[#This Row],[بدايه الاشتراك]]","v":"00:00:00"},{"$f":"Table1[[#This Row],[نهايه الاشتراك]]","v":"00:00:00"}]
[{"$f":"Table1[[#This Row],[أســــم المشترك]]","v":0},{"$f":"Table1[[#This Row],[كود المشترك]]","v":0},{"$f":"Table1[[#This Row],[رقم الموبايـــل]]","v":0},{"$f":"Table1[[#This Row],[مده الاشتراك]]","v":0},{"$f":"Table1[[#This Row],[بدايه الاشتراك]]","v":"00:00:00"},{"$f":"Table1[[#This Row],[نهايه الاشتراك]]","v":"00:00:00"}]
[{"$f":"Table1[[#This Row],[أســــم المشترك]]","v":0},{"$f":"Table1[[#This Row],[كود المشترك]]","v":0},{"$f":"Table1[[#This Row],[رقم الموبايـــل]]","v":0},{"$f":"Table1[[#This Row],[مده الاشتراك]]","v":0},{"$f":"Table1[[#This Row],[بدايه الاشتراك]]","v":"00:00:00"},{"$f":"Table1[[#This Row],[نهايه الاشتراك]]","v":"00:00:00"}]
[{"$f":"Table1[[#This Row],[أســــم المشترك]]","v":0},{"$f":"Table1[[#This Row],[كود المشترك]]","v":0},{"$f":"Table1[[#This Row],[رقم الموبايـــل]]","v":0},{"$f":"Table1[[#This Row],[مده الاشتراك]]","v":0},{"$f":"Table1[[#This Row],[بدايه الاشتراك]]","v":"00:00:00"},{"$f":"Table1[[#This Row],[نهايه الاشتراك]]","v":"00:00:00"}]
[{"$f":"Table1[[#This Row],[أســــم المشترك]]","v":0},{"$f":"Table1[[#This Row],[كود المشترك]]","v":0},{"$f":"Table1[[#This Row],[رقم الموبايـــل]]","v":0},{"$f":"Table1[[#This Row],[مده الاشتراك]]","v":0},{"$f":"Table1[[#This Row],[بدايه الاشتراك]]","v":"00:00:00"},{"$f":"Table1[[#This Row],[نهايه الاشتراك]]","v":"00:00:00"}]
[{"$f":"Table1[[#This Row],[أســــم المشترك]]","v":0},{"$f":"Table1[[#This Row],[كود المشترك]]","v":0},{"$f":"Table1[[#This Row],[رقم الموبايـــل]]","v":0},{"$f":"Table1[[#This Row],[مده الاشتراك]]","v":0},{"$f":"Table1[[#This Row],[بدايه الاشتراك]]","v":"00:00:00"},{"$f":"Table1[[#This Row],[نهايه الاشتراك]]","v":"00:00:00"}]
[{"$f":"Table1[[#This Row],[أســــم المشترك]]","v":0},{"$f":"Table1[[#This Row],[كود المشترك]]","v":0},{"$f":"Table1[[#This Row],[رقم الموبايـــل]]","v":0},{"$f":"Table1[[#This Row],[مده الاشتراك]]","v":0},{"$f":"Table1[[#This Row],[بدايه الاشتراك]]","v":"00:00:00"},{"$f":"Table1[[#This Row],[نهايه الاشتراك]]","v":"00:00:00"}]
[{"$f":"Table1[[#This Row],[أســــم المشترك]]","v":0},{"$f":"Table1[[#This Row],[كود المشترك]]","v":0},{"$f":"Table1[[#This Row],[رقم الموبايـــل]]","v":0},{"$f":"Table1[[#This Row],[مده الاشتراك]]","v":0},{"$f":"Table1[[#This Row],[بدايه الاشتراك]]","v":"00:00:00"},{"$f":"Table1[[#This Row],[نهايه الاشتراك]]","v":"00:00:00"}]
[{"$f":"Table1[[#This Row],[أســــم المشترك]]","v":0},{"$f":"Table1[[#This Row],[كود المشترك]]","v":0},{"$f":"Table1[[#This Row],[رقم الموبايـــل]]","v":0},{"$f":"Table1[[#This Row],[مده الاشتراك]]","v":0},{"$f":"Table1[[#This Row],[بدايه الاشتراك]]","v":"00:00:00"},{"$f":"Table1[[#This Row],[نهايه الاشتراك]]","v":"00:00:00"}]
[{"$f":"Table1[[#This Row],[أســــم المشترك]]","v":0},{"$f":"Table1[[#This Row],[كود المشترك]]","v":0},{"$f":"Table1[[#This Row],[رقم الموبايـــل]]","v":0},{"$f":"Table1[[#This Row],[مده الاشتراك]]","v":0},{"$f":"Table1[[#This Row],[بدايه الاشتراك]]","v":"00:00:00"},{"$f":"Table1[[#This Row],[نهايه الاشتراك]]","v":"00:00:00"}]
[{"$f":"Table1[[#This Row],[أســــم المشترك]]","v":0},{"$f":"Table1[[#This Row],[كود المشترك]]","v":0},{"$f":"Table1[[#This Row],[رقم الموبايـــل]]","v":0},{"$f":"Table1[[#This Row],[مده الاشتراك]]","v":0},{"$f":"Table1[[#This Row],[بدايه الاشتراك]]","v":"00:00:00"},{"$f":"Table1[[#This Row],[نهايه الاشتراك]]","v":"00:00:00"}]
[{"$f":"Table1[[#This Row],[أســــم المشترك]]","v":0},{"$f":"Table1[[#This Row],[كود المشترك]]","v":0},{"$f":"Table1[[#This Row],[رقم الموبايـــل]]","v":0},{"$f":"Table1[[#This Row],[مده الاشتراك]]","v":0},{"$f":"Table1[[#This Row],[بدايه الاشتراك]]","v":"00:00:00"},{"$f":"Table1[[#This Row],[نهايه الاشتراك]]","v":"00:00:00"}]
[{"$f":"Table1[[#This Row],[أســــم المشترك]]","v":0},{"$f":"Table1[[#This Row],[كود المشترك]]","v":0},{"$f":"Table1[[#This Row],[رقم الموبايـــل]]","v":0},{"$f":"Table1[[#This Row],[مده الاشتراك]]","v":0},{"$f":"Table1[[#This Row],[بدايه الاشتراك]]","v":"00:00:00"},{"$f":"Table1[[#This Row],[نهايه الاشتراك]]","v":"00:00:00"}]
[{"$f":"Table1[[#This Row],[أســــم المشترك]]","v":0},{"$f":"Table1[[#This Row],[كود المشترك]]","v":0},{"$f":"Table1[[#This Row],[رقم الموبايـــل]]","v":0},{"$f":"Table1[[#This Row],[مده الاشتراك]]","v":0},{"$f":"Table1[[#This Row],[بدايه الاشتراك]]","v":"00:00:00"},{"$f":"Table1[[#This Row],[نهايه الاشتراك]]","v":"00:00:00"}]
[{"$f":"Table1[[#This Row],[أســــم المشترك]]","v":0},{"$f":"Table1[[#This Row],[كود المشترك]]","v":0},{"$f":"Table1[[#This Row],[رقم الموبايـــل]]","v":0},{"$f":"Table1[[#This Row],[مده الاشتراك]]","v":0},{"$f":"Table1[[#This Row],[بدايه الاشتراك]]","v":"00:00:00"},{"$f":"Table1[[#This Row],[نهايه الاشتراك]]","v":"00:00:00"}]
[{"$f":"Table1[[#This Row],[أســــم المشترك]]","v":0},{"$f":"Table1[[#This Row],[كود المشترك]]","v":0},{"$f":"Table1[[#This Row],[رقم الموبايـــل]]","v":0},{"$f":"Table1[[#This Row],[مده الاشتراك]]","v":0},{"$f":"Table1[[#This Row],[بدايه الاشتراك]]","v":"00:00:00"},{"$f":"Table1[[#This Row],[نهايه الاشتراك]]","v":"00:00:00"}]
[{"$f":"Table1[[#This Row],[أســــم المشترك]]","v":0},{"$f":"Table1[[#This Row],[كود المشترك]]","v":0},{"$f":"Table1[[#This Row],[رقم الموبايـــل]]","v":0},{"$f":"Table1[[#This Row],[مده الاشتراك]]","v":0},{"$f":"Table1[[#This Row],[بدايه الاشتراك]]","v":"00:00:00"},{"$f":"Table1[[#This Row],[نهايه الاشتراك]]","v":"00:00:00"}]
[{"$f":"Table1[[#This Row],[أســــم المشترك]]","v":0},{"$f":"Table1[[#This Row],[كود المشترك]]","v":0},{"$f":"Table1[[#This Row],[رقم الموبايـــل]]","v":0},{"$f":"Table1[[#This Row],[مده الاشتراك]]","v":0},{"$f":"Table1[[#This Row],[بدايه الاشتراك]]","v":"00:00:00"},{"$f":"Table1[[#This Row],[نهايه الاشتراك]]","v":"00:00:00"}]
[{"$f":"Table1[[#This Row],[أســــم المشترك]]","v":0},{"$f":"Table1[[#This Row],[كود المشترك]]","v":0},{"$f":"Table1[[#This Row],[رقم الموبايـــل]]","v":0},{"$f":"Table1[[#This Row],[مده الاشتراك]]","v":0},{"$f":"Table1[[#This Row],[بدايه الاشتراك]]","v":"00:00:00"},{"$f":"Table1[[#This Row],[نهايه الاشتراك]]","v":"00:00:00"}]
[{"$f":"Table1[[#This Row],[أســــم المشترك]]","v":0},{"$f":"Table1[[#This Row],[كود المشترك]]","v":0},{"$f":"Table1[[#This Row],[رقم الموبايـــل]]","v":0},{"$f":"Table1[[#This Row],[مده الاشتراك]]","v":0},{"$f":"Table1[[#This Row],[بدايه الاشتراك]]","v":"00:00:00"},{"$f":"Table1[[#This Row],[نهايه الاشتراك]]","v":"00:00:00"}]
[{"$f":"Table1[[#This Row],[أســــم المشترك]]","v":0},{"$f":"Table1[[#This Row],[كود المشترك]]","v":0},{"$f":"Table1[[#This Row],[رقم الموبايـــل]]","v":0},{"$f":"Table1[[#This Row],[مده الاشتراك]]","v":0},{"$f":"Table1[[#This Row],[بدايه الاشتراك]]","v":"00:00:00"},{"$f":"Table1[[#This Row],[نهايه الاشتراك]]","v":"00:00:00"}]
[{"$f":"Table1[[#This Row],[أســــم المشترك]]","v":0},{"$f":"Table1[[#This Row],[كود المشترك]]","v":0},{"$f":"Table1[[#This Row],[رقم الموبايـــل]]","v":0},{"$f":"Table1[[#This Row],[مده الاشتراك]]","v":0},{"$f":"Table1[[#This Row],[بدايه الاشتراك]]","v":"00:00:00"},{"$f":"Table1[[#This Row],[نهايه الاشتراك]]","v":"00:00:00"}]
[{"$f":"Table1[[#This Row],[أســــم المشترك]]","v":0},{"$f":"Table1[[#This Row],[كود المشترك]]","v":0},{"$f":"Table1[[#This Row],[رقم الموبايـــل]]","v":0},{"$f":"Table1[[#This Row],[مده الاشتراك]]","v":0},{"$f":"Table1[[#This Row],[بدايه الاشتراك]]","v":"00:00:00"},{"$f":"Table1[[#This Row],[نهايه الاشتراك]]","v":"00:00:00"}]
[{"$f":"Table1[[#This Row],[أســــم المشترك]]","v":0},{"$f":"Table1[[#This Row],[كود المشترك]]","v":0},{"$f":"Table1[[#This Row],[رقم الموبايـــل]]","v":0},{"$f":"Table1[[#This Row],[مده الاشتراك]]","v":0},{"$f":"Table1[[#This Row],[بدايه الاشتراك]]","v":"00:00:00"},{"$f":"Table1[[#This Row],[نهايه الاشتراك]]","v":"00:00:00"}]
[{"$f":"Table1[[#This Row],[أســــم المشترك]]","v":0},{"$f":"Table1[[#This Row],[كود المشترك]]","v":0},{"$f":"Table1[[#This Row],[رقم الموبايـــل]]","v":0},{"$f":"Table1[[#This Row],[مده الاشتراك]]","v":0},{"$f":"Table1[[#This Row],[بدايه الاشتراك]]","v":"00:00:00"},{"$f":"Table1[[#This Row],[نهايه الاشتراك]]","v":"00:00:00"}]
[{"$f":"Table1[[#This Row],[أســــم المشترك]]","v":0},{"$f":"Table1[[#This Row],[كود المشترك]]","v":0},{"$f":"Table1[[#This Row],[رقم الموبايـــل]]","v":0},{"$f":"Table1[[#This Row],[مده الاشتراك]]","v":0},{"$f":"Table1[[#This Row],[بدايه الاشتراك]]","v":"00:00:00"},{"$f":"Table1[[#This Row],[نهايه الاشتراك]]","v":"00:00:00"}]
[{"$f":"Table1[[#This Row],[أســــم المشترك]]","v":0},{"$f":"Table1[[#This Row],[كود المشترك]]","v":0},{"$f":"Table1[[#This Row],[رقم الموبايـــل]]","v":0},{"$f":"Table1[[#This Row],[مده الاشتراك]]","v":0},{"$f":"Table1[[#This Row],[بدايه الاشتراك]]","v":"00:00:00"},{"$f":"Table1[[#This Row],[نهايه الاشتراك]]","v":"00:00:00"}]
[{"$f":"Table1[[#This Row],[أســــم المشترك]]","v":0},{"$f":"Table1[[#This Row],[كود المشترك]]","v":0},{"$f":"Table1[[#This Row],[رقم الموبايـــل]]","v":0},{"$f":"Table1[[#This Row],[مده الاشتراك]]","v":0},{"$f":"Table1[[#This Row],[بدايه الاشتراك]]","v":"00:00:00"},{"$f":"Table1[[#This Row],[نهايه الاشتراك]]","v":"00:00:00"}]
[{"$f":"Table1[[#This Row],[أســــم المشترك]]","v":0},{"$f":"Table1[[#This Row],[كود المشترك]]","v":0},{"$f":"Table1[[#This Row],[رقم الموبايـــل]]","v":0},{"$f":"Table1[[#This Row],[مده الاشتراك]]","v":0},{"$f":"Table1[[#This Row],[بدايه الاشتراك]]","v":"00:00:00"},{"$f":"Table1[[#This Row],[نهايه الاشتراك]]","v":"00:00:00"}]
[{"$f":"Table1[[#This Row],[أســــم المشترك]]","v":0},{"$f":"Table1[[#This Row],[كود المشترك]]","v":0},{"$f":"Table1[[#This Row],[رقم الموبايـــل]]","v":0},{"$f":"Table1[[#This Row],[مده الاشتراك]]","v":0},{"$f":"Table1[[#This Row],[بدايه الاشتراك]]","v":"00:00:00"},{"$f":"Table1[[#This Row],[نهايه الاشتراك]]","v":"00:00:00"}]
[{"$f":"Table1[[#This Row],[أســــم المشترك]]","v":0},{"$f":"Table1[[#This Row],[كود المشترك]]","v":0},{"$f":"Table1[[#This Row],[رقم الموبايـــل]]","v":0},{"$f":"Table1[[#This Row],[مده الاشتراك]]","v":0},{"$f":"Table1[[#This Row],[بدايه الاشتراك]]","v":"00:00:00"},{"$f":"Table1[[#This Row],[نهايه الاشتراك]]","v":"00:00:00"}]
[{"$f":"Table1[[#This Row],[أســــم المشترك]]","v":0},{"$f":"Table1[[#This Row],[كود المشترك]]","v":0},{"$f":"Table1[[#This Row],[رقم الموبايـــل]]","v":0},{"$f":"Table1[[#This Row],[مده الاشتراك]]","v":0},{"$f":"Table1[[#This Row],[بدايه الاشتراك]]","v":"00:00:00"},{"$f":"Table1[[#This Row],[نهايه الاشتراك]]","v":"00:00:00"}]
[{"$f":"Table1[[#This Row],[أســــم المشترك]]","v":0},{"$f":"Table1[[#This Row],[كود المشترك]]","v":0},{"$f":"Table1[[#This Row],[رقم الموبايـــل]]","v":0},{"$f":"Table1[[#This Row],[مده الاشتراك]]","v":0},{"$f":"Table1[[#This Row],[بدايه الاشتراك]]","v":"00:00:00"},{"$f":"Table1[[#This Row],[نهايه الاشتراك]]","v":"00:00:00"}]
[{"$f":"Table1[[#This Row],[أســــم المشترك]]","v":0},{"$f":"Table1[[#This Row],[كود المشترك]]","v":0},{"$f":"Table1[[#This Row],[رقم الموبايـــل]]","v":0},{"$f":"Table1[[#This Row],[مده الاشتراك]]","v":0},{"$f":"Table1[[#This Row],[بدايه الاشتراك]]","v":"00:00:00"},{"$f":"Table1[[#This Row],[نهايه الاشتراك]]","v":"00:00:00"}]
[{"$f":"Table1[[#This Row],[أســــم المشترك]]","v":0},{"$f":"Table1[[#This Row],[كود المشترك]]","v":0},{"$f":"Table1[[#This Row],[رقم الموبايـــل]]","v":0},{"$f":"Table1[[#This Row],[مده الاشتراك]]","v":0},{"$f":"Table1[[#This Row],[بدايه الاشتراك]]","v":"00:00:00"},{"$f":"Table1[[#This Row],[نهايه الاشتراك]]","v":"00:00:00"}]
[{"$f":"Table1[[#This Row],[أســــم المشترك]]","v":0},{"$f":"Table1[[#This Row],[كود المشترك]]","v":0},{"$f":"Table1[[#This Row],[رقم الموبايـــل]]","v":0},{"$f":"Table1[[#This Row],[مده الاشتراك]]","v":0},{"$f":"Table1[[#This Row],[بدايه الاشتراك]]","v":"00:00:00"},{"$f":"Table1[[#This Row],[نهايه الاشتراك]]","v":"00:00:00"}]
[{"$f":"Table1[[#This Row],[أســــم المشترك]]","v":0},{"$f":"Table1[[#This Row],[كود المشترك]]","v":0},{"$f":"Table1[[#This Row],[رقم الموبايـــل]]","v":0},{"$f":"Table1[[#This Row],[مده الاشتراك]]","v":0},{"$f":"Table1[[#This Row],[بدايه الاشتراك]]","v":"00:00:00"},{"$f":"Table1[[#This Row],[نهايه الاشتراك]]","v":"00:00:00"}]
[{"$f":"Table1[[#This Row],[أســــم المشترك]]","v":0},{"$f":"Table1[[#This Row],[كود المشترك]]","v":0},{"$f":"Table1[[#This Row],[رقم الموبايـــل]]","v":0},{"$f":"Table1[[#This Row],[مده الاشتراك]]","v":0},{"$f":"Table1[[#This Row],[بدايه الاشتراك]]","v":"00:00:00"},{"$f":"Table1[[#This Row],[نهايه الاشتراك]]","v":"00:00:00"}]
[{"$f":"Table1[[#This Row],[أســــم المشترك]]","v":0},{"$f":"Table1[[#This Row],[كود المشترك]]","v":0},{"$f":"Table1[[#This Row],[رقم الموبايـــل]]","v":0},{"$f":"Table1[[#This Row],[مده الاشتراك]]","v":0},{"$f":"Table1[[#This Row],[بدايه الاشتراك]]","v":"00:00:00"},{"$f":"Table1[[#This Row],[نهايه الاشتراك]]","v":"00:00:00"}]
[{"$f":"Table1[[#This Row],[أســــم المشترك]]","v":0},{"$f":"Table1[[#This Row],[كود المشترك]]","v":0},{"$f":"Table1[[#This Row],[رقم الموبايـــل]]","v":0},{"$f":"Table1[[#This Row],[مده الاشتراك]]","v":0},{"$f":"Table1[[#This Row],[بدايه الاشتراك]]","v":"00:00:00"},{"$f":"Table1[[#This Row],[نهايه الاشتراك]]","v":"00:00:00"}]
[{"$f":"Table1[[#This Row],[أســــم المشترك]]","v":0},{"$f":"Table1[[#This Row],[كود المشترك]]","v":0},{"$f":"Table1[[#This Row],[رقم الموبايـــل]]","v":0},{"$f":"Table1[[#This Row],[مده الاشتراك]]","v":0},{"$f":"Table1[[#This Row],[بدايه الاشتراك]]","v":"00:00:00"},{"$f":"Table1[[#This Row],[نهايه الاشتراك]]","v":"00:00:00"}]
[{"$f":"Table1[[#This Row],[أســــم المشترك]]","v":0},{"$f":"Table1[[#This Row],[كود المشترك]]","v":0},{"$f":"Table1[[#This Row],[رقم الموبايـــل]]","v":0},{"$f":"Table1[[#This Row],[مده الاشتراك]]","v":0},{"$f":"Table1[[#This Row],[بدايه الاشتراك]]","v":"00:00:00"},{"$f":"Table1[[#This Row],[نهايه الاشتراك]]","v":"00:00:00"}]
[{"$f":"Table1[[#This Row],[أســــم المشترك]]","v":0},{"$f":"Table1[[#This Row],[كود المشترك]]","v":0},{"$f":"Table1[[#This Row],[رقم الموبايـــل]]","v":0},{"$f":"Table1[[#This Row],[مده الاشتراك]]","v":0},{"$f":"Table1[[#This Row],[بدايه الاشتراك]]","v":"00:00:00"},{"$f":"Table1[[#This Row],[نهايه الاشتراك]]","v":"00:00:00"}]
[{"$f":"Table1[[#This Row],[أســــم المشترك]]","v":0},{"$f":"Table1[[#This Row],[كود المشترك]]","v":0},{"$f":"Table1[[#This Row],[رقم الموبايـــل]]","v":0},{"$f":"Table1[[#This Row],[مده الاشتراك]]","v":0},{"$f":"Table1[[#This Row],[بدايه الاشتراك]]","v":"00:00:00"},{"$f":"Table1[[#This Row],[نهايه الاشتراك]]","v":"00:00:00"}]
[{"$f":"Table1[[#This Row],[أســــم المشترك]]","v":0},{"$f":"Table1[[#This Row],[كود المشترك]]","v":0},{"$f":"Table1[[#This Row],[رقم الموبايـــل]]","v":0},{"$f":"Table1[[#This Row],[مده الاشتراك]]","v":0},{"$f":"Table1[[#This Row],[بدايه الاشتراك]]","v":"00:00:00"},{"$f":"Table1[[#This Row],[نهايه الاشتراك]]","v":"00:00:00"}]
[{"$f":"Table1[[#This Row],[أســــم المشترك]]","v":0},{"$f":"Table1[[#This Row],[كود المشترك]]","v":0},{"$f":"Table1[[#This Row],[رقم الموبايـــل]]","v":0},{"$f":"Table1[[#This Row],[مده الاشتراك]]","v":0},{"$f":"Table1[[#This Row],[بدايه الاشتراك]]","v":"00:00:00"},{"$f":"Table1[[#This Row],[نهايه الاشتراك]]","v":"00:00:00"}]
[{"$f":"Table1[[#This Row],[أســــم المشترك]]","v":0},{"$f":"Table1[[#This Row],[كود المشترك]]","v":0},{"$f":"Table1[[#This Row],[رقم الموبايـــل]]","v":0},{"$f":"Table1[[#This Row],[مده الاشتراك]]","v":0},{"$f":"Table1[[#This Row],[بدايه الاشتراك]]","v":"00:00:00"},{"$f":"Table1[[#This Row],[نهايه الاشتراك]]","v":"00:00:00"}]
[{"$f":"Table1[[#This Row],[أســــم المشترك]]","v":0},{"$f":"Table1[[#This Row],[كود المشترك]]","v":0},{"$f":"Table1[[#This Row],[رقم الموبايـــل]]","v":0},{"$f":"Table1[[#This Row],[مده الاشتراك]]","v":0},{"$f":"Table1[[#This Row],[بدايه الاشتراك]]","v":"00:00:00"},{"$f":"Table1[[#This Row],[نهايه الاشتراك]]","v":"00:00:00"}]
[{"$f":"Table1[[#This Row],[أســــم المشترك]]","v":0},{"$f":"Table1[[#This Row],[كود المشترك]]","v":0},{"$f":"Table1[[#This Row],[رقم الموبايـــل]]","v":0},{"$f":"Table1[[#This Row],[مده الاشتراك]]","v":0},{"$f":"Table1[[#This Row],[بدايه الاشتراك]]","v":"00:00:00"},{"$f":"Table1[[#This Row],[نهايه الاشتراك]]","v":"00:00:00"}]
[{"$f":"Table1[[#This Row],[أســــم المشترك]]","v":0},{"$f":"Table1[[#This Row],[كود المشترك]]","v":0},{"$f":"Table1[[#This Row],[رقم الموبايـــل]]","v":0},{"$f":"Table1[[#This Row],[مده الاشتراك]]","v":0},{"$f":"Table1[[#This Row],[بدايه الاشتراك]]","v":"00:00:00"},{"$f":"Table1[[#This Row],[نهايه الاشتراك]]","v":"00:00:00"}]
[{"$f":"Table1[[#This Row],[أســــم المشترك]]","v":0},{"$f":"Table1[[#This Row],[كود المشترك]]","v":0},{"$f":"Table1[[#This Row],[رقم الموبايـــل]]","v":0},{"$f":"Table1[[#This Row],[مده الاشتراك]]","v":0},{"$f":"Table1[[#This Row],[بدايه الاشتراك]]","v":"00:00:00"},{"$f":"Table1[[#This Row],[نهايه الاشتراك]]","v":"00:00:00"}]
[{"$f":"Table1[[#This Row],[أســــم المشترك]]","v":0},{"$f":"Table1[[#This Row],[كود المشترك]]","v":0},{"$f":"Table1[[#This Row],[رقم الموبايـــل]]","v":0},{"$f":"Table1[[#This Row],[مده الاشتراك]]","v":0},{"$f":"Table1[[#This Row],[بدايه الاشتراك]]","v":"00:00:00"},{"$f":"Table1[[#This Row],[نهايه الاشتراك]]","v":"00:00:00"}]
[{"$f":"Table1[[#This Row],[أســــم المشترك]]","v":0},{"$f":"Table1[[#This Row],[كود المشترك]]","v":0},{"$f":"Table1[[#This Row],[رقم الموبايـــل]]","v":0},{"$f":"Table1[[#This Row],[مده الاشتراك]]","v":0},{"$f":"Table1[[#This Row],[بدايه الاشتراك]]","v":"00:00:00"},{"$f":"Table1[[#This Row],[نهايه الاشتراك]]","v":"00:00:00"}]
[{"$f":"Table1[[#This Row],[أســــم المشترك]]","v":0},{"$f":"Table1[[#This Row],[كود المشترك]]","v":0},{"$f":"Table1[[#This Row],[رقم الموبايـــل]]","v":0},{"$f":"Table1[[#This Row],[مده الاشتراك]]","v":0},{"$f":"Table1[[#This Row],[بدايه الاشتراك]]","v":"00:00:00"},{"$f":"Table1[[#This Row],[نهايه الاشتراك]]","v":"00:00:00"}]
[{"$f":"Table1[[#This Row],[أســــم المشترك]]","v":0},{"$f":"Table1[[#This Row],[كود المشترك]]","v":0},{"$f":"Table1[[#This Row],[رقم الموبايـــل]]","v":0},{"$f":"Table1[[#This Row],[مده الاشتراك]]","v":0},{"$f":"Table1[[#This Row],[بدايه الاشتراك]]","v":"00:00:00"},{"$f":"Table1[[#This Row],[نهايه الاشتراك]]","v":"00:00:00"}]
[{"$f":"Table1[[#This Row],[أســــم المشترك]]","v":0},{"$f":"Table1[[#This Row],[كود المشترك]]","v":0},{"$f":"Table1[[#This Row],[رقم الموبايـــل]]","v":0},{"$f":"Table1[[#This Row],[مده الاشتراك]]","v":0},{"$f":"Table1[[#This Row],[بدايه الاشتراك]]","v":"00:00:00"},{"$f":"Table1[[#This Row],[نهايه الاشتراك]]","v":"00:00:00"}]
[{"$f":"Table1[[#This Row],[أســــم المشترك]]","v":0},{"$f":"Table1[[#This Row],[كود المشترك]]","v":0},{"$f":"Table1[[#This Row],[رقم الموبايـــل]]","v":0},{"$f":"Table1[[#This Row],[مده الاشتراك]]","v":0},{"$f":"Table1[[#This Row],[بدايه الاشتراك]]","v":"00:00:00"},{"$f":"Table1[[#This Row],[نهايه الاشتراك]]","v":"00:00:00"}]
[{"$f":"Table1[[#This Row],[أســــم المشترك]]","v":0},{"$f":"Table1[[#This Row],[كود المشترك]]","v":0},{"$f":"Table1[[#This Row],[رقم الموبايـــل]]","v":0},{"$f":"Table1[[#This Row],[مده الاشتراك]]","v":0},{"$f":"Table1[[#This Row],[بدايه الاشتراك]]","v":"00:00:00"},{"$f":"Table1[[#This Row],[نهايه الاشتراك]]","v":"00:00:00"}]
[{"$f":"Table1[[#This Row],[أســــم المشترك]]","v":0},{"$f":"Table1[[#This Row],[كود المشترك]]","v":0},{"$f":"Table1[[#This Row],[رقم الموبايـــل]]","v":0},{"$f":"Table1[[#This Row],[مده الاشتراك]]","v":0},{"$f":"Table1[[#This Row],[بدايه الاشتراك]]","v":"00:00:00"},{"$f":"Table1[[#This Row],[نهايه الاشتراك]]","v":"00:00:00"}]
[{"$f":"Table1[[#This Row],[أســــم المشترك]]","v":0},{"$f":"Table1[[#This Row],[كود المشترك]]","v":0},{"$f":"Table1[[#This Row],[رقم الموبايـــل]]","v":0},{"$f":"Table1[[#This Row],[مده الاشتراك]]","v":0},{"$f":"Table1[[#This Row],[بدايه الاشتراك]]","v":"00:00:00"},{"$f":"Table1[[#This Row],[نهايه الاشتراك]]","v":"00:00:00"}]
[{"$f":"Table1[[#This Row],[أســــم المشترك]]","v":0},{"$f":"Table1[[#This Row],[كود المشترك]]","v":0},{"$f":"Table1[[#This Row],[رقم الموبايـــل]]","v":0},{"$f":"Table1[[#This Row],[مده الاشتراك]]","v":0},{"$f":"Table1[[#This Row],[بدايه الاشتراك]]","v":"00:00:00"},{"$f":"Table1[[#This Row],[نهايه الاشتراك]]","v":"00:00:00"}]
[{"$f":"Table1[[#This Row],[أســــم المشترك]]","v":0},{"$f":"Table1[[#This Row],[كود المشترك]]","v":0},{"$f":"Table1[[#This Row],[رقم الموبايـــل]]","v":0},{"$f":"Table1[[#This Row],[مده الاشتراك]]","v":0},{"$f":"Table1[[#This Row],[بدايه الاشتراك]]","v":"00:00:00"},{"$f":"Table1[[#This Row],[نهايه الاشتراك]]","v":"00:00:00"}]
[{"$f":"Table1[[#This Row],[أســــم المشترك]]","v":0},{"$f":"Table1[[#This Row],[كود المشترك]]","v":0},{"$f":"Table1[[#This Row],[رقم الموبايـــل]]","v":0},{"$f":"Table1[[#This Row],[مده الاشتراك]]","v":0},{"$f":"Table1[[#This Row],[بدايه الاشتراك]]","v":"00:00:00"},{"$f":"Table1[[#This Row],[نهايه الاشتراك]]","v":"00:00:00"}]
[{"$f":"Table1[[#This Row],[أســــم المشترك]]","v":0},{"$f":"Table1[[#This Row],[كود المشترك]]","v":0},{"$f":"Table1[[#This Row],[رقم الموبايـــل]]","v":0},{"$f":"Table1[[#This Row],[مده الاشتراك]]","v":0},{"$f":"Table1[[#This Row],[بدايه الاشتراك]]","v":"00:00:00"},{"$f":"Table1[[#This Row],[نهايه الاشتراك]]","v":"00:00:00"}]
[{"$f":"Table1[[#This Row],[أســــم المشترك]]","v":0},{"$f":"Table1[[#This Row],[كود المشترك]]","v":0},{"$f":"Table1[[#This Row],[رقم الموبايـــل]]","v":0},{"$f":"Table1[[#This Row],[مده الاشتراك]]","v":0},{"$f":"Table1[[#This Row],[بدايه الاشتراك]]","v":"00:00:00"},{"$f":"Table1[[#This Row],[نهايه الاشتراك]]","v":"00:00:00"}]
[{"$f":"Table1[[#This Row],[أســــم المشترك]]","v":0},{"$f":"Table1[[#This Row],[كود المشترك]]","v":0},{"$f":"Table1[[#This Row],[رقم الموبايـــل]]","v":0},{"$f":"Table1[[#This Row],[مده الاشتراك]]","v":0},{"$f":"Table1[[#This Row],[بدايه الاشتراك]]","v":"00:00:00"},{"$f":"Table1[[#This Row],[نهايه الاشتراك]]","v":"00:00:00"}]
[{"$f":"Table1[[#This Row],[أســــم المشترك]]","v":0},{"$f":"Table1[[#This Row],[كود المشترك]]","v":0},{"$f":"Table1[[#This Row],[رقم الموبايـــل]]","v":0},{"$f":"Table1[[#This Row],[مده الاشتراك]]","v":0},{"$f":"Table1[[#This Row],[بدايه الاشتراك]]","v":"00:00:00"},{"$f":"Table1[[#This Row],[نهايه الاشتراك]]","v":"00:00:00"}]
[{"$f":"Table1[[#This Row],[أســــم المشترك]]","v":0},{"$f":"Table1[[#This Row],[كود المشترك]]","v":0},{"$f":"Table1[[#This Row],[رقم الموبايـــل]]","v":0},{"$f":"Table1[[#This Row],[مده الاشتراك]]","v":0},{"$f":"Table1[[#This Row],[بدايه الاشتراك]]","v":"00:00:00"},{"$f":"Table1[[#This Row],[نهايه الاشتراك]]","v":"00:00:00"}]
[{"$f":"Table1[[#This Row],[أســــم المشترك]]","v":0},{"$f":"Table1[[#This Row],[كود المشترك]]","v":0},{"$f":"Table1[[#This Row],[رقم الموبايـــل]]","v":0},{"$f":"Table1[[#This Row],[مده الاشتراك]]","v":0},{"$f":"Table1[[#This Row],[بدايه الاشتراك]]","v":"00:00:00"},{"$f":"Table1[[#This Row],[نهايه الاشتراك]]","v":"00:00:00"}]
[{"$f":"Table1[[#This Row],[أســــم المشترك]]","v":0},{"$f":"Table1[[#This Row],[كود المشترك]]","v":0},{"$f":"Table1[[#This Row],[رقم الموبايـــل]]","v":0},{"$f":"Table1[[#This Row],[مده الاشتراك]]","v":0},{"$f":"Table1[[#This Row],[بدايه الاشتراك]]","v":"00:00:00"},{"$f":"Table1[[#This Row],[نهايه الاشتراك]]","v":"00:00:00"}]
[{"$f":"Table1[[#This Row],[أســــم المشترك]]","v":0},{"$f":"Table1[[#This Row],[كود المشترك]]","v":0},{"$f":"Table1[[#This Row],[رقم الموبايـــل]]","v":0},{"$f":"Table1[[#This Row],[مده الاشتراك]]","v":0},{"$f":"Table1[[#This Row],[بدايه الاشتراك]]","v":"00:00:00"},{"$f":"Table1[[#This Row],[نهايه الاشتراك]]","v":"00:00:00"}]
[{"$f":"Table1[[#This Row],[أســــم المشترك]]","v":0},{"$f":"Table1[[#This Row],[كود المشترك]]","v":0},{"$f":"Table1[[#This Row],[رقم الموبايـــل]]","v":0},{"$f":"Table1[[#This Row],[مده الاشتراك]]","v":0},{"$f":"Table1[[#This Row],[بدايه الاشتراك]]","v":"00:00:00"},{"$f":"Table1[[#This Row],[نهايه الاشتراك]]","v":"00:00:00"}]
[{"$f":"Table1[[#This Row],[أســــم المشترك]]","v":0},{"$f":"Table1[[#This Row],[كود المشترك]]","v":0},{"$f":"Table1[[#This Row],[رقم الموبايـــل]]","v":0},{"$f":"Table1[[#This Row],[مده الاشتراك]]","v":0},{"$f":"Table1[[#This Row],[بدايه الاشتراك]]","v":"00:00:00"},{"$f":"Table1[[#This Row],[نهايه الاشتراك]]","v":"00:00:00"}]
[{"$f":"Table1[[#This Row],[أســــم المشترك]]","v":0},{"$f":"Table1[[#This Row],[كود المشترك]]","v":0},{"$f":"Table1[[#This Row],[رقم الموبايـــل]]","v":0},{"$f":"Table1[[#This Row],[مده الاشتراك]]","v":0},{"$f":"Table1[[#This Row],[بدايه الاشتراك]]","v":"00:00:00"},{"$f":"Table1[[#This Row],[نهايه الاشتراك]]","v":"00:00:00"}]
[{"$f":"Table1[[#This Row],[أســــم المشترك]]","v":0},{"$f":"Table1[[#This Row],[كود المشترك]]","v":0},{"$f":"Table1[[#This Row],[رقم الموبايـــل]]","v":0},{"$f":"Table1[[#This Row],[مده الاشتراك]]","v":0},{"$f":"Table1[[#This Row],[بدايه الاشتراك]]","v":"00:00:00"},{"$f":"Table1[[#This Row],[نهايه الاشتراك]]","v":"00:00:00"}]
[{"$f":"Table1[[#This Row],[أســــم المشترك]]","v":0},{"$f":"Table1[[#This Row],[كود المشترك]]","v":0},{"$f":"Table1[[#This Row],[رقم الموبايـــل]]","v":0},{"$f":"Table1[[#This Row],[مده الاشتراك]]","v":0},{"$f":"Table1[[#This Row],[بدايه الاشتراك]]","v":"00:00:00"},{"$f":"Table1[[#This Row],[نهايه الاشتراك]]","v":"00:00:00"}]
[{"$f":"Table1[[#This Row],[أســــم المشترك]]","v":0},{"$f":"Table1[[#This Row],[كود المشترك]]","v":0},{"$f":"Table1[[#This Row],[رقم الموبايـــل]]","v":0},{"$f":"Table1[[#This Row],[مده الاشتراك]]","v":0},{"$f":"Table1[[#This Row],[بدايه الاشتراك]]","v":"00:00:00"},{"$f":"Table1[[#This Row],[نهايه الاشتراك]]","v":"00:00:00"}]
[{"$f":"Table1[[#This Row],[أســــم المشترك]]","v":0},{"$f":"Table1[[#This Row],[كود المشترك]]","v":0},{"$f":"Table1[[#This Row],[رقم الموبايـــل]]","v":0},{"$f":"Table1[[#This Row],[مده الاشتراك]]","v":0},{"$f":"Table1[[#This Row],[بدايه الاشتراك]]","v":"00:00:00"},{"$f":"Table1[[#This Row],[نهايه الاشتراك]]","v":"00:00:00"}]
[{"$f":"Table1[[#This Row],[أســــم المشترك]]","v":0},{"$f":"Table1[[#This Row],[كود المشترك]]","v":0},{"$f":"Table1[[#This Row],[رقم الموبايـــل]]","v":0},{"$f":"Table1[[#This Row],[مده الاشتراك]]","v":0},{"$f":"Table1[[#This Row],[بدايه الاشتراك]]","v":"00:00:00"},{"$f":"Table1[[#This Row],[نهايه الاشتراك]]","v":"00:00:00"}]
[{"$f":"Table1[[#This Row],[أســــم المشترك]]","v":0},{"$f":"Table1[[#This Row],[كود المشترك]]","v":0},{"$f":"Table1[[#This Row],[رقم الموبايـــل]]","v":0},{"$f":"Table1[[#This Row],[مده الاشتراك]]","v":0},{"$f":"Table1[[#This Row],[بدايه الاشتراك]]","v":"00:00:00"},{"$f":"Table1[[#This Row],[نهايه الاشتراك]]","v":"00:00:00"}]
[{"$f":"Table1[[#This Row],[أســــم المشترك]]","v":0},{"$f":"Table1[[#This Row],[كود المشترك]]","v":0},{"$f":"Table1[[#This Row],[رقم الموبايـــل]]","v":0},{"$f":"Table1[[#This Row],[مده الاشتراك]]","v":0},{"$f":"Table1[[#This Row],[بدايه الاشتراك]]","v":"00:00:00"},{"$f":"Table1[[#This Row],[نهايه الاشتراك]]","v":"00:00:00"}]
[{"$f":"Table1[[#This Row],[أســــم المشترك]]","v":0},{"$f":"Table1[[#This Row],[كود المشترك]]","v":0},{"$f":"Table1[[#This Row],[رقم الموبايـــل]]","v":0},{"$f":"Table1[[#This Row],[مده الاشتراك]]","v":0},{"$f":"Table1[[#This Row],[بدايه الاشتراك]]","v":"00:00:00"},{"$f":"Table1[[#This Row],[نهايه الاشتراك]]","v":"00:00:00"}]
[{"$f":"Table1[[#This Row],[أســــم المشترك]]","v":0},{"$f":"Table1[[#This Row],[كود المشترك]]","v":0},{"$f":"Table1[[#This Row],[رقم الموبايـــل]]","v":0},{"$f":"Table1[[#This Row],[مده الاشتراك]]","v":0},{"$f":"Table1[[#This Row],[بدايه الاشتراك]]","v":"00:00:00"},{"$f":"Table1[[#This Row],[نهايه الاشتراك]]","v":"00:00:00"}]
[{"$f":"Table1[[#This Row],[أســــم المشترك]]","v":0},{"$f":"Table1[[#This Row],[كود المشترك]]","v":0},{"$f":"Table1[[#This Row],[رقم الموبايـــل]]","v":0},{"$f":"Table1[[#This Row],[مده الاشتراك]]","v":0},{"$f":"Table1[[#This Row],[بدايه الاشتراك]]","v":"00:00:00"},{"$f":"Table1[[#This Row],[نهايه الاشتراك]]","v":"00:00:00"}]
[{"$f":"Table1[[#This Row],[أســــم المشترك]]","v":0},{"$f":"Table1[[#This Row],[كود المشترك]]","v":0},{"$f":"Table1[[#This Row],[رقم الموبايـــل]]","v":0},{"$f":"Table1[[#This Row],[مده الاشتراك]]","v":0},{"$f":"Table1[[#This Row],[بدايه الاشتراك]]","v":"00:00:00"},{"$f":"Table1[[#This Row],[نهايه الاشتراك]]","v":"00:00:00"}]
[{"$f":"Table1[[#This Row],[أســــم المشترك]]","v":0},{"$f":"Table1[[#This Row],[كود المشترك]]","v":0},{"$f":"Table1[[#This Row],[رقم الموبايـــل]]","v":0},{"$f":"Table1[[#This Row],[مده الاشتراك]]","v":0},{"$f":"Table1[[#This Row],[بدايه الاشتراك]]","v":"00:00:00"},{"$f":"Table1[[#This Row],[نهايه الاشتراك]]","v":"00:00:00"}]
[{"$f":"Table1[[#This Row],[أســــم المشترك]]","v":0},{"$f":"Table1[[#This Row],[كود المشترك]]","v":0},{"$f":"Table1[[#This Row],[رقم الموبايـــل]]","v":0},{"$f":"Table1[[#This Row],[مده الاشتراك]]","v":0},{"$f":"Table1[[#This Row],[بدايه الاشتراك]]","v":"00:00:00"},{"$f":"Table1[[#This Row],[نهايه الاشتراك]]","v":"00:00:00"}]
[{"$f":"Table1[[#This Row],[أســــم المشترك]]","v":0},{"$f":"Table1[[#This Row],[كود المشترك]]","v":0},{"$f":"Table1[[#This Row],[رقم الموبايـــل]]","v":0},{"$f":"Table1[[#This Row],[مده الاشتراك]]","v":0},{"$f":"Table1[[#This Row],[بدايه الاشتراك]]","v":"00:00:00"},{"$f":"Table1[[#This Row],[نهايه الاشتراك]]","v":"00:00:00"}]
[{"$f":"Table1[[#This Row],[أســــم المشترك]]","v":0},{"$f":"Table1[[#This Row],[كود المشترك]]","v":0},{"$f":"Table1[[#This Row],[رقم الموبايـــل]]","v":0},{"$f":"Table1[[#This Row],[مده الاشتراك]]","v":0},{"$f":"Table1[[#This Row],[بدايه الاشتراك]]","v":"00:00:00"},{"$f":"Table1[[#This Row],[نهايه الاشتراك]]","v":"00:00:00"}]
[{"$f":"Table1[[#This Row],[أســــم المشترك]]","v":0},{"$f":"Table1[[#This Row],[كود المشترك]]","v":0},{"$f":"Table1[[#This Row],[رقم الموبايـــل]]","v":0},{"$f":"Table1[[#This Row],[مده الاشتراك]]","v":0},{"$f":"Table1[[#This Row],[بدايه الاشتراك]]","v":"00:00:00"},{"$f":"Table1[[#This Row],[نهايه الاشتراك]]","v":"00:00:00"}]
[{"$f":"Table1[[#This Row],[أســــم المشترك]]","v":0},{"$f":"Table1[[#This Row],[كود المشترك]]","v":0},{"$f":"Table1[[#This Row],[رقم الموبايـــل]]","v":0},{"$f":"Table1[[#This Row],[مده الاشتراك]]","v":0},{"$f":"Table1[[#This Row],[بدايه الاشتراك]]","v":"00:00:00"},{"$f":"Table1[[#This Row],[نهايه الاشتراك]]","v":"00:00:00"}]
[{"$f":"Table1[[#This Row],[أســــم المشترك]]","v":0},{"$f":"Table1[[#This Row],[كود المشترك]]","v":0},{"$f":"Table1[[#This Row],[رقم الموبايـــل]]","v":0},{"$f":"Table1[[#This Row],[مده الاشتراك]]","v":0},{"$f":"Table1[[#This Row],[بدايه الاشتراك]]","v":"00:00:00"},{"$f":"Table1[[#This Row],[نهايه الاشتراك]]","v":"00:00:00"}]
[{"$f":"Table1[[#This Row],[أســــم المشترك]]","v":0},{"$f":"Table1[[#This Row],[كود المشترك]]","v":0},{"$f":"Table1[[#This Row],[رقم الموبايـــل]]","v":0},{"$f":"Table1[[#This Row],[مده الاشتراك]]","v":0},{"$f":"Table1[[#This Row],[بدايه الاشتراك]]","v":"00:00:00"},{"$f":"Table1[[#This Row],[نهايه الاشتراك]]","v":"00:00:00"}]
[{"$f":"Table1[[#This Row],[أســــم المشترك]]","v":0},{"$f":"Table1[[#This Row],[كود المشترك]]","v":0},{"$f":"Table1[[#This Row],[رقم الموبايـــل]]","v":0},{"$f":"Table1[[#This Row],[مده الاشتراك]]","v":0},{"$f":"Table1[[#This Row],[بدايه الاشتراك]]","v":"00:00:00"},{"$f":"Table1[[#This Row],[نهايه الاشتراك]]","v":"00:00:00"}]
[{"$f":"Table1[[#This Row],[أســــم المشترك]]","v":0},{"$f":"Table1[[#This Row],[كود المشترك]]","v":0},{"$f":"Table1[[#This Row],[رقم الموبايـــل]]","v":0},{"$f":"Table1[[#This Row],[مده الاشتراك]]","v":0},{"$f":"Table1[[#This Row],[بدايه الاشتراك]]","v":"00:00:00"},{"$f":"Table1[[#This Row],[نهايه الاشتراك]]","v":"00:00:00"}]
[{"$f":"Table1[[#This Row],[أســــم المشترك]]","v":0},{"$f":"Table1[[#This Row],[كود المشترك]]","v":0},{"$f":"Table1[[#This Row],[رقم الموبايـــل]]","v":0},{"$f":"Table1[[#This Row],[مده الاشتراك]]","v":0},{"$f":"Table1[[#This Row],[بدايه الاشتراك]]","v":"00:00:00"},{"$f":"Table1[[#This Row],[نهايه الاشتراك]]","v":"00:00:00"}]
[{"$f":"Table1[[#This Row],[أســــم المشترك]]","v":0},{"$f":"Table1[[#This Row],[كود المشترك]]","v":0},{"$f":"Table1[[#This Row],[رقم الموبايـــل]]","v":0},{"$f":"Table1[[#This Row],[مده الاشتراك]]","v":0},{"$f":"Table1[[#This Row],[بدايه الاشتراك]]","v":"00:00:00"},{"$f":"Table1[[#This Row],[نهايه الاشتراك]]","v":"00:00:00"}]
[{"$f":"Table1[[#This Row],[أســــم المشترك]]","v":0},{"$f":"Table1[[#This Row],[كود المشترك]]","v":0},{"$f":"Table1[[#This Row],[رقم الموبايـــل]]","v":0},{"$f":"Table1[[#This Row],[مده الاشتراك]]","v":0},{"$f":"Table1[[#This Row],[بدايه الاشتراك]]","v":"00:00:00"},{"$f":"Table1[[#This Row],[نهايه الاشتراك]]","v":"00:00:00"}]
[{"$f":"Table1[[#This Row],[أســــم المشترك]]","v":0},{"$f":"Table1[[#This Row],[كود المشترك]]","v":0},{"$f":"Table1[[#This Row],[رقم الموبايـــل]]","v":0},{"$f":"Table1[[#This Row],[مده الاشتراك]]","v":0},{"$f":"Table1[[#This Row],[بدايه الاشتراك]]","v":"00:00:00"},{"$f":"Table1[[#This Row],[نهايه الاشتراك]]","v":"00:00:00"}]
[{"$f":"Table1[[#This Row],[أســــم المشترك]]","v":0},{"$f":"Table1[[#This Row],[كود المشترك]]","v":0},{"$f":"Table1[[#This Row],[رقم الموبايـــل]]","v":0},{"$f":"Table1[[#This Row],[مده الاشتراك]]","v":0},{"$f":"Table1[[#This Row],[بدايه الاشتراك]]","v":"00:00:00"},{"$f":"Table1[[#This Row],[نهايه الاشتراك]]","v":"00:00:00"}]
[{"$f":"Table1[[#This Row],[أســــم المشترك]]","v":0},{"$f":"Table1[[#This Row],[كود المشترك]]","v":0},{"$f":"Table1[[#This Row],[رقم الموبايـــل]]","v":0},{"$f":"Table1[[#This Row],[مده الاشتراك]]","v":0},{"$f":"Table1[[#This Row],[بدايه الاشتراك]]","v":"00:00:00"},{"$f":"Table1[[#This Row],[نهايه الاشتراك]]","v":"00:00:00"}]
[{"$f":"Table1[[#This Row],[أســــم المشترك]]","v":0},{"$f":"Table1[[#This Row],[كود المشترك]]","v":0},{"$f":"Table1[[#This Row],[رقم الموبايـــل]]","v":0},{"$f":"Table1[[#This Row],[مده الاشتراك]]","v":0},{"$f":"Table1[[#This Row],[بدايه الاشتراك]]","v":"00:00:00"},{"$f":"Table1[[#This Row],[نهايه الاشتراك]]","v":"00:00:00"}]
[{"$f":"Table1[[#This Row],[أســــم المشترك]]","v":0},{"$f":"Table1[[#This Row],[كود المشترك]]","v":0},{"$f":"Table1[[#This Row],[رقم الموبايـــل]]","v":0},{"$f":"Table1[[#This Row],[مده الاشتراك]]","v":0},{"$f":"Table1[[#This Row],[بدايه الاشتراك]]","v":"00:00:00"},{"$f":"Table1[[#This Row],[نهايه الاشتراك]]","v":"00:00:00"}]
[{"$f":"Table1[[#This Row],[أســــم المشترك]]","v":0},{"$f":"Table1[[#This Row],[كود المشترك]]","v":0},{"$f":"Table1[[#This Row],[رقم الموبايـــل]]","v":0},{"$f":"Table1[[#This Row],[مده الاشتراك]]","v":0},{"$f":"Table1[[#This Row],[بدايه الاشتراك]]","v":"00:00:00"},{"$f":"Table1[[#This Row],[نهايه الاشتراك]]","v":"00:00:00"}]
[{"$f":"Table1[[#This Row],[أســــم المشترك]]","v":0},{"$f":"Table1[[#This Row],[كود المشترك]]","v":0},{"$f":"Table1[[#This Row],[رقم الموبايـــل]]","v":0},{"$f":"Table1[[#This Row],[مده الاشتراك]]","v":0},{"$f":"Table1[[#This Row],[بدايه الاشتراك]]","v":"00:00:00"},{"$f":"Table1[[#This Row],[نهايه الاشتراك]]","v":"00:00:00"}]
[{"$f":"Table1[[#This Row],[أســــم المشترك]]","v":0},{"$f":"Table1[[#This Row],[كود المشترك]]","v":0},{"$f":"Table1[[#This Row],[رقم الموبايـــل]]","v":0},{"$f":"Table1[[#This Row],[مده الاشتراك]]","v":0},{"$f":"Table1[[#This Row],[بدايه الاشتراك]]","v":"00:00:00"},{"$f":"Table1[[#This Row],[نهايه الاشتراك]]","v":"00:00:00"}]
[{"$f":"Table1[[#This Row],[أســــم المشترك]]","v":0},{"$f":"Table1[[#This Row],[كود المشترك]]","v":0},{"$f":"Table1[[#This Row],[رقم الموبايـــل]]","v":0},{"$f":"Table1[[#This Row],[مده الاشتراك]]","v":0},{"$f":"Table1[[#This Row],[بدايه الاشتراك]]","v":"00:00:00"},{"$f":"Table1[[#This Row],[نهايه الاشتراك]]","v":"00:00:00"}]
[{"$f":"Table1[[#This Row],[أســــم المشترك]]","v":0},{"$f":"Table1[[#This Row],[كود المشترك]]","v":0},{"$f":"Table1[[#This Row],[رقم الموبايـــل]]","v":0},{"$f":"Table1[[#This Row],[مده الاشتراك]]","v":0},{"$f":"Table1[[#This Row],[بدايه الاشتراك]]","v":"00:00:00"},{"$f":"Table1[[#This Row],[نهايه الاشتراك]]","v":"00:00:00"}]
[{"$f":"Table1[[#This Row],[أســــم المشترك]]","v":0},{"$f":"Table1[[#This Row],[كود المشترك]]","v":0},{"$f":"Table1[[#This Row],[رقم الموبايـــل]]","v":0},{"$f":"Table1[[#This Row],[مده الاشتراك]]","v":0},{"$f":"Table1[[#This Row],[بدايه الاشتراك]]","v":"00:00:00"},{"$f":"Table1[[#This Row],[نهايه الاشتراك]]","v":"00:00:00"}]
[{"$f":"Table1[[#This Row],[أســــم المشترك]]","v":0},{"$f":"Table1[[#This Row],[كود المشترك]]","v":0},{"$f":"Table1[[#This Row],[رقم الموبايـــل]]","v":0},{"$f":"Table1[[#This Row],[مده الاشتراك]]","v":0},{"$f":"Table1[[#This Row],[بدايه الاشتراك]]","v":"00:00:00"},{"$f":"Table1[[#This Row],[نهايه الاشتراك]]","v":"00:00:00"}]
[{"$f":"Table1[[#This Row],[أســــم المشترك]]","v":0},{"$f":"Table1[[#This Row],[كود المشترك]]","v":0},{"$f":"Table1[[#This Row],[رقم الموبايـــل]]","v":0},{"$f":"Table1[[#This Row],[مده الاشتراك]]","v":0},{"$f":"Table1[[#This Row],[بدايه الاشتراك]]","v":"00:00:00"},{"$f":"Table1[[#This Row],[نهايه الاشتراك]]","v":"00:00:00"}]
[{"$f":"Table1[[#This Row],[أســــم المشترك]]","v":0},{"$f":"Table1[[#This Row],[كود المشترك]]","v":0},{"$f":"Table1[[#This Row],[رقم الموبايـــل]]","v":0},{"$f":"Table1[[#This Row],[مده الاشتراك]]","v":0},{"$f":"Table1[[#This Row],[بدايه الاشتراك]]","v":"00:00:00"},{"$f":"Table1[[#This Row],[نهايه الاشتراك]]","v":"00:00:00"}]
[{"$f":"Table1[[#This Row],[أســــم المشترك]]","v":0},{"$f":"Table1[[#This Row],[كود المشترك]]","v":0},{"$f":"Table1[[#This Row],[رقم الموبايـــل]]","v":0},{"$f":"Table1[[#This Row],[مده الاشتراك]]","v":0},{"$f":"Table1[[#This Row],[بدايه الاشتراك]]","v":"00:00:00"},{"$f":"Table1[[#This Row],[نهايه الاشتراك]]","v":"00:00:00"}]
[{"$f":"Table1[[#This Row],[أســــم المشترك]]","v":0},{"$f":"Table1[[#This Row],[كود المشترك]]","v":0},{"$f":"Table1[[#This Row],[رقم الموبايـــل]]","v":0},{"$f":"Table1[[#This Row],[مده الاشتراك]]","v":0},{"$f":"Table1[[#This Row],[بدايه الاشتراك]]","v":"00:00:00"},{"$f":"Table1[[#This Row],[نهايه الاشتراك]]","v":"00:00:00"}]
[{"$f":"Table1[[#This Row],[أســــم المشترك]]","v":0},{"$f":"Table1[[#This Row],[كود المشترك]]","v":0},{"$f":"Table1[[#This Row],[رقم الموبايـــل]]","v":0},{"$f":"Table1[[#This Row],[مده الاشتراك]]","v":0},{"$f":"Table1[[#This Row],[بدايه الاشتراك]]","v":"00:00:00"},{"$f":"Table1[[#This Row],[نهايه الاشتراك]]","v":"00:00:00"}]
[{"$f":"Table1[[#This Row],[أســــم المشترك]]","v":0},{"$f":"Table1[[#This Row],[كود المشترك]]","v":0},{"$f":"Table1[[#This Row],[رقم الموبايـــل]]","v":0},{"$f":"Table1[[#This Row],[مده الاشتراك]]","v":0},{"$f":"Table1[[#This Row],[بدايه الاشتراك]]","v":"00:00:00"},{"$f":"Table1[[#This Row],[نهايه الاشتراك]]","v":"00:00:00"}]
[{"$f":"Table1[[#This Row],[أســــم المشترك]]","v":0},{"$f":"Table1[[#This Row],[كود المشترك]]","v":0},{"$f":"Table1[[#This Row],[رقم الموبايـــل]]","v":0},{"$f":"Table1[[#This Row],[مده الاشتراك]]","v":0},{"$f":"Table1[[#This Row],[بدايه الاشتراك]]","v":"00:00:00"},{"$f":"Table1[[#This Row],[نهايه الاشتراك]]","v":"00:00:00"}]
[{"$f":"Table1[[#This Row],[أســــم المشترك]]","v":0},{"$f":"Table1[[#This Row],[كود المشترك]]","v":0},{"$f":"Table1[[#This Row],[رقم الموبايـــل]]","v":0},{"$f":"Table1[[#This Row],[مده الاشتراك]]","v":0},{"$f":"Table1[[#This Row],[بدايه الاشتراك]]","v":"00:00:00"},{"$f":"Table1[[#This Row],[نهايه الاشتراك]]","v":"00:00:00"}]
[{"$f":"Table1[[#This Row],[أســــم المشترك]]","v":0},{"$f":"Table1[[#This Row],[كود المشترك]]","v":0},{"$f":"Table1[[#This Row],[رقم الموبايـــل]]","v":0},{"$f":"Table1[[#This Row],[مده الاشتراك]]","v":0},{"$f":"Table1[[#This Row],[بدايه الاشتراك]]","v":"00:00:00"},{"$f":"Table1[[#This Row],[نهايه الاشتراك]]","v":"00:00:00"}]
[{"$f":"Table1[[#This Row],[أســــم المشترك]]","v":0},{"$f":"Table1[[#This Row],[كود المشترك]]","v":0},{"$f":"Table1[[#This Row],[رقم الموبايـــل]]","v":0},{"$f":"Table1[[#This Row],[مده الاشتراك]]","v":0},{"$f":"Table1[[#This Row],[بدايه الاشتراك]]","v":"00:00:00"},{"$f":"Table1[[#This Row],[نهايه الاشتراك]]","v":"00:00:00"}]
[{"$f":"Table1[[#This Row],[أســــم المشترك]]","v":0},{"$f":"Table1[[#This Row],[كود المشترك]]","v":0},{"$f":"Table1[[#This Row],[رقم الموبايـــل]]","v":0},{"$f":"Table1[[#This Row],[مده الاشتراك]]","v":0},{"$f":"Table1[[#This Row],[بدايه الاشتراك]]","v":"00:00:00"},{"$f":"Table1[[#This Row],[نهايه الاشتراك]]","v":"00:00:00"}]
[{"$f":"Table1[[#This Row],[أســــم المشترك]]","v":0},{"$f":"Table1[[#This Row],[كود المشترك]]","v":0},{"$f":"Table1[[#This Row],[رقم الموبايـــل]]","v":0},{"$f":"Table1[[#This Row],[مده الاشتراك]]","v":0},{"$f":"Table1[[#This Row],[بدايه الاشتراك]]","v":"00:00:00"},{"$f":"Table1[[#This Row],[نهايه الاشتراك]]","v":"00:00:00"}]
[{"$f":"Table1[[#This Row],[أســــم المشترك]]","v":0},{"$f":"Table1[[#This Row],[كود المشترك]]","v":0},{"$f":"Table1[[#This Row],[رقم الموبايـــل]]","v":0},{"$f":"Table1[[#This Row],[مده الاشتراك]]","v":0},{"$f":"Table1[[#This Row],[بدايه الاشتراك]]","v":"00:00:00"},{"$f":"Table1[[#This Row],[نهايه الاشتراك]]","v":"00:00:00"}]
[{"$f":"Table1[[#This Row],[أســــم المشترك]]","v":0},{"$f":"Table1[[#This Row],[كود المشترك]]","v":0},{"$f":"Table1[[#This Row],[رقم الموبايـــل]]","v":0},{"$f":"Table1[[#This Row],[مده الاشتراك]]","v":0},{"$f":"Table1[[#This Row],[بدايه الاشتراك]]","v":"00:00:00"},{"$f":"Table1[[#This Row],[نهايه الاشتراك]]","v":"00:00:00"}]
[{"$f":"Table1[[#This Row],[أســــم المشترك]]","v":0},{"$f":"Table1[[#This Row],[كود المشترك]]","v":0},{"$f":"Table1[[#This Row],[رقم الموبايـــل]]","v":0},{"$f":"Table1[[#This Row],[مده الاشتراك]]","v":0},{"$f":"Table1[[#This Row],[بدايه الاشتراك]]","v":"00:00:00"},{"$f":"Table1[[#This Row],[نهايه الاشتراك]]","v":"00:00:00"}]
[{"$f":"Table1[[#This Row],[أســــم المشترك]]","v":0},{"$f":"Table1[[#This Row],[كود المشترك]]","v":0},{"$f":"Table1[[#This Row],[رقم الموبايـــل]]","v":0},{"$f":"Table1[[#This Row],[مده الاشتراك]]","v":0},{"$f":"Table1[[#This Row],[بدايه الاشتراك]]","v":"00:00:00"},{"$f":"Table1[[#This Row],[نهايه الاشتراك]]","v":"00:00:00"}]
[{"$f":"Table1[[#This Row],[أســــم المشترك]]","v":0},{"$f":"Table1[[#This Row],[كود المشترك]]","v":0},{"$f":"Table1[[#This Row],[رقم الموبايـــل]]","v":0},{"$f":"Table1[[#This Row],[مده الاشتراك]]","v":0},{"$f":"Table1[[#This Row],[بدايه الاشتراك]]","v":"00:00:00"},{"$f":"Table1[[#This Row],[نهايه الاشتراك]]","v":"00:00:00"}]
[{"$f":"Table1[[#This Row],[أســــم المشترك]]","v":0},{"$f":"Table1[[#This Row],[كود المشترك]]","v":0},{"$f":"Table1[[#This Row],[رقم الموبايـــل]]","v":0},{"$f":"Table1[[#This Row],[مده الاشتراك]]","v":0},{"$f":"Table1[[#This Row],[بدايه الاشتراك]]","v":"00:00:00"},{"$f":"Table1[[#This Row],[نهايه الاشتراك]]","v":"00:00:00"}]
[{"$f":"Table1[[#This Row],[أســــم المشترك]]","v":0},{"$f":"Table1[[#This Row],[كود المشترك]]","v":0},{"$f":"Table1[[#This Row],[رقم الموبايـــل]]","v":0},{"$f":"Table1[[#This Row],[مده الاشتراك]]","v":0},{"$f":"Table1[[#This Row],[بدايه الاشتراك]]","v":"00:00:00"},{"$f":"Table1[[#This Row],[نهايه الاشتراك]]","v":"00:00:00"}]
[{"$f":"Table1[[#This Row],[أســــم المشترك]]","v":0},{"$f":"Table1[[#This Row],[كود المشترك]]","v":0},{"$f":"Table1[[#This Row],[رقم الموبايـــل]]","v":0},{"$f":"Table1[[#This Row],[مده الاشتراك]]","v":0},{"$f":"Table1[[#This Row],[بدايه الاشتراك]]","v":"00:00:00"},{"$f":"Table1[[#This Row],[نهايه الاشتراك]]","v":"00:00:00"}]
[{"$f":"Table1[[#This Row],[أســــم المشترك]]","v":0},{"$f":"Table1[[#This Row],[كود المشترك]]","v":0},{"$f":"Table1[[#This Row],[رقم الموبايـــل]]","v":0},{"$f":"Table1[[#This Row],[مده الاشتراك]]","v":0},{"$f":"Table1[[#This Row],[بدايه الاشتراك]]","v":"00:00:00"},{"$f":"Table1[[#This Row],[نهايه الاشتراك]]","v":"00:00:00"}]
[{"$f":"Table1[[#This Row],[أســــم المشترك]]","v":0},{"$f":"Table1[[#This Row],[كود المشترك]]","v":0},{"$f":"Table1[[#This Row],[رقم الموبايـــل]]","v":0},{"$f":"Table1[[#This Row],[مده الاشتراك]]","v":0},{"$f":"Table1[[#This Row],[بدايه الاشتراك]]","v":"00:00:00"},{"$f":"Table1[[#This Row],[نهايه الاشتراك]]","v":"00:00:00"}]
[{"$f":"Table1[[#This Row],[أســــم المشترك]]","v":0},{"$f":"Table1[[#This Row],[كود المشترك]]","v":0},{"$f":"Table1[[#This Row],[رقم الموبايـــل]]","v":0},{"$f":"Table1[[#This Row],[مده الاشتراك]]","v":0},{"$f":"Table1[[#This Row],[بدايه الاشتراك]]","v":"00:00:00"},{"$f":"Table1[[#This Row],[نهايه الاشتراك]]","v":"00:00:00"}]
[{"$f":"Table1[[#This Row],[أســــم المشترك]]","v":0},{"$f":"Table1[[#This Row],[كود المشترك]]","v":0},{"$f":"Table1[[#This Row],[رقم الموبايـــل]]","v":0},{"$f":"Table1[[#This Row],[مده الاشتراك]]","v":0},{"$f":"Table1[[#This Row],[بدايه الاشتراك]]","v":"00:00:00"},{"$f":"Table1[[#This Row],[نهايه الاشتراك]]","v":"00:00:00"}]
[{"$f":"Table1[[#This Row],[أســــم المشترك]]","v":0},{"$f":"Table1[[#This Row],[كود المشترك]]","v":0},{"$f":"Table1[[#This Row],[رقم الموبايـــل]]","v":0},{"$f":"Table1[[#This Row],[مده الاشتراك]]","v":0},{"$f":"Table1[[#This Row],[بدايه الاشتراك]]","v":"00:00:00"},{"$f":"Table1[[#This Row],[نهايه الاشتراك]]","v":"00:00:00"}]
[{"$f":"Table1[[#This Row],[أســــم المشترك]]","v":0},{"$f":"Table1[[#This Row],[كود المشترك]]","v":0},{"$f":"Table1[[#This Row],[رقم الموبايـــل]]","v":0},{"$f":"Table1[[#This Row],[مده الاشتراك]]","v":0},{"$f":"Table1[[#This Row],[بدايه الاشتراك]]","v":"00:00:00"},{"$f":"Table1[[#This Row],[نهايه الاشتراك]]","v":"00:00:00"}]
[{"$f":"Table1[[#This Row],[أســــم المشترك]]","v":0},{"$f":"Table1[[#This Row],[كود المشترك]]","v":0},{"$f":"Table1[[#This Row],[رقم الموبايـــل]]","v":0},{"$f":"Table1[[#This Row],[مده الاشتراك]]","v":0},{"$f":"Table1[[#This Row],[بدايه الاشتراك]]","v":"00:00:00"},{"$f":"Table1[[#This Row],[نهايه الاشتراك]]","v":"00:00:00"}]
[{"$f":"Table1[[#This Row],[أســــم المشترك]]","v":0},{"$f":"Table1[[#This Row],[كود المشترك]]","v":0},{"$f":"Table1[[#This Row],[رقم الموبايـــل]]","v":0},{"$f":"Table1[[#This Row],[مده الاشتراك]]","v":0},{"$f":"Table1[[#This Row],[بدايه الاشتراك]]","v":"00:00:00"},{"$f":"Table1[[#This Row],[نهايه الاشتراك]]","v":"00:00:00"}]
[{"$f":"Table1[[#This Row],[أســــم المشترك]]","v":0},{"$f":"Table1[[#This Row],[كود المشترك]]","v":0},{"$f":"Table1[[#This Row],[رقم الموبايـــل]]","v":0},{"$f":"Table1[[#This Row],[مده الاشتراك]]","v":0},{"$f":"Table1[[#This Row],[بدايه الاشتراك]]","v":"00:00:00"},{"$f":"Table1[[#This Row],[نهايه الاشتراك]]","v":"00:00:00"}]
[{"$f":"Table1[[#This Row],[أســــم المشترك]]","v":0},{"$f":"Table1[[#This Row],[كود المشترك]]","v":0},{"$f":"Table1[[#This Row],[رقم الموبايـــل]]","v":0},{"$f":"Table1[[#This Row],[مده الاشتراك]]","v":0},{"$f":"Table1[[#This Row],[بدايه الاشتراك]]","v":"00:00:00"},{"$f":"Table1[[#This Row],[نهايه الاشتراك]]","v":"00:00:00"}]
[{"$f":"Table1[[#This Row],[أســــم المشترك]]","v":0},{"$f":"Table1[[#This Row],[كود المشترك]]","v":0},{"$f":"Table1[[#This Row],[رقم الموبايـــل]]","v":0},{"$f":"Table1[[#This Row],[مده الاشتراك]]","v":0},{"$f":"Table1[[#This Row],[بدايه الاشتراك]]","v":"00:00:00"},{"$f":"Table1[[#This Row],[نهايه الاشتراك]]","v":"00:00:00"}]
[{"$f":"Table1[[#This Row],[أســــم المشترك]]","v":0},{"$f":"Table1[[#This Row],[كود المشترك]]","v":0},{"$f":"Table1[[#This Row],[رقم الموبايـــل]]","v":0},{"$f":"Table1[[#This Row],[مده الاشتراك]]","v":0},{"$f":"Table1[[#This Row],[بدايه الاشتراك]]","v":"00:00:00"},{"$f":"Table1[[#This Row],[نهايه الاشتراك]]","v":"00:00:00"}]
[{"$f":"Table1[[#This Row],[أســــم المشترك]]","v":0},{"$f":"Table1[[#This Row],[كود المشترك]]","v":0},{"$f":"Table1[[#This Row],[رقم الموبايـــل]]","v":0},{"$f":"Table1[[#This Row],[مده الاشتراك]]","v":0},{"$f":"Table1[[#This Row],[بدايه الاشتراك]]","v":"00:00:00"},{"$f":"Table1[[#This Row],[نهايه الاشتراك]]","v":"00:00:00"}]
[{"$f":"Table1[[#This Row],[أســــم المشترك]]","v":0},{"$f":"Table1[[#This Row],[كود المشترك]]","v":0},{"$f":"Table1[[#This Row],[رقم الموبايـــل]]","v":0},{"$f":"Table1[[#This Row],[مده الاشتراك]]","v":0},{"$f":"Table1[[#This Row],[بدايه الاشتراك]]","v":"00:00:00"},{"$f":"Table1[[#This Row],[نهايه الاشتراك]]","v":"00:00:00"}]
[{"$f":"Table1[[#This Row],[أســــم المشترك]]","v":0},{"$f":"Table1[[#This Row],[كود المشترك]]","v":0},{"$f":"Table1[[#This Row],[رقم الموبايـــل]]","v":0},{"$f":"Table1[[#This Row],[مده الاشتراك]]","v":0},{"$f":"Table1[[#This Row],[بدايه الاشتراك]]","v":"00:00:00"},{"$f":"Table1[[#This Row],[نهايه الاشتراك]]","v":"00:00:00"}]
[{"$f":"Table1[[#This Row],[أســــم المشترك]]","v":0},{"$f":"Table1[[#This Row],[كود المشترك]]","v":0},{"$f":"Table1[[#This Row],[رقم الموبايـــل]]","v":0},{"$f":"Table1[[#This Row],[مده الاشتراك]]","v":0},{"$f":"Table1[[#This Row],[بدايه الاشتراك]]","v":"00:00:00"},{"$f":"Table1[[#This Row],[نهايه الاشتراك]]","v":"00:00:00"}]
[{"$f":"Table1[[#This Row],[أســــم المشترك]]","v":0},{"$f":"Table1[[#This Row],[كود المشترك]]","v":0},{"$f":"Table1[[#This Row],[رقم الموبايـــل]]","v":0},{"$f":"Table1[[#This Row],[مده الاشتراك]]","v":0},{"$f":"Table1[[#This Row],[بدايه الاشتراك]]","v":"00:00:00"},{"$f":"Table1[[#This Row],[نهايه الاشتراك]]","v":"00:00:00"}]
[{"$f":"Table1[[#This Row],[أســــم المشترك]]","v":0},{"$f":"Table1[[#This Row],[كود المشترك]]","v":0},{"$f":"Table1[[#This Row],[رقم الموبايـــل]]","v":0},{"$f":"Table1[[#This Row],[مده الاشتراك]]","v":0},{"$f":"Table1[[#This Row],[بدايه الاشتراك]]","v":"00:00:00"},{"$f":"Table1[[#This Row],[نهايه الاشتراك]]","v":"00:00:00"}]
[{"$f":"Table1[[#This Row],[أســــم المشترك]]","v":0},{"$f":"Table1[[#This Row],[كود المشترك]]","v":0},{"$f":"Table1[[#This Row],[رقم الموبايـــل]]","v":0},{"$f":"Table1[[#This Row],[مده الاشتراك]]","v":0},{"$f":"Table1[[#This Row],[بدايه الاشتراك]]","v":"00:00:00"},{"$f":"Table1[[#This Row],[نهايه الاشتراك]]","v":"00:00:00"}]
[{"$f":"Table1[[#This Row],[أســــم المشترك]]","v":0},{"$f":"Table1[[#This Row],[كود المشترك]]","v":0},{"$f":"Table1[[#This Row],[رقم الموبايـــل]]","v":0},{"$f":"Table1[[#This Row],[مده الاشتراك]]","v":0},{"$f":"Table1[[#This Row],[بدايه الاشتراك]]","v":"00:00:00"},{"$f":"Table1[[#This Row],[نهايه الاشتراك]]","v":"00:00:00"}]
[{"$f":"Table1[[#This Row],[أســــم المشترك]]","v":0},{"$f":"Table1[[#This Row],[كود المشترك]]","v":0},{"$f":"Table1[[#This Row],[رقم الموبايـــل]]","v":0},{"$f":"Table1[[#This Row],[مده الاشتراك]]","v":0},{"$f":"Table1[[#This Row],[بدايه الاشتراك]]","v":"00:00:00"},{"$f":"Table1[[#This Row],[نهايه الاشتراك]]","v":"00:00:00"}]
[{"$f":"Table1[[#This Row],[أســــم المشترك]]","v":0},{"$f":"Table1[[#This Row],[كود المشترك]]","v":0},{"$f":"Table1[[#This Row],[رقم الموبايـــل]]","v":0},{"$f":"Table1[[#This Row],[مده الاشتراك]]","v":0},{"$f":"Table1[[#This Row],[بدايه الاشتراك]]","v":"00:00:00"},{"$f":"Table1[[#This Row],[نهايه الاشتراك]]","v":"00:00:00"}]
[{"$f":"Table1[[#This Row],[أســــم المشترك]]","v":0},{"$f":"Table1[[#This Row],[كود المشترك]]","v":0},{"$f":"Table1[[#This Row],[رقم الموبايـــل]]","v":0},{"$f":"Table1[[#This Row],[مده الاشتراك]]","v":0},{"$f":"Table1[[#This Row],[بدايه الاشتراك]]","v":"00:00:00"},{"$f":"Table1[[#This Row],[نهايه الاشتراك]]","v":"00:00:00"}]
[{"$f":"Table1[[#This Row],[أســــم المشترك]]","v":0},{"$f":"Table1[[#This Row],[كود المشترك]]","v":0},{"$f":"Table1[[#This Row],[رقم الموبايـــل]]","v":0},{"$f":"Table1[[#This Row],[مده الاشتراك]]","v":0},{"$f":"Table1[[#This Row],[بدايه الاشتراك]]","v":"00:00:00"},{"$f":"Table1[[#This Row],[نهايه الاشتراك]]","v":"00:00:00"}]
[{"$f":"Table1[[#This Row],[أســــم المشترك]]","v":0},{"$f":"Table1[[#This Row],[كود المشترك]]","v":0},{"$f":"Table1[[#This Row],[رقم الموبايـــل]]","v":0},{"$f":"Table1[[#This Row],[مده الاشتراك]]","v":0},{"$f":"Table1[[#This Row],[بدايه الاشتراك]]","v":"00:00:00"},{"$f":"Table1[[#This Row],[نهايه الاشتراك]]","v":"00:00:00"}]
[{"$f":"Table1[[#This Row],[أســــم المشترك]]","v":0},{"$f":"Table1[[#This Row],[كود المشترك]]","v":0},{"$f":"Table1[[#This Row],[رقم الموبايـــل]]","v":0},{"$f":"Table1[[#This Row],[مده الاشتراك]]","v":0},{"$f":"Table1[[#This Row],[بدايه الاشتراك]]","v":"00:00:00"},{"$f":"Table1[[#This Row],[نهايه الاشتراك]]","v":"00:00:00"}]
[{"$f":"Table1[[#This Row],[أســــم المشترك]]","v":0},{"$f":"Table1[[#This Row],[كود المشترك]]","v":0},{"$f":"Table1[[#This Row],[رقم الموبايـــل]]","v":0},{"$f":"Table1[[#This Row],[مده الاشتراك]]","v":0},{"$f":"Table1[[#This Row],[بدايه الاشتراك]]","v":"00:00:00"},{"$f":"Table1[[#This Row],[نهايه الاشتراك]]","v":"00:00:00"}]
[{"$f":"Table1[[#This Row],[أســــم المشترك]]","v":0},{"$f":"Table1[[#This Row],[كود المشترك]]","v":0},{"$f":"Table1[[#This Row],[رقم الموبايـــل]]","v":0},{"$f":"Table1[[#This Row],[مده الاشتراك]]","v":0},{"$f":"Table1[[#This Row],[بدايه الاشتراك]]","v":"00:00:00"},{"$f":"Table1[[#This Row],[نهايه الاشتراك]]","v":"00:00:00"}]
[{"$f":"Table1[[#This Row],[أســــم المشترك]]","v":0},{"$f":"Table1[[#This Row],[كود المشترك]]","v":0},{"$f":"Table1[[#This Row],[رقم الموبايـــل]]","v":0},{"$f":"Table1[[#This Row],[مده الاشتراك]]","v":0},{"$f":"Table1[[#This Row],[بدايه الاشتراك]]","v":"00:00:00"},{"$f":"Table1[[#This Row],[نهايه الاشتراك]]","v":"00:00:00"}]
[{"$f":"Table1[[#This Row],[أســــم المشترك]]","v":0},{"$f":"Table1[[#This Row],[كود المشترك]]","v":0},{"$f":"Table1[[#This Row],[رقم الموبايـــل]]","v":0},{"$f":"Table1[[#This Row],[مده الاشتراك]]","v":0},{"$f":"Table1[[#This Row],[بدايه الاشتراك]]","v":"00:00:00"},{"$f":"Table1[[#This Row],[نهايه الاشتراك]]","v":"00:00:00"}]
[{"$f":"Table1[[#This Row],[أســــم المشترك]]","v":0},{"$f":"Table1[[#This Row],[كود المشترك]]","v":0},{"$f":"Table1[[#This Row],[رقم الموبايـــل]]","v":0},{"$f":"Table1[[#This Row],[مده الاشتراك]]","v":0},{"$f":"Table1[[#This Row],[بدايه الاشتراك]]","v":"00:00:00"},{"$f":"Table1[[#This Row],[نهايه الاشتراك]]","v":"00:00:00"}]
[{"$f":"Table1[[#This Row],[أســــم المشترك]]","v":0},{"$f":"Table1[[#This Row],[كود المشترك]]","v":0},{"$f":"Table1[[#This Row],[رقم الموبايـــل]]","v":0},{"$f":"Table1[[#This Row],[مده الاشتراك]]","v":0},{"$f":"Table1[[#This Row],[بدايه الاشتراك]]","v":"00:00:00"},{"$f":"Table1[[#This Row],[نهايه الاشتراك]]","v":"00:00:00"}]
[{"$f":"Table1[[#This Row],[أســــم المشترك]]","v":0},{"$f":"Table1[[#This Row],[كود المشترك]]","v":0},{"$f":"Table1[[#This Row],[رقم الموبايـــل]]","v":0},{"$f":"Table1[[#This Row],[مده الاشتراك]]","v":0},{"$f":"Table1[[#This Row],[بدايه الاشتراك]]","v":"00:00:00"},{"$f":"Table1[[#This Row],[نهايه الاشتراك]]","v":"00:00:00"}]
[{"$f":"Table1[[#This Row],[أســــم المشترك]]","v":0},{"$f":"Table1[[#This Row],[كود المشترك]]","v":0},{"$f":"Table1[[#This Row],[رقم الموبايـــل]]","v":0},{"$f":"Table1[[#This Row],[مده الاشتراك]]","v":0},{"$f":"Table1[[#This Row],[بدايه الاشتراك]]","v":"00:00:00"},{"$f":"Table1[[#This Row],[نهايه الاشتراك]]","v":"00:00:00"}]
[{"$f":"Table1[[#This Row],[أســــم المشترك]]","v":0},{"$f":"Table1[[#This Row],[كود المشترك]]","v":0},{"$f":"Table1[[#This Row],[رقم الموبايـــل]]","v":0},{"$f":"Table1[[#This Row],[مده الاشتراك]]","v":0},{"$f":"Table1[[#This Row],[بدايه الاشتراك]]","v":"00:00:00"},{"$f":"Table1[[#This Row],[نهايه الاشتراك]]","v":"00:00:00"}]
[{"$f":"Table1[[#This Row],[أســــم المشترك]]","v":0},{"$f":"Table1[[#This Row],[كود المشترك]]","v":0},{"$f":"Table1[[#This Row],[رقم الموبايـــل]]","v":0},{"$f":"Table1[[#This Row],[مده الاشتراك]]","v":0},{"$f":"Table1[[#This Row],[بدايه الاشتراك]]","v":"00:00:00"},{"$f":"Table1[[#This Row],[نهايه الاشتراك]]","v":"00:00:00"}]
[{"$f":"Table1[[#This Row],[أســــم المشترك]]","v":0},{"$f":"Table1[[#This Row],[كود المشترك]]","v":0},{"$f":"Table1[[#This Row],[رقم الموبايـــل]]","v":0},{"$f":"Table1[[#This Row],[مده الاشتراك]]","v":0},{"$f":"Table1[[#This Row],[بدايه الاشتراك]]","v":"00:00:00"},{"$f":"Table1[[#This Row],[نهايه الاشتراك]]","v":"00:00:00"}]
[{"$f":"Table1[[#This Row],[أســــم المشترك]]","v":0},{"$f":"Table1[[#This Row],[كود المشترك]]","v":0},{"$f":"Table1[[#This Row],[رقم الموبايـــل]]","v":0},{"$f":"Table1[[#This Row],[مده الاشتراك]]","v":0},{"$f":"Table1[[#This Row],[بدايه الاشتراك]]","v":"00:00:00"},{"$f":"Table1[[#This Row],[نهايه الاشتراك]]","v":"00:00:00"}]
[{"$f":"Table1[[#This Row],[أســــم المشترك]]","v":0},{"$f":"Table1[[#This Row],[كود المشترك]]","v":0},{"$f":"Table1[[#This Row],[رقم الموبايـــل]]","v":0},{"$f":"Table1[[#This Row],[مده الاشتراك]]","v":0},{"$f":"Table1[[#This Row],[بدايه الاشتراك]]","v":"00:00:00"},{"$f":"Table1[[#This Row],[نهايه الاشتراك]]","v":"00:00:00"}]
[{"$f":"Table1[[#This Row],[أســــم المشترك]]","v":0},{"$f":"Table1[[#This Row],[كود المشترك]]","v":0},{"$f":"Table1[[#This Row],[رقم الموبايـــل]]","v":0},{"$f":"Table1[[#This Row],[مده الاشتراك]]","v":0},{"$f":"Table1[[#This Row],[بدايه الاشتراك]]","v":"00:00:00"},{"$f":"Table1[[#This Row],[نهايه الاشتراك]]","v":"00:00:00"}]
[{"$f":"Table1[[#This Row],[أســــم المشترك]]","v":0},{"$f":"Table1[[#This Row],[كود المشترك]]","v":0},{"$f":"Table1[[#This Row],[رقم الموبايـــل]]","v":0},{"$f":"Table1[[#This Row],[مده الاشتراك]]","v":0},{"$f":"Table1[[#This Row],[بدايه الاشتراك]]","v":"00:00:00"},{"$f":"Table1[[#This Row],[نهايه الاشتراك]]","v":"00:00:00"}]
[{"$f":"Table1[[#This Row],[أســــم المشترك]]","v":0},{"$f":"Table1[[#This Row],[كود المشترك]]","v":0},{"$f":"Table1[[#This Row],[رقم الموبايـــل]]","v":0},{"$f":"Table1[[#This Row],[مده الاشتراك]]","v":0},{"$f":"Table1[[#This Row],[بدايه الاشتراك]]","v":"00:00:00"},{"$f":"Table1[[#This Row],[نهايه الاشتراك]]","v":"00:00:00"}]
[{"$f":"Table1[[#This Row],[أســــم المشترك]]","v":0},{"$f":"Table1[[#This Row],[كود المشترك]]","v":0},{"$f":"Table1[[#This Row],[رقم الموبايـــل]]","v":0},{"$f":"Table1[[#This Row],[مده الاشتراك]]","v":0},{"$f":"Table1[[#This Row],[بدايه الاشتراك]]","v":"00:00:00"},{"$f":"Table1[[#This Row],[نهايه الاشتراك]]","v":"00:00:00"}]
[{"$f":"Table1[[#This Row],[أســــم المشترك]]","v":0},{"$f":"Table1[[#This Row],[كود المشترك]]","v":0},{"$f":"Table1[[#This Row],[رقم الموبايـــل]]","v":0},{"$f":"Table1[[#This Row],[مده الاشتراك]]","v":0},{"$f":"Table1[[#This Row],[بدايه الاشتراك]]","v":"00:00:00"},{"$f":"Table1[[#This Row],[نهايه الاشتراك]]","v":"00:00:00"}]
[{"$f":"Table1[[#This Row],[أســــم المشترك]]","v":0},{"$f":"Table1[[#This Row],[كود المشترك]]","v":0},{"$f":"Table1[[#This Row],[رقم الموبايـــل]]","v":0},{"$f":"Table1[[#This Row],[مده الاشتراك]]","v":0},{"$f":"Table1[[#This Row],[بدايه الاشتراك]]","v":"00:00:00"},{"$f":"Table1[[#This Row],[نهايه الاشتراك]]","v":"00:00:00"}]
[{"$f":"Table1[[#This Row],[أســــم المشترك]]","v":0},{"$f":"Table1[[#This Row],[كود المشترك]]","v":0},{"$f":"Table1[[#This Row],[رقم الموبايـــل]]","v":0},{"$f":"Table1[[#This Row],[مده الاشتراك]]","v":0},{"$f":"Table1[[#This Row],[بدايه الاشتراك]]","v":"00:00:00"},{"$f":"Table1[[#This Row],[نهايه الاشتراك]]","v":"00:00:00"}]
[{"$f":"Table1[[#This Row],[أســــم المشترك]]","v":0},{"$f":"Table1[[#This Row],[كود المشترك]]","v":0},{"$f":"Table1[[#This Row],[رقم الموبايـــل]]","v":0},{"$f":"Table1[[#This Row],[مده الاشتراك]]","v":0},{"$f":"Table1[[#This Row],[بدايه الاشتراك]]","v":"00:00:00"},{"$f":"Table1[[#This Row],[نهايه الاشتراك]]","v":"00:00:00"}]
[{"$f":"Table1[[#This Row],[أســــم المشترك]]","v":0},{"$f":"Table1[[#This Row],[كود المشترك]]","v":0},{"$f":"Table1[[#This Row],[رقم الموبايـــل]]","v":0},{"$f":"Table1[[#This Row],[مده الاشتراك]]","v":0},{"$f":"Table1[[#This Row],[بدايه الاشتراك]]","v":"00:00:00"},{"$f":"Table1[[#This Row],[نهايه الاشتراك]]","v":"00:00:00"}]
[{"$f":"Table1[[#This Row],[أســــم المشترك]]","v":0},{"$f":"Table1[[#This Row],[كود المشترك]]","v":0},{"$f":"Table1[[#This Row],[رقم الموبايـــل]]","v":0},{"$f":"Table1[[#This Row],[مده الاشتراك]]","v":0},{"$f":"Table1[[#This Row],[بدايه الاشتراك]]","v":"00:00:00"},{"$f":"Table1[[#This Row],[نهايه الاشتراك]]","v":"00:00:00"}]
[{"$f":"Table1[[#This Row],[أســــم المشترك]]","v":0},{"$f":"Table1[[#This Row],[كود المشترك]]","v":0},{"$f":"Table1[[#This Row],[رقم الموبايـــل]]","v":0},{"$f":"Table1[[#This Row],[مده الاشتراك]]","v":0},{"$f":"Table1[[#This Row],[بدايه الاشتراك]]","v":"00:00:00"},{"$f":"Table1[[#This Row],[نهايه الاشتراك]]","v":"00:00:00"}]
[{"$f":"Table1[[#This Row],[أســــم المشترك]]","v":0},{"$f":"Table1[[#This Row],[كود المشترك]]","v":0},{"$f":"Table1[[#This Row],[رقم الموبايـــل]]","v":0},{"$f":"Table1[[#This Row],[مده الاشتراك]]","v":0},{"$f":"Table1[[#This Row],[بدايه الاشتراك]]","v":"00:00:00"},{"$f":"Table1[[#This Row],[نهايه الاشتراك]]","v":"00:00:00"}]
[{"$f":"Table1[[#This Row],[أســــم المشترك]]","v":0},{"$f":"Table1[[#This Row],[كود المشترك]]","v":0},{"$f":"Table1[[#This Row],[رقم الموبايـــل]]","v":0},{"$f":"Table1[[#This Row],[مده الاشتراك]]","v":0},{"$f":"Table1[[#This Row],[بدايه الاشتراك]]","v":"00:00:00"},{"$f":"Table1[[#This Row],[نهايه الاشتراك]]","v":"00:00:00"}]
[{"$f":"Table1[[#This Row],[أســــم المشترك]]","v":0},{"$f":"Table1[[#This Row],[كود المشترك]]","v":0},{"$f":"Table1[[#This Row],[رقم الموبايـــل]]","v":0},{"$f":"Table1[[#This Row],[مده الاشتراك]]","v":0},{"$f":"Table1[[#This Row],[بدايه الاشتراك]]","v":"00:00:00"},{"$f":"Table1[[#This Row],[نهايه الاشتراك]]","v":"00:00:00"}]
[{"$f":"Table1[[#This Row],[أســــم المشترك]]","v":0},{"$f":"Table1[[#This Row],[كود المشترك]]","v":0},{"$f":"Table1[[#This Row],[رقم الموبايـــل]]","v":0},{"$f":"Table1[[#This Row],[مده الاشتراك]]","v":0},{"$f":"Table1[[#This Row],[بدايه الاشتراك]]","v":"00:00:00"},{"$f":"Table1[[#This Row],[نهايه الاشتراك]]","v":"00:00:00"}]
[{"$f":"Table1[[#This Row],[أســــم المشترك]]","v":0},{"$f":"Table1[[#This Row],[كود المشترك]]","v":0},{"$f":"Table1[[#This Row],[رقم الموبايـــل]]","v":0},{"$f":"Table1[[#This Row],[مده الاشتراك]]","v":0},{"$f":"Table1[[#This Row],[بدايه الاشتراك]]","v":"00:00:00"},{"$f":"Table1[[#This Row],[نهايه الاشتراك]]","v":"00:00:00"}]
[{"$f":"Table1[[#This Row],[أســــم المشترك]]","v":0},{"$f":"Table1[[#This Row],[كود المشترك]]","v":0},{"$f":"Table1[[#This Row],[رقم الموبايـــل]]","v":0},{"$f":"Table1[[#This Row],[مده الاشتراك]]","v":0},{"$f":"Table1[[#This Row],[بدايه الاشتراك]]","v":"00:00:00"},{"$f":"Table1[[#This Row],[نهايه الاشتراك]]","v":"00:00:00"}]
[{"$f":"Table1[[#This Row],[أســــم المشترك]]","v":0},{"$f":"Table1[[#This Row],[كود المشترك]]","v":0},{"$f":"Table1[[#This Row],[رقم الموبايـــل]]","v":0},{"$f":"Table1[[#This Row],[مده الاشتراك]]","v":0},{"$f":"Table1[[#This Row],[بدايه الاشتراك]]","v":"00:00:00"},{"$f":"Table1[[#This Row],[نهايه الاشتراك]]","v":"00:00:00"}]
[{"$f":"Table1[[#This Row],[أســــم المشترك]]","v":0},{"$f":"Table1[[#This Row],[كود المشترك]]","v":0},{"$f":"Table1[[#This Row],[رقم الموبايـــل]]","v":0},{"$f":"Table1[[#This Row],[مده الاشتراك]]","v":0},{"$f":"Table1[[#This Row],[بدايه الاشتراك]]","v":"00:00:00"},{"$f":"Table1[[#This Row],[نهايه الاشتراك]]","v":"00:00:00"}]
[{"$f":"Table1[[#This Row],[أســــم المشترك]]","v":0},{"$f":"Table1[[#This Row],[كود المشترك]]","v":0},{"$f":"Table1[[#This Row],[رقم الموبايـــل]]","v":0},{"$f":"Table1[[#This Row],[مده الاشتراك]]","v":0},{"$f":"Table1[[#This Row],[بدايه الاشتراك]]","v":"00:00:00"},{"$f":"Table1[[#This Row],[نهايه الاشتراك]]","v":"00:00:00"}]
[{"$f":"Table1[[#This Row],[أســــم المشترك]]","v":0},{"$f":"Table1[[#This Row],[كود المشترك]]","v":0},{"$f":"Table1[[#This Row],[رقم الموبايـــل]]","v":0},{"$f":"Table1[[#This Row],[مده الاشتراك]]","v":0},{"$f":"Table1[[#This Row],[بدايه الاشتراك]]","v":"00:00:00"},{"$f":"Table1[[#This Row],[نهايه الاشتراك]]","v":"00:00:00"}]
[{"$f":"Table1[[#This Row],[أســــم المشترك]]","v":0},{"$f":"Table1[[#This Row],[كود المشترك]]","v":0},{"$f":"Table1[[#This Row],[رقم الموبايـــل]]","v":0},{"$f":"Table1[[#This Row],[مده الاشتراك]]","v":0},{"$f":"Table1[[#This Row],[بدايه الاشتراك]]","v":"00:00:00"},{"$f":"Table1[[#This Row],[نهايه الاشتراك]]","v":"00:00:00"}]
[{"$f":"Table1[[#This Row],[أســــم المشترك]]","v":0},{"$f":"Table1[[#This Row],[كود المشترك]]","v":0},{"$f":"Table1[[#This Row],[رقم الموبايـــل]]","v":0},{"$f":"Table1[[#This Row],[مده الاشتراك]]","v":0},{"$f":"Table1[[#This Row],[بدايه الاشتراك]]","v":"00:00:00"},{"$f":"Table1[[#This Row],[نهايه الاشتراك]]","v":"00:00:00"}]
[{"$f":"Table1[[#This Row],[أســــم المشترك]]","v":0},{"$f":"Table1[[#This Row],[كود المشترك]]","v":0},{"$f":"Table1[[#This Row],[رقم الموبايـــل]]","v":0},{"$f":"Table1[[#This Row],[مده الاشتراك]]","v":0},{"$f":"Table1[[#This Row],[بدايه الاشتراك]]","v":"00:00:00"},{"$f":"Table1[[#This Row],[نهايه الاشتراك]]","v":"00:00:00"}]
[{"$f":"Table1[[#This Row],[أســــم المشترك]]","v":0},{"$f":"Table1[[#This Row],[كود المشترك]]","v":0},{"$f":"Table1[[#This Row],[رقم الموبايـــل]]","v":0},{"$f":"Table1[[#This Row],[مده الاشتراك]]","v":0},{"$f":"Table1[[#This Row],[بدايه الاشتراك]]","v":"00:00:00"},{"$f":"Table1[[#This Row],[نهايه الاشتراك]]","v":"00:00:00"}]
[{"$f":"Table1[[#This Row],[أســــم المشترك]]","v":0},{"$f":"Table1[[#This Row],[كود المشترك]]","v":0},{"$f":"Table1[[#This Row],[رقم الموبايـــل]]","v":0},{"$f":"Table1[[#This Row],[مده الاشتراك]]","v":0},{"$f":"Table1[[#This Row],[بدايه الاشتراك]]","v":"00:00:00"},{"$f":"Table1[[#This Row],[نهايه الاشتراك]]","v":"00:00:00"}]
[{"$f":"Table1[[#This Row],[أســــم المشترك]]","v":0},{"$f":"Table1[[#This Row],[كود المشترك]]","v":0},{"$f":"Table1[[#This Row],[رقم الموبايـــل]]","v":0},{"$f":"Table1[[#This Row],[مده الاشتراك]]","v":0},{"$f":"Table1[[#This Row],[بدايه الاشتراك]]","v":"00:00:00"},{"$f":"Table1[[#This Row],[نهايه الاشتراك]]","v":"00:00:00"}]
[{"$f":"Table1[[#This Row],[أســــم المشترك]]","v":0},{"$f":"Table1[[#This Row],[كود المشترك]]","v":0},{"$f":"Table1[[#This Row],[رقم الموبايـــل]]","v":0},{"$f":"Table1[[#This Row],[مده الاشتراك]]","v":0},{"$f":"Table1[[#This Row],[بدايه الاشتراك]]","v":"00:00:00"},{"$f":"Table1[[#This Row],[نهايه الاشتراك]]","v":"00:00:00"}]
[{"$f":"Table1[[#This Row],[أســــم المشترك]]","v":0},{"$f":"Table1[[#This Row],[كود المشترك]]","v":0},{"$f":"Table1[[#This Row],[رقم الموبايـــل]]","v":0},{"$f":"Table1[[#This Row],[مده الاشتراك]]","v":0},{"$f":"Table1[[#This Row],[بدايه الاشتراك]]","v":"00:00:00"},{"$f":"Table1[[#This Row],[نهايه الاشتراك]]","v":"00:00:00"}]
[{"$f":"Table1[[#This Row],[أســــم المشترك]]","v":0},{"$f":"Table1[[#This Row],[كود المشترك]]","v":0},{"$f":"Table1[[#This Row],[رقم الموبايـــل]]","v":0},{"$f":"Table1[[#This Row],[مده الاشتراك]]","v":0},{"$f":"Table1[[#This Row],[بدايه الاشتراك]]","v":"00:00:00"},{"$f":"Table1[[#This Row],[نهايه الاشتراك]]","v":"00:00:00"}]
[{"$f":"Table1[[#This Row],[أســــم المشترك]]","v":0},{"$f":"Table1[[#This Row],[كود المشترك]]","v":0},{"$f":"Table1[[#This Row],[رقم الموبايـــل]]","v":0},{"$f":"Table1[[#This Row],[مده الاشتراك]]","v":0},{"$f":"Table1[[#This Row],[بدايه الاشتراك]]","v":"00:00:00"},{"$f":"Table1[[#This Row],[نهايه الاشتراك]]","v":"00:00:00"}]
[{"$f":"Table1[[#This Row],[أســــم المشترك]]","v":0},{"$f":"Table1[[#This Row],[كود المشترك]]","v":0},{"$f":"Table1[[#This Row],[رقم الموبايـــل]]","v":0},{"$f":"Table1[[#This Row],[مده الاشتراك]]","v":0},{"$f":"Table1[[#This Row],[بدايه الاشتراك]]","v":"00:00:00"},{"$f":"Table1[[#This Row],[نهايه الاشتراك]]","v":"00:00:00"}]
[{"$f":"Table1[[#This Row],[أســــم المشترك]]","v":0},{"$f":"Table1[[#This Row],[كود المشترك]]","v":0},{"$f":"Table1[[#This Row],[رقم الموبايـــل]]","v":0},{"$f":"Table1[[#This Row],[مده الاشتراك]]","v":0},{"$f":"Table1[[#This Row],[بدايه الاشتراك]]","v":"00:00:00"},{"$f":"Table1[[#This Row],[نهايه الاشتراك]]","v":"00:00:00"}]
[{"$f":"Table1[[#This Row],[أســــم المشترك]]","v":0},{"$f":"Table1[[#This Row],[كود المشترك]]","v":0},{"$f":"Table1[[#This Row],[رقم الموبايـــل]]","v":0},{"$f":"Table1[[#This Row],[مده الاشتراك]]","v":0},{"$f":"Table1[[#This Row],[بدايه الاشتراك]]","v":"00:00:00"},{"$f":"Table1[[#This Row],[نهايه الاشتراك]]","v":"00:00:00"}]
[{"$f":"Table1[[#This Row],[أســــم المشترك]]","v":0},{"$f":"Table1[[#This Row],[كود المشترك]]","v":0},{"$f":"Table1[[#This Row],[رقم الموبايـــل]]","v":0},{"$f":"Table1[[#This Row],[مده الاشتراك]]","v":0},{"$f":"Table1[[#This Row],[بدايه الاشتراك]]","v":"00:00:00"},{"$f":"Table1[[#This Row],[نهايه الاشتراك]]","v":"00:00:00"}]
[{"$f":"Table1[[#This Row],[أســــم المشترك]]","v":0},{"$f":"Table1[[#This Row],[كود المشترك]]","v":0},{"$f":"Table1[[#This Row],[رقم الموبايـــل]]","v":0},{"$f":"Table1[[#This Row],[مده الاشتراك]]","v":0},{"$f":"Table1[[#This Row],[بدايه الاشتراك]]","v":"00:00:00"},{"$f":"Table1[[#This Row],[نهايه الاشتراك]]","v":"00:00:00"}]
[{"$f":"Table1[[#This Row],[أســــم المشترك]]","v":0},{"$f":"Table1[[#This Row],[كود المشترك]]","v":0},{"$f":"Table1[[#This Row],[رقم الموبايـــل]]","v":0},{"$f":"Table1[[#This Row],[مده الاشتراك]]","v":0},{"$f":"Table1[[#This Row],[بدايه الاشتراك]]","v":"00:00:00"},{"$f":"Table1[[#This Row],[نهايه الاشتراك]]","v":"00:00:00"}]
[{"$f":"Table1[[#This Row],[أســــم المشترك]]","v":0},{"$f":"Table1[[#This Row],[كود المشترك]]","v":0},{"$f":"Table1[[#This Row],[رقم الموبايـــل]]","v":0},{"$f":"Table1[[#This Row],[مده الاشتراك]]","v":0},{"$f":"Table1[[#This Row],[بدايه الاشتراك]]","v":"00:00:00"},{"$f":"Table1[[#This Row],[نهايه الاشتراك]]","v":"00:00:00"}]
[{"$f":"Table1[[#This Row],[أســــم المشترك]]","v":0},{"$f":"Table1[[#This Row],[كود المشترك]]","v":0},{"$f":"Table1[[#This Row],[رقم الموبايـــل]]","v":0},{"$f":"Table1[[#This Row],[مده الاشتراك]]","v":0},{"$f":"Table1[[#This Row],[بدايه الاشتراك]]","v":"00:00:00"},{"$f":"Table1[[#This Row],[نهايه الاشتراك]]","v":"00:00:00"}]
[{"$f":"Table1[[#This Row],[أســــم المشترك]]","v":0},{"$f":"Table1[[#This Row],[كود المشترك]]","v":0},{"$f":"Table1[[#This Row],[رقم الموبايـــل]]","v":0},{"$f":"Table1[[#This Row],[مده الاشتراك]]","v":0},{"$f":"Table1[[#This Row],[بدايه الاشتراك]]","v":"00:00:00"},{"$f":"Table1[[#This Row],[نهايه الاشتراك]]","v":"00:00:00"}]
[{"$f":"Table1[[#This Row],[أســــم المشترك]]","v":0},{"$f":"Table1[[#This Row],[كود المشترك]]","v":0},{"$f":"Table1[[#This Row],[رقم الموبايـــل]]","v":0},{"$f":"Table1[[#This Row],[مده الاشتراك]]","v":0},{"$f":"Table1[[#This Row],[بدايه الاشتراك]]","v":"00:00:00"},{"$f":"Table1[[#This Row],[نهايه الاشتراك]]","v":"00:00:00"}]
[{"$f":"Table1[[#This Row],[أســــم المشترك]]","v":0},{"$f":"Table1[[#This Row],[كود المشترك]]","v":0},{"$f":"Table1[[#This Row],[رقم الموبايـــل]]","v":0},{"$f":"Table1[[#This Row],[مده الاشتراك]]","v":0},{"$f":"Table1[[#This Row],[بدايه الاشتراك]]","v":"00:00:00"},{"$f":"Table1[[#This Row],[نهايه الاشتراك]]","v":"00:00:00"}]
[{"$f":"Table1[[#This Row],[أســــم المشترك]]","v":0},{"$f":"Table1[[#This Row],[كود المشترك]]","v":0},{"$f":"Table1[[#This Row],[رقم الموبايـــل]]","v":0},{"$f":"Table1[[#This Row],[مده الاشتراك]]","v":0},{"$f":"Table1[[#This Row],[بدايه الاشتراك]]","v":"00:00:00"},{"$f":"Table1[[#This Row],[نهايه الاشتراك]]","v":"00:00:00"}]
[{"$f":"Table1[[#This Row],[أســــم المشترك]]","v":0},{"$f":"Table1[[#This Row],[كود المشترك]]","v":0},{"$f":"Table1[[#This Row],[رقم الموبايـــل]]","v":0},{"$f":"Table1[[#This Row],[مده الاشتراك]]","v":0},{"$f":"Table1[[#This Row],[بدايه الاشتراك]]","v":"00:00:00"},{"$f":"Table1[[#This Row],[نهايه الاشتراك]]","v":"00:00:00"}]
[{"$f":"Table1[[#This Row],[أســــم المشترك]]","v":0},{"$f":"Table1[[#This Row],[كود المشترك]]","v":0},{"$f":"Table1[[#This Row],[رقم الموبايـــل]]","v":0},{"$f":"Table1[[#This Row],[مده الاشتراك]]","v":0},{"$f":"Table1[[#This Row],[بدايه الاشتراك]]","v":"00:00:00"},{"$f":"Table1[[#This Row],[نهايه الاشتراك]]","v":"00:00:00"}]
[{"$f":"Table1[[#This Row],[أســــم المشترك]]","v":0},{"$f":"Table1[[#This Row],[كود المشترك]]","v":0},{"$f":"Table1[[#This Row],[رقم الموبايـــل]]","v":0},{"$f":"Table1[[#This Row],[مده الاشتراك]]","v":0},{"$f":"Table1[[#This Row],[بدايه الاشتراك]]","v":"00:00:00"},{"$f":"Table1[[#This Row],[نهايه الاشتراك]]","v":"00:00:00"}]
[{"$f":"Table1[[#This Row],[أســــم المشترك]]","v":0},{"$f":"Table1[[#This Row],[كود المشترك]]","v":0},{"$f":"Table1[[#This Row],[رقم الموبايـــل]]","v":0},{"$f":"Table1[[#This Row],[مده الاشتراك]]","v":0},{"$f":"Table1[[#This Row],[بدايه الاشتراك]]","v":"00:00:00"},{"$f":"Table1[[#This Row],[نهايه الاشتراك]]","v":"00:00:00"}]
[{"$f":"Table1[[#This Row],[أســــم المشترك]]","v":0},{"$f":"Table1[[#This Row],[كود المشترك]]","v":0},{"$f":"Table1[[#This Row],[رقم الموبايـــل]]","v":0},{"$f":"Table1[[#This Row],[مده الاشتراك]]","v":0},{"$f":"Table1[[#This Row],[بدايه الاشتراك]]","v":"00:00:00"},{"$f":"Table1[[#This Row],[نهايه الاشتراك]]","v":"00:00:00"}]
[{"$f":"Table1[[#This Row],[أســــم المشترك]]","v":0},{"$f":"Table1[[#This Row],[كود المشترك]]","v":0},{"$f":"Table1[[#This Row],[رقم الموبايـــل]]","v":0},{"$f":"Table1[[#This Row],[مده الاشتراك]]","v":0},{"$f":"Table1[[#This Row],[بدايه الاشتراك]]","v":"00:00:00"},{"$f":"Table1[[#This Row],[نهايه الاشتراك]]","v":"00:00:00"}]
[{"$f":"Table1[[#This Row],[أســــم المشترك]]","v":0},{"$f":"Table1[[#This Row],[كود المشترك]]","v":0},{"$f":"Table1[[#This Row],[رقم الموبايـــل]]","v":0},{"$f":"Table1[[#This Row],[مده الاشتراك]]","v":0},{"$f":"Table1[[#This Row],[بدايه الاشتراك]]","v":"00:00:00"},{"$f":"Table1[[#This Row],[نهايه الاشتراك]]","v":"00:00:00"}]
[{"$f":"Table1[[#This Row],[أســــم المشترك]]","v":0},{"$f":"Table1[[#This Row],[كود المشترك]]","v":0},{"$f":"Table1[[#This Row],[رقم الموبايـــل]]","v":0},{"$f":"Table1[[#This Row],[مده الاشتراك]]","v":0},{"$f":"Table1[[#This Row],[بدايه الاشتراك]]","v":"00:00:00"},{"$f":"Table1[[#This Row],[نهايه الاشتراك]]","v":"00:00:00"}]
[{"$f":"Table1[[#This Row],[أســــم المشترك]]","v":0},{"$f":"Table1[[#This Row],[كود المشترك]]","v":0},{"$f":"Table1[[#This Row],[رقم الموبايـــل]]","v":0},{"$f":"Table1[[#This Row],[مده الاشتراك]]","v":0},{"$f":"Table1[[#This Row],[بدايه الاشتراك]]","v":"00:00:00"},{"$f":"Table1[[#This Row],[نهايه الاشتراك]]","v":"00:00:00"}]
[{"$f":"Table1[[#This Row],[أســــم المشترك]]","v":0},{"$f":"Table1[[#This Row],[كود المشترك]]","v":0},{"$f":"Table1[[#This Row],[رقم الموبايـــل]]","v":0},{"$f":"Table1[[#This Row],[مده الاشتراك]]","v":0},{"$f":"Table1[[#This Row],[بدايه الاشتراك]]","v":"00:00:00"},{"$f":"Table1[[#This Row],[نهايه الاشتراك]]","v":"00:00:00"}]
[{"$f":"Table1[[#This Row],[أســــم المشترك]]","v":0},{"$f":"Table1[[#This Row],[كود المشترك]]","v":0},{"$f":"Table1[[#This Row],[رقم الموبايـــل]]","v":0},{"$f":"Table1[[#This Row],[مده الاشتراك]]","v":0},{"$f":"Table1[[#This Row],[بدايه الاشتراك]]","v":"00:00:00"},{"$f":"Table1[[#This Row],[نهايه الاشتراك]]","v":"00:00:00"}]
[{"$f":"Table1[[#This Row],[أســــم المشترك]]","v":0},{"$f":"Table1[[#This Row],[كود المشترك]]","v":0},{"$f":"Table1[[#This Row],[رقم الموبايـــل]]","v":0},{"$f":"Table1[[#This Row],[مده الاشتراك]]","v":0},{"$f":"Table1[[#This Row],[بدايه الاشتراك]]","v":"00:00:00"},{"$f":"Table1[[#This Row],[نهايه الاشتراك]]","v":"00:00:00"}]
[{"$f":"Table1[[#This Row],[أســــم المشترك]]","v":0},{"$f":"Table1[[#This Row],[كود المشترك]]","v":0},{"$f":"Table1[[#This Row],[رقم الموبايـــل]]","v":0},{"$f":"Table1[[#This Row],[مده الاشتراك]]","v":0},{"$f":"Table1[[#This Row],[بدايه الاشتراك]]","v":"00:00:00"},{"$f":"Table1[[#This Row],[نهايه الاشتراك]]","v":"00:00:00"}]
[{"$f":"Table1[[#This Row],[أســــم المشترك]]","v":0},{"$f":"Table1[[#This Row],[كود المشترك]]","v":0},{"$f":"Table1[[#This Row],[رقم الموبايـــل]]","v":0},{"$f":"Table1[[#This Row],[مده الاشتراك]]","v":0},{"$f":"Table1[[#This Row],[بدايه الاشتراك]]","v":"00:00:00"},{"$f":"Table1[[#This Row],[نهايه الاشتراك]]","v":"00:00:00"}]
[{"$f":"Table1[[#This Row],[أســــم المشترك]]","v":0},{"$f":"Table1[[#This Row],[كود المشترك]]","v":0},{"$f":"Table1[[#This Row],[رقم الموبايـــل]]","v":0},{"$f":"Table1[[#This Row],[مده الاشتراك]]","v":0},{"$f":"Table1[[#This Row],[بدايه الاشتراك]]","v":"00:00:00"},{"$f":"Table1[[#This Row],[نهايه الاشتراك]]","v":"00:00:00"}]
[{"$f":"Table1[[#This Row],[أســــم المشترك]]","v":0},{"$f":"Table1[[#This Row],[كود المشترك]]","v":0},{"$f":"Table1[[#This Row],[رقم الموبايـــل]]","v":0},{"$f":"Table1[[#This Row],[مده الاشتراك]]","v":0},{"$f":"Table1[[#This Row],[بدايه الاشتراك]]","v":"00:00:00"},{"$f":"Table1[[#This Row],[نهايه الاشتراك]]","v":"00:00:00"}]
[{"$f":"Table1[[#This Row],[أســــم المشترك]]","v":0},{"$f":"Table1[[#This Row],[كود المشترك]]","v":0},{"$f":"Table1[[#This Row],[رقم الموبايـــل]]","v":0},{"$f":"Table1[[#This Row],[مده الاشتراك]]","v":0},{"$f":"Table1[[#This Row],[بدايه الاشتراك]]","v":"00:00:00"},{"$f":"Table1[[#This Row],[نهايه الاشتراك]]","v":"00:00:00"}]
[{"$f":"Table1[[#This Row],[أســــم المشترك]]","v":0},{"$f":"Table1[[#This Row],[كود المشترك]]","v":0},{"$f":"Table1[[#This Row],[رقم الموبايـــل]]","v":0},{"$f":"Table1[[#This Row],[مده الاشتراك]]","v":0},{"$f":"Table1[[#This Row],[بدايه الاشتراك]]","v":"00:00:00"},{"$f":"Table1[[#This Row],[نهايه الاشتراك]]","v":"00:00:00"}]
[{"$f":"Table1[[#This Row],[أســــم المشترك]]","v":0},{"$f":"Table1[[#This Row],[كود المشترك]]","v":0},{"$f":"Table1[[#This Row],[رقم الموبايـــل]]","v":0},{"$f":"Table1[[#This Row],[مده الاشتراك]]","v":0},{"$f":"Table1[[#This Row],[بدايه الاشتراك]]","v":"00:00:00"},{"$f":"Table1[[#This Row],[نهايه الاشتراك]]","v":"00:00:00"}]
[{"$f":"Table1[[#This Row],[أســــم المشترك]]","v":0},{"$f":"Table1[[#This Row],[كود المشترك]]","v":0},{"$f":"Table1[[#This Row],[رقم الموبايـــل]]","v":0},{"$f":"Table1[[#This Row],[مده الاشتراك]]","v":0},{"$f":"Table1[[#This Row],[بدايه الاشتراك]]","v":"00:00:00"},{"$f":"Table1[[#This Row],[نهايه الاشتراك]]","v":"00:00:00"}]
[{"$f":"Table1[[#This Row],[أســــم المشترك]]","v":0},{"$f":"Table1[[#This Row],[كود المشترك]]","v":0},{"$f":"Table1[[#This Row],[رقم الموبايـــل]]","v":0},{"$f":"Table1[[#This Row],[مده الاشتراك]]","v":0},{"$f":"Table1[[#This Row],[بدايه الاشتراك]]","v":"00:00:00"},{"$f":"Table1[[#This Row],[نهايه الاشتراك]]","v":"00:00:00"}]
[{"$f":"Table1[[#This Row],[أســــم المشترك]]","v":0},{"$f":"Table1[[#This Row],[كود المشترك]]","v":0},{"$f":"Table1[[#This Row],[رقم الموبايـــل]]","v":0},{"$f":"Table1[[#This Row],[مده الاشتراك]]","v":0},{"$f":"Table1[[#This Row],[بدايه الاشتراك]]","v":"00:00:00"},{"$f":"Table1[[#This Row],[نهايه الاشتراك]]","v":"00:00:00"}]
[{"$f":"Table1[[#This Row],[أســــم المشترك]]","v":0},{"$f":"Table1[[#This Row],[كود المشترك]]","v":0},{"$f":"Table1[[#This Row],[رقم الموبايـــل]]","v":0},{"$f":"Table1[[#This Row],[مده الاشتراك]]","v":0},{"$f":"Table1[[#This Row],[بدايه الاشتراك]]","v":"00:00:00"},{"$f":"Table1[[#This Row],[نهايه الاشتراك]]","v":"00:00:00"}]
[{"$f":"Table1[[#This Row],[أســــم المشترك]]","v":0},{"$f":"Table1[[#This Row],[كود المشترك]]","v":0},{"$f":"Table1[[#This Row],[رقم الموبايـــل]]","v":0},{"$f":"Table1[[#This Row],[مده الاشتراك]]","v":0},{"$f":"Table1[[#This Row],[بدايه الاشتراك]]","v":"00:00:00"},{"$f":"Table1[[#This Row],[نهايه الاشتراك]]","v":"00:00:00"}]
[{"$f":"Table1[[#This Row],[أســــم المشترك]]","v":0},{"$f":"Table1[[#This Row],[كود المشترك]]","v":0},{"$f":"Table1[[#This Row],[رقم الموبايـــل]]","v":0},{"$f":"Table1[[#This Row],[مده الاشتراك]]","v":0},{"$f":"Table1[[#This Row],[بدايه الاشتراك]]","v":"00:00:00"},{"$f":"Table1[[#This Row],[نهايه الاشتراك]]","v":"00:00:00"}]
[{"$f":"Table1[[#This Row],[أســــم المشترك]]","v":0},{"$f":"Table1[[#This Row],[كود المشترك]]","v":0},{"$f":"Table1[[#This Row],[رقم الموبايـــل]]","v":0},{"$f":"Table1[[#This Row],[مده الاشتراك]]","v":0},{"$f":"Table1[[#This Row],[بدايه الاشتراك]]","v":"00:00:00"},{"$f":"Table1[[#This Row],[نهايه الاشتراك]]","v":"00:00:00"}]
[{"$f":"Table1[[#This Row],[أســــم المشترك]]","v":0},{"$f":"Table1[[#This Row],[كود المشترك]]","v":0},{"$f":"Table1[[#This Row],[رقم الموبايـــل]]","v":0},{"$f":"Table1[[#This Row],[مده الاشتراك]]","v":0},{"$f":"Table1[[#This Row],[بدايه الاشتراك]]","v":"00:00:00"},{"$f":"Table1[[#This Row],[نهايه الاشتراك]]","v":"00:00:00"}]
[{"$f":"Table1[[#This Row],[أســــم المشترك]]","v":0},{"$f":"Table1[[#This Row],[كود المشترك]]","v":0},{"$f":"Table1[[#This Row],[رقم الموبايـــل]]","v":0},{"$f":"Table1[[#This Row],[مده الاشتراك]]","v":0},{"$f":"Table1[[#This Row],[بدايه الاشتراك]]","v":"00:00:00"},{"$f":"Table1[[#This Row],[نهايه الاشتراك]]","v":"00:00:00"}]
[{"$f":"Table1[[#This Row],[أســــم المشترك]]","v":0},{"$f":"Table1[[#This Row],[كود المشترك]]","v":0},{"$f":"Table1[[#This Row],[رقم الموبايـــل]]","v":0},{"$f":"Table1[[#This Row],[مده الاشتراك]]","v":0},{"$f":"Table1[[#This Row],[بدايه الاشتراك]]","v":"00:00:00"},{"$f":"Table1[[#This Row],[نهايه الاشتراك]]","v":"00:00:00"}]
[{"$f":"Table1[[#This Row],[أســــم المشترك]]","v":0},{"$f":"Table1[[#This Row],[كود المشترك]]","v":0},{"$f":"Table1[[#This Row],[رقم الموبايـــل]]","v":0},{"$f":"Table1[[#This Row],[مده الاشتراك]]","v":0},{"$f":"Table1[[#This Row],[بدايه الاشتراك]]","v":"00:00:00"},{"$f":"Table1[[#This Row],[نهايه الاشتراك]]","v":"00:00:00"}]
[{"$f":"Table1[[#This Row],[أســــم المشترك]]","v":0},{"$f":"Table1[[#This Row],[كود المشترك]]","v":0},{"$f":"Table1[[#This Row],[رقم الموبايـــل]]","v":0},{"$f":"Table1[[#This Row],[مده الاشتراك]]","v":0},{"$f":"Table1[[#This Row],[بدايه الاشتراك]]","v":"00:00:00"},{"$f":"Table1[[#This Row],[نهايه الاشتراك]]","v":"00:00:00"}]
[{"$f":"Table1[[#This Row],[أســــم المشترك]]","v":0},{"$f":"Table1[[#This Row],[كود المشترك]]","v":0},{"$f":"Table1[[#This Row],[رقم الموبايـــل]]","v":0},{"$f":"Table1[[#This Row],[مده الاشتراك]]","v":0},{"$f":"Table1[[#This Row],[بدايه الاشتراك]]","v":"00:00:00"},{"$f":"Table1[[#This Row],[نهايه الاشتراك]]","v":"00:00:00"}]
[{"$f":"Table1[[#This Row],[أســــم المشترك]]","v":0},{"$f":"Table1[[#This Row],[كود المشترك]]","v":0},{"$f":"Table1[[#This Row],[رقم الموبايـــل]]","v":0},{"$f":"Table1[[#This Row],[مده الاشتراك]]","v":0},{"$f":"Table1[[#This Row],[بدايه الاشتراك]]","v":"00:00:00"},{"$f":"Table1[[#This Row],[نهايه الاشتراك]]","v":"00:00:00"}]
[{"$f":"Table1[[#This Row],[أســــم المشترك]]","v":0},{"$f":"Table1[[#This Row],[كود المشترك]]","v":0},{"$f":"Table1[[#This Row],[رقم الموبايـــل]]","v":0},{"$f":"Table1[[#This Row],[مده الاشتراك]]","v":0},{"$f":"Table1[[#This Row],[بدايه الاشتراك]]","v":"00:00:00"},{"$f":"Table1[[#This Row],[نهايه الاشتراك]]","v":"00:00:00"}]
[{"$f":"Table1[[#This Row],[أســــم المشترك]]","v":0},{"$f":"Table1[[#This Row],[كود المشترك]]","v":0},{"$f":"Table1[[#This Row],[رقم الموبايـــل]]","v":0},{"$f":"Table1[[#This Row],[مده الاشتراك]]","v":0},{"$f":"Table1[[#This Row],[بدايه الاشتراك]]","v":"00:00:00"},{"$f":"Table1[[#This Row],[نهايه الاشتراك]]","v":"00:00:00"}]
[{"$f":"Table1[[#This Row],[أســــم المشترك]]","v":0},{"$f":"Table1[[#This Row],[كود المشترك]]","v":0},{"$f":"Table1[[#This Row],[رقم الموبايـــل]]","v":0},{"$f":"Table1[[#This Row],[مده الاشتراك]]","v":0},{"$f":"Table1[[#This Row],[بدايه الاشتراك]]","v":"00:00:00"},{"$f":"Table1[[#This Row],[نهايه الاشتراك]]","v":"00:00:00"}]
[{"$f":"Table1[[#This Row],[أســــم المشترك]]","v":0},{"$f":"Table1[[#This Row],[كود المشترك]]","v":0},{"$f":"Table1[[#This Row],[رقم الموبايـــل]]","v":0},{"$f":"Table1[[#This Row],[مده الاشتراك]]","v":0},{"$f":"Table1[[#This Row],[بدايه الاشتراك]]","v":"00:00:00"},{"$f":"Table1[[#This Row],[نهايه الاشتراك]]","v":"00:00:00"}]
[{"$f":"Table1[[#This Row],[أســــم المشترك]]","v":0},{"$f":"Table1[[#This Row],[كود المشترك]]","v":0},{"$f":"Table1[[#This Row],[رقم الموبايـــل]]","v":0},{"$f":"Table1[[#This Row],[مده الاشتراك]]","v":0},{"$f":"Table1[[#This Row],[بدايه الاشتراك]]","v":"00:00:00"},{"$f":"Table1[[#This Row],[نهايه الاشتراك]]","v":"00:00:00"}]
[{"$f":"Table1[[#This Row],[أســــم المشترك]]","v":0},{"$f":"Table1[[#This Row],[كود المشترك]]","v":0},{"$f":"Table1[[#This Row],[رقم الموبايـــل]]","v":0},{"$f":"Table1[[#This Row],[مده الاشتراك]]","v":0},{"$f":"Table1[[#This Row],[بدايه الاشتراك]]","v":"00:00:00"},{"$f":"Table1[[#This Row],[نهايه الاشتراك]]","v":"00:00:00"}]
[{"$f":"Table1[[#This Row],[أســــم المشترك]]","v":0},{"$f":"Table1[[#This Row],[كود المشترك]]","v":0},{"$f":"Table1[[#This Row],[رقم الموبايـــل]]","v":0},{"$f":"Table1[[#This Row],[مده الاشتراك]]","v":0},{"$f":"Table1[[#This Row],[بدايه الاشتراك]]","v":"00:00:00"},{"$f":"Table1[[#This Row],[نهايه الاشتراك]]","v":"00:00:00"}]
[{"$f":"Table1[[#This Row],[أســــم المشترك]]","v":0},{"$f":"Table1[[#This Row],[كود المشترك]]","v":0},{"$f":"Table1[[#This Row],[رقم الموبايـــل]]","v":0},{"$f":"Table1[[#This Row],[مده الاشتراك]]","v":0},{"$f":"Table1[[#This Row],[بدايه الاشتراك]]","v":"00:00:00"},{"$f":"Table1[[#This Row],[نهايه الاشتراك]]","v":"00:00:00"}]
[{"$f":"Table1[[#This Row],[أســــم المشترك]]","v":0},{"$f":"Table1[[#This Row],[كود المشترك]]","v":0},{"$f":"Table1[[#This Row],[رقم الموبايـــل]]","v":0},{"$f":"Table1[[#This Row],[مده الاشتراك]]","v":0},{"$f":"Table1[[#This Row],[بدايه الاشتراك]]","v":"00:00:00"},{"$f":"Table1[[#This Row],[نهايه الاشتراك]]","v":"00:00:00"}]
[{"$f":"Table1[[#This Row],[أســــم المشترك]]","v":0},{"$f":"Table1[[#This Row],[كود المشترك]]","v":0},{"$f":"Table1[[#This Row],[رقم الموبايـــل]]","v":0},{"$f":"Table1[[#This Row],[مده الاشتراك]]","v":0},{"$f":"Table1[[#This Row],[بدايه الاشتراك]]","v":"00:00:00"},{"$f":"Table1[[#This Row],[نهايه الاشتراك]]","v":"00:00:00"}]
[{"$f":"Table1[[#This Row],[أســــم المشترك]]","v":0},{"$f":"Table1[[#This Row],[كود المشترك]]","v":0},{"$f":"Table1[[#This Row],[رقم الموبايـــل]]","v":0},{"$f":"Table1[[#This Row],[مده الاشتراك]]","v":0},{"$f":"Table1[[#This Row],[بدايه الاشتراك]]","v":"00:00:00"},{"$f":"Table1[[#This Row],[نهايه الاشتراك]]","v":"00:00:00"}]
[{"$f":"Table1[[#This Row],[أســــم المشترك]]","v":0},{"$f":"Table1[[#This Row],[كود المشترك]]","v":0},{"$f":"Table1[[#This Row],[رقم الموبايـــل]]","v":0},{"$f":"Table1[[#This Row],[مده الاشتراك]]","v":0},{"$f":"Table1[[#This Row],[بدايه الاشتراك]]","v":"00:00:00"},{"$f":"Table1[[#This Row],[نهايه الاشتراك]]","v":"00:00:00"}]
[{"$f":"Table1[[#This Row],[أســــم المشترك]]","v":0},{"$f":"Table1[[#This Row],[كود المشترك]]","v":0},{"$f":"Table1[[#This Row],[رقم الموبايـــل]]","v":0},{"$f":"Table1[[#This Row],[مده الاشتراك]]","v":0},{"$f":"Table1[[#This Row],[بدايه الاشتراك]]","v":"00:00:00"},{"$f":"Table1[[#This Row],[نهايه الاشتراك]]","v":"00:00:00"}]
[{"$f":"Table1[[#This Row],[أســــم المشترك]]","v":0},{"$f":"Table1[[#This Row],[كود المشترك]]","v":0},{"$f":"Table1[[#This Row],[رقم الموبايـــل]]","v":0},{"$f":"Table1[[#This Row],[مده الاشتراك]]","v":0},{"$f":"Table1[[#This Row],[بدايه الاشتراك]]","v":"00:00:00"},{"$f":"Table1[[#This Row],[نهايه الاشتراك]]","v":"00:00:00"}]
[{"$f":"Table1[[#This Row],[أســــم المشترك]]","v":0},{"$f":"Table1[[#This Row],[كود المشترك]]","v":0},{"$f":"Table1[[#This Row],[رقم الموبايـــل]]","v":0},{"$f":"Table1[[#This Row],[مده الاشتراك]]","v":0},{"$f":"Table1[[#This Row],[بدايه الاشتراك]]","v":"00:00:00"},{"$f":"Table1[[#This Row],[نهايه الاشتراك]]","v":"00:00:00"}]
[{"$f":"Table1[[#This Row],[أســــم المشترك]]","v":0},{"$f":"Table1[[#This Row],[كود المشترك]]","v":0},{"$f":"Table1[[#This Row],[رقم الموبايـــل]]","v":0},{"$f":"Table1[[#This Row],[مده الاشتراك]]","v":0},{"$f":"Table1[[#This Row],[بدايه الاشتراك]]","v":"00:00:00"},{"$f":"Table1[[#This Row],[نهايه الاشتراك]]","v":"00:00:00"}]
[{"$f":"Table1[[#This Row],[أســــم المشترك]]","v":0},{"$f":"Table1[[#This Row],[كود المشترك]]","v":0},{"$f":"Table1[[#This Row],[رقم الموبايـــل]]","v":0},{"$f":"Table1[[#This Row],[مده الاشتراك]]","v":0},{"$f":"Table1[[#This Row],[بدايه الاشتراك]]","v":"00:00:00"},{"$f":"Table1[[#This Row],[نهايه الاشتراك]]","v":"00:00:00"}]
[{"$f":"Table1[[#This Row],[أســــم المشترك]]","v":0},{"$f":"Table1[[#This Row],[كود المشترك]]","v":0},{"$f":"Table1[[#This Row],[رقم الموبايـــل]]","v":0},{"$f":"Table1[[#This Row],[مده الاشتراك]]","v":0},{"$f":"Table1[[#This Row],[بدايه الاشتراك]]","v":"00:00:00"},{"$f":"Table1[[#This Row],[نهايه الاشتراك]]","v":"00:00:00"}]
[{"$f":"Table1[[#This Row],[أســــم المشترك]]","v":0},{"$f":"Table1[[#This Row],[كود المشترك]]","v":0},{"$f":"Table1[[#This Row],[رقم الموبايـــل]]","v":0},{"$f":"Table1[[#This Row],[مده الاشتراك]]","v":0},{"$f":"Table1[[#This Row],[بدايه الاشتراك]]","v":"00:00:00"},{"$f":"Table1[[#This Row],[نهايه الاشتراك]]","v":"00:00:00"}]
[{"$f":"Table1[[#This Row],[أســــم المشترك]]","v":0},{"$f":"Table1[[#This Row],[كود المشترك]]","v":0},{"$f":"Table1[[#This Row],[رقم الموبايـــل]]","v":0},{"$f":"Table1[[#This Row],[مده الاشتراك]]","v":0},{"$f":"Table1[[#This Row],[بدايه الاشتراك]]","v":"00:00:00"},{"$f":"Table1[[#This Row],[نهايه الاشتراك]]","v":"00:00:00"}]
[{"$f":"Table1[[#This Row],[أســــم المشترك]]","v":0},{"$f":"Table1[[#This Row],[كود المشترك]]","v":0},{"$f":"Table1[[#This Row],[رقم الموبايـــل]]","v":0},{"$f":"Table1[[#This Row],[مده الاشتراك]]","v":0},{"$f":"Table1[[#This Row],[بدايه الاشتراك]]","v":"00:00:00"},{"$f":"Table1[[#This Row],[نهايه الاشتراك]]","v":"00:00:00"}]
[{"$f":"Table1[[#This Row],[أســــم المشترك]]","v":0},{"$f":"Table1[[#This Row],[كود المشترك]]","v":0},{"$f":"Table1[[#This Row],[رقم الموبايـــل]]","v":0},{"$f":"Table1[[#This Row],[مده الاشتراك]]","v":0},{"$f":"Table1[[#This Row],[بدايه الاشتراك]]","v":"00:00:00"},{"$f":"Table1[[#This Row],[نهايه الاشتراك]]","v":"00:00:00"}]
[{"$f":"Table1[[#This Row],[أســــم المشترك]]","v":0},{"$f":"Table1[[#This Row],[كود المشترك]]","v":0},{"$f":"Table1[[#This Row],[رقم الموبايـــل]]","v":0},{"$f":"Table1[[#This Row],[مده الاشتراك]]","v":0},{"$f":"Table1[[#This Row],[بدايه الاشتراك]]","v":"00:00:00"},{"$f":"Table1[[#This Row],[نهايه الاشتراك]]","v":"00:00:00"}]
[{"$f":"Table1[[#This Row],[أســــم المشترك]]","v":0},{"$f":"Table1[[#This Row],[كود المشترك]]","v":0},{"$f":"Table1[[#This Row],[رقم الموبايـــل]]","v":0},{"$f":"Table1[[#This Row],[مده الاشتراك]]","v":0},{"$f":"Table1[[#This Row],[بدايه الاشتراك]]","v":"00:00:00"},{"$f":"Table1[[#This Row],[نهايه الاشتراك]]","v":"00:00:00"}]
[{"$f":"Table1[[#This Row],[أســــم المشترك]]","v":0},{"$f":"Table1[[#This Row],[كود المشترك]]","v":0},{"$f":"Table1[[#This Row],[رقم الموبايـــل]]","v":0},{"$f":"Table1[[#This Row],[مده الاشتراك]]","v":0},{"$f":"Table1[[#This Row],[بدايه الاشتراك]]","v":"00:00:00"},{"$f":"Table1[[#This Row],[نهايه الاشتراك]]","v":"00:00:00"}]
[{"$f":"Table1[[#This Row],[أســــم المشترك]]","v":0},{"$f":"Table1[[#This Row],[كود المشترك]]","v":0},{"$f":"Table1[[#This Row],[رقم الموبايـــل]]","v":0},{"$f":"Table1[[#This Row],[مده الاشتراك]]","v":0},{"$f":"Table1[[#This Row],[بدايه الاشتراك]]","v":"00:00:00"},{"$f":"Table1[[#This Row],[نهايه الاشتراك]]","v":"00:00:00"}]
[{"$f":"Table1[[#This Row],[أســــم المشترك]]","v":0},{"$f":"Table1[[#This Row],[كود المشترك]]","v":0},{"$f":"Table1[[#This Row],[رقم الموبايـــل]]","v":0},{"$f":"Table1[[#This Row],[مده الاشتراك]]","v":0},{"$f":"Table1[[#This Row],[بدايه الاشتراك]]","v":"00:00:00"},{"$f":"Table1[[#This Row],[نهايه الاشتراك]]","v":"00:00:00"}]
[{"$f":"Table1[[#This Row],[أســــم المشترك]]","v":0},{"$f":"Table1[[#This Row],[كود المشترك]]","v":0},{"$f":"Table1[[#This Row],[رقم الموبايـــل]]","v":0},{"$f":"Table1[[#This Row],[مده الاشتراك]]","v":0},{"$f":"Table1[[#This Row],[بدايه الاشتراك]]","v":"00:00:00"},{"$f":"Table1[[#This Row],[نهايه الاشتراك]]","v":"00:00:00"}]
[{"$f":"Table1[[#This Row],[أســــم المشترك]]","v":0},{"$f":"Table1[[#This Row],[كود المشترك]]","v":0},{"$f":"Table1[[#This Row],[رقم الموبايـــل]]","v":0},{"$f":"Table1[[#This Row],[مده الاشتراك]]","v":0},{"$f":"Table1[[#This Row],[بدايه الاشتراك]]","v":"00:00:00"},{"$f":"Table1[[#This Row],[نهايه الاشتراك]]","v":"00:00:00"}]
[{"$f":"Table1[[#This Row],[أســــم المشترك]]","v":0},{"$f":"Table1[[#This Row],[كود المشترك]]","v":0},{"$f":"Table1[[#This Row],[رقم الموبايـــل]]","v":0},{"$f":"Table1[[#This Row],[مده الاشتراك]]","v":0},{"$f":"Table1[[#This Row],[بدايه الاشتراك]]","v":"00:00:00"},{"$f":"Table1[[#This Row],[نهايه الاشتراك]]","v":"00:00:00"}]
[{"$f":"Table1[[#This Row],[أســــم المشترك]]","v":0},{"$f":"Table1[[#This Row],[كود المشترك]]","v":0},{"$f":"Table1[[#This Row],[رقم الموبايـــل]]","v":0},{"$f":"Table1[[#This Row],[مده الاشتراك]]","v":0},{"$f":"Table1[[#This Row],[بدايه الاشتراك]]","v":"00:00:00"},{"$f":"Table1[[#This Row],[نهايه الاشتراك]]","v":"00:00:00"}]
[{"$f":"Table1[[#This Row],[أســــم المشترك]]","v":0},{"$f":"Table1[[#This Row],[كود المشترك]]","v":0},{"$f":"Table1[[#This Row],[رقم الموبايـــل]]","v":0},{"$f":"Table1[[#This Row],[مده الاشتراك]]","v":0},{"$f":"Table1[[#This Row],[بدايه الاشتراك]]","v":"00:00:00"},{"$f":"Table1[[#This Row],[نهايه الاشتراك]]","v":"00:00:00"}]
[{"$f":"Table1[[#This Row],[أســــم المشترك]]","v":0},{"$f":"Table1[[#This Row],[كود المشترك]]","v":0},{"$f":"Table1[[#This Row],[رقم الموبايـــل]]","v":0},{"$f":"Table1[[#This Row],[مده الاشتراك]]","v":0},{"$f":"Table1[[#This Row],[بدايه الاشتراك]]","v":"00:00:00"},{"$f":"Table1[[#This Row],[نهايه الاشتراك]]","v":"00:00:00"}]
[{"$f":"Table1[[#This Row],[أســــم المشترك]]","v":0},{"$f":"Table1[[#This Row],[كود المشترك]]","v":0},{"$f":"Table1[[#This Row],[رقم الموبايـــل]]","v":0},{"$f":"Table1[[#This Row],[مده الاشتراك]]","v":0},{"$f":"Table1[[#This Row],[بدايه الاشتراك]]","v":"00:00:00"},{"$f":"Table1[[#This Row],[نهايه الاشتراك]]","v":"00:00:00"}]
[{"$f":"Table1[[#This Row],[أســــم المشترك]]","v":0},{"$f":"Table1[[#This Row],[كود المشترك]]","v":0},{"$f":"Table1[[#This Row],[رقم الموبايـــل]]","v":0},{"$f":"Table1[[#This Row],[مده الاشتراك]]","v":0},{"$f":"Table1[[#This Row],[بدايه الاشتراك]]","v":"00:00:00"},{"$f":"Table1[[#This Row],[نهايه الاشتراك]]","v":"00:00:00"}]
[{"$f":"Table1[[#This Row],[أســــم المشترك]]","v":0},{"$f":"Table1[[#This Row],[كود المشترك]]","v":0},{"$f":"Table1[[#This Row],[رقم الموبايـــل]]","v":0},{"$f":"Table1[[#This Row],[مده الاشتراك]]","v":0},{"$f":"Table1[[#This Row],[بدايه الاشتراك]]","v":"00:00:00"},{"$f":"Table1[[#This Row],[نهايه الاشتراك]]","v":"00:00:00"}]
[{"$f":"Table1[[#This Row],[أســــم المشترك]]","v":0},{"$f":"Table1[[#This Row],[كود المشترك]]","v":0},{"$f":"Table1[[#This Row],[رقم الموبايـــل]]","v":0},{"$f":"Table1[[#This Row],[مده الاشتراك]]","v":0},{"$f":"Table1[[#This Row],[بدايه الاشتراك]]","v":"00:00:00"},{"$f":"Table1[[#This Row],[نهايه الاشتراك]]","v":"00:00:00"}]
[{"$f":"Table1[[#This Row],[أســــم المشترك]]","v":0},{"$f":"Table1[[#This Row],[كود المشترك]]","v":0},{"$f":"Table1[[#This Row],[رقم الموبايـــل]]","v":0},{"$f":"Table1[[#This Row],[مده الاشتراك]]","v":0},{"$f":"Table1[[#This Row],[بدايه الاشتراك]]","v":"00:00:00"},{"$f":"Table1[[#This Row],[نهايه الاشتراك]]","v":"00:00:00"}]
[{"$f":"Table1[[#This Row],[أســــم المشترك]]","v":0},{"$f":"Table1[[#This Row],[كود المشترك]]","v":0},{"$f":"Table1[[#This Row],[رقم الموبايـــل]]","v":0},{"$f":"Table1[[#This Row],[مده الاشتراك]]","v":0},{"$f":"Table1[[#This Row],[بدايه الاشتراك]]","v":"00:00:00"},{"$f":"Table1[[#This Row],[نهايه الاشتراك]]","v":"00:00:00"}]
[{"$f":"Table1[[#This Row],[أســــم المشترك]]","v":0},{"$f":"Table1[[#This Row],[كود المشترك]]","v":0},{"$f":"Table1[[#This Row],[رقم الموبايـــل]]","v":0},{"$f":"Table1[[#This Row],[مده الاشتراك]]","v":0},{"$f":"Table1[[#This Row],[بدايه الاشتراك]]","v":"00:00:00"},{"$f":"Table1[[#This Row],[نهايه الاشتراك]]","v":"00:00:00"}]
[{"$f":"Table1[[#This Row],[أســــم المشترك]]","v":0},{"$f":"Table1[[#This Row],[كود المشترك]]","v":0},{"$f":"Table1[[#This Row],[رقم الموبايـــل]]","v":0},{"$f":"Table1[[#This Row],[مده الاشتراك]]","v":0},{"$f":"Table1[[#This Row],[بدايه الاشتراك]]","v":"00:00:00"},{"$f":"Table1[[#This Row],[نهايه الاشتراك]]","v":"00:00:00"}]
[{"$f":"Table1[[#This Row],[أســــم المشترك]]","v":0},{"$f":"Table1[[#This Row],[كود المشترك]]","v":0},{"$f":"Table1[[#This Row],[رقم الموبايـــل]]","v":0},{"$f":"Table1[[#This Row],[مده الاشتراك]]","v":0},{"$f":"Table1[[#This Row],[بدايه الاشتراك]]","v":"00:00:00"},{"$f":"Table1[[#This Row],[نهايه الاشتراك]]","v":"00:00:00"}]
[{"$f":"Table1[[#This Row],[أســــم المشترك]]","v":0},{"$f":"Table1[[#This Row],[كود المشترك]]","v":0},{"$f":"Table1[[#This Row],[رقم الموبايـــل]]","v":0},{"$f":"Table1[[#This Row],[مده الاشتراك]]","v":0},{"$f":"Table1[[#This Row],[بدايه الاشتراك]]","v":"00:00:00"},{"$f":"Table1[[#This Row],[نهايه الاشتراك]]","v":"00:00:00"}]
[{"$f":"Table1[[#This Row],[أســــم المشترك]]","v":0},{"$f":"Table1[[#This Row],[كود المشترك]]","v":0},{"$f":"Table1[[#This Row],[رقم الموبايـــل]]","v":0},{"$f":"Table1[[#This Row],[مده الاشتراك]]","v":0},{"$f":"Table1[[#This Row],[بدايه الاشتراك]]","v":"00:00:00"},{"$f":"Table1[[#This Row],[نهايه الاشتراك]]","v":"00:00:00"}]
[{"$f":"Table1[[#This Row],[أســــم المشترك]]","v":0},{"$f":"Table1[[#This Row],[كود المشترك]]","v":0},{"$f":"Table1[[#This Row],[رقم الموبايـــل]]","v":0},{"$f":"Table1[[#This Row],[مده الاشتراك]]","v":0},{"$f":"Table1[[#This Row],[بدايه الاشتراك]]","v":"00:00:00"},{"$f":"Table1[[#This Row],[نهايه الاشتراك]]","v":"00:00:00"}]
[{"$f":"Table1[[#This Row],[أســــم المشترك]]","v":0},{"$f":"Table1[[#This Row],[كود المشترك]]","v":0},{"$f":"Table1[[#This Row],[رقم الموبايـــل]]","v":0},{"$f":"Table1[[#This Row],[مده الاشتراك]]","v":0},{"$f":"Table1[[#This Row],[بدايه الاشتراك]]","v":"00:00:00"},{"$f":"Table1[[#This Row],[نهايه الاشتراك]]","v":"00:00:00"}]
[{"$f":"Table1[[#This Row],[أســــم المشترك]]","v":0},{"$f":"Table1[[#This Row],[كود المشترك]]","v":0},{"$f":"Table1[[#This Row],[رقم الموبايـــل]]","v":0},{"$f":"Table1[[#This Row],[مده الاشتراك]]","v":0},{"$f":"Table1[[#This Row],[بدايه الاشتراك]]","v":"00:00:00"},{"$f":"Table1[[#This Row],[نهايه الاشتراك]]","v":"00:00:00"}]
[{"$f":"Table1[[#This Row],[أســــم المشترك]]","v":0},{"$f":"Table1[[#This Row],[كود المشترك]]","v":0},{"$f":"Table1[[#This Row],[رقم الموبايـــل]]","v":0},{"$f":"Table1[[#This Row],[مده الاشتراك]]","v":0},{"$f":"Table1[[#This Row],[بدايه الاشتراك]]","v":"00:00:00"},{"$f":"Table1[[#This Row],[نهايه الاشتراك]]","v":"00:00:00"}]
[{"$f":"Table1[[#This Row],[أســــم المشترك]]","v":0},{"$f":"Table1[[#This Row],[كود المشترك]]","v":0},{"$f":"Table1[[#This Row],[رقم الموبايـــل]]","v":0},{"$f":"Table1[[#This Row],[مده الاشتراك]]","v":0},{"$f":"Table1[[#This Row],[بدايه الاشتراك]]","v":"00:00:00"},{"$f":"Table1[[#This Row],[نهايه الاشتراك]]","v":"00:00:00"}]
[{"$f":"Table1[[#This Row],[أســــم المشترك]]","v":0},{"$f":"Table1[[#This Row],[كود المشترك]]","v":0},{"$f":"Table1[[#This Row],[رقم الموبايـــل]]","v":0},{"$f":"Table1[[#This Row],[مده الاشتراك]]","v":0},{"$f":"Table1[[#This Row],[بدايه الاشتراك]]","v":"00:00:00"},{"$f":"Table1[[#This Row],[نهايه الاشتراك]]","v":"00:00:00"}]
[{"$f":"Table1[[#This Row],[أســــم المشترك]]","v":0},{"$f":"Table1[[#This Row],[كود المشترك]]","v":0},{"$f":"Table1[[#This Row],[رقم الموبايـــل]]","v":0},{"$f":"Table1[[#This Row],[مده الاشتراك]]","v":0},{"$f":"Table1[[#This Row],[بدايه الاشتراك]]","v":"00:00:00"},{"$f":"Table1[[#This Row],[نهايه الاشتراك]]","v":"00:00:00"}]
[{"$f":"Table1[[#This Row],[أســــم المشترك]]","v":0},{"$f":"Table1[[#This Row],[كود المشترك]]","v":0},{"$f":"Table1[[#This Row],[رقم الموبايـــل]]","v":0},{"$f":"Table1[[#This Row],[مده الاشتراك]]","v":0},{"$f":"Table1[[#This Row],[بدايه الاشتراك]]","v":"00:00:00"},{"$f":"Table1[[#This Row],[نهايه الاشتراك]]","v":"00:00:00"}]
[{"$f":"Table1[[#This Row],[أســــم المشترك]]","v":0},{"$f":"Table1[[#This Row],[كود المشترك]]","v":0},{"$f":"Table1[[#This Row],[رقم الموبايـــل]]","v":0},{"$f":"Table1[[#This Row],[مده الاشتراك]]","v":0},{"$f":"Table1[[#This Row],[بدايه الاشتراك]]","v":"00:00:00"},{"$f":"Table1[[#This Row],[نهايه الاشتراك]]","v":"00:00:00"}]
[{"$f":"Table1[[#This Row],[أســــم المشترك]]","v":0},{"$f":"Table1[[#This Row],[كود المشترك]]","v":0},{"$f":"Table1[[#This Row],[رقم الموبايـــل]]","v":0},{"$f":"Table1[[#This Row],[مده الاشتراك]]","v":0},{"$f":"Table1[[#This Row],[بدايه الاشتراك]]","v":"00:00:00"},{"$f":"Table1[[#This Row],[نهايه الاشتراك]]","v":"00:00:00"}]
[{"$f":"Table1[[#This Row],[أســــم المشترك]]","v":0},{"$f":"Table1[[#This Row],[كود المشترك]]","v":0},{"$f":"Table1[[#This Row],[رقم الموبايـــل]]","v":0},{"$f":"Table1[[#This Row],[مده الاشتراك]]","v":0},{"$f":"Table1[[#This Row],[بدايه الاشتراك]]","v":"00:00:00"},{"$f":"Table1[[#This Row],[نهايه الاشتراك]]","v":"00:00:00"}]
[{"$f":"Table1[[#This Row],[أســــم المشترك]]","v":0},{"$f":"Table1[[#This Row],[كود المشترك]]","v":0},{"$f":"Table1[[#This Row],[رقم الموبايـــل]]","v":0},{"$f":"Table1[[#This Row],[مده الاشتراك]]","v":0},{"$f":"Table1[[#This Row],[بدايه الاشتراك]]","v":"00:00:00"},{"$f":"Table1[[#This Row],[نهايه الاشتراك]]","v":"00:00:00"}]
[{"$f":"Table1[[#This Row],[أســــم المشترك]]","v":0},{"$f":"Table1[[#This Row],[كود المشترك]]","v":0},{"$f":"Table1[[#This Row],[رقم الموبايـــل]]","v":0},{"$f":"Table1[[#This Row],[مده الاشتراك]]","v":0},{"$f":"Table1[[#This Row],[بدايه الاشتراك]]","v":"00:00:00"},{"$f":"Table1[[#This Row],[نهايه الاشتراك]]","v":"00:00:00"}]
[{"$f":"Table1[[#This Row],[أســــم المشترك]]","v":0},{"$f":"Table1[[#This Row],[كود المشترك]]","v":0},{"$f":"Table1[[#This Row],[رقم الموبايـــل]]","v":0},{"$f":"Table1[[#This Row],[مده الاشتراك]]","v":0},{"$f":"Table1[[#This Row],[بدايه الاشتراك]]","v":"00:00:00"},{"$f":"Table1[[#This Row],[نهايه الاشتراك]]","v":"00:00:00"}]
[{"$f":"Table1[[#This Row],[أســــم المشترك]]","v":0},{"$f":"Table1[[#This Row],[كود المشترك]]","v":0},{"$f":"Table1[[#This Row],[رقم الموبايـــل]]","v":0},{"$f":"Table1[[#This Row],[مده الاشتراك]]","v":0},{"$f":"Table1[[#This Row],[بدايه الاشتراك]]","v":"00:00:00"},{"$f":"Table1[[#This Row],[نهايه الاشتراك]]","v":"00:00:00"}]
[{"$f":"Table1[[#This Row],[أســــم المشترك]]","v":0},{"$f":"Table1[[#This Row],[كود المشترك]]","v":0},{"$f":"Table1[[#This Row],[رقم الموبايـــل]]","v":0},{"$f":"Table1[[#This Row],[مده الاشتراك]]","v":0},{"$f":"Table1[[#This Row],[بدايه الاشتراك]]","v":"00:00:00"},{"$f":"Table1[[#This Row],[نهايه الاشتراك]]","v":"00:00:00"}]
[{"$f":"Table1[[#This Row],[أســــم المشترك]]","v":0},{"$f":"Table1[[#This Row],[كود المشترك]]","v":0},{"$f":"Table1[[#This Row],[رقم الموبايـــل]]","v":0},{"$f":"Table1[[#This Row],[مده الاشتراك]]","v":0},{"$f":"Table1[[#This Row],[بدايه الاشتراك]]","v":"00:00:00"},{"$f":"Table1[[#This Row],[نهايه الاشتراك]]","v":"00:00:00"}]
[{"$f":"Table1[[#This Row],[أســــم المشترك]]","v":0},{"$f":"Table1[[#This Row],[كود المشترك]]","v":0},{"$f":"Table1[[#This Row],[رقم الموبايـــل]]","v":0},{"$f":"Table1[[#This Row],[مده الاشتراك]]","v":0},{"$f":"Table1[[#This Row],[بدايه الاشتراك]]","v":"00:00:00"},{"$f":"Table1[[#This Row],[نهايه الاشتراك]]","v":"00:00:00"}]
[{"$f":"Table1[[#This Row],[أســــم المشترك]]","v":0},{"$f":"Table1[[#This Row],[كود المشترك]]","v":0},{"$f":"Table1[[#This Row],[رقم الموبايـــل]]","v":0},{"$f":"Table1[[#This Row],[مده الاشتراك]]","v":0},{"$f":"Table1[[#This Row],[بدايه الاشتراك]]","v":"00:00:00"},{"$f":"Table1[[#This Row],[نهايه الاشتراك]]","v":"00:00:00"}]
[{"$f":"Table1[[#This Row],[أســــم المشترك]]","v":0},{"$f":"Table1[[#This Row],[كود المشترك]]","v":0},{"$f":"Table1[[#This Row],[رقم الموبايـــل]]","v":0},{"$f":"Table1[[#This Row],[مده الاشتراك]]","v":0},{"$f":"Table1[[#This Row],[بدايه الاشتراك]]","v":"00:00:00"},{"$f":"Table1[[#This Row],[نهايه الاشتراك]]","v":"00:00:00"}]
[{"$f":"Table1[[#This Row],[أســــم المشترك]]","v":0},{"$f":"Table1[[#This Row],[كود المشترك]]","v":0},{"$f":"Table1[[#This Row],[رقم الموبايـــل]]","v":0},{"$f":"Table1[[#This Row],[مده الاشتراك]]","v":0},{"$f":"Table1[[#This Row],[بدايه الاشتراك]]","v":"00:00:00"},{"$f":"Table1[[#This Row],[نهايه الاشتراك]]","v":"00:00:00"}]
[{"$f":"Table1[[#This Row],[أســــم المشترك]]","v":0},{"$f":"Table1[[#This Row],[كود المشترك]]","v":0},{"$f":"Table1[[#This Row],[رقم الموبايـــل]]","v":0},{"$f":"Table1[[#This Row],[مده الاشتراك]]","v":0},{"$f":"Table1[[#This Row],[بدايه الاشتراك]]","v":"00:00:00"},{"$f":"Table1[[#This Row],[نهايه الاشتراك]]","v":"00:00:00"}]
[{"$f":"Table1[[#This Row],[أســــم المشترك]]","v":0},{"$f":"Table1[[#This Row],[كود المشترك]]","v":0},{"$f":"Table1[[#This Row],[رقم الموبايـــل]]","v":0},{"$f":"Table1[[#This Row],[مده الاشتراك]]","v":0},{"$f":"Table1[[#This Row],[بدايه الاشتراك]]","v":"00:00:00"},{"$f":"Table1[[#This Row],[نهايه الاشتراك]]","v":"00:00:00"}]
[{"$f":"Table1[[#This Row],[أســــم المشترك]]","v":0},{"$f":"Table1[[#This Row],[كود المشترك]]","v":0},{"$f":"Table1[[#This Row],[رقم الموبايـــل]]","v":0},{"$f":"Table1[[#This Row],[مده الاشتراك]]","v":0},{"$f":"Table1[[#This Row],[بدايه الاشتراك]]","v":"00:00:00"},{"$f":"Table1[[#This Row],[نهايه الاشتراك]]","v":"00:00:00"}]
[{"$f":"Table1[[#This Row],[أســــم المشترك]]","v":0},{"$f":"Table1[[#This Row],[كود المشترك]]","v":0},{"$f":"Table1[[#This Row],[رقم الموبايـــل]]","v":0},{"$f":"Table1[[#This Row],[مده الاشتراك]]","v":0},{"$f":"Table1[[#This Row],[بدايه الاشتراك]]","v":"00:00:00"},{"$f":"Table1[[#This Row],[نهايه الاشتراك]]","v":"00:00:00"}]
[{"$f":"Table1[[#This Row],[أســــم المشترك]]","v":0},{"$f":"Table1[[#This Row],[كود المشترك]]","v":0},{"$f":"Table1[[#This Row],[رقم الموبايـــل]]","v":0},{"$f":"Table1[[#This Row],[مده الاشتراك]]","v":0},{"$f":"Table1[[#This Row],[بدايه الاشتراك]]","v":"00:00:00"},{"$f":"Table1[[#This Row],[نهايه الاشتراك]]","v":"00:00:00"}]
[{"$f":"Table1[[#This Row],[أســــم المشترك]]","v":0},{"$f":"Table1[[#This Row],[كود المشترك]]","v":0},{"$f":"Table1[[#This Row],[رقم الموبايـــل]]","v":0},{"$f":"Table1[[#This Row],[مده الاشتراك]]","v":0},{"$f":"Table1[[#This Row],[بدايه الاشتراك]]","v":"00:00:00"},{"$f":"Table1[[#This Row],[نهايه الاشتراك]]","v":"00:00:00"}]
[{"$f":"Table1[[#This Row],[أســــم المشترك]]","v":0},{"$f":"Table1[[#This Row],[كود المشترك]]","v":0},{"$f":"Table1[[#This Row],[رقم الموبايـــل]]","v":0},{"$f":"Table1[[#This Row],[مده الاشتراك]]","v":0},{"$f":"Table1[[#This Row],[بدايه الاشتراك]]","v":"00:00:00"},{"$f":"Table1[[#This Row],[نهايه الاشتراك]]","v":"00:00:00"}]
[{"$f":"Table1[[#This Row],[أســــم المشترك]]","v":0},{"$f":"Table1[[#This Row],[كود المشترك]]","v":0},{"$f":"Table1[[#This Row],[رقم الموبايـــل]]","v":0},{"$f":"Table1[[#This Row],[مده الاشتراك]]","v":0},{"$f":"Table1[[#This Row],[بدايه الاشتراك]]","v":"00:00:00"},{"$f":"Table1[[#This Row],[نهايه الاشتراك]]","v":"00:00:00"}]
[{"$f":"Table1[[#This Row],[أســــم المشترك]]","v":0},{"$f":"Table1[[#This Row],[كود المشترك]]","v":0},{"$f":"Table1[[#This Row],[رقم الموبايـــل]]","v":0},{"$f":"Table1[[#This Row],[مده الاشتراك]]","v":0},{"$f":"Table1[[#This Row],[بدايه الاشتراك]]","v":"00:00:00"},{"$f":"Table1[[#This Row],[نهايه الاشتراك]]","v":"00:00:00"}]
[{"$f":"Table1[[#This Row],[أســــم المشترك]]","v":0},{"$f":"Table1[[#This Row],[كود المشترك]]","v":0},{"$f":"Table1[[#This Row],[رقم الموبايـــل]]","v":0},{"$f":"Table1[[#This Row],[مده الاشتراك]]","v":0},{"$f":"Table1[[#This Row],[بدايه الاشتراك]]","v":"00:00:00"},{"$f":"Table1[[#This Row],[نهايه الاشتراك]]","v":"00:00:00"}]
[{"$f":"Table1[[#This Row],[أســــم المشترك]]","v":0},{"$f":"Table1[[#This Row],[كود المشترك]]","v":0},{"$f":"Table1[[#This Row],[رقم الموبايـــل]]","v":0},{"$f":"Table1[[#This Row],[مده الاشتراك]]","v":0},{"$f":"Table1[[#This Row],[بدايه الاشتراك]]","v":"00:00:00"},{"$f":"Table1[[#This Row],[نهايه الاشتراك]]","v":"00:00:00"}]
[{"$f":"Table1[[#This Row],[أســــم المشترك]]","v":0},{"$f":"Table1[[#This Row],[كود المشترك]]","v":0},{"$f":"Table1[[#This Row],[رقم الموبايـــل]]","v":0},{"$f":"Table1[[#This Row],[مده الاشتراك]]","v":0},{"$f":"Table1[[#This Row],[بدايه الاشتراك]]","v":"00:00:00"},{"$f":"Table1[[#This Row],[نهايه الاشتراك]]","v":"00:00:00"}]
[{"$f":"Table1[[#This Row],[أســــم المشترك]]","v":0},{"$f":"Table1[[#This Row],[كود المشترك]]","v":0},{"$f":"Table1[[#This Row],[رقم الموبايـــل]]","v":0},{"$f":"Table1[[#This Row],[مده الاشتراك]]","v":0},{"$f":"Table1[[#This Row],[بدايه الاشتراك]]","v":"00:00:00"},{"$f":"Table1[[#This Row],[نهايه الاشتراك]]","v":"00:00:00"}]
[{"$f":"Table1[[#This Row],[أســــم المشترك]]","v":0},{"$f":"Table1[[#This Row],[كود المشترك]]","v":0},{"$f":"Table1[[#This Row],[رقم الموبايـــل]]","v":0},{"$f":"Table1[[#This Row],[مده الاشتراك]]","v":0},{"$f":"Table1[[#This Row],[بدايه الاشتراك]]","v":"00:00:00"},{"$f":"Table1[[#This Row],[نهايه الاشتراك]]","v":"00:00:00"}]
[{"$f":"Table1[[#This Row],[أســــم المشترك]]","v":0},{"$f":"Table1[[#This Row],[كود المشترك]]","v":0},{"$f":"Table1[[#This Row],[رقم الموبايـــل]]","v":0},{"$f":"Table1[[#This Row],[مده الاشتراك]]","v":0},{"$f":"Table1[[#This Row],[بدايه الاشتراك]]","v":"00:00:00"},{"$f":"Table1[[#This Row],[نهايه الاشتراك]]","v":"00:00:00"}]
[{"$f":"Table1[[#This Row],[أســــم المشترك]]","v":0},{"$f":"Table1[[#This Row],[كود المشترك]]","v":0},{"$f":"Table1[[#This Row],[رقم الموبايـــل]]","v":0},{"$f":"Table1[[#This Row],[مده الاشتراك]]","v":0},{"$f":"Table1[[#This Row],[بدايه الاشتراك]]","v":"00:00:00"},{"$f":"Table1[[#This Row],[نهايه الاشتراك]]","v":"00:00:00"}]
[{"$f":"Table1[[#This Row],[أســــم المشترك]]","v":0},{"$f":"Table1[[#This Row],[كود المشترك]]","v":0},{"$f":"Table1[[#This Row],[رقم الموبايـــل]]","v":0},{"$f":"Table1[[#This Row],[مده الاشتراك]]","v":0},{"$f":"Table1[[#This Row],[بدايه الاشتراك]]","v":"00:00:00"},{"$f":"Table1[[#This Row],[نهايه الاشتراك]]","v":"00:00:00"}]
[{"$f":"Table1[[#This Row],[أســــم المشترك]]","v":0},{"$f":"Table1[[#This Row],[كود المشترك]]","v":0},{"$f":"Table1[[#This Row],[رقم الموبايـــل]]","v":0},{"$f":"Table1[[#This Row],[مده الاشتراك]]","v":0},{"$f":"Table1[[#This Row],[بدايه الاشتراك]]","v":"00:00:00"},{"$f":"Table1[[#This Row],[نهايه الاشتراك]]","v":"00:00:00"}]
[{"$f":"Table1[[#This Row],[أســــم المشترك]]","v":0},{"$f":"Table1[[#This Row],[كود المشترك]]","v":0},{"$f":"Table1[[#This Row],[رقم الموبايـــل]]","v":0},{"$f":"Table1[[#This Row],[مده الاشتراك]]","v":0},{"$f":"Table1[[#This Row],[بدايه الاشتراك]]","v":"00:00:00"},{"$f":"Table1[[#This Row],[نهايه الاشتراك]]","v":"00:00:00"}]
[{"$f":"Table1[[#This Row],[أســــم المشترك]]","v":0},{"$f":"Table1[[#This Row],[كود المشترك]]","v":0},{"$f":"Table1[[#This Row],[رقم الموبايـــل]]","v":0},{"$f":"Table1[[#This Row],[مده الاشتراك]]","v":0},{"$f":"Table1[[#This Row],[بدايه الاشتراك]]","v":"00:00:00"},{"$f":"Table1[[#This Row],[نهايه الاشتراك]]","v":"00:00:00"}]
[{"$f":"Table1[[#This Row],[أســــم المشترك]]","v":0},{"$f":"Table1[[#This Row],[كود المشترك]]","v":0},{"$f":"Table1[[#This Row],[رقم الموبايـــل]]","v":0},{"$f":"Table1[[#This Row],[مده الاشتراك]]","v":0},{"$f":"Table1[[#This Row],[بدايه الاشتراك]]","v":"00:00:00"},{"$f":"Table1[[#This Row],[نهايه الاشتراك]]","v":"00:00:00"}]
[{"$f":"Table1[[#This Row],[أســــم المشترك]]","v":0},{"$f":"Table1[[#This Row],[كود المشترك]]","v":0},{"$f":"Table1[[#This Row],[رقم الموبايـــل]]","v":0},{"$f":"Table1[[#This Row],[مده الاشتراك]]","v":0},{"$f":"Table1[[#This Row],[بدايه الاشتراك]]","v":"00:00:00"},{"$f":"Table1[[#This Row],[نهايه الاشتراك]]","v":"00:00:00"}]
[{"$f":"Table1[[#This Row],[أســــم المشترك]]","v":0},{"$f":"Table1[[#This Row],[كود المشترك]]","v":0},{"$f":"Table1[[#This Row],[رقم الموبايـــل]]","v":0},{"$f":"Table1[[#This Row],[مده الاشتراك]]","v":0},{"$f":"Table1[[#This Row],[بدايه الاشتراك]]","v":"00:00:00"},{"$f":"Table1[[#This Row],[نهايه الاشتراك]]","v":"00:00:00"}]
[{"$f":"Table1[[#This Row],[أســــم المشترك]]","v":0},{"$f":"Table1[[#This Row],[كود المشترك]]","v":0},{"$f":"Table1[[#This Row],[رقم الموبايـــل]]","v":0},{"$f":"Table1[[#This Row],[مده الاشتراك]]","v":0},{"$f":"Table1[[#This Row],[بدايه الاشتراك]]","v":"00:00:00"},{"$f":"Table1[[#This Row],[نهايه الاشتراك]]","v":"00:00:00"}]
[{"$f":"Table1[[#This Row],[أســــم المشترك]]","v":0},{"$f":"Table1[[#This Row],[كود المشترك]]","v":0},{"$f":"Table1[[#This Row],[رقم الموبايـــل]]","v":0},{"$f":"Table1[[#This Row],[مده الاشتراك]]","v":0},{"$f":"Table1[[#This Row],[بدايه الاشتراك]]","v":"00:00:00"},{"$f":"Table1[[#This Row],[نهايه الاشتراك]]","v":"00:00:00"}]
[{"$f":"Table1[[#This Row],[أســــم المشترك]]","v":0},{"$f":"Table1[[#This Row],[كود المشترك]]","v":0},{"$f":"Table1[[#This Row],[رقم الموبايـــل]]","v":0},{"$f":"Table1[[#This Row],[مده الاشتراك]]","v":0},{"$f":"Table1[[#This Row],[بدايه الاشتراك]]","v":"00:00:00"},{"$f":"Table1[[#This Row],[نهايه الاشتراك]]","v":"00:00:00"}]
[{"$f":"Table1[[#This Row],[أســــم المشترك]]","v":0},{"$f":"Table1[[#This Row],[كود المشترك]]","v":0},{"$f":"Table1[[#This Row],[رقم الموبايـــل]]","v":0},{"$f":"Table1[[#This Row],[مده الاشتراك]]","v":0},{"$f":"Table1[[#This Row],[بدايه الاشتراك]]","v":"00:00:00"},{"$f":"Table1[[#This Row],[نهايه الاشتراك]]","v":"00:00:00"}]
[{"$f":"Table1[[#This Row],[أســــم المشترك]]","v":0},{"$f":"Table1[[#This Row],[كود المشترك]]","v":0},{"$f":"Table1[[#This Row],[رقم الموبايـــل]]","v":0},{"$f":"Table1[[#This Row],[مده الاشتراك]]","v":0},{"$f":"Table1[[#This Row],[بدايه الاشتراك]]","v":"00:00:00"},{"$f":"Table1[[#This Row],[نهايه الاشتراك]]","v":"00:00:00"}]
[{"$f":"Table1[[#This Row],[أســــم المشترك]]","v":0},{"$f":"Table1[[#This Row],[كود المشترك]]","v":0},{"$f":"Table1[[#This Row],[رقم الموبايـــل]]","v":0},{"$f":"Table1[[#This Row],[مده الاشتراك]]","v":0},{"$f":"Table1[[#This Row],[بدايه الاشتراك]]","v":"00:00:00"},{"$f":"Table1[[#This Row],[نهايه الاشتراك]]","v":"00:00:00"}]
[{"$f":"Table1[[#This Row],[أســــم المشترك]]","v":0},{"$f":"Table1[[#This Row],[كود المشترك]]","v":0},{"$f":"Table1[[#This Row],[رقم الموبايـــل]]","v":0},{"$f":"Table1[[#This Row],[مده الاشتراك]]","v":0},{"$f":"Table1[[#This Row],[بدايه الاشتراك]]","v":"00:00:00"},{"$f":"Table1[[#This Row],[نهايه الاشتراك]]","v":"00:00:00"}]
[{"$f":"Table1[[#This Row],[أســــم المشترك]]","v":0},{"$f":"Table1[[#This Row],[كود المشترك]]","v":0},{"$f":"Table1[[#This Row],[رقم الموبايـــل]]","v":0},{"$f":"Table1[[#This Row],[مده الاشتراك]]","v":0},{"$f":"Table1[[#This Row],[بدايه الاشتراك]]","v":"00:00:00"},{"$f":"Table1[[#This Row],[نهايه الاشتراك]]","v":"00:00:00"}]
[{"$f":"Table1[[#This Row],[أســــم المشترك]]","v":0},{"$f":"Table1[[#This Row],[كود المشترك]]","v":0},{"$f":"Table1[[#This Row],[رقم الموبايـــل]]","v":0},{"$f":"Table1[[#This Row],[مده الاشتراك]]","v":0},{"$f":"Table1[[#This Row],[بدايه الاشتراك]]","v":"00:00:00"},{"$f":"Table1[[#This Row],[نهايه الاشتراك]]","v":"00:00:00"}]
[{"$f":"Table1[[#This Row],[أســــم المشترك]]","v":0},{"$f":"Table1[[#This Row],[كود المشترك]]","v":0},{"$f":"Table1[[#This Row],[رقم الموبايـــل]]","v":0},{"$f":"Table1[[#This Row],[مده الاشتراك]]","v":0},{"$f":"Table1[[#This Row],[بدايه الاشتراك]]","v":"00:00:00"},{"$f":"Table1[[#This Row],[نهايه الاشتراك]]","v":"00:00:00"}]
[{"$f":"Table1[[#This Row],[أســــم المشترك]]","v":0},{"$f":"Table1[[#This Row],[كود المشترك]]","v":0},{"$f":"Table1[[#This Row],[رقم الموبايـــل]]","v":0},{"$f":"Table1[[#This Row],[مده الاشتراك]]","v":0},{"$f":"Table1[[#This Row],[بدايه الاشتراك]]","v":"00:00:00"},{"$f":"Table1[[#This Row],[نهايه الاشتراك]]","v":"00:00:00"}]
[{"$f":"Table1[[#This Row],[أســــم المشترك]]","v":0},{"$f":"Table1[[#This Row],[كود المشترك]]","v":0},{"$f":"Table1[[#This Row],[رقم الموبايـــل]]","v":0},{"$f":"Table1[[#This Row],[مده الاشتراك]]","v":0},{"$f":"Table1[[#This Row],[بدايه الاشتراك]]","v":"00:00:00"},{"$f":"Table1[[#This Row],[نهايه الاشتراك]]","v":"00:00:00"}]
[{"$f":"Table1[[#This Row],[أســــم المشترك]]","v":0},{"$f":"Table1[[#This Row],[كود المشترك]]","v":0},{"$f":"Table1[[#This Row],[رقم الموبايـــل]]","v":0},{"$f":"Table1[[#This Row],[مده الاشتراك]]","v":0},{"$f":"Table1[[#This Row],[بدايه الاشتراك]]","v":"00:00:00"},{"$f":"Table1[[#This Row],[نهايه الاشتراك]]","v":"00:00:00"}]
[{"$f":"Table1[[#This Row],[أســــم المشترك]]","v":0},{"$f":"Table1[[#This Row],[كود المشترك]]","v":0},{"$f":"Table1[[#This Row],[رقم الموبايـــل]]","v":0},{"$f":"Table1[[#This Row],[مده الاشتراك]]","v":0},{"$f":"Table1[[#This Row],[بدايه الاشتراك]]","v":"00:00:00"},{"$f":"Table1[[#This Row],[نهايه الاشتراك]]","v":"00:00:00"}]
[{"$f":"Table1[[#This Row],[أســــم المشترك]]","v":0},{"$f":"Table1[[#This Row],[كود المشترك]]","v":0},{"$f":"Table1[[#This Row],[رقم الموبايـــل]]","v":0},{"$f":"Table1[[#This Row],[مده الاشتراك]]","v":0},{"$f":"Table1[[#This Row],[بدايه الاشتراك]]","v":"00:00:00"},{"$f":"Table1[[#This Row],[نهايه الاشتراك]]","v":"00:00:00"}]
[{"$f":"Table1[[#This Row],[أســــم المشترك]]","v":0},{"$f":"Table1[[#This Row],[كود المشترك]]","v":0},{"$f":"Table1[[#This Row],[رقم الموبايـــل]]","v":0},{"$f":"Table1[[#This Row],[مده الاشتراك]]","v":0},{"$f":"Table1[[#This Row],[بدايه الاشتراك]]","v":"00:00:00"},{"$f":"Table1[[#This Row],[نهايه الاشتراك]]","v":"00:00:00"}]
[{"$f":"Table1[[#This Row],[أســــم المشترك]]","v":0},{"$f":"Table1[[#This Row],[كود المشترك]]","v":0},{"$f":"Table1[[#This Row],[رقم الموبايـــل]]","v":0},{"$f":"Table1[[#This Row],[مده الاشتراك]]","v":0},{"$f":"Table1[[#This Row],[بدايه الاشتراك]]","v":"00:00:00"},{"$f":"Table1[[#This Row],[نهايه الاشتراك]]","v":"00:00:00"}]
[{"$f":"Table1[[#This Row],[أســــم المشترك]]","v":0},{"$f":"Table1[[#This Row],[كود المشترك]]","v":0},{"$f":"Table1[[#This Row],[رقم الموبايـــل]]","v":0},{"$f":"Table1[[#This Row],[مده الاشتراك]]","v":0},{"$f":"Table1[[#This Row],[بدايه الاشتراك]]","v":"00:00:00"},{"$f":"Table1[[#This Row],[نهايه الاشتراك]]","v":"00:00:00"}]
[{"$f":"Table1[[#This Row],[أســــم المشترك]]","v":0},{"$f":"Table1[[#This Row],[كود المشترك]]","v":0},{"$f":"Table1[[#This Row],[رقم الموبايـــل]]","v":0},{"$f":"Table1[[#This Row],[مده الاشتراك]]","v":0},{"$f":"Table1[[#This Row],[بدايه الاشتراك]]","v":"00:00:00"},{"$f":"Table1[[#This Row],[نهايه الاشتراك]]","v":"00:00:00"}]
[{"$f":"Table1[[#This Row],[أســــم المشترك]]","v":0},{"$f":"Table1[[#This Row],[كود المشترك]]","v":0},{"$f":"Table1[[#This Row],[رقم الموبايـــل]]","v":0},{"$f":"Table1[[#This Row],[مده الاشتراك]]","v":0},{"$f":"Table1[[#This Row],[بدايه الاشتراك]]","v":"00:00:00"},{"$f":"Table1[[#This Row],[نهايه الاشتراك]]","v":"00:00:00"}]
[{"$f":"Table1[[#This Row],[أســــم المشترك]]","v":0},{"$f":"Table1[[#This Row],[كود المشترك]]","v":0},{"$f":"Table1[[#This Row],[رقم الموبايـــل]]","v":0},{"$f":"Table1[[#This Row],[مده الاشتراك]]","v":0},{"$f":"Table1[[#This Row],[بدايه الاشتراك]]","v":"00:00:00"},{"$f":"Table1[[#This Row],[نهايه الاشتراك]]","v":"00:00:00"}]
[{"$f":"Table1[[#This Row],[أســــم المشترك]]","v":0},{"$f":"Table1[[#This Row],[كود المشترك]]","v":0},{"$f":"Table1[[#This Row],[رقم الموبايـــل]]","v":0},{"$f":"Table1[[#This Row],[مده الاشتراك]]","v":0},{"$f":"Table1[[#This Row],[بدايه الاشتراك]]","v":"00:00:00"},{"$f":"Table1[[#This Row],[نهايه الاشتراك]]","v":"00:00:00"}]
[{"$f":"Table1[[#This Row],[أســــم المشترك]]","v":0},{"$f":"Table1[[#This Row],[كود المشترك]]","v":0},{"$f":"Table1[[#This Row],[رقم الموبايـــل]]","v":0},{"$f":"Table1[[#This Row],[مده الاشتراك]]","v":0},{"$f":"Table1[[#This Row],[بدايه الاشتراك]]","v":"00:00:00"},{"$f":"Table1[[#This Row],[نهايه الاشتراك]]","v":"00:00:00"}]
[{"$f":"Table1[[#This Row],[أســــم المشترك]]","v":0},{"$f":"Table1[[#This Row],[كود المشترك]]","v":0},{"$f":"Table1[[#This Row],[رقم الموبايـــل]]","v":0},{"$f":"Table1[[#This Row],[مده الاشتراك]]","v":0},{"$f":"Table1[[#This Row],[بدايه الاشتراك]]","v":"00:00:00"},{"$f":"Table1[[#This Row],[نهايه الاشتراك]]","v":"00:00:00"}]
[{"$f":"Table1[[#This Row],[أســــم المشترك]]","v":0},{"$f":"Table1[[#This Row],[كود المشترك]]","v":0},{"$f":"Table1[[#This Row],[رقم الموبايـــل]]","v":0},{"$f":"Table1[[#This Row],[مده الاشتراك]]","v":0},{"$f":"Table1[[#This Row],[بدايه الاشتراك]]","v":"00:00:00"},{"$f":"Table1[[#This Row],[نهايه الاشتراك]]","v":"00:00:00"}]
[{"$f":"Table1[[#This Row],[أســــم المشترك]]","v":0},{"$f":"Table1[[#This Row],[كود المشترك]]","v":0},{"$f":"Table1[[#This Row],[رقم الموبايـــل]]","v":0},{"$f":"Table1[[#This Row],[مده الاشتراك]]","v":0},{"$f":"Table1[[#This Row],[بدايه الاشتراك]]","v":"00:00:00"},{"$f":"Table1[[#This Row],[نهايه الاشتراك]]","v":"00:00:00"}]
[{"$f":"Table1[[#This Row],[أســــم المشترك]]","v":0},{"$f":"Table1[[#This Row],[كود المشترك]]","v":0},{"$f":"Table1[[#This Row],[رقم الموبايـــل]]","v":0},{"$f":"Table1[[#This Row],[مده الاشتراك]]","v":0},{"$f":"Table1[[#This Row],[بدايه الاشتراك]]","v":"00:00:00"},{"$f":"Table1[[#This Row],[نهايه الاشتراك]]","v":"00:00:00"}]
[{"$f":"Table1[[#This Row],[أســــم المشترك]]","v":0},{"$f":"Table1[[#This Row],[كود المشترك]]","v":0},{"$f":"Table1[[#This Row],[رقم الموبايـــل]]","v":0},{"$f":"Table1[[#This Row],[مده الاشتراك]]","v":0},{"$f":"Table1[[#This Row],[بدايه الاشتراك]]","v":"00:00:00"},{"$f":"Table1[[#This Row],[نهايه الاشتراك]]","v":"00:00:00"}]
[{"$f":"Table1[[#This Row],[أســــم المشترك]]","v":0},{"$f":"Table1[[#This Row],[كود المشترك]]","v":0},{"$f":"Table1[[#This Row],[رقم الموبايـــل]]","v":0},{"$f":"Table1[[#This Row],[مده الاشتراك]]","v":0},{"$f":"Table1[[#This Row],[بدايه الاشتراك]]","v":"00:00:00"},{"$f":"Table1[[#This Row],[نهايه الاشتراك]]","v":"00:00:00"}]
[{"$f":"Table1[[#This Row],[أســــم المشترك]]","v":0},{"$f":"Table1[[#This Row],[كود المشترك]]","v":0},{"$f":"Table1[[#This Row],[رقم الموبايـــل]]","v":0},{"$f":"Table1[[#This Row],[مده الاشتراك]]","v":0},{"$f":"Table1[[#This Row],[بدايه الاشتراك]]","v":"00:00:00"},{"$f":"Table1[[#This Row],[نهايه الاشتراك]]","v":"00:00:00"}]
[{"$f":"Table1[[#This Row],[أســــم المشترك]]","v":0},{"$f":"Table1[[#This Row],[كود المشترك]]","v":0},{"$f":"Table1[[#This Row],[رقم الموبايـــل]]","v":0},{"$f":"Table1[[#This Row],[مده الاشتراك]]","v":0},{"$f":"Table1[[#This Row],[بدايه الاشتراك]]","v":"00:00:00"},{"$f":"Table1[[#This Row],[نهايه الاشتراك]]","v":"00:00:00"}]
[{"$f":"Table1[[#This Row],[أســــم المشترك]]","v":0},{"$f":"Table1[[#This Row],[كود المشترك]]","v":0},{"$f":"Table1[[#This Row],[رقم الموبايـــل]]","v":0},{"$f":"Table1[[#This Row],[مده الاشتراك]]","v":0},{"$f":"Table1[[#This Row],[بدايه الاشتراك]]","v":"00:00:00"},{"$f":"Table1[[#This Row],[نهايه الاشتراك]]","v":"00:00:00"}]
[{"$f":"Table1[[#This Row],[أســــم المشترك]]","v":0},{"$f":"Table1[[#This Row],[كود المشترك]]","v":0},{"$f":"Table1[[#This Row],[رقم الموبايـــل]]","v":0},{"$f":"Table1[[#This Row],[مده الاشتراك]]","v":0},{"$f":"Table1[[#This Row],[بدايه الاشتراك]]","v":"00:00:00"},{"$f":"Table1[[#This Row],[نهايه الاشتراك]]","v":"00:00:00"}]
[{"$f":"Table1[[#This Row],[أســــم المشترك]]","v":0},{"$f":"Table1[[#This Row],[كود المشترك]]","v":0},{"$f":"Table1[[#This Row],[رقم الموبايـــل]]","v":0},{"$f":"Table1[[#This Row],[مده الاشتراك]]","v":0},{"$f":"Table1[[#This Row],[بدايه الاشتراك]]","v":"00:00:00"},{"$f":"Table1[[#This Row],[نهايه الاشتراك]]","v":"00:00:00"}]
[{"$f":"Table1[[#This Row],[أســــم المشترك]]","v":0},{"$f":"Table1[[#This Row],[كود المشترك]]","v":0},{"$f":"Table1[[#This Row],[رقم الموبايـــل]]","v":0},{"$f":"Table1[[#This Row],[مده الاشتراك]]","v":0},{"$f":"Table1[[#This Row],[بدايه الاشتراك]]","v":"00:00:00"},{"$f":"Table1[[#This Row],[نهايه الاشتراك]]","v":"00:00:00"}]
[{"$f":"Table1[[#This Row],[أســــم المشترك]]","v":0},{"$f":"Table1[[#This Row],[كود المشترك]]","v":0},{"$f":"Table1[[#This Row],[رقم الموبايـــل]]","v":0},{"$f":"Table1[[#This Row],[مده الاشتراك]]","v":0},{"$f":"Table1[[#This Row],[بدايه الاشتراك]]","v":"00:00:00"},{"$f":"Table1[[#This Row],[نهايه الاشتراك]]","v":"00:00:00"}]
[{"$f":"Table1[[#This Row],[أســــم المشترك]]","v":0},{"$f":"Table1[[#This Row],[كود المشترك]]","v":0},{"$f":"Table1[[#This Row],[رقم الموبايـــل]]","v":0},{"$f":"Table1[[#This Row],[مده الاشتراك]]","v":0},{"$f":"Table1[[#This Row],[بدايه الاشتراك]]","v":"00:00:00"},{"$f":"Table1[[#This Row],[نهايه الاشتراك]]","v":"00:00:00"}]
[{"$f":"Table1[[#This Row],[أســــم المشترك]]","v":0},{"$f":"Table1[[#This Row],[كود المشترك]]","v":0},{"$f":"Table1[[#This Row],[رقم الموبايـــل]]","v":0},{"$f":"Table1[[#This Row],[مده الاشتراك]]","v":0},{"$f":"Table1[[#This Row],[بدايه الاشتراك]]","v":"00:00:00"},{"$f":"Table1[[#This Row],[نهايه الاشتراك]]","v":"00:00:00"}]
[{"$f":"Table1[[#This Row],[أســــم المشترك]]","v":0},{"$f":"Table1[[#This Row],[كود المشترك]]","v":0},{"$f":"Table1[[#This Row],[رقم الموبايـــل]]","v":0},{"$f":"Table1[[#This Row],[مده الاشتراك]]","v":0},{"$f":"Table1[[#This Row],[بدايه الاشتراك]]","v":"00:00:00"},{"$f":"Table1[[#This Row],[نهايه الاشتراك]]","v":"00:00:00"}]
[{"$f":"Table1[[#This Row],[أســــم المشترك]]","v":0},{"$f":"Table1[[#This Row],[كود المشترك]]","v":0},{"$f":"Table1[[#This Row],[رقم الموبايـــل]]","v":0},{"$f":"Table1[[#This Row],[مده الاشتراك]]","v":0},{"$f":"Table1[[#This Row],[بدايه الاشتراك]]","v":"00:00:00"},{"$f":"Table1[[#This Row],[نهايه الاشتراك]]","v":"00:00:00"}]
[{"$f":"Table1[[#This Row],[أســــم المشترك]]","v":0},{"$f":"Table1[[#This Row],[كود المشترك]]","v":0},{"$f":"Table1[[#This Row],[رقم الموبايـــل]]","v":0},{"$f":"Table1[[#This Row],[مده الاشتراك]]","v":0},{"$f":"Table1[[#This Row],[بدايه الاشتراك]]","v":"00:00:00"},{"$f":"Table1[[#This Row],[نهايه الاشتراك]]","v":"00:00:00"}]
[{"$f":"Table1[[#This Row],[أســــم المشترك]]","v":0},{"$f":"Table1[[#This Row],[كود المشترك]]","v":0},{"$f":"Table1[[#This Row],[رقم الموبايـــل]]","v":0},{"$f":"Table1[[#This Row],[مده الاشتراك]]","v":0},{"$f":"Table1[[#This Row],[بدايه الاشتراك]]","v":"00:00:00"},{"$f":"Table1[[#This Row],[نهايه الاشتراك]]","v":"00:00:00"}]
[{"$f":"Table1[[#This Row],[أســــم المشترك]]","v":0},{"$f":"Table1[[#This Row],[كود المشترك]]","v":0},{"$f":"Table1[[#This Row],[رقم الموبايـــل]]","v":0},{"$f":"Table1[[#This Row],[مده الاشتراك]]","v":0},{"$f":"Table1[[#This Row],[بدايه الاشتراك]]","v":"00:00:00"},{"$f":"Table1[[#This Row],[نهايه الاشتراك]]","v":"00:00:00"}]
[{"$f":"Table1[[#This Row],[أســــم المشترك]]","v":0},{"$f":"Table1[[#This Row],[كود المشترك]]","v":0},{"$f":"Table1[[#This Row],[رقم الموبايـــل]]","v":0},{"$f":"Table1[[#This Row],[مده الاشتراك]]","v":0},{"$f":"Table1[[#This Row],[بدايه الاشتراك]]","v":"00:00:00"},{"$f":"Table1[[#This Row],[نهايه الاشتراك]]","v":"00:00:00"}]
[{"$f":"Table1[[#This Row],[أســــم المشترك]]","v":0},{"$f":"Table1[[#This Row],[كود المشترك]]","v":0},{"$f":"Table1[[#This Row],[رقم الموبايـــل]]","v":0},{"$f":"Table1[[#This Row],[مده الاشتراك]]","v":0},{"$f":"Table1[[#This Row],[بدايه الاشتراك]]","v":"00:00:00"},{"$f":"Table1[[#This Row],[نهايه الاشتراك]]","v":"00:00:00"}]
[{"$f":"Table1[[#This Row],[أســــم المشترك]]","v":0},{"$f":"Table1[[#This Row],[كود المشترك]]","v":0},{"$f":"Table1[[#This Row],[رقم الموبايـــل]]","v":0},{"$f":"Table1[[#This Row],[مده الاشتراك]]","v":0},{"$f":"Table1[[#This Row],[بدايه الاشتراك]]","v":"00:00:00"},{"$f":"Table1[[#This Row],[نهايه الاشتراك]]","v":"00:00:00"}]
[{"$f":"Table1[[#This Row],[أســــم المشترك]]","v":0},{"$f":"Table1[[#This Row],[كود المشترك]]","v":0},{"$f":"Table1[[#This Row],[رقم الموبايـــل]]","v":0},{"$f":"Table1[[#This Row],[مده الاشتراك]]","v":0},{"$f":"Table1[[#This Row],[بدايه الاشتراك]]","v":"00:00:00"},{"$f":"Table1[[#This Row],[نهايه الاشتراك]]","v":"00:00:00"}]
[{"$f":"Table1[[#This Row],[أســــم المشترك]]","v":0},{"$f":"Table1[[#This Row],[كود المشترك]]","v":0},{"$f":"Table1[[#This Row],[رقم الموبايـــل]]","v":0},{"$f":"Table1[[#This Row],[مده الاشتراك]]","v":0},{"$f":"Table1[[#This Row],[بدايه الاشتراك]]","v":"00:00:00"},{"$f":"Table1[[#This Row],[نهايه الاشتراك]]","v":"00:00:00"}]
[{"$f":"Table1[[#This Row],[أســــم المشترك]]","v":0},{"$f":"Table1[[#This Row],[كود المشترك]]","v":0},{"$f":"Table1[[#This Row],[رقم الموبايـــل]]","v":0},{"$f":"Table1[[#This Row],[مده الاشتراك]]","v":0},{"$f":"Table1[[#This Row],[بدايه الاشتراك]]","v":"00:00:00"},{"$f":"Table1[[#This Row],[نهايه الاشتراك]]","v":"00:00:00"}]
[{"$f":"Table1[[#This Row],[أســــم المشترك]]","v":0},{"$f":"Table1[[#This Row],[كود المشترك]]","v":0},{"$f":"Table1[[#This Row],[رقم الموبايـــل]]","v":0},{"$f":"Table1[[#This Row],[مده الاشتراك]]","v":0},{"$f":"Table1[[#This Row],[بدايه الاشتراك]]","v":"00:00:00"},{"$f":"Table1[[#This Row],[نهايه الاشتراك]]","v":"00:00:00"}]
[{"$f":"Table1[[#This Row],[أســــم المشترك]]","v":0},{"$f":"Table1[[#This Row],[كود المشترك]]","v":0},{"$f":"Table1[[#This Row],[رقم الموبايـــل]]","v":0},{"$f":"Table1[[#This Row],[مده الاشتراك]]","v":0},{"$f":"Table1[[#This Row],[بدايه الاشتراك]]","v":"00:00:00"},{"$f":"Table1[[#This Row],[نهايه الاشتراك]]","v":"00:00:00"}]
[{"$f":"Table1[[#This Row],[أســــم المشترك]]","v":0},{"$f":"Table1[[#This Row],[كود المشترك]]","v":0},{"$f":"Table1[[#This Row],[رقم الموبايـــل]]","v":0},{"$f":"Table1[[#This Row],[مده الاشتراك]]","v":0},{"$f":"Table1[[#This Row],[بدايه الاشتراك]]","v":"00:00:00"},{"$f":"Table1[[#This Row],[نهايه الاشتراك]]","v":"00:00:00"}]
[{"$f":"Table1[[#This Row],[أســــم المشترك]]","v":0},{"$f":"Table1[[#This Row],[كود المشترك]]","v":0},{"$f":"Table1[[#This Row],[رقم الموبايـــل]]","v":0},{"$f":"Table1[[#This Row],[مده الاشتراك]]","v":0},{"$f":"Table1[[#This Row],[بدايه الاشتراك]]","v":"00:00:00"},{"$f":"Table1[[#This Row],[نهايه الاشتراك]]","v":"00:00:00"}]
[{"$f":"Table1[[#This Row],[أســــم المشترك]]","v":0},{"$f":"Table1[[#This Row],[كود المشترك]]","v":0},{"$f":"Table1[[#This Row],[رقم الموبايـــل]]","v":0},{"$f":"Table1[[#This Row],[مده الاشتراك]]","v":0},{"$f":"Table1[[#This Row],[بدايه الاشتراك]]","v":"00:00:00"},{"$f":"Table1[[#This Row],[نهايه الاشتراك]]","v":"00:00:00"}]
[{"$f":"Table1[[#This Row],[أســــم المشترك]]","v":0},{"$f":"Table1[[#This Row],[كود المشترك]]","v":0},{"$f":"Table1[[#This Row],[رقم الموبايـــل]]","v":0},{"$f":"Table1[[#This Row],[مده الاشتراك]]","v":0},{"$f":"Table1[[#This Row],[بدايه الاشتراك]]","v":"00:00:00"},{"$f":"Table1[[#This Row],[نهايه الاشتراك]]","v":"00:00:00"}]
[{"$f":"Table1[[#This Row],[أســــم المشترك]]","v":0},{"$f":"Table1[[#This Row],[كود المشترك]]","v":0},{"$f":"Table1[[#This Row],[رقم الموبايـــل]]","v":0},{"$f":"Table1[[#This Row],[مده الاشتراك]]","v":0},{"$f":"Table1[[#This Row],[بدايه الاشتراك]]","v":"00:00:00"},{"$f":"Table1[[#This Row],[نهايه الاشتراك]]","v":"00:00:00"}]
[{"$f":"Table1[[#This Row],[أســــم المشترك]]","v":0},{"$f":"Table1[[#This Row],[كود المشترك]]","v":0},{"$f":"Table1[[#This Row],[رقم الموبايـــل]]","v":0},{"$f":"Table1[[#This Row],[مده الاشتراك]]","v":0},{"$f":"Table1[[#This Row],[بدايه الاشتراك]]","v":"00:00:00"},{"$f":"Table1[[#This Row],[نهايه الاشتراك]]","v":"00:00:00"}]
[{"$f":"Table1[[#This Row],[أســــم المشترك]]","v":0},{"$f":"Table1[[#This Row],[كود المشترك]]","v":0},{"$f":"Table1[[#This Row],[رقم الموبايـــل]]","v":0},{"$f":"Table1[[#This Row],[مده الاشتراك]]","v":0},{"$f":"Table1[[#This Row],[بدايه الاشتراك]]","v":"00:00:00"},{"$f":"Table1[[#This Row],[نهايه الاشتراك]]","v":"00:00:00"}]
[{"$f":"Table1[[#This Row],[أســــم المشترك]]","v":0},{"$f":"Table1[[#This Row],[كود المشترك]]","v":0},{"$f":"Table1[[#This Row],[رقم الموبايـــل]]","v":0},{"$f":"Table1[[#This Row],[مده الاشتراك]]","v":0},{"$f":"Table1[[#This Row],[بدايه الاشتراك]]","v":"00:00:00"},{"$f":"Table1[[#This Row],[نهايه الاشتراك]]","v":"00:00:00"}]
[{"$f":"Table1[[#This Row],[أســــم المشترك]]","v":0},{"$f":"Table1[[#This Row],[كود المشترك]]","v":0},{"$f":"Table1[[#This Row],[رقم الموبايـــل]]","v":0},{"$f":"Table1[[#This Row],[مده الاشتراك]]","v":0},{"$f":"Table1[[#This Row],[بدايه الاشتراك]]","v":"00:00:00"},{"$f":"Table1[[#This Row],[نهايه الاشتراك]]","v":"00:00:00"}]
[{"$f":"Table1[[#This Row],[أســــم المشترك]]","v":0},{"$f":"Table1[[#This Row],[كود المشترك]]","v":0},{"$f":"Table1[[#This Row],[رقم الموبايـــل]]","v":0},{"$f":"Table1[[#This Row],[مده الاشتراك]]","v":0},{"$f":"Table1[[#This Row],[بدايه الاشتراك]]","v":"00:00:00"},{"$f":"Table1[[#This Row],[نهايه الاشتراك]]","v":"00:00:00"}]
[{"$f":"Table1[[#This Row],[أســــم المشترك]]","v":0},{"$f":"Table1[[#This Row],[كود المشترك]]","v":0},{"$f":"Table1[[#This Row],[رقم الموبايـــل]]","v":0},{"$f":"Table1[[#This Row],[مده الاشتراك]]","v":0},{"$f":"Table1[[#This Row],[بدايه الاشتراك]]","v":"00:00:00"},{"$f":"Table1[[#This Row],[نهايه الاشتراك]]","v":"00:00:00"}]
[{"$f":"Table1[[#This Row],[أســــم المشترك]]","v":0},{"$f":"Table1[[#This Row],[كود المشترك]]","v":0},{"$f":"Table1[[#This Row],[رقم الموبايـــل]]","v":0},{"$f":"Table1[[#This Row],[مده الاشتراك]]","v":0},{"$f":"Table1[[#This Row],[بدايه الاشتراك]]","v":"00:00:00"},{"$f":"Table1[[#This Row],[نهايه الاشتراك]]","v":"00:00:00"}]
[{"$f":"Table1[[#This Row],[أســــم المشترك]]","v":0},{"$f":"Table1[[#This Row],[كود المشترك]]","v":0},{"$f":"Table1[[#This Row],[رقم الموبايـــل]]","v":0},{"$f":"Table1[[#This Row],[مده الاشتراك]]","v":0},{"$f":"Table1[[#This Row],[بدايه الاشتراك]]","v":"00:00:00"},{"$f":"Table1[[#This Row],[نهايه الاشتراك]]","v":"00:00:00"}]
[{"$f":"Table1[[#This Row],[أســــم المشترك]]","v":0},{"$f":"Table1[[#This Row],[كود المشترك]]","v":0},{"$f":"Table1[[#This Row],[رقم الموبايـــل]]","v":0},{"$f":"Table1[[#This Row],[مده الاشتراك]]","v":0},{"$f":"Table1[[#This Row],[بدايه الاشتراك]]","v":"00:00:00"},{"$f":"Table1[[#This Row],[نهايه الاشتراك]]","v":"00:00:00"}]
[{"$f":"Table1[[#This Row],[أســــم المشترك]]","v":0},{"$f":"Table1[[#This Row],[كود المشترك]]","v":0},{"$f":"Table1[[#This Row],[رقم الموبايـــل]]","v":0},{"$f":"Table1[[#This Row],[مده الاشتراك]]","v":0},{"$f":"Table1[[#This Row],[بدايه الاشتراك]]","v":"00:00:00"},{"$f":"Table1[[#This Row],[نهايه الاشتراك]]","v":"00:00:00"}]
[{"$f":"Table1[[#This Row],[أســــم المشترك]]","v":0},{"$f":"Table1[[#This Row],[كود المشترك]]","v":0},{"$f":"Table1[[#This Row],[رقم الموبايـــل]]","v":0},{"$f":"Table1[[#This Row],[مده الاشتراك]]","v":0},{"$f":"Table1[[#This Row],[بدايه الاشتراك]]","v":"00:00:00"},{"$f":"Table1[[#This Row],[نهايه الاشتراك]]","v":"00:00:00"}]
[{"$f":"Table1[[#This Row],[أســــم المشترك]]","v":0},{"$f":"Table1[[#This Row],[كود المشترك]]","v":0},{"$f":"Table1[[#This Row],[رقم الموبايـــل]]","v":0},{"$f":"Table1[[#This Row],[مده الاشتراك]]","v":0},{"$f":"Table1[[#This Row],[بدايه الاشتراك]]","v":"00:00:00"},{"$f":"Table1[[#This Row],[نهايه الاشتراك]]","v":"00:00:00"}]
[{"$f":"Table1[[#This Row],[أســــم المشترك]]","v":0},{"$f":"Table1[[#This Row],[كود المشترك]]","v":0},{"$f":"Table1[[#This Row],[رقم الموبايـــل]]","v":0},{"$f":"Table1[[#This Row],[مده الاشتراك]]","v":0},{"$f":"Table1[[#This Row],[بدايه الاشتراك]]","v":"00:00:00"},{"$f":"Table1[[#This Row],[نهايه الاشتراك]]","v":"00:00:00"}]
[{"$f":"Table1[[#This Row],[أســــم المشترك]]","v":0},{"$f":"Table1[[#This Row],[كود المشترك]]","v":0},{"$f":"Table1[[#This Row],[رقم الموبايـــل]]","v":0},{"$f":"Table1[[#This Row],[مده الاشتراك]]","v":0},{"$f":"Table1[[#This Row],[بدايه الاشتراك]]","v":"00:00:00"},{"$f":"Table1[[#This Row],[نهايه الاشتراك]]","v":"00:00:00"}]
[{"$f":"Table1[[#This Row],[أســــم المشترك]]","v":0},{"$f":"Table1[[#This Row],[كود المشترك]]","v":0},{"$f":"Table1[[#This Row],[رقم الموبايـــل]]","v":0},{"$f":"Table1[[#This Row],[مده الاشتراك]]","v":0},{"$f":"Table1[[#This Row],[بدايه الاشتراك]]","v":"00:00:00"},{"$f":"Table1[[#This Row],[نهايه الاشتراك]]","v":"00:00:00"}]
[{"$f":"Table1[[#This Row],[أســــم المشترك]]","v":0},{"$f":"Table1[[#This Row],[كود المشترك]]","v":0},{"$f":"Table1[[#This Row],[رقم الموبايـــل]]","v":0},{"$f":"Table1[[#This Row],[مده الاشتراك]]","v":0},{"$f":"Table1[[#This Row],[بدايه الاشتراك]]","v":"00:00:00"},{"$f":"Table1[[#This Row],[نهايه الاشتراك]]","v":"00:00:00"}]
[{"$f":"Table1[[#This Row],[أســــم المشترك]]","v":0},{"$f":"Table1[[#This Row],[كود المشترك]]","v":0},{"$f":"Table1[[#This Row],[رقم الموبايـــل]]","v":0},{"$f":"Table1[[#This Row],[مده الاشتراك]]","v":0},{"$f":"Table1[[#This Row],[بدايه الاشتراك]]","v":"00:00:00"},{"$f":"Table1[[#This Row],[نهايه الاشتراك]]","v":"00:00:00"}]
[{"$f":"Table1[[#This Row],[أســــم المشترك]]","v":0},{"$f":"Table1[[#This Row],[كود المشترك]]","v":0},{"$f":"Table1[[#This Row],[رقم الموبايـــل]]","v":0},{"$f":"Table1[[#This Row],[مده الاشتراك]]","v":0},{"$f":"Table1[[#This Row],[بدايه الاشتراك]]","v":"00:00:00"},{"$f":"Table1[[#This Row],[نهايه الاشتراك]]","v":"00:00:00"}]
[{"$f":"Table1[[#This Row],[أســــم المشترك]]","v":0},{"$f":"Table1[[#This Row],[كود المشترك]]","v":0},{"$f":"Table1[[#This Row],[رقم الموبايـــل]]","v":0},{"$f":"Table1[[#This Row],[مده الاشتراك]]","v":0},{"$f":"Table1[[#This Row],[بدايه الاشتراك]]","v":"00:00:00"},{"$f":"Table1[[#This Row],[نهايه الاشتراك]]","v":"00:00:00"}]
[{"$f":"Table1[[#This Row],[أســــم المشترك]]","v":0},{"$f":"Table1[[#This Row],[كود المشترك]]","v":0},{"$f":"Table1[[#This Row],[رقم الموبايـــل]]","v":0},{"$f":"Table1[[#This Row],[مده الاشتراك]]","v":0},{"$f":"Table1[[#This Row],[بدايه الاشتراك]]","v":"00:00:00"},{"$f":"Table1[[#This Row],[نهايه الاشتراك]]","v":"00:00:00"}]
[{"$f":"Table1[[#This Row],[أســــم المشترك]]","v":0},{"$f":"Table1[[#This Row],[كود المشترك]]","v":0},{"$f":"Table1[[#This Row],[رقم الموبايـــل]]","v":0},{"$f":"Table1[[#This Row],[مده الاشتراك]]","v":0},{"$f":"Table1[[#This Row],[بدايه الاشتراك]]","v":"00:00:00"},{"$f":"Table1[[#This Row],[نهايه الاشتراك]]","v":"00:00:00"}]
[{"$f":"Table1[[#This Row],[أســــم المشترك]]","v":0},{"$f":"Table1[[#This Row],[كود المشترك]]","v":0},{"$f":"Table1[[#This Row],[رقم الموبايـــل]]","v":0},{"$f":"Table1[[#This Row],[مده الاشتراك]]","v":0},{"$f":"Table1[[#This Row],[بدايه الاشتراك]]","v":"00:00:00"},{"$f":"Table1[[#This Row],[نهايه الاشتراك]]","v":"00:00:00"}]
[{"$f":"Table1[[#This Row],[أســــم المشترك]]","v":0},{"$f":"Table1[[#This Row],[كود المشترك]]","v":0},{"$f":"Table1[[#This Row],[رقم الموبايـــل]]","v":0},{"$f":"Table1[[#This Row],[مده الاشتراك]]","v":0},{"$f":"Table1[[#This Row],[بدايه الاشتراك]]","v":"00:00:00"},{"$f":"Table1[[#This Row],[نهايه الاشتراك]]","v":"00:00:00"}]
[{"$f":"Table1[[#This Row],[أســــم المشترك]]","v":0},{"$f":"Table1[[#This Row],[كود المشترك]]","v":0},{"$f":"Table1[[#This Row],[رقم الموبايـــل]]","v":0},{"$f":"Table1[[#This Row],[مده الاشتراك]]","v":0},{"$f":"Table1[[#This Row],[بدايه الاشتراك]]","v":"00:00:00"},{"$f":"Table1[[#This Row],[نهايه الاشتراك]]","v":"00:00:00"}]
[{"$f":"Table1[[#This Row],[أســــم المشترك]]","v":0},{"$f":"Table1[[#This Row],[كود المشترك]]","v":0},{"$f":"Table1[[#This Row],[رقم الموبايـــل]]","v":0},{"$f":"Table1[[#This Row],[مده الاشتراك]]","v":0},{"$f":"Table1[[#This Row],[بدايه الاشتراك]]","v":"00:00:00"},{"$f":"Table1[[#This Row],[نهايه الاشتراك]]","v":"00:00:00"}]
[{"$f":"Table1[[#This Row],[أســــم المشترك]]","v":0},{"$f":"Table1[[#This Row],[كود المشترك]]","v":0},{"$f":"Table1[[#This Row],[رقم الموبايـــل]]","v":0},{"$f":"Table1[[#This Row],[مده الاشتراك]]","v":0},{"$f":"Table1[[#This Row],[بدايه الاشتراك]]","v":"00:00:00"},{"$f":"Table1[[#This Row],[نهايه الاشتراك]]","v":"00:00:00"}]
[{"$f":"Table1[[#This Row],[أســــم المشترك]]","v":0},{"$f":"Table1[[#This Row],[كود المشترك]]","v":0},{"$f":"Table1[[#This Row],[رقم الموبايـــل]]","v":0},{"$f":"Table1[[#This Row],[مده الاشتراك]]","v":0},{"$f":"Table1[[#This Row],[بدايه الاشتراك]]","v":"00:00:00"},{"$f":"Table1[[#This Row],[نهايه الاشتراك]]","v":"00:00:00"}]
[{"$f":"Table1[[#This Row],[أســــم المشترك]]","v":0},{"$f":"Table1[[#This Row],[كود المشترك]]","v":0},{"$f":"Table1[[#This Row],[رقم الموبايـــل]]","v":0},{"$f":"Table1[[#This Row],[مده الاشتراك]]","v":0},{"$f":"Table1[[#This Row],[بدايه الاشتراك]]","v":"00:00:00"},{"$f":"Table1[[#This Row],[نهايه الاشتراك]]","v":"00:00:00"}]
[{"$f":"Table1[[#This Row],[أســــم المشترك]]","v":0},{"$f":"Table1[[#This Row],[كود المشترك]]","v":0},{"$f":"Table1[[#This Row],[رقم الموبايـــل]]","v":0},{"$f":"Table1[[#This Row],[مده الاشتراك]]","v":0},{"$f":"Table1[[#This Row],[بدايه الاشتراك]]","v":"00:00:00"},{"$f":"Table1[[#This Row],[نهايه الاشتراك]]","v":"00:00:00"}]
[{"$f":"Table1[[#This Row],[أســــم المشترك]]","v":0},{"$f":"Table1[[#This Row],[كود المشترك]]","v":0},{"$f":"Table1[[#This Row],[رقم الموبايـــل]]","v":0},{"$f":"Table1[[#This Row],[مده الاشتراك]]","v":0},{"$f":"Table1[[#This Row],[بدايه الاشتراك]]","v":"00:00:00"},{"$f":"Table1[[#This Row],[نهايه الاشتراك]]","v":"00:00:00"}]
[{"$f":"Table1[[#This Row],[أســــم المشترك]]","v":0},{"$f":"Table1[[#This Row],[كود المشترك]]","v":0},{"$f":"Table1[[#This Row],[رقم الموبايـــل]]","v":0},{"$f":"Table1[[#This Row],[مده الاشتراك]]","v":0},{"$f":"Table1[[#This Row],[بدايه الاشتراك]]","v":"00:00:00"},{"$f":"Table1[[#This Row],[نهايه الاشتراك]]","v":"00:00:00"}]
[{"$f":"Table1[[#This Row],[أســــم المشترك]]","v":0},{"$f":"Table1[[#This Row],[كود المشترك]]","v":0},{"$f":"Table1[[#This Row],[رقم الموبايـــل]]","v":0},{"$f":"Table1[[#This Row],[مده الاشتراك]]","v":0},{"$f":"Table1[[#This Row],[بدايه الاشتراك]]","v":"00:00:00"},{"$f":"Table1[[#This Row],[نهايه الاشتراك]]","v":"00:00:00"}]
[{"$f":"Table1[[#This Row],[أســــم المشترك]]","v":0},{"$f":"Table1[[#This Row],[كود المشترك]]","v":0},{"$f":"Table1[[#This Row],[رقم الموبايـــل]]","v":0},{"$f":"Table1[[#This Row],[مده الاشتراك]]","v":0},{"$f":"Table1[[#This Row],[بدايه الاشتراك]]","v":"00:00:00"},{"$f":"Table1[[#This Row],[نهايه الاشتراك]]","v":"00:00:00"}]
[{"$f":"Table1[[#This Row],[أســــم المشترك]]","v":0},{"$f":"Table1[[#This Row],[كود المشترك]]","v":0},{"$f":"Table1[[#This Row],[رقم الموبايـــل]]","v":0},{"$f":"Table1[[#This Row],[مده الاشتراك]]","v":0},{"$f":"Table1[[#This Row],[بدايه الاشتراك]]","v":"00:00:00"},{"$f":"Table1[[#This Row],[نهايه الاشتراك]]","v":"00:00:00"}]
[{"$f":"Table1[[#This Row],[أســــم المشترك]]","v":0},{"$f":"Table1[[#This Row],[كود المشترك]]","v":0},{"$f":"Table1[[#This Row],[رقم الموبايـــل]]","v":0},{"$f":"Table1[[#This Row],[مده الاشتراك]]","v":0},{"$f":"Table1[[#This Row],[بدايه الاشتراك]]","v":"00:00:00"},{"$f":"Table1[[#This Row],[نهايه الاشتراك]]","v":"00:00:00"}]
[{"$f":"Table1[[#This Row],[أســــم المشترك]]","v":0},{"$f":"Table1[[#This Row],[كود المشترك]]","v":0},{"$f":"Table1[[#This Row],[رقم الموبايـــل]]","v":0},{"$f":"Table1[[#This Row],[مده الاشتراك]]","v":0},{"$f":"Table1[[#This Row],[بدايه الاشتراك]]","v":"00:00:00"},{"$f":"Table1[[#This Row],[نهايه الاشتراك]]","v":"00:00:00"}]
[{"$f":"Table1[[#This Row],[أســــم المشترك]]","v":0},{"$f":"Table1[[#This Row],[كود المشترك]]","v":0},{"$f":"Table1[[#This Row],[رقم الموبايـــل]]","v":0},{"$f":"Table1[[#This Row],[مده الاشتراك]]","v":0},{"$f":"Table1[[#This Row],[بدايه الاشتراك]]","v":"00:00:00"},{"$f":"Table1[[#This Row],[نهايه الاشتراك]]","v":"00:00:00"}]
[{"$f":"Table1[[#This Row],[أســــم المشترك]]","v":0},{"$f":"Table1[[#This Row],[كود المشترك]]","v":0},{"$f":"Table1[[#This Row],[رقم الموبايـــل]]","v":0},{"$f":"Table1[[#This Row],[مده الاشتراك]]","v":0},{"$f":"Table1[[#This Row],[بدايه الاشتراك]]","v":"00:00:00"},{"$f":"Table1[[#This Row],[نهايه الاشتراك]]","v":"00:00:00"}]
[{"$f":"Table1[[#This Row],[أســــم المشترك]]","v":0},{"$f":"Table1[[#This Row],[كود المشترك]]","v":0},{"$f":"Table1[[#This Row],[رقم الموبايـــل]]","v":0},{"$f":"Table1[[#This Row],[مده الاشتراك]]","v":0},{"$f":"Table1[[#This Row],[بدايه الاشتراك]]","v":"00:00:00"},{"$f":"Table1[[#This Row],[نهايه الاشتراك]]","v":"00:00:00"}]
[{"$f":"Table1[[#This Row],[أســــم المشترك]]","v":0},{"$f":"Table1[[#This Row],[كود المشترك]]","v":0},{"$f":"Table1[[#This Row],[رقم الموبايـــل]]","v":0},{"$f":"Table1[[#This Row],[مده الاشتراك]]","v":0},{"$f":"Table1[[#This Row],[بدايه الاشتراك]]","v":"00:00:00"},{"$f":"Table1[[#This Row],[نهايه الاشتراك]]","v":"00:00:00"}]
[{"$f":"Table1[[#This Row],[أســــم المشترك]]","v":0},{"$f":"Table1[[#This Row],[كود المشترك]]","v":0},{"$f":"Table1[[#This Row],[رقم الموبايـــل]]","v":0},{"$f":"Table1[[#This Row],[مده الاشتراك]]","v":0},{"$f":"Table1[[#This Row],[بدايه الاشتراك]]","v":"00:00:00"},{"$f":"Table1[[#This Row],[نهايه الاشتراك]]","v":"00:00:00"}]
[{"$f":"Table1[[#This Row],[أســــم المشترك]]","v":0},{"$f":"Table1[[#This Row],[كود المشترك]]","v":0},{"$f":"Table1[[#This Row],[رقم الموبايـــل]]","v":0},{"$f":"Table1[[#This Row],[مده الاشتراك]]","v":0},{"$f":"Table1[[#This Row],[بدايه الاشتراك]]","v":"00:00:00"},{"$f":"Table1[[#This Row],[نهايه الاشتراك]]","v":"00:00:00"}]
[{"$f":"Table1[[#This Row],[أســــم المشترك]]","v":0},{"$f":"Table1[[#This Row],[كود المشترك]]","v":0},{"$f":"Table1[[#This Row],[رقم الموبايـــل]]","v":0},{"$f":"Table1[[#This Row],[مده الاشتراك]]","v":0},{"$f":"Table1[[#This Row],[بدايه الاشتراك]]","v":"00:00:00"},{"$f":"Table1[[#This Row],[نهايه الاشتراك]]","v":"00:00:00"}]
[{"$f":"Table1[[#This Row],[أســــم المشترك]]","v":0},{"$f":"Table1[[#This Row],[كود المشترك]]","v":0},{"$f":"Table1[[#This Row],[رقم الموبايـــل]]","v":0},{"$f":"Table1[[#This Row],[مده الاشتراك]]","v":0},{"$f":"Table1[[#This Row],[بدايه الاشتراك]]","v":"00:00:00"},{"$f":"Table1[[#This Row],[نهايه الاشتراك]]","v":"00:00:00"}]
[{"$f":"Table1[[#This Row],[أســــم المشترك]]","v":0},{"$f":"Table1[[#This Row],[كود المشترك]]","v":0},{"$f":"Table1[[#This Row],[رقم الموبايـــل]]","v":0},{"$f":"Table1[[#This Row],[مده الاشتراك]]","v":0},{"$f":"Table1[[#This Row],[بدايه الاشتراك]]","v":"00:00:00"},{"$f":"Table1[[#This Row],[نهايه الاشتراك]]","v":"00:00:00"}]
[{"$f":"Table1[[#This Row],[أســــم المشترك]]","v":0},{"$f":"Table1[[#This Row],[كود المشترك]]","v":0},{"$f":"Table1[[#This Row],[رقم الموبايـــل]]","v":0},{"$f":"Table1[[#This Row],[مده الاشتراك]]","v":0},{"$f":"Table1[[#This Row],[بدايه الاشتراك]]","v":"00:00:00"},{"$f":"Table1[[#This Row],[نهايه الاشتراك]]","v":"00:00:00"}]
[{"$f":"Table1[[#This Row],[أســــم المشترك]]","v":0},{"$f":"Table1[[#This Row],[كود المشترك]]","v":0},{"$f":"Table1[[#This Row],[رقم الموبايـــل]]","v":0},{"$f":"Table1[[#This Row],[مده الاشتراك]]","v":0},{"$f":"Table1[[#This Row],[بدايه الاشتراك]]","v":"00:00:00"},{"$f":"Table1[[#This Row],[نهايه الاشتراك]]","v":"00:00:00"}]
[{"$f":"Table1[[#This Row],[أســــم المشترك]]","v":0},{"$f":"Table1[[#This Row],[كود المشترك]]","v":0},{"$f":"Table1[[#This Row],[رقم الموبايـــل]]","v":0},{"$f":"Table1[[#This Row],[مده الاشتراك]]","v":0},{"$f":"Table1[[#This Row],[بدايه الاشتراك]]","v":"00:00:00"},{"$f":"Table1[[#This Row],[نهايه الاشتراك]]","v":"00:00:00"}]
[{"$f":"Table1[[#This Row],[أســــم المشترك]]","v":0},{"$f":"Table1[[#This Row],[كود المشترك]]","v":0},{"$f":"Table1[[#This Row],[رقم الموبايـــل]]","v":0},{"$f":"Table1[[#This Row],[مده الاشتراك]]","v":0},{"$f":"Table1[[#This Row],[بدايه الاشتراك]]","v":"00:00:00"},{"$f":"Table1[[#This Row],[نهايه الاشتراك]]","v":"00:00:00"}]
[{"$f":"Table1[[#This Row],[أســــم المشترك]]","v":0},{"$f":"Table1[[#This Row],[كود المشترك]]","v":0},{"$f":"Table1[[#This Row],[رقم الموبايـــل]]","v":0},{"$f":"Table1[[#This Row],[مده الاشتراك]]","v":0},{"$f":"Table1[[#This Row],[بدايه الاشتراك]]","v":"00:00:00"},{"$f":"Table1[[#This Row],[نهايه الاشتراك]]","v":"00:00:00"}]
[{"$f":"Table1[[#This Row],[أســــم المشترك]]","v":0},{"$f":"Table1[[#This Row],[كود المشترك]]","v":0},{"$f":"Table1[[#This Row],[رقم الموبايـــل]]","v":0},{"$f":"Table1[[#This Row],[مده الاشتراك]]","v":0},{"$f":"Table1[[#This Row],[بدايه الاشتراك]]","v":"00:00:00"},{"$f":"Table1[[#This Row],[نهايه الاشتراك]]","v":"00:00:00"}]
[{"$f":"Table1[[#This Row],[أســــم المشترك]]","v":0},{"$f":"Table1[[#This Row],[كود المشترك]]","v":0},{"$f":"Table1[[#This Row],[رقم الموبايـــل]]","v":0},{"$f":"Table1[[#This Row],[مده الاشتراك]]","v":0},{"$f":"Table1[[#This Row],[بدايه الاشتراك]]","v":"00:00:00"},{"$f":"Table1[[#This Row],[نهايه الاشتراك]]","v":"00:00:00"}]
[{"$f":"Table1[[#This Row],[أســــم المشترك]]","v":0},{"$f":"Table1[[#This Row],[كود المشترك]]","v":0},{"$f":"Table1[[#This Row],[رقم الموبايـــل]]","v":0},{"$f":"Table1[[#This Row],[مده الاشتراك]]","v":0},{"$f":"Table1[[#This Row],[بدايه الاشتراك]]","v":"00:00:00"},{"$f":"Table1[[#This Row],[نهايه الاشتراك]]","v":"00:00:00"}]
[{"$f":"Table1[[#This Row],[أســــم المشترك]]","v":0},{"$f":"Table1[[#This Row],[كود المشترك]]","v":0},{"$f":"Table1[[#This Row],[رقم الموبايـــل]]","v":0},{"$f":"Table1[[#This Row],[مده الاشتراك]]","v":0},{"$f":"Table1[[#This Row],[بدايه الاشتراك]]","v":"00:00:00"},{"$f":"Table1[[#This Row],[نهايه الاشتراك]]","v":"00:00:00"}]
[{"$f":"Table1[[#This Row],[أســــم المشترك]]","v":0},{"$f":"Table1[[#This Row],[كود المشترك]]","v":0},{"$f":"Table1[[#This Row],[رقم الموبايـــل]]","v":0},{"$f":"Table1[[#This Row],[مده الاشتراك]]","v":0},{"$f":"Table1[[#This Row],[بدايه الاشتراك]]","v":"00:00:00"},{"$f":"Table1[[#This Row],[نهايه الاشتراك]]","v":"00:00:00"}]
[{"$f":"Table1[[#This Row],[أســــم المشترك]]","v":0},{"$f":"Table1[[#This Row],[كود المشترك]]","v":0},{"$f":"Table1[[#This Row],[رقم الموبايـــل]]","v":0},{"$f":"Table1[[#This Row],[مده الاشتراك]]","v":0},{"$f":"Table1[[#This Row],[بدايه الاشتراك]]","v":"00:00:00"},{"$f":"Table1[[#This Row],[نهايه الاشتراك]]","v":"00:00:00"}]
[{"$f":"Table1[[#This Row],[أســــم المشترك]]","v":0},{"$f":"Table1[[#This Row],[كود المشترك]]","v":0},{"$f":"Table1[[#This Row],[رقم الموبايـــل]]","v":0},{"$f":"Table1[[#This Row],[مده الاشتراك]]","v":0},{"$f":"Table1[[#This Row],[بدايه الاشتراك]]","v":"00:00:00"},{"$f":"Table1[[#This Row],[نهايه الاشتراك]]","v":"00:00:00"}]
[{"$f":"Table1[[#This Row],[أســــم المشترك]]","v":0},{"$f":"Table1[[#This Row],[كود المشترك]]","v":0},{"$f":"Table1[[#This Row],[رقم الموبايـــل]]","v":0},{"$f":"Table1[[#This Row],[مده الاشتراك]]","v":0},{"$f":"Table1[[#This Row],[بدايه الاشتراك]]","v":"00:00:00"},{"$f":"Table1[[#This Row],[نهايه الاشتراك]]","v":"00:00:00"}]
[{"$f":"Table1[[#This Row],[أســــم المشترك]]","v":0},{"$f":"Table1[[#This Row],[كود المشترك]]","v":0},{"$f":"Table1[[#This Row],[رقم الموبايـــل]]","v":0},{"$f":"Table1[[#This Row],[مده الاشتراك]]","v":0},{"$f":"Table1[[#This Row],[بدايه الاشتراك]]","v":"00:00:00"},{"$f":"Table1[[#This Row],[نهايه الاشتراك]]","v":"00:00:00"}]
[{"$f":"Table1[[#This Row],[أســــم المشترك]]","v":0},{"$f":"Table1[[#This Row],[كود المشترك]]","v":0},{"$f":"Table1[[#This Row],[رقم الموبايـــل]]","v":0},{"$f":"Table1[[#This Row],[مده الاشتراك]]","v":0},{"$f":"Table1[[#This Row],[بدايه الاشتراك]]","v":"00:00:00"},{"$f":"Table1[[#This Row],[نهايه الاشتراك]]","v":"00:00:00"}]
[{"$f":"Table1[[#This Row],[أســــم المشترك]]","v":0},{"$f":"Table1[[#This Row],[كود المشترك]]","v":0},{"$f":"Table1[[#This Row],[رقم الموبايـــل]]","v":0},{"$f":"Table1[[#This Row],[مده الاشتراك]]","v":0},{"$f":"Table1[[#This Row],[بدايه الاشتراك]]","v":"00:00:00"},{"$f":"Table1[[#This Row],[نهايه الاشتراك]]","v":"00:00:00"}]
[{"$f":"Table1[[#This Row],[أســــم المشترك]]","v":0},{"$f":"Table1[[#This Row],[كود المشترك]]","v":0},{"$f":"Table1[[#This Row],[رقم الموبايـــل]]","v":0},{"$f":"Table1[[#This Row],[مده الاشتراك]]","v":0},{"$f":"Table1[[#This Row],[بدايه الاشتراك]]","v":"00:00:00"},{"$f":"Table1[[#This Row],[نهايه الاشتراك]]","v":"00:00:00"}]
[{"$f":"Table1[[#This Row],[أســــم المشترك]]","v":0},{"$f":"Table1[[#This Row],[كود المشترك]]","v":0},{"$f":"Table1[[#This Row],[رقم الموبايـــل]]","v":0},{"$f":"Table1[[#This Row],[مده الاشتراك]]","v":0},{"$f":"Table1[[#This Row],[بدايه الاشتراك]]","v":"00:00:00"},{"$f":"Table1[[#This Row],[نهايه الاشتراك]]","v":"00:00:00"}]
[{"$f":"Table1[[#This Row],[أســــم المشترك]]","v":0},{"$f":"Table1[[#This Row],[كود المشترك]]","v":0},{"$f":"Table1[[#This Row],[رقم الموبايـــل]]","v":0},{"$f":"Table1[[#This Row],[مده الاشتراك]]","v":0},{"$f":"Table1[[#This Row],[بدايه الاشتراك]]","v":"00:00:00"},{"$f":"Table1[[#This Row],[نهايه الاشتراك]]","v":"00:00:00"}]
[{"$f":"Table1[[#This Row],[أســــم المشترك]]","v":0},{"$f":"Table1[[#This Row],[كود المشترك]]","v":0},{"$f":"Table1[[#This Row],[رقم الموبايـــل]]","v":0},{"$f":"Table1[[#This Row],[مده الاشتراك]]","v":0},{"$f":"Table1[[#This Row],[بدايه الاشتراك]]","v":"00:00:00"},{"$f":"Table1[[#This Row],[نهايه الاشتراك]]","v":"00:00:00"}]
[{"$f":"Table1[[#This Row],[أســــم المشترك]]","v":0},{"$f":"Table1[[#This Row],[كود المشترك]]","v":0},{"$f":"Table1[[#This Row],[رقم الموبايـــل]]","v":0},{"$f":"Table1[[#This Row],[مده الاشتراك]]","v":0},{"$f":"Table1[[#This Row],[بدايه الاشتراك]]","v":"00:00:00"},{"$f":"Table1[[#This Row],[نهايه الاشتراك]]","v":"00:00:00"}]
[{"$f":"Table1[[#This Row],[أســــم المشترك]]","v":0},{"$f":"Table1[[#This Row],[كود المشترك]]","v":0},{"$f":"Table1[[#This Row],[رقم الموبايـــل]]","v":0},{"$f":"Table1[[#This Row],[مده الاشتراك]]","v":0},{"$f":"Table1[[#This Row],[بدايه الاشتراك]]","v":"00:00:00"},{"$f":"Table1[[#This Row],[نهايه الاشتراك]]","v":"00:00:00"}]
[{"$f":"Table1[[#This Row],[أســــم المشترك]]","v":0},{"$f":"Table1[[#This Row],[كود المشترك]]","v":0},{"$f":"Table1[[#This Row],[رقم الموبايـــل]]","v":0},{"$f":"Table1[[#This Row],[مده الاشتراك]]","v":0},{"$f":"Table1[[#This Row],[بدايه الاشتراك]]","v":"00:00:00"},{"$f":"Table1[[#This Row],[نهايه الاشتراك]]","v":"00:00:00"}]
[{"$f":"Table1[[#This Row],[أســــم المشترك]]","v":0},{"$f":"Table1[[#This Row],[كود المشترك]]","v":0},{"$f":"Table1[[#This Row],[رقم الموبايـــل]]","v":0},{"$f":"Table1[[#This Row],[مده الاشتراك]]","v":0},{"$f":"Table1[[#This Row],[بدايه الاشتراك]]","v":"00:00:00"},{"$f":"Table1[[#This Row],[نهايه الاشتراك]]","v":"00:00:00"}]
[{"$f":"Table1[[#This Row],[أســــم المشترك]]","v":0},{"$f":"Table1[[#This Row],[كود المشترك]]","v":0},{"$f":"Table1[[#This Row],[رقم الموبايـــل]]","v":0},{"$f":"Table1[[#This Row],[مده الاشتراك]]","v":0},{"$f":"Table1[[#This Row],[بدايه الاشتراك]]","v":"00:00:00"},{"$f":"Table1[[#This Row],[نهايه الاشتراك]]","v":"00:00:00"}]
[{"$f":"Table1[[#This Row],[أســــم المشترك]]","v":0},{"$f":"Table1[[#This Row],[كود المشترك]]","v":0},{"$f":"Table1[[#This Row],[رقم الموبايـــل]]","v":0},{"$f":"Table1[[#This Row],[مده الاشتراك]]","v":0},{"$f":"Table1[[#This Row],[بدايه الاشتراك]]","v":"00:00:00"},{"$f":"Table1[[#This Row],[نهايه الاشتراك]]","v":"00:00:00"}]
[{"$f":"Table1[[#This Row],[أســــم المشترك]]","v":0},{"$f":"Table1[[#This Row],[كود المشترك]]","v":0},{"$f":"Table1[[#This Row],[رقم الموبايـــل]]","v":0},{"$f":"Table1[[#This Row],[مده الاشتراك]]","v":0},{"$f":"Table1[[#This Row],[بدايه الاشتراك]]","v":"00:00:00"},{"$f":"Table1[[#This Row],[نهايه الاشتراك]]","v":"00:00:00"}]
[{"$f":"Table1[[#This Row],[أســــم المشترك]]","v":0},{"$f":"Table1[[#This Row],[كود المشترك]]","v":0},{"$f":"Table1[[#This Row],[رقم الموبايـــل]]","v":0},{"$f":"Table1[[#This Row],[مده الاشتراك]]","v":0},{"$f":"Table1[[#This Row],[بدايه الاشتراك]]","v":"00:00:00"},{"$f":"Table1[[#This Row],[نهايه الاشتراك]]","v":"00:00:00"}]
[{"$f":"Table1[[#This Row],[أســــم المشترك]]","v":0},{"$f":"Table1[[#This Row],[كود المشترك]]","v":0},{"$f":"Table1[[#This Row],[رقم الموبايـــل]]","v":0},{"$f":"Table1[[#This Row],[مده الاشتراك]]","v":0},{"$f":"Table1[[#This Row],[بدايه الاشتراك]]","v":"00:00:00"},{"$f":"Table1[[#This Row],[نهايه الاشتراك]]","v":"00:00:00"}]
[{"$f":"Table1[[#This Row],[أســــم المشترك]]","v":0},{"$f":"Table1[[#This Row],[كود المشترك]]","v":0},{"$f":"Table1[[#This Row],[رقم الموبايـــل]]","v":0},{"$f":"Table1[[#This Row],[مده الاشتراك]]","v":0},{"$f":"Table1[[#This Row],[بدايه الاشتراك]]","v":"00:00:00"},{"$f":"Table1[[#This Row],[نهايه الاشتراك]]","v":"00:00:00"}]
[{"$f":"Table1[[#This Row],[أســــم المشترك]]","v":0},{"$f":"Table1[[#This Row],[كود المشترك]]","v":0},{"$f":"Table1[[#This Row],[رقم الموبايـــل]]","v":0},{"$f":"Table1[[#This Row],[مده الاشتراك]]","v":0},{"$f":"Table1[[#This Row],[بدايه الاشتراك]]","v":"00:00:00"},{"$f":"Table1[[#This Row],[نهايه الاشتراك]]","v":"00:00:00"}]
[{"$f":"Table1[[#This Row],[أســــم المشترك]]","v":0},{"$f":"Table1[[#This Row],[كود المشترك]]","v":0},{"$f":"Table1[[#This Row],[رقم الموبايـــل]]","v":0},{"$f":"Table1[[#This Row],[مده الاشتراك]]","v":0},{"$f":"Table1[[#This Row],[بدايه الاشتراك]]","v":"00:00:00"},{"$f":"Table1[[#This Row],[نهايه الاشتراك]]","v":"00:00:00"}]
[{"$f":"Table1[[#This Row],[أســــم المشترك]]","v":0},{"$f":"Table1[[#This Row],[كود المشترك]]","v":0},{"$f":"Table1[[#This Row],[رقم الموبايـــل]]","v":0},{"$f":"Table1[[#This Row],[مده الاشتراك]]","v":0},{"$f":"Table1[[#This Row],[بدايه الاشتراك]]","v":"00:00:00"},{"$f":"Table1[[#This Row],[نهايه الاشتراك]]","v":"00:00:00"}]
[{"$f":"Table1[[#This Row],[أســــم المشترك]]","v":0},{"$f":"Table1[[#This Row],[كود المشترك]]","v":0},{"$f":"Table1[[#This Row],[رقم الموبايـــل]]","v":0},{"$f":"Table1[[#This Row],[مده الاشتراك]]","v":0},{"$f":"Table1[[#This Row],[بدايه الاشتراك]]","v":"00:00:00"},{"$f":"Table1[[#This Row],[نهايه الاشتراك]]","v":"00:00:00"}]
[{"$f":"Table1[[#This Row],[أســــم المشترك]]","v":0},{"$f":"Table1[[#This Row],[كود المشترك]]","v":0},{"$f":"Table1[[#This Row],[رقم الموبايـــل]]","v":0},{"$f":"Table1[[#This Row],[مده الاشتراك]]","v":0},{"$f":"Table1[[#This Row],[بدايه الاشتراك]]","v":"00:00:00"},{"$f":"Table1[[#This Row],[نهايه الاشتراك]]","v":"00:00:00"}]
[{"$f":"Table1[[#This Row],[أســــم المشترك]]","v":0},{"$f":"Table1[[#This Row],[كود المشترك]]","v":0},{"$f":"Table1[[#This Row],[رقم الموبايـــل]]","v":0},{"$f":"Table1[[#This Row],[مده الاشتراك]]","v":0},{"$f":"Table1[[#This Row],[بدايه الاشتراك]]","v":"00:00:00"},{"$f":"Table1[[#This Row],[نهايه الاشتراك]]","v":"00:00:00"}]
[{"$f":"Table1[[#This Row],[أســــم المشترك]]","v":0},{"$f":"Table1[[#This Row],[كود المشترك]]","v":0},{"$f":"Table1[[#This Row],[رقم الموبايـــل]]","v":0},{"$f":"Table1[[#This Row],[مده الاشتراك]]","v":0},{"$f":"Table1[[#This Row],[بدايه الاشتراك]]","v":"00:00:00"},{"$f":"Table1[[#This Row],[نهايه الاشتراك]]","v":"00:00:00"}]
[{"$f":"Table1[[#This Row],[أســــم المشترك]]","v":0},{"$f":"Table1[[#This Row],[كود المشترك]]","v":0},{"$f":"Table1[[#This Row],[رقم الموبايـــل]]","v":0},{"$f":"Table1[[#This Row],[مده الاشتراك]]","v":0},{"$f":"Table1[[#This Row],[بدايه الاشتراك]]","v":"00:00:00"},{"$f":"Table1[[#This Row],[نهايه الاشتراك]]","v":"00:00:00"}]
[{"$f":"Table1[[#This Row],[أســــم المشترك]]","v":0},{"$f":"Table1[[#This Row],[كود المشترك]]","v":0},{"$f":"Table1[[#This Row],[رقم الموبايـــل]]","v":0},{"$f":"Table1[[#This Row],[مده الاشتراك]]","v":0},{"$f":"Table1[[#This Row],[بدايه الاشتراك]]","v":"00:00:00"},{"$f":"Table1[[#This Row],[نهايه الاشتراك]]","v":"00:00:00"}]
[{"$f":"Table1[[#This Row],[أســــم المشترك]]","v":0},{"$f":"Table1[[#This Row],[كود المشترك]]","v":0},{"$f":"Table1[[#This Row],[رقم الموبايـــل]]","v":0},{"$f":"Table1[[#This Row],[مده الاشتراك]]","v":0},{"$f":"Table1[[#This Row],[بدايه الاشتراك]]","v":"00:00:00"},{"$f":"Table1[[#This Row],[نهايه الاشتراك]]","v":"00:00:00"}]
[{"$f":"Table1[[#This Row],[أســــم المشترك]]","v":0},{"$f":"Table1[[#This Row],[كود المشترك]]","v":0},{"$f":"Table1[[#This Row],[رقم الموبايـــل]]","v":0},{"$f":"Table1[[#This Row],[مده الاشتراك]]","v":0},{"$f":"Table1[[#This Row],[بدايه الاشتراك]]","v":"00:00:00"},{"$f":"Table1[[#This Row],[نهايه الاشتراك]]","v":"00:00:00"}]
[{"$f":"Table1[[#This Row],[أســــم المشترك]]","v":0},{"$f":"Table1[[#This Row],[كود المشترك]]","v":0},{"$f":"Table1[[#This Row],[رقم الموبايـــل]]","v":0},{"$f":"Table1[[#This Row],[مده الاشتراك]]","v":0},{"$f":"Table1[[#This Row],[بدايه الاشتراك]]","v":"00:00:00"},{"$f":"Table1[[#This Row],[نهايه الاشتراك]]","v":"00:00:00"}]
[{"$f":"Table1[[#This Row],[أســــم المشترك]]","v":0},{"$f":"Table1[[#This Row],[كود المشترك]]","v":0},{"$f":"Table1[[#This Row],[رقم الموبايـــل]]","v":0},{"$f":"Table1[[#This Row],[مده الاشتراك]]","v":0},{"$f":"Table1[[#This Row],[بدايه الاشتراك]]","v":"00:00:00"},{"$f":"Table1[[#This Row],[نهايه الاشتراك]]","v":"00:00:00"}]
[{"$f":"Table1[[#This Row],[أســــم المشترك]]","v":0},{"$f":"Table1[[#This Row],[كود المشترك]]","v":0},{"$f":"Table1[[#This Row],[رقم الموبايـــل]]","v":0},{"$f":"Table1[[#This Row],[مده الاشتراك]]","v":0},{"$f":"Table1[[#This Row],[بدايه الاشتراك]]","v":"00:00:00"},{"$f":"Table1[[#This Row],[نهايه الاشتراك]]","v":"00:00:00"}]
[{"$f":"Table1[[#This Row],[أســــم المشترك]]","v":0},{"$f":"Table1[[#This Row],[كود المشترك]]","v":0},{"$f":"Table1[[#This Row],[رقم الموبايـــل]]","v":0},{"$f":"Table1[[#This Row],[مده الاشتراك]]","v":0},{"$f":"Table1[[#This Row],[بدايه الاشتراك]]","v":"00:00:00"},{"$f":"Table1[[#This Row],[نهايه الاشتراك]]","v":"00:00:00"}]
[{"$f":"Table1[[#This Row],[أســــم المشترك]]","v":0},{"$f":"Table1[[#This Row],[كود المشترك]]","v":0},{"$f":"Table1[[#This Row],[رقم الموبايـــل]]","v":0},{"$f":"Table1[[#This Row],[مده الاشتراك]]","v":0},{"$f":"Table1[[#This Row],[بدايه الاشتراك]]","v":"00:00:00"},{"$f":"Table1[[#This Row],[نهايه الاشتراك]]","v":"00:00:00"}]
[{"$f":"Table1[[#This Row],[أســــم المشترك]]","v":0},{"$f":"Table1[[#This Row],[كود المشترك]]","v":0},{"$f":"Table1[[#This Row],[رقم الموبايـــل]]","v":0},{"$f":"Table1[[#This Row],[مده الاشتراك]]","v":0},{"$f":"Table1[[#This Row],[بدايه الاشتراك]]","v":"00:00:00"},{"$f":"Table1[[#This Row],[نهايه الاشتراك]]","v":"00:00:00"}]
[{"$f":"Table1[[#This Row],[أســــم المشترك]]","v":0},{"$f":"Table1[[#This Row],[كود المشترك]]","v":0},{"$f":"Table1[[#This Row],[رقم الموبايـــل]]","v":0},{"$f":"Table1[[#This Row],[مده الاشتراك]]","v":0},{"$f":"Table1[[#This Row],[بدايه الاشتراك]]","v":"00:00:00"},{"$f":"Table1[[#This Row],[نهايه الاشتراك]]","v":"00:00:00"}]
[{"$f":"Table1[[#This Row],[أســــم المشترك]]","v":0},{"$f":"Table1[[#This Row],[كود المشترك]]","v":0},{"$f":"Table1[[#This Row],[رقم الموبايـــل]]","v":0},{"$f":"Table1[[#This Row],[مده الاشتراك]]","v":0},{"$f":"Table1[[#This Row],[بدايه الاشتراك]]","v":"00:00:00"},{"$f":"Table1[[#This Row],[نهايه الاشتراك]]","v":"00:00:00"}]
[{"$f":"Table1[[#This Row],[أســــم المشترك]]","v":0},{"$f":"Table1[[#This Row],[كود المشترك]]","v":0},{"$f":"Table1[[#This Row],[رقم الموبايـــل]]","v":0},{"$f":"Table1[[#This Row],[مده الاشتراك]]","v":0},{"$f":"Table1[[#This Row],[بدايه الاشتراك]]","v":"00:00:00"},{"$f":"Table1[[#This Row],[نهايه الاشتراك]]","v":"00:00:00"}]
[{"$f":"Table1[[#This Row],[أســــم المشترك]]","v":0},{"$f":"Table1[[#This Row],[كود المشترك]]","v":0},{"$f":"Table1[[#This Row],[رقم الموبايـــل]]","v":0},{"$f":"Table1[[#This Row],[مده الاشتراك]]","v":0},{"$f":"Table1[[#This Row],[بدايه الاشتراك]]","v":"00:00:00"},{"$f":"Table1[[#This Row],[نهايه الاشتراك]]","v":"00:00:00"}]
[{"$f":"Table1[[#This Row],[أســــم المشترك]]","v":0},{"$f":"Table1[[#This Row],[كود المشترك]]","v":0},{"$f":"Table1[[#This Row],[رقم الموبايـــل]]","v":0},{"$f":"Table1[[#This Row],[مده الاشتراك]]","v":0},{"$f":"Table1[[#This Row],[بدايه الاشتراك]]","v":"00:00:00"},{"$f":"Table1[[#This Row],[نهايه الاشتراك]]","v":"00:00:00"}]
[{"$f":"Table1[[#This Row],[أســــم المشترك]]","v":0},{"$f":"Table1[[#This Row],[كود المشترك]]","v":0},{"$f":"Table1[[#This Row],[رقم الموبايـــل]]","v":0},{"$f":"Table1[[#This Row],[مده الاشتراك]]","v":0},{"$f":"Table1[[#This Row],[بدايه الاشتراك]]","v":"00:00:00"},{"$f":"Table1[[#This Row],[نهايه الاشتراك]]","v":"00:00:00"}]
[{"$f":"Table1[[#This Row],[أســــم المشترك]]","v":0},{"$f":"Table1[[#This Row],[كود المشترك]]","v":0},{"$f":"Table1[[#This Row],[رقم الموبايـــل]]","v":0},{"$f":"Table1[[#This Row],[مده الاشتراك]]","v":0},{"$f":"Table1[[#This Row],[بدايه الاشتراك]]","v":"00:00:00"},{"$f":"Table1[[#This Row],[نهايه الاشتراك]]","v":"00:00:00"}]
[{"$f":"Table1[[#This Row],[أســــم المشترك]]","v":0},{"$f":"Table1[[#This Row],[كود المشترك]]","v":0},{"$f":"Table1[[#This Row],[رقم الموبايـــل]]","v":0},{"$f":"Table1[[#This Row],[مده الاشتراك]]","v":0},{"$f":"Table1[[#This Row],[بدايه الاشتراك]]","v":"00:00:00"},{"$f":"Table1[[#This Row],[نهايه الاشتراك]]","v":"00:00:00"}]
[{"$f":"Table1[[#This Row],[أســــم المشترك]]","v":0},{"$f":"Table1[[#This Row],[كود المشترك]]","v":0},{"$f":"Table1[[#This Row],[رقم الموبايـــل]]","v":0},{"$f":"Table1[[#This Row],[مده الاشتراك]]","v":0},{"$f":"Table1[[#This Row],[بدايه الاشتراك]]","v":"00:00:00"},{"$f":"Table1[[#This Row],[نهايه الاشتراك]]","v":"00:00:00"}]
[{"$f":"Table1[[#This Row],[أســــم المشترك]]","v":0},{"$f":"Table1[[#This Row],[كود المشترك]]","v":0},{"$f":"Table1[[#This Row],[رقم الموبايـــل]]","v":0},{"$f":"Table1[[#This Row],[مده الاشتراك]]","v":0},{"$f":"Table1[[#This Row],[بدايه الاشتراك]]","v":"00:00:00"},{"$f":"Table1[[#This Row],[نهايه الاشتراك]]","v":"00:00:00"}]
[{"$f":"Table1[[#This Row],[أســــم المشترك]]","v":0},{"$f":"Table1[[#This Row],[كود المشترك]]","v":0},{"$f":"Table1[[#This Row],[رقم الموبايـــل]]","v":0},{"$f":"Table1[[#This Row],[مده الاشتراك]]","v":0},{"$f":"Table1[[#This Row],[بدايه الاشتراك]]","v":"00:00:00"},{"$f":"Table1[[#This Row],[نهايه الاشتراك]]","v":"00:00:00"}]
[{"$f":"Table1[[#This Row],[أســــم المشترك]]","v":0},{"$f":"Table1[[#This Row],[كود المشترك]]","v":0},{"$f":"Table1[[#This Row],[رقم الموبايـــل]]","v":0},{"$f":"Table1[[#This Row],[مده الاشتراك]]","v":0},{"$f":"Table1[[#This Row],[بدايه الاشتراك]]","v":"00:00:00"},{"$f":"Table1[[#This Row],[نهايه الاشتراك]]","v":"00:00:00"}]
[{"$f":"Table1[[#This Row],[أســــم المشترك]]","v":0},{"$f":"Table1[[#This Row],[كود المشترك]]","v":0},{"$f":"Table1[[#This Row],[رقم الموبايـــل]]","v":0},{"$f":"Table1[[#This Row],[مده الاشتراك]]","v":0},{"$f":"Table1[[#This Row],[بدايه الاشتراك]]","v":"00:00:00"},{"$f":"Table1[[#This Row],[نهايه الاشتراك]]","v":"00:00:00"}]
[{"$f":"Table1[[#This Row],[أســــم المشترك]]","v":0},{"$f":"Table1[[#This Row],[كود المشترك]]","v":0},{"$f":"Table1[[#This Row],[رقم الموبايـــل]]","v":0},{"$f":"Table1[[#This Row],[مده الاشتراك]]","v":0},{"$f":"Table1[[#This Row],[بدايه الاشتراك]]","v":"00:00:00"},{"$f":"Table1[[#This Row],[نهايه الاشتراك]]","v":"00:00:00"}]
[{"$f":"Table1[[#This Row],[أســــم المشترك]]","v":0},{"$f":"Table1[[#This Row],[كود المشترك]]","v":0},{"$f":"Table1[[#This Row],[رقم الموبايـــل]]","v":0},{"$f":"Table1[[#This Row],[مده الاشتراك]]","v":0},{"$f":"Table1[[#This Row],[بدايه الاشتراك]]","v":"00:00:00"},{"$f":"Table1[[#This Row],[نهايه الاشتراك]]","v":"00:00:00"}]
[{"$f":"Table1[[#This Row],[أســــم المشترك]]","v":0},{"$f":"Table1[[#This Row],[كود المشترك]]","v":0},{"$f":"Table1[[#This Row],[رقم الموبايـــل]]","v":0},{"$f":"Table1[[#This Row],[مده الاشتراك]]","v":0},{"$f":"Table1[[#This Row],[بدايه الاشتراك]]","v":"00:00:00"},{"$f":"Table1[[#This Row],[نهايه الاشتراك]]","v":"00:00:00"}]
[{"$f":"Table1[[#This Row],[أســــم المشترك]]","v":0},{"$f":"Table1[[#This Row],[كود المشترك]]","v":0},{"$f":"Table1[[#This Row],[رقم الموبايـــل]]","v":0},{"$f":"Table1[[#This Row],[مده الاشتراك]]","v":0},{"$f":"Table1[[#This Row],[بدايه الاشتراك]]","v":"00:00:00"},{"$f":"Table1[[#This Row],[نهايه الاشتراك]]","v":"00:00:00"}]
[{"$f":"Table1[[#This Row],[أســــم المشترك]]","v":0},{"$f":"Table1[[#This Row],[كود المشترك]]","v":0},{"$f":"Table1[[#This Row],[رقم الموبايـــل]]","v":0},{"$f":"Table1[[#This Row],[مده الاشتراك]]","v":0},{"$f":"Table1[[#This Row],[بدايه الاشتراك]]","v":"00:00:00"},{"$f":"Table1[[#This Row],[نهايه الاشتراك]]","v":"00:00:00"}]
[{"$f":"Table1[[#This Row],[أســــم المشترك]]","v":0},{"$f":"Table1[[#This Row],[كود المشترك]]","v":0},{"$f":"Table1[[#This Row],[رقم الموبايـــل]]","v":0},{"$f":"Table1[[#This Row],[مده الاشتراك]]","v":0},{"$f":"Table1[[#This Row],[بدايه الاشتراك]]","v":"00:00:00"},{"$f":"Table1[[#This Row],[نهايه الاشتراك]]","v":"00:00:00"}]
[{"$f":"Table1[[#This Row],[أســــم المشترك]]","v":0},{"$f":"Table1[[#This Row],[كود المشترك]]","v":0},{"$f":"Table1[[#This Row],[رقم الموبايـــل]]","v":0},{"$f":"Table1[[#This Row],[مده الاشتراك]]","v":0},{"$f":"Table1[[#This Row],[بدايه الاشتراك]]","v":"00:00:00"},{"$f":"Table1[[#This Row],[نهايه الاشتراك]]","v":"00:00:00"}]
[{"$f":"Table1[[#This Row],[أســــم المشترك]]","v":0},{"$f":"Table1[[#This Row],[كود المشترك]]","v":0},{"$f":"Table1[[#This Row],[رقم الموبايـــل]]","v":0},{"$f":"Table1[[#This Row],[مده الاشتراك]]","v":0},{"$f":"Table1[[#This Row],[بدايه الاشتراك]]","v":"00:00:00"},{"$f":"Table1[[#This Row],[نهايه الاشتراك]]","v":"00:00:00"}]
[{"$f":"Table1[[#This Row],[أســــم المشترك]]","v":0},{"$f":"Table1[[#This Row],[كود المشترك]]","v":0},{"$f":"Table1[[#This Row],[رقم الموبايـــل]]","v":0},{"$f":"Table1[[#This Row],[مده الاشتراك]]","v":0},{"$f":"Table1[[#This Row],[بدايه الاشتراك]]","v":"00:00:00"},{"$f":"Table1[[#This Row],[نهايه الاشتراك]]","v":"00:00:00"}]
[{"$f":"Table1[[#This Row],[أســــم المشترك]]","v":0},{"$f":"Table1[[#This Row],[كود المشترك]]","v":0},{"$f":"Table1[[#This Row],[رقم الموبايـــل]]","v":0},{"$f":"Table1[[#This Row],[مده الاشتراك]]","v":0},{"$f":"Table1[[#This Row],[بدايه الاشتراك]]","v":"00:00:00"},{"$f":"Table1[[#This Row],[نهايه الاشتراك]]","v":"00:00:00"}]
[{"$f":"Table1[[#This Row],[أســــم المشترك]]","v":0},{"$f":"Table1[[#This Row],[كود المشترك]]","v":0},{"$f":"Table1[[#This Row],[رقم الموبايـــل]]","v":0},{"$f":"Table1[[#This Row],[مده الاشتراك]]","v":0},{"$f":"Table1[[#This Row],[بدايه الاشتراك]]","v":"00:00:00"},{"$f":"Table1[[#This Row],[نهايه الاشتراك]]","v":"00:00:00"}]
[{"$f":"Table1[[#This Row],[أســــم المشترك]]","v":0},{"$f":"Table1[[#This Row],[كود المشترك]]","v":0},{"$f":"Table1[[#This Row],[رقم الموبايـــل]]","v":0},{"$f":"Table1[[#This Row],[مده الاشتراك]]","v":0},{"$f":"Table1[[#This Row],[بدايه الاشتراك]]","v":"00:00:00"},{"$f":"Table1[[#This Row],[نهايه الاشتراك]]","v":"00:00:00"}]
[{"$f":"Table1[[#This Row],[أســــم المشترك]]","v":0},{"$f":"Table1[[#This Row],[كود المشترك]]","v":0},{"$f":"Table1[[#This Row],[رقم الموبايـــل]]","v":0},{"$f":"Table1[[#This Row],[مده الاشتراك]]","v":0},{"$f":"Table1[[#This Row],[بدايه الاشتراك]]","v":"00:00:00"},{"$f":"Table1[[#This Row],[نهايه الاشتراك]]","v":"00:00:00"}]
[{"$f":"Table1[[#This Row],[أســــم المشترك]]","v":0},{"$f":"Table1[[#This Row],[كود المشترك]]","v":0},{"$f":"Table1[[#This Row],[رقم الموبايـــل]]","v":0},{"$f":"Table1[[#This Row],[مده الاشتراك]]","v":0},{"$f":"Table1[[#This Row],[بدايه الاشتراك]]","v":"00:00:00"},{"$f":"Table1[[#This Row],[نهايه الاشتراك]]","v":"00:00:00"}]
[{"$f":"Table1[[#This Row],[أســــم المشترك]]","v":0},{"$f":"Table1[[#This Row],[كود المشترك]]","v":0},{"$f":"Table1[[#This Row],[رقم الموبايـــل]]","v":0},{"$f":"Table1[[#This Row],[مده الاشتراك]]","v":0},{"$f":"Table1[[#This Row],[بدايه الاشتراك]]","v":"00:00:00"},{"$f":"Table1[[#This Row],[نهايه الاشتراك]]","v":"00:00:00"}]
[{"$f":"Table1[[#This Row],[أســــم المشترك]]","v":0},{"$f":"Table1[[#This Row],[كود المشترك]]","v":0},{"$f":"Table1[[#This Row],[رقم الموبايـــل]]","v":0},{"$f":"Table1[[#This Row],[مده الاشتراك]]","v":0},{"$f":"Table1[[#This Row],[بدايه الاشتراك]]","v":"00:00:00"},{"$f":"Table1[[#This Row],[نهايه الاشتراك]]","v":"00:00:00"}]
[{"$f":"Table1[[#This Row],[أســــم المشترك]]","v":0},{"$f":"Table1[[#This Row],[كود المشترك]]","v":0},{"$f":"Table1[[#This Row],[رقم الموبايـــل]]","v":0},{"$f":"Table1[[#This Row],[مده الاشتراك]]","v":0},{"$f":"Table1[[#This Row],[بدايه الاشتراك]]","v":"00:00:00"},{"$f":"Table1[[#This Row],[نهايه الاشتراك]]","v":"00:00:00"}]
[{"$f":"Table1[[#This Row],[أســــم المشترك]]","v":0},{"$f":"Table1[[#This Row],[كود المشترك]]","v":0},{"$f":"Table1[[#This Row],[رقم الموبايـــل]]","v":0},{"$f":"Table1[[#This Row],[مده الاشتراك]]","v":0},{"$f":"Table1[[#This Row],[بدايه الاشتراك]]","v":"00:00:00"},{"$f":"Table1[[#This Row],[نهايه الاشتراك]]","v":"00:00:00"}]
[{"$f":"Table1[[#This Row],[أســــم المشترك]]","v":0},{"$f":"Table1[[#This Row],[كود المشترك]]","v":0},{"$f":"Table1[[#This Row],[رقم الموبايـــل]]","v":0},{"$f":"Table1[[#This Row],[مده الاشتراك]]","v":0},{"$f":"Table1[[#This Row],[بدايه الاشتراك]]","v":"00:00:00"},{"$f":"Table1[[#This Row],[نهايه الاشتراك]]","v":"00:00:00"}]
[{"$f":"Table1[[#This Row],[أســــم المشترك]]","v":0},{"$f":"Table1[[#This Row],[كود المشترك]]","v":0},{"$f":"Table1[[#This Row],[رقم الموبايـــل]]","v":0},{"$f":"Table1[[#This Row],[مده الاشتراك]]","v":0},{"$f":"Table1[[#This Row],[بدايه الاشتراك]]","v":"00:00:00"},{"$f":"Table1[[#This Row],[نهايه الاشتراك]]","v":"00:00:00"}]
[{"$f":"Table1[[#This Row],[أســــم المشترك]]","v":0},{"$f":"Table1[[#This Row],[كود المشترك]]","v":0},{"$f":"Table1[[#This Row],[رقم الموبايـــل]]","v":0},{"$f":"Table1[[#This Row],[مده الاشتراك]]","v":0},{"$f":"Table1[[#This Row],[بدايه الاشتراك]]","v":"00:00:00"},{"$f":"Table1[[#This Row],[نهايه الاشتراك]]","v":"00:00:00"}]
[{"$f":"Table1[[#This Row],[أســــم المشترك]]","v":0},{"$f":"Table1[[#This Row],[كود المشترك]]","v":0},{"$f":"Table1[[#This Row],[رقم الموبايـــل]]","v":0},{"$f":"Table1[[#This Row],[مده الاشتراك]]","v":0},{"$f":"Table1[[#This Row],[بدايه الاشتراك]]","v":"00:00:00"},{"$f":"Table1[[#This Row],[نهايه الاشتراك]]","v":"00:00:00"}]
[{"$f":"Table1[[#This Row],[أســــم المشترك]]","v":0},{"$f":"Table1[[#This Row],[كود المشترك]]","v":0},{"$f":"Table1[[#This Row],[رقم الموبايـــل]]","v":0},{"$f":"Table1[[#This Row],[مده الاشتراك]]","v":0},{"$f":"Table1[[#This Row],[بدايه الاشتراك]]","v":"00:00:00"},{"$f":"Table1[[#This Row],[نهايه الاشتراك]]","v":"00:00:00"}]
[{"$f":"Table1[[#This Row],[أســــم المشترك]]","v":0},{"$f":"Table1[[#This Row],[كود المشترك]]","v":0},{"$f":"Table1[[#This Row],[رقم الموبايـــل]]","v":0},{"$f":"Table1[[#This Row],[مده الاشتراك]]","v":0},{"$f":"Table1[[#This Row],[بدايه الاشتراك]]","v":"00:00:00"},{"$f":"Table1[[#This Row],[نهايه الاشتراك]]","v":"00:00:00"}]
[{"$f":"Table1[[#This Row],[أســــم المشترك]]","v":0},{"$f":"Table1[[#This Row],[كود المشترك]]","v":0},{"$f":"Table1[[#This Row],[رقم الموبايـــل]]","v":0},{"$f":"Table1[[#This Row],[مده الاشتراك]]","v":0},{"$f":"Table1[[#This Row],[بدايه الاشتراك]]","v":"00:00:00"},{"$f":"Table1[[#This Row],[نهايه الاشتراك]]","v":"00:00:00"}]
[{"$f":"Table1[[#This Row],[أســــم المشترك]]","v":0},{"$f":"Table1[[#This Row],[كود المشترك]]","v":0},{"$f":"Table1[[#This Row],[رقم الموبايـــل]]","v":0},{"$f":"Table1[[#This Row],[مده الاشتراك]]","v":0},{"$f":"Table1[[#This Row],[بدايه الاشتراك]]","v":"00:00:00"},{"$f":"Table1[[#This Row],[نهايه الاشتراك]]","v":"00:00:00"}]
[{"$f":"Table1[[#This Row],[أســــم المشترك]]","v":0},{"$f":"Table1[[#This Row],[كود المشترك]]","v":0},{"$f":"Table1[[#This Row],[رقم الموبايـــل]]","v":0},{"$f":"Table1[[#This Row],[مده الاشتراك]]","v":0},{"$f":"Table1[[#This Row],[بدايه الاشتراك]]","v":"00:00:00"},{"$f":"Table1[[#This Row],[نهايه الاشتراك]]","v":"00:00:00"}]
[{"$f":"Table1[[#This Row],[أســــم المشترك]]","v":0},{"$f":"Table1[[#This Row],[كود المشترك]]","v":0},{"$f":"Table1[[#This Row],[رقم الموبايـــل]]","v":0},{"$f":"Table1[[#This Row],[مده الاشتراك]]","v":0},{"$f":"Table1[[#This Row],[بدايه الاشتراك]]","v":"00:00:00"},{"$f":"Table1[[#This Row],[نهايه الاشتراك]]","v":"00:00:00"}]
[{"$f":"Table1[[#This Row],[أســــم المشترك]]","v":0},{"$f":"Table1[[#This Row],[كود المشترك]]","v":0},{"$f":"Table1[[#This Row],[رقم الموبايـــل]]","v":0},{"$f":"Table1[[#This Row],[مده الاشتراك]]","v":0},{"$f":"Table1[[#This Row],[بدايه الاشتراك]]","v":"00:00:00"},{"$f":"Table1[[#This Row],[نهايه الاشتراك]]","v":"00:00:00"}]
[{"$f":"Table1[[#This Row],[أســــم المشترك]]","v":0},{"$f":"Table1[[#This Row],[كود المشترك]]","v":0},{"$f":"Table1[[#This Row],[رقم الموبايـــل]]","v":0},{"$f":"Table1[[#This Row],[مده الاشتراك]]","v":0},{"$f":"Table1[[#This Row],[بدايه الاشتراك]]","v":"00:00:00"},{"$f":"Table1[[#This Row],[نهايه الاشتراك]]","v":"00:00:00"}]
[{"$f":"Table1[[#This Row],[أســــم المشترك]]","v":0},{"$f":"Table1[[#This Row],[كود المشترك]]","v":0},{"$f":"Table1[[#This Row],[رقم الموبايـــل]]","v":0},{"$f":"Table1[[#This Row],[مده الاشتراك]]","v":0},{"$f":"Table1[[#This Row],[بدايه الاشتراك]]","v":"00:00:00"},{"$f":"Table1[[#This Row],[نهايه الاشتراك]]","v":"00:00:00"}]
[{"$f":"Table1[[#This Row],[أســــم المشترك]]","v":0},{"$f":"Table1[[#This Row],[كود المشترك]]","v":0},{"$f":"Table1[[#This Row],[رقم الموبايـــل]]","v":0},{"$f":"Table1[[#This Row],[مده الاشتراك]]","v":0},{"$f":"Table1[[#This Row],[بدايه الاشتراك]]","v":"00:00:00"},{"$f":"Table1[[#This Row],[نهايه الاشتراك]]","v":"00:00:00"}]
[{"$f":"Table1[[#This Row],[أســــم المشترك]]","v":0},{"$f":"Table1[[#This Row],[كود المشترك]]","v":0},{"$f":"Table1[[#This Row],[رقم الموبايـــل]]","v":0},{"$f":"Table1[[#This Row],[مده الاشتراك]]","v":0},{"$f":"Table1[[#This Row],[بدايه الاشتراك]]","v":"00:00:00"},{"$f":"Table1[[#This Row],[نهايه الاشتراك]]","v":"00:00:00"}]
[{"$f":"Table1[[#This Row],[أســــم المشترك]]","v":0},{"$f":"Table1[[#This Row],[كود المشترك]]","v":0},{"$f":"Table1[[#This Row],[رقم الموبايـــل]]","v":0},{"$f":"Table1[[#This Row],[مده الاشتراك]]","v":0},{"$f":"Table1[[#This Row],[بدايه الاشتراك]]","v":"00:00:00"},{"$f":"Table1[[#This Row],[نهايه الاشتراك]]","v":"00:00:00"}]
[{"$f":"Table1[[#This Row],[أســــم المشترك]]","v":0},{"$f":"Table1[[#This Row],[كود المشترك]]","v":0},{"$f":"Table1[[#This Row],[رقم الموبايـــل]]","v":0},{"$f":"Table1[[#This Row],[مده الاشتراك]]","v":0},{"$f":"Table1[[#This Row],[بدايه الاشتراك]]","v":"00:00:00"},{"$f":"Table1[[#This Row],[نهايه الاشتراك]]","v":"00:00:00"}]
[{"$f":"Table1[[#This Row],[أســــم المشترك]]","v":0},{"$f":"Table1[[#This Row],[كود المشترك]]","v":0},{"$f":"Table1[[#This Row],[رقم الموبايـــل]]","v":0},{"$f":"Table1[[#This Row],[مده الاشتراك]]","v":0},{"$f":"Table1[[#This Row],[بدايه الاشتراك]]","v":"00:00:00"},{"$f":"Table1[[#This Row],[نهايه الاشتراك]]","v":"00:00:00"}]
[{"$f":"Table1[[#This Row],[أســــم المشترك]]","v":0},{"$f":"Table1[[#This Row],[كود المشترك]]","v":0},{"$f":"Table1[[#This Row],[رقم الموبايـــل]]","v":0},{"$f":"Table1[[#This Row],[مده الاشتراك]]","v":0},{"$f":"Table1[[#This Row],[بدايه الاشتراك]]","v":"00:00:00"},{"$f":"Table1[[#This Row],[نهايه الاشتراك]]","v":"00:00:00"}]
[{"$f":"Table1[[#This Row],[أســــم المشترك]]","v":0},{"$f":"Table1[[#This Row],[كود المشترك]]","v":0},{"$f":"Table1[[#This Row],[رقم الموبايـــل]]","v":0},{"$f":"Table1[[#This Row],[مده الاشتراك]]","v":0},{"$f":"Table1[[#This Row],[بدايه الاشتراك]]","v":"00:00:00"},{"$f":"Table1[[#This Row],[نهايه الاشتراك]]","v":"00:00:00"}]
[{"$f":"Table1[[#This Row],[أســــم المشترك]]","v":0},{"$f":"Table1[[#This Row],[كود المشترك]]","v":0},{"$f":"Table1[[#This Row],[رقم الموبايـــل]]","v":0},{"$f":"Table1[[#This Row],[مده الاشتراك]]","v":0},{"$f":"Table1[[#This Row],[بدايه الاشتراك]]","v":"00:00:00"},{"$f":"Table1[[#This Row],[نهايه الاشتراك]]","v":"00:00:00"}]
[{"$f":"Table1[[#This Row],[أســــم المشترك]]","v":0},{"$f":"Table1[[#This Row],[كود المشترك]]","v":0},{"$f":"Table1[[#This Row],[رقم الموبايـــل]]","v":0},{"$f":"Table1[[#This Row],[مده الاشتراك]]","v":0},{"$f":"Table1[[#This Row],[بدايه الاشتراك]]","v":"00:00:00"},{"$f":"Table1[[#This Row],[نهايه الاشتراك]]","v":"00:00:00"}]
[{"$f":"Table1[[#This Row],[أســــم المشترك]]","v":0},{"$f":"Table1[[#This Row],[كود المشترك]]","v":0},{"$f":"Table1[[#This Row],[رقم الموبايـــل]]","v":0},{"$f":"Table1[[#This Row],[مده الاشتراك]]","v":0},{"$f":"Table1[[#This Row],[بدايه الاشتراك]]","v":"00:00:00"},{"$f":"Table1[[#This Row],[نهايه الاشتراك]]","v":"00:00:00"}]
[{"$f":"Table1[[#This Row],[أســــم المشترك]]","v":0},{"$f":"Table1[[#This Row],[كود المشترك]]","v":0},{"$f":"Table1[[#This Row],[رقم الموبايـــل]]","v":0},{"$f":"Table1[[#This Row],[مده الاشتراك]]","v":0},{"$f":"Table1[[#This Row],[بدايه الاشتراك]]","v":"00:00:00"},{"$f":"Table1[[#This Row],[نهايه الاشتراك]]","v":"00:00:00"}]
[{"$f":"Table1[[#This Row],[أســــم المشترك]]","v":0},{"$f":"Table1[[#This Row],[كود المشترك]]","v":0},{"$f":"Table1[[#This Row],[رقم الموبايـــل]]","v":0},{"$f":"Table1[[#This Row],[مده الاشتراك]]","v":0},{"$f":"Table1[[#This Row],[بدايه الاشتراك]]","v":"00:00:00"},{"$f":"Table1[[#This Row],[نهايه الاشتراك]]","v":"00:00:00"}]
[{"$f":"Table1[[#This Row],[أســــم المشترك]]","v":0},{"$f":"Table1[[#This Row],[كود المشترك]]","v":0},{"$f":"Table1[[#This Row],[رقم الموبايـــل]]","v":0},{"$f":"Table1[[#This Row],[مده الاشتراك]]","v":0},{"$f":"Table1[[#This Row],[بدايه الاشتراك]]","v":"00:00:00"},{"$f":"Table1[[#This Row],[نهايه الاشتراك]]","v":"00:00:00"}]
[{"$f":"Table1[[#This Row],[أســــم المشترك]]","v":0},{"$f":"Table1[[#This Row],[كود المشترك]]","v":0},{"$f":"Table1[[#This Row],[رقم الموبايـــل]]","v":0},{"$f":"Table1[[#This Row],[مده الاشتراك]]","v":0},{"$f":"Table1[[#This Row],[بدايه الاشتراك]]","v":"00:00:00"},{"$f":"Table1[[#This Row],[نهايه الاشتراك]]","v":"00:00:00"}]
[{"$f":"Table1[[#This Row],[أســــم المشترك]]","v":0},{"$f":"Table1[[#This Row],[كود المشترك]]","v":0},{"$f":"Table1[[#This Row],[رقم الموبايـــل]]","v":0},{"$f":"Table1[[#This Row],[مده الاشتراك]]","v":0},{"$f":"Table1[[#This Row],[بدايه الاشتراك]]","v":"00:00:00"},{"$f":"Table1[[#This Row],[نهايه الاشتراك]]","v":"00:00:00"}]
[{"$f":"Table1[[#This Row],[أســــم المشترك]]","v":0},{"$f":"Table1[[#This Row],[كود المشترك]]","v":0},{"$f":"Table1[[#This Row],[رقم الموبايـــل]]","v":0},{"$f":"Table1[[#This Row],[مده الاشتراك]]","v":0},{"$f":"Table1[[#This Row],[بدايه الاشتراك]]","v":"00:00:00"},{"$f":"Table1[[#This Row],[نهايه الاشتراك]]","v":"00:00:00"}]
[{"$f":"Table1[[#This Row],[أســــم المشترك]]","v":0},{"$f":"Table1[[#This Row],[كود المشترك]]","v":0},{"$f":"Table1[[#This Row],[رقم الموبايـــل]]","v":0},{"$f":"Table1[[#This Row],[مده الاشتراك]]","v":0},{"$f":"Table1[[#This Row],[بدايه الاشتراك]]","v":"00:00:00"},{"$f":"Table1[[#This Row],[نهايه الاشتراك]]","v":"00:00:00"}]
[{"$f":"Table1[[#This Row],[أســــم المشترك]]","v":0},{"$f":"Table1[[#This Row],[كود المشترك]]","v":0},{"$f":"Table1[[#This Row],[رقم الموبايـــل]]","v":0},{"$f":"Table1[[#This Row],[مده الاشتراك]]","v":0},{"$f":"Table1[[#This Row],[بدايه الاشتراك]]","v":"00:00:00"},{"$f":"Table1[[#This Row],[نهايه الاشتراك]]","v":"00:00:00"}]
[{"$f":"Table1[[#This Row],[أســــم المشترك]]","v":0},{"$f":"Table1[[#This Row],[كود المشترك]]","v":0},{"$f":"Table1[[#This Row],[رقم الموبايـــل]]","v":0},{"$f":"Table1[[#This Row],[مده الاشتراك]]","v":0},{"$f":"Table1[[#This Row],[بدايه الاشتراك]]","v":"00:00:00"},{"$f":"Table1[[#This Row],[نهايه الاشتراك]]","v":"00:00:00"}]
[{"$f":"Table1[[#This Row],[أســــم المشترك]]","v":0},{"$f":"Table1[[#This Row],[كود المشترك]]","v":0},{"$f":"Table1[[#This Row],[رقم الموبايـــل]]","v":0},{"$f":"Table1[[#This Row],[مده الاشتراك]]","v":0},{"$f":"Table1[[#This Row],[بدايه الاشتراك]]","v":"00:00:00"},{"$f":"Table1[[#This Row],[نهايه الاشتراك]]","v":"00:00:00"}]
[{"$f":"Table1[[#This Row],[أســــم المشترك]]","v":0},{"$f":"Table1[[#This Row],[كود المشترك]]","v":0},{"$f":"Table1[[#This Row],[رقم الموبايـــل]]","v":0},{"$f":"Table1[[#This Row],[مده الاشتراك]]","v":0},{"$f":"Table1[[#This Row],[بدايه الاشتراك]]","v":"00:00:00"},{"$f":"Table1[[#This Row],[نهايه الاشتراك]]","v":"00:00:00"}]
[{"$f":"Table1[[#This Row],[أســــم المشترك]]","v":0},{"$f":"Table1[[#This Row],[كود المشترك]]","v":0},{"$f":"Table1[[#This Row],[رقم الموبايـــل]]","v":0},{"$f":"Table1[[#This Row],[مده الاشتراك]]","v":0},{"$f":"Table1[[#This Row],[بدايه الاشتراك]]","v":"00:00:00"},{"$f":"Table1[[#This Row],[نهايه الاشتراك]]","v":"00:00:00"}]
[{"$f":"Table1[[#This Row],[أســــم المشترك]]","v":0},{"$f":"Table1[[#This Row],[كود المشترك]]","v":0},{"$f":"Table1[[#This Row],[رقم الموبايـــل]]","v":0},{"$f":"Table1[[#This Row],[مده الاشتراك]]","v":0},{"$f":"Table1[[#This Row],[بدايه الاشتراك]]","v":"00:00:00"},{"$f":"Table1[[#This Row],[نهايه الاشتراك]]","v":"00:00:00"}]
[{"$f":"Table1[[#This Row],[أســــم المشترك]]","v":0},{"$f":"Table1[[#This Row],[كود المشترك]]","v":0},{"$f":"Table1[[#This Row],[رقم الموبايـــل]]","v":0},{"$f":"Table1[[#This Row],[مده الاشتراك]]","v":0},{"$f":"Table1[[#This Row],[بدايه الاشتراك]]","v":"00:00:00"},{"$f":"Table1[[#This Row],[نهايه الاشتراك]]","v":"00:00:00"}]
[{"$f":"Table1[[#This Row],[أســــم المشترك]]","v":0},{"$f":"Table1[[#This Row],[كود المشترك]]","v":0},{"$f":"Table1[[#This Row],[رقم الموبايـــل]]","v":0},{"$f":"Table1[[#This Row],[مده الاشتراك]]","v":0},{"$f":"Table1[[#This Row],[بدايه الاشتراك]]","v":"00:00:00"},{"$f":"Table1[[#This Row],[نهايه الاشتراك]]","v":"00:00:00"}]
[{"$f":"Table1[[#This Row],[أســــم المشترك]]","v":0},{"$f":"Table1[[#This Row],[كود المشترك]]","v":0},{"$f":"Table1[[#This Row],[رقم الموبايـــل]]","v":0},{"$f":"Table1[[#This Row],[مده الاشتراك]]","v":0},{"$f":"Table1[[#This Row],[بدايه الاشتراك]]","v":"00:00:00"},{"$f":"Table1[[#This Row],[نهايه الاشتراك]]","v":"00:00:00"}]
[{"$f":"Table1[[#This Row],[أســــم المشترك]]","v":0},{"$f":"Table1[[#This Row],[كود المشترك]]","v":0},{"$f":"Table1[[#This Row],[رقم الموبايـــل]]","v":0},{"$f":"Table1[[#This Row],[مده الاشتراك]]","v":0},{"$f":"Table1[[#This Row],[بدايه الاشتراك]]","v":"00:00:00"},{"$f":"Table1[[#This Row],[نهايه الاشتراك]]","v":"00:00:00"}]
[{"$f":"Table1[[#This Row],[أســــم المشترك]]","v":0},{"$f":"Table1[[#This Row],[كود المشترك]]","v":0},{"$f":"Table1[[#This Row],[رقم الموبايـــل]]","v":0},{"$f":"Table1[[#This Row],[مده الاشتراك]]","v":0},{"$f":"Table1[[#This Row],[بدايه الاشتراك]]","v":"00:00:00"},{"$f":"Table1[[#This Row],[نهايه الاشتراك]]","v":"00:00:00"}]
[{"$f":"Table1[[#This Row],[أســــم المشترك]]","v":0},{"$f":"Table1[[#This Row],[كود المشترك]]","v":0},{"$f":"Table1[[#This Row],[رقم الموبايـــل]]","v":0},{"$f":"Table1[[#This Row],[مده الاشتراك]]","v":0},{"$f":"Table1[[#This Row],[بدايه الاشتراك]]","v":"00:00:00"},{"$f":"Table1[[#This Row],[نهايه الاشتراك]]","v":"00:00:00"}]
[{"$f":"Table1[[#This Row],[أســــم المشترك]]","v":0},{"$f":"Table1[[#This Row],[كود المشترك]]","v":0},{"$f":"Table1[[#This Row],[رقم الموبايـــل]]","v":0},{"$f":"Table1[[#This Row],[مده الاشتراك]]","v":0},{"$f":"Table1[[#This Row],[بدايه الاشتراك]]","v":"00:00:00"},{"$f":"Table1[[#This Row],[نهايه الاشتراك]]","v":"00:00:00"}]
[{"$f":"Table1[[#This Row],[أســــم المشترك]]","v":0},{"$f":"Table1[[#This Row],[كود المشترك]]","v":0},{"$f":"Table1[[#This Row],[رقم الموبايـــل]]","v":0},{"$f":"Table1[[#This Row],[مده الاشتراك]]","v":0},{"$f":"Table1[[#This Row],[بدايه الاشتراك]]","v":"00:00:00"},{"$f":"Table1[[#This Row],[نهايه الاشتراك]]","v":"00:00:00"}]
[{"$f":"Table1[[#This Row],[أســــم المشترك]]","v":0},{"$f":"Table1[[#This Row],[كود المشترك]]","v":0},{"$f":"Table1[[#This Row],[رقم الموبايـــل]]","v":0},{"$f":"Table1[[#This Row],[مده الاشتراك]]","v":0},{"$f":"Table1[[#This Row],[بدايه الاشتراك]]","v":"00:00:00"},{"$f":"Table1[[#This Row],[نهايه الاشتراك]]","v":"00:00:00"}]
[{"$f":"Table1[[#This Row],[أســــم المشترك]]","v":0},{"$f":"Table1[[#This Row],[كود المشترك]]","v":0},{"$f":"Table1[[#This Row],[رقم الموبايـــل]]","v":0},{"$f":"Table1[[#This Row],[مده الاشتراك]]","v":0},{"$f":"Table1[[#This Row],[بدايه الاشتراك]]","v":"00:00:00"},{"$f":"Table1[[#This Row],[نهايه الاشتراك]]","v":"00:00:00"}]
[{"$f":"Table1[[#This Row],[أســــم المشترك]]","v":0},{"$f":"Table1[[#This Row],[كود المشترك]]","v":0},{"$f":"Table1[[#This Row],[رقم الموبايـــل]]","v":0},{"$f":"Table1[[#This Row],[مده الاشتراك]]","v":0},{"$f":"Table1[[#This Row],[بدايه الاشتراك]]","v":"00:00:00"},{"$f":"Table1[[#This Row],[نهايه الاشتراك]]","v":"00:00:00"}]
[{"$f":"Table1[[#This Row],[أســــم المشترك]]","v":0},{"$f":"Table1[[#This Row],[كود المشترك]]","v":0},{"$f":"Table1[[#This Row],[رقم الموبايـــل]]","v":0},{"$f":"Table1[[#This Row],[مده الاشتراك]]","v":0},{"$f":"Table1[[#This Row],[بدايه الاشتراك]]","v":"00:00:00"},{"$f":"Table1[[#This Row],[نهايه الاشتراك]]","v":"00:00:00"}]
[{"$f":"Table1[[#This Row],[أســــم المشترك]]","v":0},{"$f":"Table1[[#This Row],[كود المشترك]]","v":0},{"$f":"Table1[[#This Row],[رقم الموبايـــل]]","v":0},{"$f":"Table1[[#This Row],[مده الاشتراك]]","v":0},{"$f":"Table1[[#This Row],[بدايه الاشتراك]]","v":"00:00:00"},{"$f":"Table1[[#This Row],[نهايه الاشتراك]]","v":"00:00:00"}]
[{"$f":"Table1[[#This Row],[أســــم المشترك]]","v":0},{"$f":"Table1[[#This Row],[كود المشترك]]","v":0},{"$f":"Table1[[#This Row],[رقم الموبايـــل]]","v":0},{"$f":"Table1[[#This Row],[مده الاشتراك]]","v":0},{"$f":"Table1[[#This Row],[بدايه الاشتراك]]","v":"00:00:00"},{"$f":"Table1[[#This Row],[نهايه الاشتراك]]","v":"00:00:00"}]
[{"$f":"Table1[[#This Row],[أســــم المشترك]]","v":0},{"$f":"Table1[[#This Row],[كود المشترك]]","v":0},{"$f":"Table1[[#This Row],[رقم الموبايـــل]]","v":0},{"$f":"Table1[[#This Row],[مده الاشتراك]]","v":0},{"$f":"Table1[[#This Row],[بدايه الاشتراك]]","v":"00:00:00"},{"$f":"Table1[[#This Row],[نهايه الاشتراك]]","v":"00:00:00"}]
[{"$f":"Table1[[#This Row],[أســــم المشترك]]","v":0},{"$f":"Table1[[#This Row],[كود المشترك]]","v":0},{"$f":"Table1[[#This Row],[رقم الموبايـــل]]","v":0},{"$f":"Table1[[#This Row],[مده الاشتراك]]","v":0},{"$f":"Table1[[#This Row],[بدايه الاشتراك]]","v":"00:00:00"},{"$f":"Table1[[#This Row],[نهايه الاشتراك]]","v":"00:00:00"}]
[{"$f":"Table1[[#This Row],[أســــم المشترك]]","v":0},{"$f":"Table1[[#This Row],[كود المشترك]]","v":0},{"$f":"Table1[[#This Row],[رقم الموبايـــل]]","v":0},{"$f":"Table1[[#This Row],[مده الاشتراك]]","v":0},{"$f":"Table1[[#This Row],[بدايه الاشتراك]]","v":"00:00:00"},{"$f":"Table1[[#This Row],[نهايه الاشتراك]]","v":"00:00:00"}]
[{"$f":"Table1[[#This Row],[أســــم المشترك]]","v":0},{"$f":"Table1[[#This Row],[كود المشترك]]","v":0},{"$f":"Table1[[#This Row],[رقم الموبايـــل]]","v":0},{"$f":"Table1[[#This Row],[مده الاشتراك]]","v":0},{"$f":"Table1[[#This Row],[بدايه الاشتراك]]","v":"00:00:00"},{"$f":"Table1[[#This Row],[نهايه الاشتراك]]","v":"00:00:00"}]
[{"$f":"Table1[[#This Row],[أســــم المشترك]]","v":0},{"$f":"Table1[[#This Row],[كود المشترك]]","v":0},{"$f":"Table1[[#This Row],[رقم الموبايـــل]]","v":0},{"$f":"Table1[[#This Row],[مده الاشتراك]]","v":0},{"$f":"Table1[[#This Row],[بدايه الاشتراك]]","v":"00:00:00"},{"$f":"Table1[[#This Row],[نهايه الاشتراك]]","v":"00:00:00"}]
[{"$f":"Table1[[#This Row],[أســــم المشترك]]","v":0},{"$f":"Table1[[#This Row],[كود المشترك]]","v":0},{"$f":"Table1[[#This Row],[رقم الموبايـــل]]","v":0},{"$f":"Table1[[#This Row],[مده الاشتراك]]","v":0},{"$f":"Table1[[#This Row],[بدايه الاشتراك]]","v":"00:00:00"},{"$f":"Table1[[#This Row],[نهايه الاشتراك]]","v":"00:00:00"}]
[{"$f":"Table1[[#This Row],[أســــم المشترك]]","v":0},{"$f":"Table1[[#This Row],[كود المشترك]]","v":0},{"$f":"Table1[[#This Row],[رقم الموبايـــل]]","v":0},{"$f":"Table1[[#This Row],[مده الاشتراك]]","v":0},{"$f":"Table1[[#This Row],[بدايه الاشتراك]]","v":"00:00:00"},{"$f":"Table1[[#This Row],[نهايه الاشتراك]]","v":"00:00:00"}]
[{"$f":"Table1[[#This Row],[أســــم المشترك]]","v":0},{"$f":"Table1[[#This Row],[كود المشترك]]","v":0},{"$f":"Table1[[#This Row],[رقم الموبايـــل]]","v":0},{"$f":"Table1[[#This Row],[مده الاشتراك]]","v":0},{"$f":"Table1[[#This Row],[بدايه الاشتراك]]","v":"00:00:00"},{"$f":"Table1[[#This Row],[نهايه الاشتراك]]","v":"00:00:00"}]
[{"$f":"Table1[[#This Row],[أســــم المشترك]]","v":0},{"$f":"Table1[[#This Row],[كود المشترك]]","v":0},{"$f":"Table1[[#This Row],[رقم الموبايـــل]]","v":0},{"$f":"Table1[[#This Row],[مده الاشتراك]]","v":0},{"$f":"Table1[[#This Row],[بدايه الاشتراك]]","v":"00:00:00"},{"$f":"Table1[[#This Row],[نهايه الاشتراك]]","v":"00:00:00"}]
[{"$f":"Table1[[#This Row],[أســــم المشترك]]","v":0},{"$f":"Table1[[#This Row],[كود المشترك]]","v":0},{"$f":"Table1[[#This Row],[رقم الموبايـــل]]","v":0},{"$f":"Table1[[#This Row],[مده الاشتراك]]","v":0},{"$f":"Table1[[#This Row],[بدايه الاشتراك]]","v":"00:00:00"},{"$f":"Table1[[#This Row],[نهايه الاشتراك]]","v":"00:00:00"}]
[{"$f":"Table1[[#This Row],[أســــم المشترك]]","v":0},{"$f":"Table1[[#This Row],[كود المشترك]]","v":0},{"$f":"Table1[[#This Row],[رقم الموبايـــل]]","v":0},{"$f":"Table1[[#This Row],[مده الاشتراك]]","v":0},{"$f":"Table1[[#This Row],[بدايه الاشتراك]]","v":"00:00:00"},{"$f":"Table1[[#This Row],[نهايه الاشتراك]]","v":"00:00:00"}]
[{"$f":"Table1[[#This Row],[أســــم المشترك]]","v":0},{"$f":"Table1[[#This Row],[كود المشترك]]","v":0},{"$f":"Table1[[#This Row],[رقم الموبايـــل]]","v":0},{"$f":"Table1[[#This Row],[مده الاشتراك]]","v":0},{"$f":"Table1[[#This Row],[بدايه الاشتراك]]","v":"00:00:00"},{"$f":"Table1[[#This Row],[نهايه الاشتراك]]","v":"00:00:00"}]
[{"$f":"Table1[[#This Row],[أســــم المشترك]]","v":0},{"$f":"Table1[[#This Row],[كود المشترك]]","v":0},{"$f":"Table1[[#This Row],[رقم الموبايـــل]]","v":0},{"$f":"Table1[[#This Row],[مده الاشتراك]]","v":0},{"$f":"Table1[[#This Row],[بدايه الاشتراك]]","v":"00:00:00"},{"$f":"Table1[[#This Row],[نهايه الاشتراك]]","v":"00:00:00"}]
[{"$f":"Table1[[#This Row],[أســــم المشترك]]","v":0},{"$f":"Table1[[#This Row],[كود المشترك]]","v":0},{"$f":"Table1[[#This Row],[رقم الموبايـــل]]","v":0},{"$f":"Table1[[#This Row],[مده الاشتراك]]","v":0},{"$f":"Table1[[#This Row],[بدايه الاشتراك]]","v":"00:00:00"},{"$f":"Table1[[#This Row],[نهايه الاشتراك]]","v":"00:00:00"}]
[{"$f":"Table1[[#This Row],[أســــم المشترك]]","v":0},{"$f":"Table1[[#This Row],[كود المشترك]]","v":0},{"$f":"Table1[[#This Row],[رقم الموبايـــل]]","v":0},{"$f":"Table1[[#This Row],[مده الاشتراك]]","v":0},{"$f":"Table1[[#This Row],[بدايه الاشتراك]]","v":"00:00:00"},{"$f":"Table1[[#This Row],[نهايه الاشتراك]]","v":"00:00:00"}]
[{"$f":"Table1[[#This Row],[أســــم المشترك]]","v":0},{"$f":"Table1[[#This Row],[كود المشترك]]","v":0},{"$f":"Table1[[#This Row],[رقم الموبايـــل]]","v":0},{"$f":"Table1[[#This Row],[مده الاشتراك]]","v":0},{"$f":"Table1[[#This Row],[بدايه الاشتراك]]","v":"00:00:00"},{"$f":"Table1[[#This Row],[نهايه الاشتراك]]","v":"00:00:00"}]
[{"$f":"Table1[[#This Row],[أســــم المشترك]]","v":0},{"$f":"Table1[[#This Row],[كود المشترك]]","v":0},{"$f":"Table1[[#This Row],[رقم الموبايـــل]]","v":0},{"$f":"Table1[[#This Row],[مده الاشتراك]]","v":0},{"$f":"Table1[[#This Row],[بدايه الاشتراك]]","v":"00:00:00"},{"$f":"Table1[[#This Row],[نهايه الاشتراك]]","v":"00:00:00"}]
[{"$f":"Table1[[#This Row],[أســــم المشترك]]","v":0},{"$f":"Table1[[#This Row],[كود المشترك]]","v":0},{"$f":"Table1[[#This Row],[رقم الموبايـــل]]","v":0},{"$f":"Table1[[#This Row],[مده الاشتراك]]","v":0},{"$f":"Table1[[#This Row],[بدايه الاشتراك]]","v":"00:00:00"},{"$f":"Table1[[#This Row],[نهايه الاشتراك]]","v":"00:00:00"}]
[{"$f":"Table1[[#This Row],[أســــم المشترك]]","v":0},{"$f":"Table1[[#This Row],[كود المشترك]]","v":0},{"$f":"Table1[[#This Row],[رقم الموبايـــل]]","v":0},{"$f":"Table1[[#This Row],[مده الاشتراك]]","v":0},{"$f":"Table1[[#This Row],[بدايه الاشتراك]]","v":"00:00:00"},{"$f":"Table1[[#This Row],[نهايه الاشتراك]]","v":"00:00:00"}]
[{"$f":"Table1[[#This Row],[أســــم المشترك]]","v":0},{"$f":"Table1[[#This Row],[كود المشترك]]","v":0},{"$f":"Table1[[#This Row],[رقم الموبايـــل]]","v":0},{"$f":"Table1[[#This Row],[مده الاشتراك]]","v":0},{"$f":"Table1[[#This Row],[بدايه الاشتراك]]","v":"00:00:00"},{"$f":"Table1[[#This Row],[نهايه الاشتراك]]","v":"00:00:00"}]
[{"$f":"Table1[[#This Row],[أســــم المشترك]]","v":0},{"$f":"Table1[[#This Row],[كود المشترك]]","v":0},{"$f":"Table1[[#This Row],[رقم الموبايـــل]]","v":0},{"$f":"Table1[[#This Row],[مده الاشتراك]]","v":0},{"$f":"Table1[[#This Row],[بدايه الاشتراك]]","v":"00:00:00"},{"$f":"Table1[[#This Row],[نهايه الاشتراك]]","v":"00:00:00"}]
[{"$f":"Table1[[#This Row],[أســــم المشترك]]","v":0},{"$f":"Table1[[#This Row],[كود المشترك]]","v":0},{"$f":"Table1[[#This Row],[رقم الموبايـــل]]","v":0},{"$f":"Table1[[#This Row],[مده الاشتراك]]","v":0},{"$f":"Table1[[#This Row],[بدايه الاشتراك]]","v":"00:00:00"},{"$f":"Table1[[#This Row],[نهايه الاشتراك]]","v":"00:00:00"}]
[{"$f":"Table1[[#This Row],[أســــم المشترك]]","v":0},{"$f":"Table1[[#This Row],[كود المشترك]]","v":0},{"$f":"Table1[[#This Row],[رقم الموبايـــل]]","v":0},{"$f":"Table1[[#This Row],[مده الاشتراك]]","v":0},{"$f":"Table1[[#This Row],[بدايه الاشتراك]]","v":"00:00:00"},{"$f":"Table1[[#This Row],[نهايه الاشتراك]]","v":"00:00:00"}]
[{"$f":"Table1[[#This Row],[أســــم المشترك]]","v":0},{"$f":"Table1[[#This Row],[كود المشترك]]","v":0},{"$f":"Table1[[#This Row],[رقم الموبايـــل]]","v":0},{"$f":"Table1[[#This Row],[مده الاشتراك]]","v":0},{"$f":"Table1[[#This Row],[بدايه الاشتراك]]","v":"00:00:00"},{"$f":"Table1[[#This Row],[نهايه الاشتراك]]","v":"00:00:00"}]
[{"$f":"Table1[[#This Row],[أســــم المشترك]]","v":0},{"$f":"Table1[[#This Row],[كود المشترك]]","v":0},{"$f":"Table1[[#This Row],[رقم الموبايـــل]]","v":0},{"$f":"Table1[[#This Row],[مده الاشتراك]]","v":0},{"$f":"Table1[[#This Row],[بدايه الاشتراك]]","v":"00:00:00"},{"$f":"Table1[[#This Row],[نهايه الاشتراك]]","v":"00:00:00"}]
[{"$f":"Table1[[#This Row],[أســــم المشترك]]","v":0},{"$f":"Table1[[#This Row],[كود المشترك]]","v":0},{"$f":"Table1[[#This Row],[رقم الموبايـــل]]","v":0},{"$f":"Table1[[#This Row],[مده الاشتراك]]","v":0},{"$f":"Table1[[#This Row],[بدايه الاشتراك]]","v":"00:00:00"},{"$f":"Table1[[#This Row],[نهايه الاشتراك]]","v":"00:00:00"}]
[{"$f":"Table1[[#This Row],[أســــم المشترك]]","v":0},{"$f":"Table1[[#This Row],[كود المشترك]]","v":0},{"$f":"Table1[[#This Row],[رقم الموبايـــل]]","v":0},{"$f":"Table1[[#This Row],[مده الاشتراك]]","v":0},{"$f":"Table1[[#This Row],[بدايه الاشتراك]]","v":"00:00:00"},{"$f":"Table1[[#This Row],[نهايه الاشتراك]]","v":"00:00:00"}]
[{"$f":"Table1[[#This Row],[أســــم المشترك]]","v":0},{"$f":"Table1[[#This Row],[كود المشترك]]","v":0},{"$f":"Table1[[#This Row],[رقم الموبايـــل]]","v":0},{"$f":"Table1[[#This Row],[مده الاشتراك]]","v":0},{"$f":"Table1[[#This Row],[بدايه الاشتراك]]","v":"00:00:00"},{"$f":"Table1[[#This Row],[نهايه الاشتراك]]","v":"00:00:00"}]
[{"$f":"Table1[[#This Row],[أســــم المشترك]]","v":0},{"$f":"Table1[[#This Row],[كود المشترك]]","v":0},{"$f":"Table1[[#This Row],[رقم الموبايـــل]]","v":0},{"$f":"Table1[[#This Row],[مده الاشتراك]]","v":0},{"$f":"Table1[[#This Row],[بدايه الاشتراك]]","v":"00:00:00"},{"$f":"Table1[[#This Row],[نهايه الاشتراك]]","v":"00:00:00"}]
[{"$f":"Table1[[#This Row],[أســــم المشترك]]","v":0},{"$f":"Table1[[#This Row],[كود المشترك]]","v":0},{"$f":"Table1[[#This Row],[رقم الموبايـــل]]","v":0},{"$f":"Table1[[#This Row],[مده الاشتراك]]","v":0},{"$f":"Table1[[#This Row],[بدايه الاشتراك]]","v":"00:00:00"},{"$f":"Table1[[#This Row],[نهايه الاشتراك]]","v":"00:00:00"}]
[{"$f":"Table1[[#This Row],[أســــم المشترك]]","v":0},{"$f":"Table1[[#This Row],[كود المشترك]]","v":0},{"$f":"Table1[[#This Row],[رقم الموبايـــل]]","v":0},{"$f":"Table1[[#This Row],[مده الاشتراك]]","v":0},{"$f":"Table1[[#This Row],[بدايه الاشتراك]]","v":"00:00:00"},{"$f":"Table1[[#This Row],[نهايه الاشتراك]]","v":"00:00:00"}]
[{"$f":"Table1[[#This Row],[أســــم المشترك]]","v":0},{"$f":"Table1[[#This Row],[كود المشترك]]","v":0},{"$f":"Table1[[#This Row],[رقم الموبايـــل]]","v":0},{"$f":"Table1[[#This Row],[مده الاشتراك]]","v":0},{"$f":"Table1[[#This Row],[بدايه الاشتراك]]","v":"00:00:00"},{"$f":"Table1[[#This Row],[نهايه الاشتراك]]","v":"00:00:00"}]
[{"$f":"Table1[[#This Row],[أســــم المشترك]]","v":0},{"$f":"Table1[[#This Row],[كود المشترك]]","v":0},{"$f":"Table1[[#This Row],[رقم الموبايـــل]]","v":0},{"$f":"Table1[[#This Row],[مده الاشتراك]]","v":0},{"$f":"Table1[[#This Row],[بدايه الاشتراك]]","v":"00:00:00"},{"$f":"Table1[[#This Row],[نهايه الاشتراك]]","v":"00:00:00"}]
[{"$f":"Table1[[#This Row],[أســــم المشترك]]","v":0},{"$f":"Table1[[#This Row],[كود المشترك]]","v":0},{"$f":"Table1[[#This Row],[رقم الموبايـــل]]","v":0},{"$f":"Table1[[#This Row],[مده الاشتراك]]","v":0},{"$f":"Table1[[#This Row],[بدايه الاشتراك]]","v":"00:00:00"},{"$f":"Table1[[#This Row],[نهايه الاشتراك]]","v":"00:00:00"}]
[{"$f":"Table1[[#This Row],[أســــم المشترك]]","v":0},{"$f":"Table1[[#This Row],[كود المشترك]]","v":0},{"$f":"Table1[[#This Row],[رقم الموبايـــل]]","v":0},{"$f":"Table1[[#This Row],[مده الاشتراك]]","v":0},{"$f":"Table1[[#This Row],[بدايه الاشتراك]]","v":"00:00:00"},{"$f":"Table1[[#This Row],[نهايه الاشتراك]]","v":"00:00:00"}]
[{"$f":"Table1[[#This Row],[أســــم المشترك]]","v":0},{"$f":"Table1[[#This Row],[كود المشترك]]","v":0},{"$f":"Table1[[#This Row],[رقم الموبايـــل]]","v":0},{"$f":"Table1[[#This Row],[مده الاشتراك]]","v":0},{"$f":"Table1[[#This Row],[بدايه الاشتراك]]","v":"00:00:00"},{"$f":"Table1[[#This Row],[نهايه الاشتراك]]","v":"00:00:00"}]
[{"$f":"Table1[[#This Row],[أســــم المشترك]]","v":0},{"$f":"Table1[[#This Row],[كود المشترك]]","v":0},{"$f":"Table1[[#This Row],[رقم الموبايـــل]]","v":0},{"$f":"Table1[[#This Row],[مده الاشتراك]]","v":0},{"$f":"Table1[[#This Row],[بدايه الاشتراك]]","v":"00:00:00"},{"$f":"Table1[[#This Row],[نهايه الاشتراك]]","v":"00:00:00"}]
[{"$f":"Table1[[#This Row],[أســــم المشترك]]","v":0},{"$f":"Table1[[#This Row],[كود المشترك]]","v":0},{"$f":"Table1[[#This Row],[رقم الموبايـــل]]","v":0},{"$f":"Table1[[#This Row],[مده الاشتراك]]","v":0},{"$f":"Table1[[#This Row],[بدايه الاشتراك]]","v":"00:00:00"},{"$f":"Table1[[#This Row],[نهايه الاشتراك]]","v":"00:00:00"}]
[{"$f":"Table1[[#This Row],[أســــم المشترك]]","v":0},{"$f":"Table1[[#This Row],[كود المشترك]]","v":0},{"$f":"Table1[[#This Row],[رقم الموبايـــل]]","v":0},{"$f":"Table1[[#This Row],[مده الاشتراك]]","v":0},{"$f":"Table1[[#This Row],[بدايه الاشتراك]]","v":"00:00:00"},{"$f":"Table1[[#This Row],[نهايه الاشتراك]]","v":"00:00:00"}]
[{"$f":"Table1[[#This Row],[أســــم المشترك]]","v":0},{"$f":"Table1[[#This Row],[كود المشترك]]","v":0},{"$f":"Table1[[#This Row],[رقم الموبايـــل]]","v":0},{"$f":"Table1[[#This Row],[مده الاشتراك]]","v":0},{"$f":"Table1[[#This Row],[بدايه الاشتراك]]","v":"00:00:00"},{"$f":"Table1[[#This Row],[نهايه الاشتراك]]","v":"00:00:00"}]
[{"$f":"Table1[[#This Row],[أســــم المشترك]]","v":0},{"$f":"Table1[[#This Row],[كود المشترك]]","v":0},{"$f":"Table1[[#This Row],[رقم الموبايـــل]]","v":0},{"$f":"Table1[[#This Row],[مده الاشتراك]]","v":0},{"$f":"Table1[[#This Row],[بدايه الاشتراك]]","v":"00:00:00"},{"$f":"Table1[[#This Row],[نهايه الاشتراك]]","v":"00:00:00"}]
[{"$f":"Table1[[#This Row],[أســــم المشترك]]","v":0},{"$f":"Table1[[#This Row],[كود المشترك]]","v":0},{"$f":"Table1[[#This Row],[رقم الموبايـــل]]","v":0},{"$f":"Table1[[#This Row],[مده الاشتراك]]","v":0},{"$f":"Table1[[#This Row],[بدايه الاشتراك]]","v":"00:00:00"},{"$f":"Table1[[#This Row],[نهايه الاشتراك]]","v":"00:00:00"}]
[{"$f":"Table1[[#This Row],[أســــم المشترك]]","v":0},{"$f":"Table1[[#This Row],[كود المشترك]]","v":0},{"$f":"Table1[[#This Row],[رقم الموبايـــل]]","v":0},{"$f":"Table1[[#This Row],[مده الاشتراك]]","v":0},{"$f":"Table1[[#This Row],[بدايه الاشتراك]]","v":"00:00:00"},{"$f":"Table1[[#This Row],[نهايه الاشتراك]]","v":"00:00:00"}]
[{"$f":"Table1[[#This Row],[أســــم المشترك]]","v":0},{"$f":"Table1[[#This Row],[كود المشترك]]","v":0},{"$f":"Table1[[#This Row],[رقم الموبايـــل]]","v":0},{"$f":"Table1[[#This Row],[مده الاشتراك]]","v":0},{"$f":"Table1[[#This Row],[بدايه الاشتراك]]","v":"00:00:00"},{"$f":"Table1[[#This Row],[نهايه الاشتراك]]","v":"00:00:00"}]
[{"$f":"Table1[[#This Row],[أســــم المشترك]]","v":0},{"$f":"Table1[[#This Row],[كود المشترك]]","v":0},{"$f":"Table1[[#This Row],[رقم الموبايـــل]]","v":0},{"$f":"Table1[[#This Row],[مده الاشتراك]]","v":0},{"$f":"Table1[[#This Row],[بدايه الاشتراك]]","v":"00:00:00"},{"$f":"Table1[[#This Row],[نهايه الاشتراك]]","v":"00:00:00"}]
[{"$f":"Table1[[#This Row],[أســــم المشترك]]","v":0},{"$f":"Table1[[#This Row],[كود المشترك]]","v":0},{"$f":"Table1[[#This Row],[رقم الموبايـــل]]","v":0},{"$f":"Table1[[#This Row],[مده الاشتراك]]","v":0},{"$f":"Table1[[#This Row],[بدايه الاشتراك]]","v":"00:00:00"},{"$f":"Table1[[#This Row],[نهايه الاشتراك]]","v":"00:00:00"}]
[{"$f":"Table1[[#This Row],[أســــم المشترك]]","v":0},{"$f":"Table1[[#This Row],[كود المشترك]]","v":0},{"$f":"Table1[[#This Row],[رقم الموبايـــل]]","v":0},{"$f":"Table1[[#This Row],[مده الاشتراك]]","v":0},{"$f":"Table1[[#This Row],[بدايه الاشتراك]]","v":"00:00:00"},{"$f":"Table1[[#This Row],[نهايه الاشتراك]]","v":"00:00:00"}]
[{"$f":"Table1[[#This Row],[أســــم المشترك]]","v":0},{"$f":"Table1[[#This Row],[كود المشترك]]","v":0},{"$f":"Table1[[#This Row],[رقم الموبايـــل]]","v":0},{"$f":"Table1[[#This Row],[مده الاشتراك]]","v":0},{"$f":"Table1[[#This Row],[بدايه الاشتراك]]","v":"00:00:00"},{"$f":"Table1[[#This Row],[نهايه الاشتراك]]","v":"00:00:00"}]
[{"$f":"Table1[[#This Row],[أســــم المشترك]]","v":0},{"$f":"Table1[[#This Row],[كود المشترك]]","v":0},{"$f":"Table1[[#This Row],[رقم الموبايـــل]]","v":0},{"$f":"Table1[[#This Row],[مده الاشتراك]]","v":0},{"$f":"Table1[[#This Row],[بدايه الاشتراك]]","v":"00:00:00"},{"$f":"Table1[[#This Row],[نهايه الاشتراك]]","v":"00:00:00"}]
[{"$f":"Table1[[#This Row],[أســــم المشترك]]","v":0},{"$f":"Table1[[#This Row],[كود المشترك]]","v":0},{"$f":"Table1[[#This Row],[رقم الموبايـــل]]","v":0},{"$f":"Table1[[#This Row],[مده الاشتراك]]","v":0},{"$f":"Table1[[#This Row],[بدايه الاشتراك]]","v":"00:00:00"},{"$f":"Table1[[#This Row],[نهايه الاشتراك]]","v":"00:00:00"}]
[{"$f":"Table1[[#This Row],[أســــم المشترك]]","v":0},{"$f":"Table1[[#This Row],[كود المشترك]]","v":0},{"$f":"Table1[[#This Row],[رقم الموبايـــل]]","v":0},{"$f":"Table1[[#This Row],[مده الاشتراك]]","v":0},{"$f":"Table1[[#This Row],[بدايه الاشتراك]]","v":"00:00:00"},{"$f":"Table1[[#This Row],[نهايه الاشتراك]]","v":"00:00:00"}]
[{"$f":"Table1[[#This Row],[أســــم المشترك]]","v":0},{"$f":"Table1[[#This Row],[كود المشترك]]","v":0},{"$f":"Table1[[#This Row],[رقم الموبايـــل]]","v":0},{"$f":"Table1[[#This Row],[مده الاشتراك]]","v":0},{"$f":"Table1[[#This Row],[بدايه الاشتراك]]","v":"00:00:00"},{"$f":"Table1[[#This Row],[نهايه الاشتراك]]","v":"00:00:00"}]
[{"$f":"Table1[[#This Row],[أســــم المشترك]]","v":0},{"$f":"Table1[[#This Row],[كود المشترك]]","v":0},{"$f":"Table1[[#This Row],[رقم الموبايـــل]]","v":0},{"$f":"Table1[[#This Row],[مده الاشتراك]]","v":0},{"$f":"Table1[[#This Row],[بدايه الاشتراك]]","v":"00:00:00"},{"$f":"Table1[[#This Row],[نهايه الاشتراك]]","v":"00:00:00"}]
[{"$f":"Table1[[#This Row],[أســــم المشترك]]","v":0},{"$f":"Table1[[#This Row],[كود المشترك]]","v":0},{"$f":"Table1[[#This Row],[رقم الموبايـــل]]","v":0},{"$f":"Table1[[#This Row],[مده الاشتراك]]","v":0},{"$f":"Table1[[#This Row],[بدايه الاشتراك]]","v":"00:00:00"},{"$f":"Table1[[#This Row],[نهايه الاشتراك]]","v":"00:00:00"}]
[{"$f":"Table1[[#This Row],[أســــم المشترك]]","v":0},{"$f":"Table1[[#This Row],[كود المشترك]]","v":0},{"$f":"Table1[[#This Row],[رقم الموبايـــل]]","v":0},{"$f":"Table1[[#This Row],[مده الاشتراك]]","v":0},{"$f":"Table1[[#This Row],[بدايه الاشتراك]]","v":"00:00:00"},{"$f":"Table1[[#This Row],[نهايه الاشتراك]]","v":"00:00:00"}]
[{"$f":"Table1[[#This Row],[أســــم المشترك]]","v":0},{"$f":"Table1[[#This Row],[كود المشترك]]","v":0},{"$f":"Table1[[#This Row],[رقم الموبايـــل]]","v":0},{"$f":"Table1[[#This Row],[مده الاشتراك]]","v":0},{"$f":"Table1[[#This Row],[بدايه الاشتراك]]","v":"00:00:00"},{"$f":"Table1[[#This Row],[نهايه الاشتراك]]","v":"00:00:00"}]
[{"$f":"Table1[[#This Row],[أســــم المشترك]]","v":0},{"$f":"Table1[[#This Row],[كود المشترك]]","v":0},{"$f":"Table1[[#This Row],[رقم الموبايـــل]]","v":0},{"$f":"Table1[[#This Row],[مده الاشتراك]]","v":0},{"$f":"Table1[[#This Row],[بدايه الاشتراك]]","v":"00:00:00"},{"$f":"Table1[[#This Row],[نهايه الاشتراك]]","v":"00:00:00"}]
[{"$f":"Table1[[#This Row],[أســــم المشترك]]","v":0},{"$f":"Table1[[#This Row],[كود المشترك]]","v":0},{"$f":"Table1[[#This Row],[رقم الموبايـــل]]","v":0},{"$f":"Table1[[#This Row],[مده الاشتراك]]","v":0},{"$f":"Table1[[#This Row],[بدايه الاشتراك]]","v":"00:00:00"},{"$f":"Table1[[#This Row],[نهايه الاشتراك]]","v":"00:00:00"}]
[{"$f":"Table1[[#This Row],[أســــم المشترك]]","v":0},{"$f":"Table1[[#This Row],[كود المشترك]]","v":0},{"$f":"Table1[[#This Row],[رقم الموبايـــل]]","v":0},{"$f":"Table1[[#This Row],[مده الاشتراك]]","v":0},{"$f":"Table1[[#This Row],[بدايه الاشتراك]]","v":"00:00:00"},{"$f":"Table1[[#This Row],[نهايه الاشتراك]]","v":"00:00:00"}]
[{"$f":"Table1[[#This Row],[أســــم المشترك]]","v":0},{"$f":"Table1[[#This Row],[كود المشترك]]","v":0},{"$f":"Table1[[#This Row],[رقم الموبايـــل]]","v":0},{"$f":"Table1[[#This Row],[مده الاشتراك]]","v":0},{"$f":"Table1[[#This Row],[بدايه الاشتراك]]","v":"00:00:00"},{"$f":"Table1[[#This Row],[نهايه الاشتراك]]","v":"00:00:00"}]
[{"$f":"Table1[[#This Row],[أســــم المشترك]]","v":0},{"$f":"Table1[[#This Row],[كود المشترك]]","v":0},{"$f":"Table1[[#This Row],[رقم الموبايـــل]]","v":0},{"$f":"Table1[[#This Row],[مده الاشتراك]]","v":0},{"$f":"Table1[[#This Row],[بدايه الاشتراك]]","v":"00:00:00"},{"$f":"Table1[[#This Row],[نهايه الاشتراك]]","v":"00:00:00"}]
[{"$f":"Table1[[#This Row],[أســــم المشترك]]","v":0},{"$f":"Table1[[#This Row],[كود المشترك]]","v":0},{"$f":"Table1[[#This Row],[رقم الموبايـــل]]","v":0},{"$f":"Table1[[#This Row],[مده الاشتراك]]","v":0},{"$f":"Table1[[#This Row],[بدايه الاشتراك]]","v":"00:00:00"},{"$f":"Table1[[#This Row],[نهايه الاشتراك]]","v":"00:00:00"}]
[{"$f":"Table1[[#This Row],[أســــم المشترك]]","v":0},{"$f":"Table1[[#This Row],[كود المشترك]]","v":0},{"$f":"Table1[[#This Row],[رقم الموبايـــل]]","v":0},{"$f":"Table1[[#This Row],[مده الاشتراك]]","v":0},{"$f":"Table1[[#This Row],[بدايه الاشتراك]]","v":"00:00:00"},{"$f":"Table1[[#This Row],[نهايه الاشتراك]]","v":"00:00:00"}]
[{"$f":"Table1[[#This Row],[أســــم المشترك]]","v":0},{"$f":"Table1[[#This Row],[كود المشترك]]","v":0},{"$f":"Table1[[#This Row],[رقم الموبايـــل]]","v":0},{"$f":"Table1[[#This Row],[مده الاشتراك]]","v":0},{"$f":"Table1[[#This Row],[بدايه الاشتراك]]","v":"00:00:00"},{"$f":"Table1[[#This Row],[نهايه الاشتراك]]","v":"00:00:00"}]
[{"$f":"Table1[[#This Row],[أســــم المشترك]]","v":0},{"$f":"Table1[[#This Row],[كود المشترك]]","v":0},{"$f":"Table1[[#This Row],[رقم الموبايـــل]]","v":0},{"$f":"Table1[[#This Row],[مده الاشتراك]]","v":0},{"$f":"Table1[[#This Row],[بدايه الاشتراك]]","v":"00:00:00"},{"$f":"Table1[[#This Row],[نهايه الاشتراك]]","v":"00:00:00"}]
[{"$f":"Table1[[#This Row],[أســــم المشترك]]","v":0},{"$f":"Table1[[#This Row],[كود المشترك]]","v":0},{"$f":"Table1[[#This Row],[رقم الموبايـــل]]","v":0},{"$f":"Table1[[#This Row],[مده الاشتراك]]","v":0},{"$f":"Table1[[#This Row],[بدايه الاشتراك]]","v":"00:00:00"},{"$f":"Table1[[#This Row],[نهايه الاشتراك]]","v":"00:00:00"}]
[{"$f":"Table1[[#This Row],[أســــم المشترك]]","v":0},{"$f":"Table1[[#This Row],[كود المشترك]]","v":0},{"$f":"Table1[[#This Row],[رقم الموبايـــل]]","v":0},{"$f":"Table1[[#This Row],[مده الاشتراك]]","v":0},{"$f":"Table1[[#This Row],[بدايه الاشتراك]]","v":"00:00:00"},{"$f":"Table1[[#This Row],[نهايه الاشتراك]]","v":"00:00:00"}]
[{"$f":"Table1[[#This Row],[أســــم المشترك]]","v":0},{"$f":"Table1[[#This Row],[كود المشترك]]","v":0},{"$f":"Table1[[#This Row],[رقم الموبايـــل]]","v":0},{"$f":"Table1[[#This Row],[مده الاشتراك]]","v":0},{"$f":"Table1[[#This Row],[بدايه الاشتراك]]","v":"00:00:00"},{"$f":"Table1[[#This Row],[نهايه الاشتراك]]","v":"00:00:00"}]
[{"$f":"Table1[[#This Row],[أســــم المشترك]]","v":0},{"$f":"Table1[[#This Row],[كود المشترك]]","v":0},{"$f":"Table1[[#This Row],[رقم الموبايـــل]]","v":0},{"$f":"Table1[[#This Row],[مده الاشتراك]]","v":0},{"$f":"Table1[[#This Row],[بدايه الاشتراك]]","v":"00:00:00"},{"$f":"Table1[[#This Row],[نهايه الاشتراك]]","v":"00:00:00"}]
[{"$f":"Table1[[#This Row],[أســــم المشترك]]","v":0},{"$f":"Table1[[#This Row],[كود المشترك]]","v":0},{"$f":"Table1[[#This Row],[رقم الموبايـــل]]","v":0},{"$f":"Table1[[#This Row],[مده الاشتراك]]","v":0},{"$f":"Table1[[#This Row],[بدايه الاشتراك]]","v":"00:00:00"},{"$f":"Table1[[#This Row],[نهايه الاشتراك]]","v":"00:00:00"}]
[{"$f":"Table1[[#This Row],[أســــم المشترك]]","v":0},{"$f":"Table1[[#This Row],[كود المشترك]]","v":0},{"$f":"Table1[[#This Row],[رقم الموبايـــل]]","v":0},{"$f":"Table1[[#This Row],[مده الاشتراك]]","v":0},{"$f":"Table1[[#This Row],[بدايه الاشتراك]]","v":"00:00:00"},{"$f":"Table1[[#This Row],[نهايه الاشتراك]]","v":"00:00:00"}]
[{"$f":"Table1[[#This Row],[أســــم المشترك]]","v":0},{"$f":"Table1[[#This Row],[كود المشترك]]","v":0},{"$f":"Table1[[#This Row],[رقم الموبايـــل]]","v":0},{"$f":"Table1[[#This Row],[مده الاشتراك]]","v":0},{"$f":"Table1[[#This Row],[بدايه الاشتراك]]","v":"00:00:00"},{"$f":"Table1[[#This Row],[نهايه الاشتراك]]","v":"00:00:00"}]
[{"$f":"Table1[[#This Row],[أســــم المشترك]]","v":0},{"$f":"Table1[[#This Row],[كود المشترك]]","v":0},{"$f":"Table1[[#This Row],[رقم الموبايـــل]]","v":0},{"$f":"Table1[[#This Row],[مده الاشتراك]]","v":0},{"$f":"Table1[[#This Row],[بدايه الاشتراك]]","v":"00:00:00"},{"$f":"Table1[[#This Row],[نهايه الاشتراك]]","v":"00:00:00"}]
[{"$f":"Table1[[#This Row],[أســــم المشترك]]","v":0},{"$f":"Table1[[#This Row],[كود المشترك]]","v":0},{"$f":"Table1[[#This Row],[رقم الموبايـــل]]","v":0},{"$f":"Table1[[#This Row],[مده الاشتراك]]","v":0},{"$f":"Table1[[#This Row],[بدايه الاشتراك]]","v":"00:00:00"},{"$f":"Table1[[#This Row],[نهايه الاشتراك]]","v":"00:00:00"}]
[{"$f":"Table1[[#This Row],[أســــم المشترك]]","v":0},{"$f":"Table1[[#This Row],[كود المشترك]]","v":0},{"$f":"Table1[[#This Row],[رقم الموبايـــل]]","v":0},{"$f":"Table1[[#This Row],[مده الاشتراك]]","v":0},{"$f":"Table1[[#This Row],[بدايه الاشتراك]]","v":"00:00:00"},{"$f":"Table1[[#This Row],[نهايه الاشتراك]]","v":"00:00:00"}]
[{"$f":"Table1[[#This Row],[أســــم المشترك]]","v":0},{"$f":"Table1[[#This Row],[كود المشترك]]","v":0},{"$f":"Table1[[#This Row],[رقم الموبايـــل]]","v":0},{"$f":"Table1[[#This Row],[مده الاشتراك]]","v":0},{"$f":"Table1[[#This Row],[بدايه الاشتراك]]","v":"00:00:00"},{"$f":"Table1[[#This Row],[نهايه الاشتراك]]","v":"00:00:00"}]
[{"$f":"Table1[[#This Row],[أســــم المشترك]]","v":0},{"$f":"Table1[[#This Row],[كود المشترك]]","v":0},{"$f":"Table1[[#This Row],[رقم الموبايـــل]]","v":0},{"$f":"Table1[[#This Row],[مده الاشتراك]]","v":0},{"$f":"Table1[[#This Row],[بدايه الاشتراك]]","v":"00:00:00"},{"$f":"Table1[[#This Row],[نهايه الاشتراك]]","v":"00:00:00"}]
[{"$f":"Table1[[#This Row],[أســــم المشترك]]","v":0},{"$f":"Table1[[#This Row],[كود المشترك]]","v":0},{"$f":"Table1[[#This Row],[رقم الموبايـــل]]","v":0},{"$f":"Table1[[#This Row],[مده الاشتراك]]","v":0},{"$f":"Table1[[#This Row],[بدايه الاشتراك]]","v":"00:00:00"},{"$f":"Table1[[#This Row],[نهايه الاشتراك]]","v":"00:00:00"}]
[{"$f":"Table1[[#This Row],[أســــم المشترك]]","v":0},{"$f":"Table1[[#This Row],[كود المشترك]]","v":0},{"$f":"Table1[[#This Row],[رقم الموبايـــل]]","v":0},{"$f":"Table1[[#This Row],[مده الاشتراك]]","v":0},{"$f":"Table1[[#This Row],[بدايه الاشتراك]]","v":"00:00:00"},{"$f":"Table1[[#This Row],[نهايه الاشتراك]]","v":"00:00:00"}]
[{"$f":"Table1[[#This Row],[أســــم المشترك]]","v":0},{"$f":"Table1[[#This Row],[كود المشترك]]","v":0},{"$f":"Table1[[#This Row],[رقم الموبايـــل]]","v":0},{"$f":"Table1[[#This Row],[مده الاشتراك]]","v":0},{"$f":"Table1[[#This Row],[بدايه الاشتراك]]","v":"00:00:00"},{"$f":"Table1[[#This Row],[نهايه الاشتراك]]","v":"00:00:00"}]
[{"$f":"Table1[[#This Row],[أســــم المشترك]]","v":0},{"$f":"Table1[[#This Row],[كود المشترك]]","v":0},{"$f":"Table1[[#This Row],[رقم الموبايـــل]]","v":0},{"$f":"Table1[[#This Row],[مده الاشتراك]]","v":0},{"$f":"Table1[[#This Row],[بدايه الاشتراك]]","v":"00:00:00"},{"$f":"Table1[[#This Row],[نهايه الاشتراك]]","v":"00:00:00"}]
[{"$f":"Table1[[#This Row],[أســــم المشترك]]","v":0},{"$f":"Table1[[#This Row],[كود المشترك]]","v":0},{"$f":"Table1[[#This Row],[رقم الموبايـــل]]","v":0},{"$f":"Table1[[#This Row],[مده الاشتراك]]","v":0},{"$f":"Table1[[#This Row],[بدايه الاشتراك]]","v":"00:00:00"},{"$f":"Table1[[#This Row],[نهايه الاشتراك]]","v":"00:00:00"}]
[{"$f":"Table1[[#This Row],[أســــم المشترك]]","v":0},{"$f":"Table1[[#This Row],[كود المشترك]]","v":0},{"$f":"Table1[[#This Row],[رقم الموبايـــل]]","v":0},{"$f":"Table1[[#This Row],[مده الاشتراك]]","v":0},{"$f":"Table1[[#This Row],[بدايه الاشتراك]]","v":"00:00:00"},{"$f":"Table1[[#This Row],[نهايه الاشتراك]]","v":"00:00:00"}]
[{"$f":"Table1[[#This Row],[أســــم المشترك]]","v":0},{"$f":"Table1[[#This Row],[كود المشترك]]","v":0},{"$f":"Table1[[#This Row],[رقم الموبايـــل]]","v":0},{"$f":"Table1[[#This Row],[مده الاشتراك]]","v":0},{"$f":"Table1[[#This Row],[بدايه الاشتراك]]","v":"00:00:00"},{"$f":"Table1[[#This Row],[نهايه الاشتراك]]","v":"00:00:00"}]
[{"$f":"Table1[[#This Row],[أســــم المشترك]]","v":0},{"$f":"Table1[[#This Row],[كود المشترك]]","v":0},{"$f":"Table1[[#This Row],[رقم الموبايـــل]]","v":0},{"$f":"Table1[[#This Row],[مده الاشتراك]]","v":0},{"$f":"Table1[[#This Row],[بدايه الاشتراك]]","v":"00:00:00"},{"$f":"Table1[[#This Row],[نهايه الاشتراك]]","v":"00:00:00"}]
[{"$f":"Table1[[#This Row],[أســــم المشترك]]","v":0},{"$f":"Table1[[#This Row],[كود المشترك]]","v":0},{"$f":"Table1[[#This Row],[رقم الموبايـــل]]","v":0},{"$f":"Table1[[#This Row],[مده الاشتراك]]","v":0},{"$f":"Table1[[#This Row],[بدايه الاشتراك]]","v":"00:00:00"},{"$f":"Table1[[#This Row],[نهايه الاشتراك]]","v":"00:00:00"}]
[{"$f":"Table1[[#This Row],[أســــم المشترك]]","v":0},{"$f":"Table1[[#This Row],[كود المشترك]]","v":0},{"$f":"Table1[[#This Row],[رقم الموبايـــل]]","v":0},{"$f":"Table1[[#This Row],[مده الاشتراك]]","v":0},{"$f":"Table1[[#This Row],[بدايه الاشتراك]]","v":"00:00:00"},{"$f":"Table1[[#This Row],[نهايه الاشتراك]]","v":"00:00:00"}]
[{"$f":"Table1[[#This Row],[أســــم المشترك]]","v":0},{"$f":"Table1[[#This Row],[كود المشترك]]","v":0},{"$f":"Table1[[#This Row],[رقم الموبايـــل]]","v":0},{"$f":"Table1[[#This Row],[مده الاشتراك]]","v":0},{"$f":"Table1[[#This Row],[بدايه الاشتراك]]","v":"00:00:00"},{"$f":"Table1[[#This Row],[نهايه الاشتراك]]","v":"00:00:00"}]
[{"$f":"Table1[[#This Row],[أســــم المشترك]]","v":0},{"$f":"Table1[[#This Row],[كود المشترك]]","v":0},{"$f":"Table1[[#This Row],[رقم الموبايـــل]]","v":0},{"$f":"Table1[[#This Row],[مده الاشتراك]]","v":0},{"$f":"Table1[[#This Row],[بدايه الاشتراك]]","v":"00:00:00"},{"$f":"Table1[[#This Row],[نهايه الاشتراك]]","v":"00:00:00"}]
[{"$f":"Table1[[#This Row],[أســــم المشترك]]","v":0},{"$f":"Table1[[#This Row],[كود المشترك]]","v":0},{"$f":"Table1[[#This Row],[رقم الموبايـــل]]","v":0},{"$f":"Table1[[#This Row],[مده الاشتراك]]","v":0},{"$f":"Table1[[#This Row],[بدايه الاشتراك]]","v":"00:00:00"},{"$f":"Table1[[#This Row],[نهايه الاشتراك]]","v":"00:00:00"}]
[{"$f":"Table1[[#This Row],[أســــم المشترك]]","v":0},{"$f":"Table1[[#This Row],[كود المشترك]]","v":0},{"$f":"Table1[[#This Row],[رقم الموبايـــل]]","v":0},{"$f":"Table1[[#This Row],[مده الاشتراك]]","v":0},{"$f":"Table1[[#This Row],[بدايه الاشتراك]]","v":"00:00:00"},{"$f":"Table1[[#This Row],[نهايه الاشتراك]]","v":"00:00:00"}]
[{"$f":"Table1[[#This Row],[أســــم المشترك]]","v":0},{"$f":"Table1[[#This Row],[كود المشترك]]","v":0},{"$f":"Table1[[#This Row],[رقم الموبايـــل]]","v":0},{"$f":"Table1[[#This Row],[مده الاشتراك]]","v":0},{"$f":"Table1[[#This Row],[بدايه الاشتراك]]","v":"00:00:00"},{"$f":"Table1[[#This Row],[نهايه الاشتراك]]","v":"00:00:00"}]
[{"$f":"Table1[[#This Row],[أســــم المشترك]]","v":0},{"$f":"Table1[[#This Row],[كود المشترك]]","v":0},{"$f":"Table1[[#This Row],[رقم الموبايـــل]]","v":0},{"$f":"Table1[[#This Row],[مده الاشتراك]]","v":0},{"$f":"Table1[[#This Row],[بدايه الاشتراك]]","v":"00:00:00"},{"$f":"Table1[[#This Row],[نهايه الاشتراك]]","v":"00:00:00"}]
[{"$f":"Table1[[#This Row],[أســــم المشترك]]","v":0},{"$f":"Table1[[#This Row],[كود المشترك]]","v":0},{"$f":"Table1[[#This Row],[رقم الموبايـــل]]","v":0},{"$f":"Table1[[#This Row],[مده الاشتراك]]","v":0},{"$f":"Table1[[#This Row],[بدايه الاشتراك]]","v":"00:00:00"},{"$f":"Table1[[#This Row],[نهايه الاشتراك]]","v":"00:00:00"}]
[{"$f":"Table1[[#This Row],[أســــم المشترك]]","v":0},{"$f":"Table1[[#This Row],[كود المشترك]]","v":0},{"$f":"Table1[[#This Row],[رقم الموبايـــل]]","v":0},{"$f":"Table1[[#This Row],[مده الاشتراك]]","v":0},{"$f":"Table1[[#This Row],[بدايه الاشتراك]]","v":"00:00:00"},{"$f":"Table1[[#This Row],[نهايه الاشتراك]]","v":"00:00:00"}]
[{"$f":"Table1[[#This Row],[أســــم المشترك]]","v":0},{"$f":"Table1[[#This Row],[كود المشترك]]","v":0},{"$f":"Table1[[#This Row],[رقم الموبايـــل]]","v":0},{"$f":"Table1[[#This Row],[مده الاشتراك]]","v":0},{"$f":"Table1[[#This Row],[بدايه الاشتراك]]","v":"00:00:00"},{"$f":"Table1[[#This Row],[نهايه الاشتراك]]","v":"00:00:00"}]
[{"$f":"Table1[[#This Row],[أســــم المشترك]]","v":0},{"$f":"Table1[[#This Row],[كود المشترك]]","v":0},{"$f":"Table1[[#This Row],[رقم الموبايـــل]]","v":0},{"$f":"Table1[[#This Row],[مده الاشتراك]]","v":0},{"$f":"Table1[[#This Row],[بدايه الاشتراك]]","v":"00:00:00"},{"$f":"Table1[[#This Row],[نهايه الاشتراك]]","v":"00:00:00"}]
[{"$f":"Table1[[#This Row],[أســــم المشترك]]","v":0},{"$f":"Table1[[#This Row],[كود المشترك]]","v":0},{"$f":"Table1[[#This Row],[رقم الموبايـــل]]","v":0},{"$f":"Table1[[#This Row],[مده الاشتراك]]","v":0},{"$f":"Table1[[#This Row],[بدايه الاشتراك]]","v":"00:00:00"},{"$f":"Table1[[#This Row],[نهايه الاشتراك]]","v":"00:00:00"}]
[{"$f":"Table1[[#This Row],[أســــم المشترك]]","v":0},{"$f":"Table1[[#This Row],[كود المشترك]]","v":0},{"$f":"Table1[[#This Row],[رقم الموبايـــل]]","v":0},{"$f":"Table1[[#This Row],[مده الاشتراك]]","v":0},{"$f":"Table1[[#This Row],[بدايه الاشتراك]]","v":"00:00:00"},{"$f":"Table1[[#This Row],[نهايه الاشتراك]]","v":"00:00:00"}]
[{"$f":"Table1[[#This Row],[أســــم المشترك]]","v":0},{"$f":"Table1[[#This Row],[كود المشترك]]","v":0},{"$f":"Table1[[#This Row],[رقم الموبايـــل]]","v":0},{"$f":"Table1[[#This Row],[مده الاشتراك]]","v":0},{"$f":"Table1[[#This Row],[بدايه الاشتراك]]","v":"00:00:00"},{"$f":"Table1[[#This Row],[نهايه الاشتراك]]","v":"00:00:00"}]
[{"$f":"Table1[[#This Row],[أســــم المشترك]]","v":0},{"$f":"Table1[[#This Row],[كود المشترك]]","v":0},{"$f":"Table1[[#This Row],[رقم الموبايـــل]]","v":0},{"$f":"Table1[[#This Row],[مده الاشتراك]]","v":0},{"$f":"Table1[[#This Row],[بدايه الاشتراك]]","v":"00:00:00"},{"$f":"Table1[[#This Row],[نهايه الاشتراك]]","v":"00:00:00"}]
[{"$f":"Table1[[#This Row],[أســــم المشترك]]","v":0},{"$f":"Table1[[#This Row],[كود المشترك]]","v":0},{"$f":"Table1[[#This Row],[رقم الموبايـــل]]","v":0},{"$f":"Table1[[#This Row],[مده الاشتراك]]","v":0},{"$f":"Table1[[#This Row],[بدايه الاشتراك]]","v":"00:00:00"},{"$f":"Table1[[#This Row],[نهايه الاشتراك]]","v":"00:00:00"}]
[{"$f":"Table1[[#This Row],[أســــم المشترك]]","v":0},{"$f":"Table1[[#This Row],[كود المشترك]]","v":0},{"$f":"Table1[[#This Row],[رقم الموبايـــل]]","v":0},{"$f":"Table1[[#This Row],[مده الاشتراك]]","v":0},{"$f":"Table1[[#This Row],[بدايه الاشتراك]]","v":"00:00:00"},{"$f":"Table1[[#This Row],[نهايه الاشتراك]]","v":"00:00:00"}]
[{"$f":"Table1[[#This Row],[أســــم المشترك]]","v":0},{"$f":"Table1[[#This Row],[كود المشترك]]","v":0},{"$f":"Table1[[#This Row],[رقم الموبايـــل]]","v":0},{"$f":"Table1[[#This Row],[مده الاشتراك]]","v":0},{"$f":"Table1[[#This Row],[بدايه الاشتراك]]","v":"00:00:00"},{"$f":"Table1[[#This Row],[نهايه الاشتراك]]","v":"00:00:00"}]
[{"$f":"Table1[[#This Row],[أســــم المشترك]]","v":0},{"$f":"Table1[[#This Row],[كود المشترك]]","v":0},{"$f":"Table1[[#This Row],[رقم الموبايـــل]]","v":0},{"$f":"Table1[[#This Row],[مده الاشتراك]]","v":0},{"$f":"Table1[[#This Row],[بدايه الاشتراك]]","v":"00:00:00"},{"$f":"Table1[[#This Row],[نهايه الاشتراك]]","v":"00:00:00"}]
[{"$f":"Table1[[#This Row],[أســــم المشترك]]","v":0},{"$f":"Table1[[#This Row],[كود المشترك]]","v":0},{"$f":"Table1[[#This Row],[رقم الموبايـــل]]","v":0},{"$f":"Table1[[#This Row],[مده الاشتراك]]","v":0},{"$f":"Table1[[#This Row],[بدايه الاشتراك]]","v":"00:00:00"},{"$f":"Table1[[#This Row],[نهايه الاشتراك]]","v":"00:00:00"}]
[{"$f":"Table1[[#This Row],[أســــم المشترك]]","v":0},{"$f":"Table1[[#This Row],[كود المشترك]]","v":0},{"$f":"Table1[[#This Row],[رقم الموبايـــل]]","v":0},{"$f":"Table1[[#This Row],[مده الاشتراك]]","v":0},{"$f":"Table1[[#This Row],[بدايه الاشتراك]]","v":"00:00:00"},{"$f":"Table1[[#This Row],[نهايه الاشتراك]]","v":"00:00:00"}]
[{"$f":"Table1[[#This Row],[أســــم المشترك]]","v":0},{"$f":"Table1[[#This Row],[كود المشترك]]","v":0},{"$f":"Table1[[#This Row],[رقم الموبايـــل]]","v":0},{"$f":"Table1[[#This Row],[مده الاشتراك]]","v":0},{"$f":"Table1[[#This Row],[بدايه الاشتراك]]","v":"00:00:00"},{"$f":"Table1[[#This Row],[نهايه الاشتراك]]","v":"00:00:00"}]
[{"$f":"Table1[[#This Row],[أســــم المشترك]]","v":0},{"$f":"Table1[[#This Row],[كود المشترك]]","v":0},{"$f":"Table1[[#This Row],[رقم الموبايـــل]]","v":0},{"$f":"Table1[[#This Row],[مده الاشتراك]]","v":0},{"$f":"Table1[[#This Row],[بدايه الاشتراك]]","v":"00:00:00"},{"$f":"Table1[[#This Row],[نهايه الاشتراك]]","v":"00:00:00"}]
[{"$f":"Table1[[#This Row],[أســــم المشترك]]","v":0},{"$f":"Table1[[#This Row],[كود المشترك]]","v":0},{"$f":"Table1[[#This Row],[رقم الموبايـــل]]","v":0},{"$f":"Table1[[#This Row],[مده الاشتراك]]","v":0},{"$f":"Table1[[#This Row],[بدايه الاشتراك]]","v":"00:00:00"},{"$f":"Table1[[#This Row],[نهايه الاشتراك]]","v":"00:00:00"}]
[{"$f":"Table1[[#This Row],[أســــم المشترك]]","v":0},{"$f":"Table1[[#This Row],[كود المشترك]]","v":0},{"$f":"Table1[[#This Row],[رقم الموبايـــل]]","v":0},{"$f":"Table1[[#This Row],[مده الاشتراك]]","v":0},{"$f":"Table1[[#This Row],[بدايه الاشتراك]]","v":"00:00:00"},{"$f":"Table1[[#This Row],[نهايه الاشتراك]]","v":"00:00:00"}]
[{"$f":"Table1[[#This Row],[أســــم المشترك]]","v":0},{"$f":"Table1[[#This Row],[كود المشترك]]","v":0},{"$f":"Table1[[#This Row],[رقم الموبايـــل]]","v":0},{"$f":"Table1[[#This Row],[مده الاشتراك]]","v":0},{"$f":"Table1[[#This Row],[بدايه الاشتراك]]","v":"00:00:00"},{"$f":"Table1[[#This Row],[نهايه الاشتراك]]","v":"00:00:00"}]
[{"$f":"Table1[[#This Row],[أســــم المشترك]]","v":0},{"$f":"Table1[[#This Row],[كود المشترك]]","v":0},{"$f":"Table1[[#This Row],[رقم الموبايـــل]]","v":0},{"$f":"Table1[[#This Row],[مده الاشتراك]]","v":0},{"$f":"Table1[[#This Row],[بدايه الاشتراك]]","v":"00:00:00"},{"$f":"Table1[[#This Row],[نهايه الاشتراك]]","v":"00:00:00"}]
[{"$f":"Table1[[#This Row],[أســــم المشترك]]","v":0},{"$f":"Table1[[#This Row],[كود المشترك]]","v":0},{"$f":"Table1[[#This Row],[رقم الموبايـــل]]","v":0},{"$f":"Table1[[#This Row],[مده الاشتراك]]","v":0},{"$f":"Table1[[#This Row],[بدايه الاشتراك]]","v":"00:00:00"},{"$f":"Table1[[#This Row],[نهايه الاشتراك]]","v":"00:00:00"}]
[{"$f":"Table1[[#This Row],[أســــم المشترك]]","v":0},{"$f":"Table1[[#This Row],[كود المشترك]]","v":0},{"$f":"Table1[[#This Row],[رقم الموبايـــل]]","v":0},{"$f":"Table1[[#This Row],[مده الاشتراك]]","v":0},{"$f":"Table1[[#This Row],[بدايه الاشتراك]]","v":"00:00:00"},{"$f":"Table1[[#This Row],[نهايه الاشتراك]]","v":"00:00:00"}]
[{"$f":"Table1[[#This Row],[أســــم المشترك]]","v":0},{"$f":"Table1[[#This Row],[كود المشترك]]","v":0},{"$f":"Table1[[#This Row],[رقم الموبايـــل]]","v":0},{"$f":"Table1[[#This Row],[مده الاشتراك]]","v":0},{"$f":"Table1[[#This Row],[بدايه الاشتراك]]","v":"00:00:00"},{"$f":"Table1[[#This Row],[نهايه الاشتراك]]","v":"00:00:00"}]
[{"$f":"Table1[[#This Row],[أســــم المشترك]]","v":0},{"$f":"Table1[[#This Row],[كود المشترك]]","v":0},{"$f":"Table1[[#This Row],[رقم الموبايـــل]]","v":0},{"$f":"Table1[[#This Row],[مده الاشتراك]]","v":0},{"$f":"Table1[[#This Row],[بدايه الاشتراك]]","v":"00:00:00"},{"$f":"Table1[[#This Row],[نهايه الاشتراك]]","v":"00:00:00"}]
[{"$f":"Table1[[#This Row],[أســــم المشترك]]","v":0},{"$f":"Table1[[#This Row],[كود المشترك]]","v":0},{"$f":"Table1[[#This Row],[رقم الموبايـــل]]","v":0},{"$f":"Table1[[#This Row],[مده الاشتراك]]","v":0},{"$f":"Table1[[#This Row],[بدايه الاشتراك]]","v":"00:00:00"},{"$f":"Table1[[#This Row],[نهايه الاشتراك]]","v":"00:00:00"}]
[{"$f":"Table1[[#This Row],[أســــم المشترك]]","v":0},{"$f":"Table1[[#This Row],[كود المشترك]]","v":0},{"$f":"Table1[[#This Row],[رقم الموبايـــل]]","v":0},{"$f":"Table1[[#This Row],[مده الاشتراك]]","v":0},{"$f":"Table1[[#This Row],[بدايه الاشتراك]]","v":"00:00:00"},{"$f":"Table1[[#This Row],[نهايه الاشتراك]]","v":"00:00:00"}]
[{"$f":"Table1[[#This Row],[أســــم المشترك]]","v":0},{"$f":"Table1[[#This Row],[كود المشترك]]","v":0},{"$f":"Table1[[#This Row],[رقم الموبايـــل]]","v":0},{"$f":"Table1[[#This Row],[مده الاشتراك]]","v":0},{"$f":"Table1[[#This Row],[بدايه الاشتراك]]","v":"00:00:00"},{"$f":"Table1[[#This Row],[نهايه الاشتراك]]","v":"00:00:00"}]
[{"$f":"Table1[[#This Row],[أســــم المشترك]]","v":0},{"$f":"Table1[[#This Row],[كود المشترك]]","v":0},{"$f":"Table1[[#This Row],[رقم الموبايـــل]]","v":0},{"$f":"Table1[[#This Row],[مده الاشتراك]]","v":0},{"$f":"Table1[[#This Row],[بدايه الاشتراك]]","v":"00:00:00"},{"$f":"Table1[[#This Row],[نهايه الاشتراك]]","v":"00:00:00"}]
[{"$f":"Table1[[#This Row],[أســــم المشترك]]","v":0},{"$f":"Table1[[#This Row],[كود المشترك]]","v":0},{"$f":"Table1[[#This Row],[رقم الموبايـــل]]","v":0},{"$f":"Table1[[#This Row],[مده الاشتراك]]","v":0},{"$f":"Table1[[#This Row],[بدايه الاشتراك]]","v":"00:00:00"},{"$f":"Table1[[#This Row],[نهايه الاشتراك]]","v":"00:00:00"}]
[{"$f":"Table1[[#This Row],[أســــم المشترك]]","v":0},{"$f":"Table1[[#This Row],[كود المشترك]]","v":0},{"$f":"Table1[[#This Row],[رقم الموبايـــل]]","v":0},{"$f":"Table1[[#This Row],[مده الاشتراك]]","v":0},{"$f":"Table1[[#This Row],[بدايه الاشتراك]]","v":"00:00:00"},{"$f":"Table1[[#This Row],[نهايه الاشتراك]]","v":"00:00:00"}]
[{"$f":"Table1[[#This Row],[أســــم المشترك]]","v":0},{"$f":"Table1[[#This Row],[كود المشترك]]","v":0},{"$f":"Table1[[#This Row],[رقم الموبايـــل]]","v":0},{"$f":"Table1[[#This Row],[مده الاشتراك]]","v":0},{"$f":"Table1[[#This Row],[بدايه الاشتراك]]","v":"00:00:00"},{"$f":"Table1[[#This Row],[نهايه الاشتراك]]","v":"00:00:00"}]
[{"$f":"Table1[[#This Row],[أســــم المشترك]]","v":0},{"$f":"Table1[[#This Row],[كود المشترك]]","v":0},{"$f":"Table1[[#This Row],[رقم الموبايـــل]]","v":0},{"$f":"Table1[[#This Row],[مده الاشتراك]]","v":0},{"$f":"Table1[[#This Row],[بدايه الاشتراك]]","v":"00:00:00"},{"$f":"Table1[[#This Row],[نهايه الاشتراك]]","v":"00:00:00"}]
[{"$f":"Table1[[#This Row],[أســــم المشترك]]","v":0},{"$f":"Table1[[#This Row],[كود المشترك]]","v":0},{"$f":"Table1[[#This Row],[رقم الموبايـــل]]","v":0},{"$f":"Table1[[#This Row],[مده الاشتراك]]","v":0},{"$f":"Table1[[#This Row],[بدايه الاشتراك]]","v":"00:00:00"},{"$f":"Table1[[#This Row],[نهايه الاشتراك]]","v":"00:00:00"}]
[{"$f":"Table1[[#This Row],[أســــم المشترك]]","v":0},{"$f":"Table1[[#This Row],[كود المشترك]]","v":0},{"$f":"Table1[[#This Row],[رقم الموبايـــل]]","v":0},{"$f":"Table1[[#This Row],[مده الاشتراك]]","v":0},{"$f":"Table1[[#This Row],[بدايه الاشتراك]]","v":"00:00:00"},{"$f":"Table1[[#This Row],[نهايه الاشتراك]]","v":"00:00:00"}]
[{"$f":"Table1[[#This Row],[أســــم المشترك]]","v":0},{"$f":"Table1[[#This Row],[كود المشترك]]","v":0},{"$f":"Table1[[#This Row],[رقم الموبايـــل]]","v":0},{"$f":"Table1[[#This Row],[مده الاشتراك]]","v":0},{"$f":"Table1[[#This Row],[بدايه الاشتراك]]","v":"00:00:00"},{"$f":"Table1[[#This Row],[نهايه الاشتراك]]","v":"00:00:00"}]
[{"$f":"Table1[[#This Row],[أســــم المشترك]]","v":0},{"$f":"Table1[[#This Row],[كود المشترك]]","v":0},{"$f":"Table1[[#This Row],[رقم الموبايـــل]]","v":0},{"$f":"Table1[[#This Row],[مده الاشتراك]]","v":0},{"$f":"Table1[[#This Row],[بدايه الاشتراك]]","v":"00:00:00"},{"$f":"Table1[[#This Row],[نهايه الاشتراك]]","v":"00:00:00"}]
[{"$f":"Table1[[#This Row],[أســــم المشترك]]","v":0},{"$f":"Table1[[#This Row],[كود المشترك]]","v":0},{"$f":"Table1[[#This Row],[رقم الموبايـــل]]","v":0},{"$f":"Table1[[#This Row],[مده الاشتراك]]","v":0},{"$f":"Table1[[#This Row],[بدايه الاشتراك]]","v":"00:00:00"},{"$f":"Table1[[#This Row],[نهايه الاشتراك]]","v":"00:00:00"}]
[{"$f":"Table1[[#This Row],[أســــم المشترك]]","v":0},{"$f":"Table1[[#This Row],[كود المشترك]]","v":0},{"$f":"Table1[[#This Row],[رقم الموبايـــل]]","v":0},{"$f":"Table1[[#This Row],[مده الاشتراك]]","v":0},{"$f":"Table1[[#This Row],[بدايه الاشتراك]]","v":"00:00:00"},{"$f":"Table1[[#This Row],[نهايه الاشتراك]]","v":"00:00:00"}]
[{"$f":"Table1[[#This Row],[أســــم المشترك]]","v":0},{"$f":"Table1[[#This Row],[كود المشترك]]","v":0},{"$f":"Table1[[#This Row],[رقم الموبايـــل]]","v":0},{"$f":"Table1[[#This Row],[مده الاشتراك]]","v":0},{"$f":"Table1[[#This Row],[بدايه الاشتراك]]","v":"00:00:00"},{"$f":"Table1[[#This Row],[نهايه الاشتراك]]","v":"00:00:00"}]
[{"$f":"Table1[[#This Row],[أســــم المشترك]]","v":0},{"$f":"Table1[[#This Row],[كود المشترك]]","v":0},{"$f":"Table1[[#This Row],[رقم الموبايـــل]]","v":0},{"$f":"Table1[[#This Row],[مده الاشتراك]]","v":0},{"$f":"Table1[[#This Row],[بدايه الاشتراك]]","v":"00:00:00"},{"$f":"Table1[[#This Row],[نهايه الاشتراك]]","v":"00:00:00"}]
[{"$f":"Table1[[#This Row],[أســــم المشترك]]","v":0},{"$f":"Table1[[#This Row],[كود المشترك]]","v":0},{"$f":"Table1[[#This Row],[رقم الموبايـــل]]","v":0},{"$f":"Table1[[#This Row],[مده الاشتراك]]","v":0},{"$f":"Table1[[#This Row],[بدايه الاشتراك]]","v":"00:00:00"},{"$f":"Table1[[#This Row],[نهايه الاشتراك]]","v":"00:00:00"}]
[{"$f":"Table1[[#This Row],[أســــم المشترك]]","v":0},{"$f":"Table1[[#This Row],[كود المشترك]]","v":0},{"$f":"Table1[[#This Row],[رقم الموبايـــل]]","v":0},{"$f":"Table1[[#This Row],[مده الاشتراك]]","v":0},{"$f":"Table1[[#This Row],[بدايه الاشتراك]]","v":"00:00:00"},{"$f":"Table1[[#This Row],[نهايه الاشتراك]]","v":"00:00:00"}]
[{"$f":"Table1[[#This Row],[أســــم المشترك]]","v":0},{"$f":"Table1[[#This Row],[كود المشترك]]","v":0},{"$f":"Table1[[#This Row],[رقم الموبايـــل]]","v":0},{"$f":"Table1[[#This Row],[مده الاشتراك]]","v":0},{"$f":"Table1[[#This Row],[بدايه الاشتراك]]","v":"00:00:00"},{"$f":"Table1[[#This Row],[نهايه الاشتراك]]","v":"00:00:00"}]
[{"$f":"Table1[[#This Row],[أســــم المشترك]]","v":0},{"$f":"Table1[[#This Row],[كود المشترك]]","v":0},{"$f":"Table1[[#This Row],[رقم الموبايـــل]]","v":0},{"$f":"Table1[[#This Row],[مده الاشتراك]]","v":0},{"$f":"Table1[[#This Row],[بدايه الاشتراك]]","v":"00:00:00"},{"$f":"Table1[[#This Row],[نهايه الاشتراك]]","v":"00:00:00"}]
[{"$f":"Table1[[#This Row],[أســــم المشترك]]","v":0},{"$f":"Table1[[#This Row],[كود المشترك]]","v":0},{"$f":"Table1[[#This Row],[رقم الموبايـــل]]","v":0},{"$f":"Table1[[#This Row],[مده الاشتراك]]","v":0},{"$f":"Table1[[#This Row],[بدايه الاشتراك]]","v":"00:00:00"},{"$f":"Table1[[#This Row],[نهايه الاشتراك]]","v":"00:00:00"}]
[{"$f":"Table1[[#This Row],[أســــم المشترك]]","v":0},{"$f":"Table1[[#This Row],[كود المشترك]]","v":0},{"$f":"Table1[[#This Row],[رقم الموبايـــل]]","v":0},{"$f":"Table1[[#This Row],[مده الاشتراك]]","v":0},{"$f":"Table1[[#This Row],[بدايه الاشتراك]]","v":"00:00:00"},{"$f":"Table1[[#This Row],[نهايه الاشتراك]]","v":"00:00:00"}]
[{"$f":"Table1[[#This Row],[أســــم المشترك]]","v":0},{"$f":"Table1[[#This Row],[كود المشترك]]","v":0},{"$f":"Table1[[#This Row],[رقم الموبايـــل]]","v":0},{"$f":"Table1[[#This Row],[مده الاشتراك]]","v":0},{"$f":"Table1[[#This Row],[بدايه الاشتراك]]","v":"00:00:00"},{"$f":"Table1[[#This Row],[نهايه الاشتراك]]","v":"00:00:00"}]
[{"$f":"Table1[[#This Row],[أســــم المشترك]]","v":0},{"$f":"Table1[[#This Row],[كود المشترك]]","v":0},{"$f":"Table1[[#This Row],[رقم الموبايـــل]]","v":0},{"$f":"Table1[[#This Row],[مده الاشتراك]]","v":0},{"$f":"Table1[[#This Row],[بدايه الاشتراك]]","v":"00:00:00"},{"$f":"Table1[[#This Row],[نهايه الاشتراك]]","v":"00:00:00"}]
[{"$f":"Table1[[#This Row],[أســــم المشترك]]","v":0},{"$f":"Table1[[#This Row],[كود المشترك]]","v":0},{"$f":"Table1[[#This Row],[رقم الموبايـــل]]","v":0},{"$f":"Table1[[#This Row],[مده الاشتراك]]","v":0},{"$f":"Table1[[#This Row],[بدايه الاشتراك]]","v":"00:00:00"},{"$f":"Table1[[#This Row],[نهايه الاشتراك]]","v":"00:00:00"}]
[{"$f":"Table1[[#This Row],[أســــم المشترك]]","v":0},{"$f":"Table1[[#This Row],[كود المشترك]]","v":0},{"$f":"Table1[[#This Row],[رقم الموبايـــل]]","v":0},{"$f":"Table1[[#This Row],[مده الاشتراك]]","v":0},{"$f":"Table1[[#This Row],[بدايه الاشتراك]]","v":"00:00:00"},{"$f":"Table1[[#This Row],[نهايه الاشتراك]]","v":"00:00:00"}]
[{"$f":"Table1[[#This Row],[أســــم المشترك]]","v":0},{"$f":"Table1[[#This Row],[كود المشترك]]","v":0},{"$f":"Table1[[#This Row],[رقم الموبايـــل]]","v":0},{"$f":"Table1[[#This Row],[مده الاشتراك]]","v":0},{"$f":"Table1[[#This Row],[بدايه الاشتراك]]","v":"00:00:00"},{"$f":"Table1[[#This Row],[نهايه الاشتراك]]","v":"00:00:00"}]
[{"$f":"Table1[[#This Row],[أســــم المشترك]]","v":0},{"$f":"Table1[[#This Row],[كود المشترك]]","v":0},{"$f":"Table1[[#This Row],[رقم الموبايـــل]]","v":0},{"$f":"Table1[[#This Row],[مده الاشتراك]]","v":0},{"$f":"Table1[[#This Row],[بدايه الاشتراك]]","v":"00:00:00"},{"$f":"Table1[[#This Row],[نهايه الاشتراك]]","v":"00:00:00"}]
[{"$f":"Table1[[#This Row],[أســــم المشترك]]","v":0},{"$f":"Table1[[#This Row],[كود المشترك]]","v":0},{"$f":"Table1[[#This Row],[رقم الموبايـــل]]","v":0},{"$f":"Table1[[#This Row],[مده الاشتراك]]","v":0},{"$f":"Table1[[#This Row],[بدايه الاشتراك]]","v":"00:00:00"},{"$f":"Table1[[#This Row],[نهايه الاشتراك]]","v":"00:00:00"}]
[{"$f":"Table1[[#This Row],[أســــم المشترك]]","v":0},{"$f":"Table1[[#This Row],[كود المشترك]]","v":0},{"$f":"Table1[[#This Row],[رقم الموبايـــل]]","v":0},{"$f":"Table1[[#This Row],[مده الاشتراك]]","v":0},{"$f":"Table1[[#This Row],[بدايه الاشتراك]]","v":"00:00:00"},{"$f":"Table1[[#This Row],[نهايه الاشتراك]]","v":"00:00:00"}]
[{"$f":"Table1[[#This Row],[أســــم المشترك]]","v":0},{"$f":"Table1[[#This Row],[كود المشترك]]","v":0},{"$f":"Table1[[#This Row],[رقم الموبايـــل]]","v":0},{"$f":"Table1[[#This Row],[مده الاشتراك]]","v":0},{"$f":"Table1[[#This Row],[بدايه الاشتراك]]","v":"00:00:00"},{"$f":"Table1[[#This Row],[نهايه الاشتراك]]","v":"00:00:00"}]
[{"$f":"Table1[[#This Row],[أســــم المشترك]]","v":0},{"$f":"Table1[[#This Row],[كود المشترك]]","v":0},{"$f":"Table1[[#This Row],[رقم الموبايـــل]]","v":0},{"$f":"Table1[[#This Row],[مده الاشتراك]]","v":0},{"$f":"Table1[[#This Row],[بدايه الاشتراك]]","v":"00:00:00"},{"$f":"Table1[[#This Row],[نهايه الاشتراك]]","v":"00:00:00"}]
[{"$f":"Table1[[#This Row],[أســــم المشترك]]","v":0},{"$f":"Table1[[#This Row],[كود المشترك]]","v":0},{"$f":"Table1[[#This Row],[رقم الموبايـــل]]","v":0},{"$f":"Table1[[#This Row],[مده الاشتراك]]","v":0},{"$f":"Table1[[#This Row],[بدايه الاشتراك]]","v":"00:00:00"},{"$f":"Table1[[#This Row],[نهايه الاشتراك]]","v":"00:00:00"}]
[{"$f":"Table1[[#This Row],[أســــم المشترك]]","v":0},{"$f":"Table1[[#This Row],[كود المشترك]]","v":0},{"$f":"Table1[[#This Row],[رقم الموبايـــل]]","v":0},{"$f":"Table1[[#This Row],[مده الاشتراك]]","v":0},{"$f":"Table1[[#This Row],[بدايه الاشتراك]]","v":"00:00:00"},{"$f":"Table1[[#This Row],[نهايه الاشتراك]]","v":"00:00:00"}]
[{"$f":"Table1[[#This Row],[أســــم المشترك]]","v":0},{"$f":"Table1[[#This Row],[كود المشترك]]","v":0},{"$f":"Table1[[#This Row],[رقم الموبايـــل]]","v":0},{"$f":"Table1[[#This Row],[مده الاشتراك]]","v":0},{"$f":"Table1[[#This Row],[بدايه الاشتراك]]","v":"00:00:00"},{"$f":"Table1[[#This Row],[نهايه الاشتراك]]","v":"00:00:00"}]
[{"$f":"Table1[[#This Row],[أســــم المشترك]]","v":0},{"$f":"Table1[[#This Row],[كود المشترك]]","v":0},{"$f":"Table1[[#This Row],[رقم الموبايـــل]]","v":0},{"$f":"Table1[[#This Row],[مده الاشتراك]]","v":0},{"$f":"Table1[[#This Row],[بدايه الاشتراك]]","v":"00:00:00"},{"$f":"Table1[[#This Row],[نهايه الاشتراك]]","v":"00:00:00"}]
[{"$f":"Table1[[#This Row],[أســــم المشترك]]","v":0},{"$f":"Table1[[#This Row],[كود المشترك]]","v":0},{"$f":"Table1[[#This Row],[رقم الموبايـــل]]","v":0},{"$f":"Table1[[#This Row],[مده الاشتراك]]","v":0},{"$f":"Table1[[#This Row],[بدايه الاشتراك]]","v":"00:00:00"},{"$f":"Table1[[#This Row],[نهايه الاشتراك]]","v":"00:00:00"}]
[{"$f":"Table1[[#This Row],[أســــم المشترك]]","v":0},{"$f":"Table1[[#This Row],[كود المشترك]]","v":0},{"$f":"Table1[[#This Row],[رقم الموبايـــل]]","v":0},{"$f":"Table1[[#This Row],[مده الاشتراك]]","v":0},{"$f":"Table1[[#This Row],[بدايه الاشتراك]]","v":"00:00:00"},{"$f":"Table1[[#This Row],[نهايه الاشتراك]]","v":"00:00:00"}]
[{"$f":"Table1[[#This Row],[أســــم المشترك]]","v":0},{"$f":"Table1[[#This Row],[كود المشترك]]","v":0},{"$f":"Table1[[#This Row],[رقم الموبايـــل]]","v":0},{"$f":"Table1[[#This Row],[مده الاشتراك]]","v":0},{"$f":"Table1[[#This Row],[بدايه الاشتراك]]","v":"00:00:00"},{"$f":"Table1[[#This Row],[نهايه الاشتراك]]","v":"00:00:00"}]
[{"$f":"Table1[[#This Row],[أســــم المشترك]]","v":0},{"$f":"Table1[[#This Row],[كود المشترك]]","v":0},{"$f":"Table1[[#This Row],[رقم الموبايـــل]]","v":0},{"$f":"Table1[[#This Row],[مده الاشتراك]]","v":0},{"$f":"Table1[[#This Row],[بدايه الاشتراك]]","v":"00:00:00"},{"$f":"Table1[[#This Row],[نهايه الاشتراك]]","v":"00:00:00"}]
[{"$f":"Table1[[#This Row],[أســــم المشترك]]","v":0},{"$f":"Table1[[#This Row],[كود المشترك]]","v":0},{"$f":"Table1[[#This Row],[رقم الموبايـــل]]","v":0},{"$f":"Table1[[#This Row],[مده الاشتراك]]","v":0},{"$f":"Table1[[#This Row],[بدايه الاشتراك]]","v":"00:00:00"},{"$f":"Table1[[#This Row],[نهايه الاشتراك]]","v":"00:00:00"}]
[{"$f":"Table1[[#This Row],[أســــم المشترك]]","v":0},{"$f":"Table1[[#This Row],[كود المشترك]]","v":0},{"$f":"Table1[[#This Row],[رقم الموبايـــل]]","v":0},{"$f":"Table1[[#This Row],[مده الاشتراك]]","v":0},{"$f":"Table1[[#This Row],[بدايه الاشتراك]]","v":"00:00:00"},{"$f":"Table1[[#This Row],[نهايه الاشتراك]]","v":"00:00:00"}]
[{"$f":"Table1[[#This Row],[أســــم المشترك]]","v":0},{"$f":"Table1[[#This Row],[كود المشترك]]","v":0},{"$f":"Table1[[#This Row],[رقم الموبايـــل]]","v":0},{"$f":"Table1[[#This Row],[مده الاشتراك]]","v":0},{"$f":"Table1[[#This Row],[بدايه الاشتراك]]","v":"00:00:00"},{"$f":"Table1[[#This Row],[نهايه الاشتراك]]","v":"00:00:00"}]
[{"$f":"Table1[[#This Row],[أســــم المشترك]]","v":0},{"$f":"Table1[[#This Row],[كود المشترك]]","v":0},{"$f":"Table1[[#This Row],[رقم الموبايـــل]]","v":0},{"$f":"Table1[[#This Row],[مده الاشتراك]]","v":0},{"$f":"Table1[[#This Row],[بدايه الاشتراك]]","v":"00:00:00"},{"$f":"Table1[[#This Row],[نهايه الاشتراك]]","v":"00:00:00"}]
[{"$f":"Table1[[#This Row],[أســــم المشترك]]","v":0},{"$f":"Table1[[#This Row],[كود المشترك]]","v":0},{"$f":"Table1[[#This Row],[رقم الموبايـــل]]","v":0},{"$f":"Table1[[#This Row],[مده الاشتراك]]","v":0},{"$f":"Table1[[#This Row],[بدايه الاشتراك]]","v":"00:00:00"},{"$f":"Table1[[#This Row],[نهايه الاشتراك]]","v":"00:00:00"}]
[{"$f":"Table1[[#This Row],[أســــم المشترك]]","v":0},{"$f":"Table1[[#This Row],[كود المشترك]]","v":0},{"$f":"Table1[[#This Row],[رقم الموبايـــل]]","v":0},{"$f":"Table1[[#This Row],[مده الاشتراك]]","v":0},{"$f":"Table1[[#This Row],[بدايه الاشتراك]]","v":"00:00:00"},{"$f":"Table1[[#This Row],[نهايه الاشتراك]]","v":"00:00:00"}]
[{"$f":"Table1[[#This Row],[أســــم المشترك]]","v":0},{"$f":"Table1[[#This Row],[كود المشترك]]","v":0},{"$f":"Table1[[#This Row],[رقم الموبايـــل]]","v":0},{"$f":"Table1[[#This Row],[مده الاشتراك]]","v":0},{"$f":"Table1[[#This Row],[بدايه الاشتراك]]","v":"00:00:00"},{"$f":"Table1[[#This Row],[نهايه الاشتراك]]","v":"00:00:00"}]
[{"$f":"Table1[[#This Row],[أســــم المشترك]]","v":0},{"$f":"Table1[[#This Row],[كود المشترك]]","v":0},{"$f":"Table1[[#This Row],[رقم الموبايـــل]]","v":0},{"$f":"Table1[[#This Row],[مده الاشتراك]]","v":0},{"$f":"Table1[[#This Row],[بدايه الاشتراك]]","v":"00:00:00"},{"$f":"Table1[[#This Row],[نهايه الاشتراك]]","v":"00:00:00"}]
[{"$f":"Table1[[#This Row],[أســــم المشترك]]","v":0},{"$f":"Table1[[#This Row],[كود المشترك]]","v":0},{"$f":"Table1[[#This Row],[رقم الموبايـــل]]","v":0},{"$f":"Table1[[#This Row],[مده الاشتراك]]","v":0},{"$f":"Table1[[#This Row],[بدايه الاشتراك]]","v":"00:00:00"},{"$f":"Table1[[#This Row],[نهايه الاشتراك]]","v":"00:00:00"}]
[{"$f":"Table1[[#This Row],[أســــم المشترك]]","v":0},{"$f":"Table1[[#This Row],[كود المشترك]]","v":0},{"$f":"Table1[[#This Row],[رقم الموبايـــل]]","v":0},{"$f":"Table1[[#This Row],[مده الاشتراك]]","v":0},{"$f":"Table1[[#This Row],[بدايه الاشتراك]]","v":"00:00:00"},{"$f":"Table1[[#This Row],[نهايه الاشتراك]]","v":"00:00:00"}]
[{"$f":"Table1[[#This Row],[أســــم المشترك]]","v":0},{"$f":"Table1[[#This Row],[كود المشترك]]","v":0},{"$f":"Table1[[#This Row],[رقم الموبايـــل]]","v":0},{"$f":"Table1[[#This Row],[مده الاشتراك]]","v":0},{"$f":"Table1[[#This Row],[بدايه الاشتراك]]","v":"00:00:00"},{"$f":"Table1[[#This Row],[نهايه الاشتراك]]","v":"00:00:00"}]
[{"$f":"Table1[[#This Row],[أســــم المشترك]]","v":0},{"$f":"Table1[[#This Row],[كود المشترك]]","v":0},{"$f":"Table1[[#This Row],[رقم الموبايـــل]]","v":0},{"$f":"Table1[[#This Row],[مده الاشتراك]]","v":0},{"$f":"Table1[[#This Row],[بدايه الاشتراك]]","v":"00:00:00"},{"$f":"Table1[[#This Row],[نهايه الاشتراك]]","v":"00:00:00"}]
[{"$f":"Table1[[#This Row],[أســــم المشترك]]","v":0},{"$f":"Table1[[#This Row],[كود المشترك]]","v":0},{"$f":"Table1[[#This Row],[رقم الموبايـــل]]","v":0},{"$f":"Table1[[#This Row],[مده الاشتراك]]","v":0},{"$f":"Table1[[#This Row],[بدايه الاشتراك]]","v":"00:00:00"},{"$f":"Table1[[#This Row],[نهايه الاشتراك]]","v":"00:00:00"}]
[{"$f":"Table1[[#This Row],[أســــم المشترك]]","v":0},{"$f":"Table1[[#This Row],[كود المشترك]]","v":0},{"$f":"Table1[[#This Row],[رقم الموبايـــل]]","v":0},{"$f":"Table1[[#This Row],[مده الاشتراك]]","v":0},{"$f":"Table1[[#This Row],[بدايه الاشتراك]]","v":"00:00:00"},{"$f":"Table1[[#This Row],[نهايه الاشتراك]]","v":"00:00:00"}]
[{"$f":"Table1[[#This Row],[أســــم المشترك]]","v":0},{"$f":"Table1[[#This Row],[كود المشترك]]","v":0},{"$f":"Table1[[#This Row],[رقم الموبايـــل]]","v":0},{"$f":"Table1[[#This Row],[مده الاشتراك]]","v":0},{"$f":"Table1[[#This Row],[بدايه الاشتراك]]","v":"00:00:00"},{"$f":"Table1[[#This Row],[نهايه الاشتراك]]","v":"00:00:00"}]
[{"$f":"Table1[[#This Row],[أســــم المشترك]]","v":0},{"$f":"Table1[[#This Row],[كود المشترك]]","v":0},{"$f":"Table1[[#This Row],[رقم الموبايـــل]]","v":0},{"$f":"Table1[[#This Row],[مده الاشتراك]]","v":0},{"$f":"Table1[[#This Row],[بدايه الاشتراك]]","v":"00:00:00"},{"$f":"Table1[[#This Row],[نهايه الاشتراك]]","v":"00:00:00"}]
[{"$f":"Table1[[#This Row],[أســــم المشترك]]","v":0},{"$f":"Table1[[#This Row],[كود المشترك]]","v":0},{"$f":"Table1[[#This Row],[رقم الموبايـــل]]","v":0},{"$f":"Table1[[#This Row],[مده الاشتراك]]","v":0},{"$f":"Table1[[#This Row],[بدايه الاشتراك]]","v":"00:00:00"},{"$f":"Table1[[#This Row],[نهايه الاشتراك]]","v":"00:00:00"}]
[{"$f":"Table1[[#This Row],[أســــم المشترك]]","v":0},{"$f":"Table1[[#This Row],[كود المشترك]]","v":0},{"$f":"Table1[[#This Row],[رقم الموبايـــل]]","v":0},{"$f":"Table1[[#This Row],[مده الاشتراك]]","v":0},{"$f":"Table1[[#This Row],[بدايه الاشتراك]]","v":"00:00:00"},{"$f":"Table1[[#This Row],[نهايه الاشتراك]]","v":"00:00:00"}]
[{"$f":"Table1[[#This Row],[أســــم المشترك]]","v":0},{"$f":"Table1[[#This Row],[كود المشترك]]","v":0},{"$f":"Table1[[#This Row],[رقم الموبايـــل]]","v":0},{"$f":"Table1[[#This Row],[مده الاشتراك]]","v":0},{"$f":"Table1[[#This Row],[بدايه الاشتراك]]","v":"00:00:00"},{"$f":"Table1[[#This Row],[نهايه الاشتراك]]","v":"00:00:00"}]
[{"$f":"Table1[[#This Row],[أســــم المشترك]]","v":0},{"$f":"Table1[[#This Row],[كود المشترك]]","v":0},{"$f":"Table1[[#This Row],[رقم الموبايـــل]]","v":0},{"$f":"Table1[[#This Row],[مده الاشتراك]]","v":0},{"$f":"Table1[[#This Row],[بدايه الاشتراك]]","v":"00:00:00"},{"$f":"Table1[[#This Row],[نهايه الاشتراك]]","v":"00:00:00"}]
[{"$f":"Table1[[#This Row],[أســــم المشترك]]","v":0},{"$f":"Table1[[#This Row],[كود المشترك]]","v":0},{"$f":"Table1[[#This Row],[رقم الموبايـــل]]","v":0},{"$f":"Table1[[#This Row],[مده الاشتراك]]","v":0},{"$f":"Table1[[#This Row],[بدايه الاشتراك]]","v":"00:00:00"},{"$f":"Table1[[#This Row],[نهايه الاشتراك]]","v":"00:00:00"}]
[{"$f":"Table1[[#This Row],[أســــم المشترك]]","v":0},{"$f":"Table1[[#This Row],[كود المشترك]]","v":0},{"$f":"Table1[[#This Row],[رقم الموبايـــل]]","v":0},{"$f":"Table1[[#This Row],[مده الاشتراك]]","v":0},{"$f":"Table1[[#This Row],[بدايه الاشتراك]]","v":"00:00:00"},{"$f":"Table1[[#This Row],[نهايه الاشتراك]]","v":"00:00:00"}]
[{"$f":"Table1[[#This Row],[أســــم المشترك]]","v":0},{"$f":"Table1[[#This Row],[كود المشترك]]","v":0},{"$f":"Table1[[#This Row],[رقم الموبايـــل]]","v":0},{"$f":"Table1[[#This Row],[مده الاشتراك]]","v":0},{"$f":"Table1[[#This Row],[بدايه الاشتراك]]","v":"00:00:00"},{"$f":"Table1[[#This Row],[نهايه الاشتراك]]","v":"00:00:00"}]
[{"$f":"Table1[[#This Row],[أســــم المشترك]]","v":0},{"$f":"Table1[[#This Row],[كود المشترك]]","v":0},{"$f":"Table1[[#This Row],[رقم الموبايـــل]]","v":0},{"$f":"Table1[[#This Row],[مده الاشتراك]]","v":0},{"$f":"Table1[[#This Row],[بدايه الاشتراك]]","v":"00:00:00"},{"$f":"Table1[[#This Row],[نهايه الاشتراك]]","v":"00:00:00"}]
[{"$f":"Table1[[#This Row],[أســــم المشترك]]","v":0},{"$f":"Table1[[#This Row],[كود المشترك]]","v":0},{"$f":"Table1[[#This Row],[رقم الموبايـــل]]","v":0},{"$f":"Table1[[#This Row],[مده الاشتراك]]","v":0},{"$f":"Table1[[#This Row],[بدايه الاشتراك]]","v":"00:00:00"},{"$f":"Table1[[#This Row],[نهايه الاشتراك]]","v":"00:00:00"}]
[{"$f":"Table1[[#This Row],[أســــم المشترك]]","v":0},{"$f":"Table1[[#This Row],[كود المشترك]]","v":0},{"$f":"Table1[[#This Row],[رقم الموبايـــل]]","v":0},{"$f":"Table1[[#This Row],[مده الاشتراك]]","v":0},{"$f":"Table1[[#This Row],[بدايه الاشتراك]]","v":"00:00:00"},{"$f":"Table1[[#This Row],[نهايه الاشتراك]]","v":"00:00:00"}]
[{"$f":"Table1[[#This Row],[أســــم المشترك]]","v":0},{"$f":"Table1[[#This Row],[كود المشترك]]","v":0},{"$f":"Table1[[#This Row],[رقم الموبايـــل]]","v":0},{"$f":"Table1[[#This Row],[مده الاشتراك]]","v":0},{"$f":"Table1[[#This Row],[بدايه الاشتراك]]","v":"00:00:00"},{"$f":"Table1[[#This Row],[نهايه الاشتراك]]","v":"00:00:00"}]
[{"$f":"Table1[[#This Row],[أســــم المشترك]]","v":0},{"$f":"Table1[[#This Row],[كود المشترك]]","v":0},{"$f":"Table1[[#This Row],[رقم الموبايـــل]]","v":0},{"$f":"Table1[[#This Row],[مده الاشتراك]]","v":0},{"$f":"Table1[[#This Row],[بدايه الاشتراك]]","v":"00:00:00"},{"$f":"Table1[[#This Row],[نهايه الاشتراك]]","v":"00:00:00"}]
[{"$f":"Table1[[#This Row],[أســــم المشترك]]","v":0},{"$f":"Table1[[#This Row],[كود المشترك]]","v":0},{"$f":"Table1[[#This Row],[رقم الموبايـــل]]","v":0},{"$f":"Table1[[#This Row],[مده الاشتراك]]","v":0},{"$f":"Table1[[#This Row],[بدايه الاشتراك]]","v":"00:00:00"},{"$f":"Table1[[#This Row],[نهايه الاشتراك]]","v":"00:00:00"}]
[{"$f":"Table1[[#This Row],[أســــم المشترك]]","v":0},{"$f":"Table1[[#This Row],[كود المشترك]]","v":0},{"$f":"Table1[[#This Row],[رقم الموبايـــل]]","v":0},{"$f":"Table1[[#This Row],[مده الاشتراك]]","v":0},{"$f":"Table1[[#This Row],[بدايه الاشتراك]]","v":"00:00:00"},{"$f":"Table1[[#This Row],[نهايه الاشتراك]]","v":"00:00:00"}]
[{"$f":"Table1[[#This Row],[أســــم المشترك]]","v":0},{"$f":"Table1[[#This Row],[كود المشترك]]","v":0},{"$f":"Table1[[#This Row],[رقم الموبايـــل]]","v":0},{"$f":"Table1[[#This Row],[مده الاشتراك]]","v":0},{"$f":"Table1[[#This Row],[بدايه الاشتراك]]","v":"00:00:00"},{"$f":"Table1[[#This Row],[نهايه الاشتراك]]","v":"00:00:00"}]
[{"$f":"Table1[[#This Row],[أســــم المشترك]]","v":0},{"$f":"Table1[[#This Row],[كود المشترك]]","v":0},{"$f":"Table1[[#This Row],[رقم الموبايـــل]]","v":0},{"$f":"Table1[[#This Row],[مده الاشتراك]]","v":0},{"$f":"Table1[[#This Row],[بدايه الاشتراك]]","v":"00:00:00"},{"$f":"Table1[[#This Row],[نهايه الاشتراك]]","v":"00:00:00"}]
[{"$f":"Table1[[#This Row],[أســــم المشترك]]","v":0},{"$f":"Table1[[#This Row],[كود المشترك]]","v":0},{"$f":"Table1[[#This Row],[رقم الموبايـــل]]","v":0},{"$f":"Table1[[#This Row],[مده الاشتراك]]","v":0},{"$f":"Table1[[#This Row],[بدايه الاشتراك]]","v":"00:00:00"},{"$f":"Table1[[#This Row],[نهايه الاشتراك]]","v":"00:00:00"}]
[{"$f":"Table1[[#This Row],[أســــم المشترك]]","v":0},{"$f":"Table1[[#This Row],[كود المشترك]]","v":0},{"$f":"Table1[[#This Row],[رقم الموبايـــل]]","v":0},{"$f":"Table1[[#This Row],[مده الاشتراك]]","v":0},{"$f":"Table1[[#This Row],[بدايه الاشتراك]]","v":"00:00:00"},{"$f":"Table1[[#This Row],[نهايه الاشتراك]]","v":"00:00:00"}]
[{"$f":"Table1[[#This Row],[أســــم المشترك]]","v":0},{"$f":"Table1[[#This Row],[كود المشترك]]","v":0},{"$f":"Table1[[#This Row],[رقم الموبايـــل]]","v":0},{"$f":"Table1[[#This Row],[مده الاشتراك]]","v":0},{"$f":"Table1[[#This Row],[بدايه الاشتراك]]","v":"00:00:00"},{"$f":"Table1[[#This Row],[نهايه الاشتراك]]","v":"00:00:00"}]
[{"$f":"Table1[[#This Row],[أســــم المشترك]]","v":0},{"$f":"Table1[[#This Row],[كود المشترك]]","v":0},{"$f":"Table1[[#This Row],[رقم الموبايـــل]]","v":0},{"$f":"Table1[[#This Row],[مده الاشتراك]]","v":0},{"$f":"Table1[[#This Row],[بدايه الاشتراك]]","v":"00:00:00"},{"$f":"Table1[[#This Row],[نهايه الاشتراك]]","v":"00:00:00"}]
[{"$f":"Table1[[#This Row],[أســــم المشترك]]","v":0},{"$f":"Table1[[#This Row],[كود المشترك]]","v":0},{"$f":"Table1[[#This Row],[رقم الموبايـــل]]","v":0},{"$f":"Table1[[#This Row],[مده الاشتراك]]","v":0},{"$f":"Table1[[#This Row],[بدايه الاشتراك]]","v":"00:00:00"},{"$f":"Table1[[#This Row],[نهايه الاشتراك]]","v":"00:00:00"}]
[{"$f":"Table1[[#This Row],[أســــم المشترك]]","v":0},{"$f":"Table1[[#This Row],[كود المشترك]]","v":0},{"$f":"Table1[[#This Row],[رقم الموبايـــل]]","v":0},{"$f":"Table1[[#This Row],[مده الاشتراك]]","v":0},{"$f":"Table1[[#This Row],[بدايه الاشتراك]]","v":"00:00:00"},{"$f":"Table1[[#This Row],[نهايه الاشتراك]]","v":"00:00:00"}]
[{"$f":"Table1[[#This Row],[أســــم المشترك]]","v":0},{"$f":"Table1[[#This Row],[كود المشترك]]","v":0},{"$f":"Table1[[#This Row],[رقم الموبايـــل]]","v":0},{"$f":"Table1[[#This Row],[مده الاشتراك]]","v":0},{"$f":"Table1[[#This Row],[بدايه الاشتراك]]","v":"00:00:00"},{"$f":"Table1[[#This Row],[نهايه الاشتراك]]","v":"00:00:00"}]
[{"$f":"Table1[[#This Row],[أســــم المشترك]]","v":0},{"$f":"Table1[[#This Row],[كود المشترك]]","v":0},{"$f":"Table1[[#This Row],[رقم الموبايـــل]]","v":0},{"$f":"Table1[[#This Row],[مده الاشتراك]]","v":0},{"$f":"Table1[[#This Row],[بدايه الاشتراك]]","v":"00:00:00"},{"$f":"Table1[[#This Row],[نهايه الاشتراك]]","v":"00:00:00"}]
[{"$f":"Table1[[#This Row],[أســــم المشترك]]","v":0},{"$f":"Table1[[#This Row],[كود المشترك]]","v":0},{"$f":"Table1[[#This Row],[رقم الموبايـــل]]","v":0},{"$f":"Table1[[#This Row],[مده الاشتراك]]","v":0},{"$f":"Table1[[#This Row],[بدايه الاشتراك]]","v":"00:00:00"},{"$f":"Table1[[#This Row],[نهايه الاشتراك]]","v":"00:00:00"}]
[{"$f":"Table1[[#This Row],[أســــم المشترك]]","v":0},{"$f":"Table1[[#This Row],[كود المشترك]]","v":0},{"$f":"Table1[[#This Row],[رقم الموبايـــل]]","v":0},{"$f":"Table1[[#This Row],[مده الاشتراك]]","v":0},{"$f":"Table1[[#This Row],[بدايه الاشتراك]]","v":"00:00:00"},{"$f":"Table1[[#This Row],[نهايه الاشتراك]]","v":"00:00:00"}]
[{"$f":"Table1[[#This Row],[أســــم المشترك]]","v":0},{"$f":"Table1[[#This Row],[كود المشترك]]","v":0},{"$f":"Table1[[#This Row],[رقم الموبايـــل]]","v":0},{"$f":"Table1[[#This Row],[مده الاشتراك]]","v":0},{"$f":"Table1[[#This Row],[بدايه الاشتراك]]","v":"00:00:00"},{"$f":"Table1[[#This Row],[نهايه الاشتراك]]","v":"00:00:00"}]
[{"$f":"Table1[[#This Row],[أســــم المشترك]]","v":0},{"$f":"Table1[[#This Row],[كود المشترك]]","v":0},{"$f":"Table1[[#This Row],[رقم الموبايـــل]]","v":0},{"$f":"Table1[[#This Row],[مده الاشتراك]]","v":0},{"$f":"Table1[[#This Row],[بدايه الاشتراك]]","v":"00:00:00"},{"$f":"Table1[[#This Row],[نهايه الاشتراك]]","v":"00:00:00"}]
[{"$f":"Table1[[#This Row],[أســــم المشترك]]","v":0},{"$f":"Table1[[#This Row],[كود المشترك]]","v":0},{"$f":"Table1[[#This Row],[رقم الموبايـــل]]","v":0},{"$f":"Table1[[#This Row],[مده الاشتراك]]","v":0},{"$f":"Table1[[#This Row],[بدايه الاشتراك]]","v":"00:00:00"},{"$f":"Table1[[#This Row],[نهايه الاشتراك]]","v":"00:00:00"}]
[{"$f":"Table1[[#This Row],[أســــم المشترك]]","v":0},{"$f":"Table1[[#This Row],[كود المشترك]]","v":0},{"$f":"Table1[[#This Row],[رقم الموبايـــل]]","v":0},{"$f":"Table1[[#This Row],[مده الاشتراك]]","v":0},{"$f":"Table1[[#This Row],[بدايه الاشتراك]]","v":"00:00:00"},{"$f":"Table1[[#This Row],[نهايه الاشتراك]]","v":"00:00:00"}]
[{"$f":"Table1[[#This Row],[أســــم المشترك]]","v":0},{"$f":"Table1[[#This Row],[كود المشترك]]","v":0},{"$f":"Table1[[#This Row],[رقم الموبايـــل]]","v":0},{"$f":"Table1[[#This Row],[مده الاشتراك]]","v":0},{"$f":"Table1[[#This Row],[بدايه الاشتراك]]","v":"00:00:00"},{"$f":"Table1[[#This Row],[نهايه الاشتراك]]","v":"00:00:00"}]
[{"$f":"Table1[[#This Row],[أســــم المشترك]]","v":0},{"$f":"Table1[[#This Row],[كود المشترك]]","v":0},{"$f":"Table1[[#This Row],[رقم الموبايـــل]]","v":0},{"$f":"Table1[[#This Row],[مده الاشتراك]]","v":0},{"$f":"Table1[[#This Row],[بدايه الاشتراك]]","v":"00:00:00"},{"$f":"Table1[[#This Row],[نهايه الاشتراك]]","v":"00:00:00"}]
[{"$f":"Table1[[#This Row],[أســــم المشترك]]","v":0},{"$f":"Table1[[#This Row],[كود المشترك]]","v":0},{"$f":"Table1[[#This Row],[رقم الموبايـــل]]","v":0},{"$f":"Table1[[#This Row],[مده الاشتراك]]","v":0},{"$f":"Table1[[#This Row],[بدايه الاشتراك]]","v":"00:00:00"},{"$f":"Table1[[#This Row],[نهايه الاشتراك]]","v":"00:00:00"}]
[{"$f":"Table1[[#This Row],[أســــم المشترك]]","v":0},{"$f":"Table1[[#This Row],[كود المشترك]]","v":0},{"$f":"Table1[[#This Row],[رقم الموبايـــل]]","v":0},{"$f":"Table1[[#This Row],[مده الاشتراك]]","v":0},{"$f":"Table1[[#This Row],[بدايه الاشتراك]]","v":"00:00:00"},{"$f":"Table1[[#This Row],[نهايه الاشتراك]]","v":"00:00:00"}]
[{"$f":"Table1[[#This Row],[أســــم المشترك]]","v":0},{"$f":"Table1[[#This Row],[كود المشترك]]","v":0},{"$f":"Table1[[#This Row],[رقم الموبايـــل]]","v":0},{"$f":"Table1[[#This Row],[مده الاشتراك]]","v":0},{"$f":"Table1[[#This Row],[بدايه الاشتراك]]","v":"00:00:00"},{"$f":"Table1[[#This Row],[نهايه الاشتراك]]","v":"00:00:00"}]
[{"$f":"Table1[[#This Row],[أســــم المشترك]]","v":0},{"$f":"Table1[[#This Row],[كود المشترك]]","v":0},{"$f":"Table1[[#This Row],[رقم الموبايـــل]]","v":0},{"$f":"Table1[[#This Row],[مده الاشتراك]]","v":0},{"$f":"Table1[[#This Row],[بدايه الاشتراك]]","v":"00:00:00"},{"$f":"Table1[[#This Row],[نهايه الاشتراك]]","v":"00:00:00"}]
[{"$f":"Table1[[#This Row],[أســــم المشترك]]","v":0},{"$f":"Table1[[#This Row],[كود المشترك]]","v":0},{"$f":"Table1[[#This Row],[رقم الموبايـــل]]","v":0},{"$f":"Table1[[#This Row],[مده الاشتراك]]","v":0},{"$f":"Table1[[#This Row],[بدايه الاشتراك]]","v":"00:00:00"},{"$f":"Table1[[#This Row],[نهايه الاشتراك]]","v":"00:00:00"}]
[{"$f":"Table1[[#This Row],[أســــم المشترك]]","v":0},{"$f":"Table1[[#This Row],[كود المشترك]]","v":0},{"$f":"Table1[[#This Row],[رقم الموبايـــل]]","v":0},{"$f":"Table1[[#This Row],[مده الاشتراك]]","v":0},{"$f":"Table1[[#This Row],[بدايه الاشتراك]]","v":"00:00:00"},{"$f":"Table1[[#This Row],[نهايه الاشتراك]]","v":"00:00:00"}]
[{"$f":"Table1[[#This Row],[أســــم المشترك]]","v":0},{"$f":"Table1[[#This Row],[كود المشترك]]","v":0},{"$f":"Table1[[#This Row],[رقم الموبايـــل]]","v":0},{"$f":"Table1[[#This Row],[مده الاشتراك]]","v":0},{"$f":"Table1[[#This Row],[بدايه الاشتراك]]","v":"00:00:00"},{"$f":"Table1[[#This Row],[نهايه الاشتراك]]","v":"00:00:00"}]
[{"$f":"Table1[[#This Row],[أســــم المشترك]]","v":0},{"$f":"Table1[[#This Row],[كود المشترك]]","v":0},{"$f":"Table1[[#This Row],[رقم الموبايـــل]]","v":0},{"$f":"Table1[[#This Row],[مده الاشتراك]]","v":0},{"$f":"Table1[[#This Row],[بدايه الاشتراك]]","v":"00:00:00"},{"$f":"Table1[[#This Row],[نهايه الاشتراك]]","v":"00:00:00"}]
[{"$f":"Table1[[#This Row],[أســــم المشترك]]","v":0},{"$f":"Table1[[#This Row],[كود المشترك]]","v":0},{"$f":"Table1[[#This Row],[رقم الموبايـــل]]","v":0},{"$f":"Table1[[#This Row],[مده الاشتراك]]","v":0},{"$f":"Table1[[#This Row],[بدايه الاشتراك]]","v":"00:00:00"},{"$f":"Table1[[#This Row],[نهايه الاشتراك]]","v":"00:00:00"}]
[{"$f":"Table1[[#This Row],[أســــم المشترك]]","v":0},{"$f":"Table1[[#This Row],[كود المشترك]]","v":0},{"$f":"Table1[[#This Row],[رقم الموبايـــل]]","v":0},{"$f":"Table1[[#This Row],[مده الاشتراك]]","v":0},{"$f":"Table1[[#This Row],[بدايه الاشتراك]]","v":"00:00:00"},{"$f":"Table1[[#This Row],[نهايه الاشتراك]]","v":"00:00:00"}]
[{"$f":"Table1[[#This Row],[أســــم المشترك]]","v":0},{"$f":"Table1[[#This Row],[كود المشترك]]","v":0},{"$f":"Table1[[#This Row],[رقم الموبايـــل]]","v":0},{"$f":"Table1[[#This Row],[مده الاشتراك]]","v":0},{"$f":"Table1[[#This Row],[بدايه الاشتراك]]","v":"00:00:00"},{"$f":"Table1[[#This Row],[نهايه الاشتراك]]","v":"00:00:00"}]
[{"$f":"Table1[[#This Row],[أســــم المشترك]]","v":0},{"$f":"Table1[[#This Row],[كود المشترك]]","v":0},{"$f":"Table1[[#This Row],[رقم الموبايـــل]]","v":0},{"$f":"Table1[[#This Row],[مده الاشتراك]]","v":0},{"$f":"Table1[[#This Row],[بدايه الاشتراك]]","v":"00:00:00"},{"$f":"Table1[[#This Row],[نهايه الاشتراك]]","v":"00:00:00"}]
[{"$f":"Table1[[#This Row],[أســــم المشترك]]","v":0},{"$f":"Table1[[#This Row],[كود المشترك]]","v":0},{"$f":"Table1[[#This Row],[رقم الموبايـــل]]","v":0},{"$f":"Table1[[#This Row],[مده الاشتراك]]","v":0},{"$f":"Table1[[#This Row],[بدايه الاشتراك]]","v":"00:00:00"},{"$f":"Table1[[#This Row],[نهايه الاشتراك]]","v":"00:00:00"}]
[{"$f":"Table1[[#This Row],[أســــم المشترك]]","v":0},{"$f":"Table1[[#This Row],[كود المشترك]]","v":0},{"$f":"Table1[[#This Row],[رقم الموبايـــل]]","v":0},{"$f":"Table1[[#This Row],[مده الاشتراك]]","v":0},{"$f":"Table1[[#This Row],[بدايه الاشتراك]]","v":"00:00:00"},{"$f":"Table1[[#This Row],[نهايه الاشتراك]]","v":"00:00:00"}]
[{"$f":"Table1[[#This Row],[أســــم المشترك]]","v":0},{"$f":"Table1[[#This Row],[كود المشترك]]","v":0},{"$f":"Table1[[#This Row],[رقم الموبايـــل]]","v":0},{"$f":"Table1[[#This Row],[مده الاشتراك]]","v":0},{"$f":"Table1[[#This Row],[بدايه الاشتراك]]","v":"00:00:00"},{"$f":"Table1[[#This Row],[نهايه الاشتراك]]","v":"00:00:00"}]
[{"$f":"Table1[[#This Row],[أســــم المشترك]]","v":0},{"$f":"Table1[[#This Row],[كود المشترك]]","v":0},{"$f":"Table1[[#This Row],[رقم الموبايـــل]]","v":0},{"$f":"Table1[[#This Row],[مده الاشتراك]]","v":0},{"$f":"Table1[[#This Row],[بدايه الاشتراك]]","v":"00:00:00"},{"$f":"Table1[[#This Row],[نهايه الاشتراك]]","v":"00:00:00"}]
[{"$f":"Table1[[#This Row],[أســــم المشترك]]","v":0},{"$f":"Table1[[#This Row],[كود المشترك]]","v":0},{"$f":"Table1[[#This Row],[رقم الموبايـــل]]","v":0},{"$f":"Table1[[#This Row],[مده الاشتراك]]","v":0},{"$f":"Table1[[#This Row],[بدايه الاشتراك]]","v":"00:00:00"},{"$f":"Table1[[#This Row],[نهايه الاشتراك]]","v":"00:00:00"}]
[{"$f":"Table1[[#This Row],[أســــم المشترك]]","v":0},{"$f":"Table1[[#This Row],[كود المشترك]]","v":0},{"$f":"Table1[[#This Row],[رقم الموبايـــل]]","v":0},{"$f":"Table1[[#This Row],[مده الاشتراك]]","v":0},{"$f":"Table1[[#This Row],[بدايه الاشتراك]]","v":"00:00:00"},{"$f":"Table1[[#This Row],[نهايه الاشتراك]]","v":"00:00:00"}]
[{"$f":"Table1[[#This Row],[أســــم المشترك]]","v":0},{"$f":"Table1[[#This Row],[كود المشترك]]","v":0},{"$f":"Table1[[#This Row],[رقم الموبايـــل]]","v":0},{"$f":"Table1[[#This Row],[مده الاشتراك]]","v":0},{"$f":"Table1[[#This Row],[بدايه الاشتراك]]","v":"00:00:00"},{"$f":"Table1[[#This Row],[نهايه الاشتراك]]","v":"00:00:00"}]
[{"$f":"Table1[[#This Row],[أســــم المشترك]]","v":0},{"$f":"Table1[[#This Row],[كود المشترك]]","v":0},{"$f":"Table1[[#This Row],[رقم الموبايـــل]]","v":0},{"$f":"Table1[[#This Row],[مده الاشتراك]]","v":0},{"$f":"Table1[[#This Row],[بدايه الاشتراك]]","v":"00:00:00"},{"$f":"Table1[[#This Row],[نهايه الاشتراك]]","v":"00:00:00"}]
[{"$f":"Table1[[#This Row],[أســــم المشترك]]","v":0},{"$f":"Table1[[#This Row],[كود المشترك]]","v":0},{"$f":"Table1[[#This Row],[رقم الموبايـــل]]","v":0},{"$f":"Table1[[#This Row],[مده الاشتراك]]","v":0},{"$f":"Table1[[#This Row],[بدايه الاشتراك]]","v":"00:00:00"},{"$f":"Table1[[#This Row],[نهايه الاشتراك]]","v":"00:00:00"}]
[{"$f":"Table1[[#This Row],[أســــم المشترك]]","v":0},{"$f":"Table1[[#This Row],[كود المشترك]]","v":0},{"$f":"Table1[[#This Row],[رقم الموبايـــل]]","v":0},{"$f":"Table1[[#This Row],[مده الاشتراك]]","v":0},{"$f":"Table1[[#This Row],[بدايه الاشتراك]]","v":"00:00:00"},{"$f":"Table1[[#This Row],[نهايه الاشتراك]]","v":"00:00:00"}]
[{"$f":"Table1[[#This Row],[أســــم المشترك]]","v":0},{"$f":"Table1[[#This Row],[كود المشترك]]","v":0},{"$f":"Table1[[#This Row],[رقم الموبايـــل]]","v":0},{"$f":"Table1[[#This Row],[مده الاشتراك]]","v":0},{"$f":"Table1[[#This Row],[بدايه الاشتراك]]","v":"00:00:00"},{"$f":"Table1[[#This Row],[نهايه الاشتراك]]","v":"00:00:00"}]
[{"$f":"Table1[[#This Row],[أســــم المشترك]]","v":0},{"$f":"Table1[[#This Row],[كود المشترك]]","v":0},{"$f":"Table1[[#This Row],[رقم الموبايـــل]]","v":0},{"$f":"Table1[[#This Row],[مده الاشتراك]]","v":0},{"$f":"Table1[[#This Row],[بدايه الاشتراك]]","v":"00:00:00"},{"$f":"Table1[[#This Row],[نهايه الاشتراك]]","v":"00:00:00"}]
[{"$f":"Table1[[#This Row],[أســــم المشترك]]","v":0},{"$f":"Table1[[#This Row],[كود المشترك]]","v":0},{"$f":"Table1[[#This Row],[رقم الموبايـــل]]","v":0},{"$f":"Table1[[#This Row],[مده الاشتراك]]","v":0},{"$f":"Table1[[#This Row],[بدايه الاشتراك]]","v":"00:00:00"},{"$f":"Table1[[#This Row],[نهايه الاشتراك]]","v":"00:00:00"}]
[{"$f":"Table1[[#This Row],[أســــم المشترك]]","v":0},{"$f":"Table1[[#This Row],[كود المشترك]]","v":0},{"$f":"Table1[[#This Row],[رقم الموبايـــل]]","v":0},{"$f":"Table1[[#This Row],[مده الاشتراك]]","v":0},{"$f":"Table1[[#This Row],[بدايه الاشتراك]]","v":"00:00:00"},{"$f":"Table1[[#This Row],[نهايه الاشتراك]]","v":"00:00:00"}]
[{"$f":"Table1[[#This Row],[أســــم المشترك]]","v":0},{"$f":"Table1[[#This Row],[كود المشترك]]","v":0},{"$f":"Table1[[#This Row],[رقم الموبايـــل]]","v":0},{"$f":"Table1[[#This Row],[مده الاشتراك]]","v":0},{"$f":"Table1[[#This Row],[بدايه الاشتراك]]","v":"00:00:00"},{"$f":"Table1[[#This Row],[نهايه الاشتراك]]","v":"00:00:00"}]
[{"$f":"Table1[[#This Row],[أســــم المشترك]]","v":0},{"$f":"Table1[[#This Row],[كود المشترك]]","v":0},{"$f":"Table1[[#This Row],[رقم الموبايـــل]]","v":0},{"$f":"Table1[[#This Row],[مده الاشتراك]]","v":0},{"$f":"Table1[[#This Row],[بدايه الاشتراك]]","v":"00:00:00"},{"$f":"Table1[[#This Row],[نهايه الاشتراك]]","v":"00:00:00"}]
[{"$f":"Table1[[#This Row],[أســــم المشترك]]","v":0},{"$f":"Table1[[#This Row],[كود المشترك]]","v":0},{"$f":"Table1[[#This Row],[رقم الموبايـــل]]","v":0},{"$f":"Table1[[#This Row],[مده الاشتراك]]","v":0},{"$f":"Table1[[#This Row],[بدايه الاشتراك]]","v":"00:00:00"},{"$f":"Table1[[#This Row],[نهايه الاشتراك]]","v":"00:00:00"}]
[{"$f":"Table1[[#This Row],[أســــم المشترك]]","v":0},{"$f":"Table1[[#This Row],[كود المشترك]]","v":0},{"$f":"Table1[[#This Row],[رقم الموبايـــل]]","v":0},{"$f":"Table1[[#This Row],[مده الاشتراك]]","v":0},{"$f":"Table1[[#This Row],[بدايه الاشتراك]]","v":"00:00:00"},{"$f":"Table1[[#This Row],[نهايه الاشتراك]]","v":"00:00:00"}]
[{"$f":"Table1[[#This Row],[أســــم المشترك]]","v":0},{"$f":"Table1[[#This Row],[كود المشترك]]","v":0},{"$f":"Table1[[#This Row],[رقم الموبايـــل]]","v":0},{"$f":"Table1[[#This Row],[مده الاشتراك]]","v":0},{"$f":"Table1[[#This Row],[بدايه الاشتراك]]","v":"00:00:00"},{"$f":"Table1[[#This Row],[نهايه الاشتراك]]","v":"00:00:00"}]
[{"$f":"Table1[[#This Row],[أســــم المشترك]]","v":0},{"$f":"Table1[[#This Row],[كود المشترك]]","v":0},{"$f":"Table1[[#This Row],[رقم الموبايـــل]]","v":0},{"$f":"Table1[[#This Row],[مده الاشتراك]]","v":0},{"$f":"Table1[[#This Row],[بدايه الاشتراك]]","v":"00:00:00"},{"$f":"Table1[[#This Row],[نهايه الاشتراك]]","v":"00:00:00"}]
[{"$f":"Table1[[#This Row],[أســــم المشترك]]","v":0},{"$f":"Table1[[#This Row],[كود المشترك]]","v":0},{"$f":"Table1[[#This Row],[رقم الموبايـــل]]","v":0},{"$f":"Table1[[#This Row],[مده الاشتراك]]","v":0},{"$f":"Table1[[#This Row],[بدايه الاشتراك]]","v":"00:00:00"},{"$f":"Table1[[#This Row],[نهايه الاشتراك]]","v":"00:00:00"}]
[{"$f":"Table1[[#This Row],[أســــم المشترك]]","v":0},{"$f":"Table1[[#This Row],[كود المشترك]]","v":0},{"$f":"Table1[[#This Row],[رقم الموبايـــل]]","v":0},{"$f":"Table1[[#This Row],[مده الاشتراك]]","v":0},{"$f":"Table1[[#This Row],[بدايه الاشتراك]]","v":"00:00:00"},{"$f":"Table1[[#This Row],[نهايه الاشتراك]]","v":"00:00:00"}]
[{"$f":"Table1[[#This Row],[أســــم المشترك]]","v":0},{"$f":"Table1[[#This Row],[كود المشترك]]","v":0},{"$f":"Table1[[#This Row],[رقم الموبايـــل]]","v":0},{"$f":"Table1[[#This Row],[مده الاشتراك]]","v":0},{"$f":"Table1[[#This Row],[بدايه الاشتراك]]","v":"00:00:00"},{"$f":"Table1[[#This Row],[نهايه الاشتراك]]","v":"00:00:00"}]
[{"$f":"Table1[[#This Row],[أســــم المشترك]]","v":0},{"$f":"Table1[[#This Row],[كود المشترك]]","v":0},{"$f":"Table1[[#This Row],[رقم الموبايـــل]]","v":0},{"$f":"Table1[[#This Row],[مده الاشتراك]]","v":0},{"$f":"Table1[[#This Row],[بدايه الاشتراك]]","v":"00:00:00"},{"$f":"Table1[[#This Row],[نهايه الاشتراك]]","v":"00:00:00"}]
[{"$f":"Table1[[#This Row],[أســــم المشترك]]","v":0},{"$f":"Table1[[#This Row],[كود المشترك]]","v":0},{"$f":"Table1[[#This Row],[رقم الموبايـــل]]","v":0},{"$f":"Table1[[#This Row],[مده الاشتراك]]","v":0},{"$f":"Table1[[#This Row],[بدايه الاشتراك]]","v":"00:00:00"},{"$f":"Table1[[#This Row],[نهايه الاشتراك]]","v":"00:00:00"}]
[{"$f":"Table1[[#This Row],[أســــم المشترك]]","v":0},{"$f":"Table1[[#This Row],[كود المشترك]]","v":0},{"$f":"Table1[[#This Row],[رقم الموبايـــل]]","v":0},{"$f":"Table1[[#This Row],[مده الاشتراك]]","v":0},{"$f":"Table1[[#This Row],[بدايه الاشتراك]]","v":"00:00:00"},{"$f":"Table1[[#This Row],[نهايه الاشتراك]]","v":"00:00:00"}]
[{"$f":"Table1[[#This Row],[أســــم المشترك]]","v":0},{"$f":"Table1[[#This Row],[كود المشترك]]","v":0},{"$f":"Table1[[#This Row],[رقم الموبايـــل]]","v":0},{"$f":"Table1[[#This Row],[مده الاشتراك]]","v":0},{"$f":"Table1[[#This Row],[بدايه الاشتراك]]","v":"00:00:00"},{"$f":"Table1[[#This Row],[نهايه الاشتراك]]","v":"00:00:00"}]
[{"$f":"Table1[[#This Row],[أســــم المشترك]]","v":0},{"$f":"Table1[[#This Row],[كود المشترك]]","v":0},{"$f":"Table1[[#This Row],[رقم الموبايـــل]]","v":0},{"$f":"Table1[[#This Row],[مده الاشتراك]]","v":0},{"$f":"Table1[[#This Row],[بدايه الاشتراك]]","v":"00:00:00"},{"$f":"Table1[[#This Row],[نهايه الاشتراك]]","v":"00:00:00"}]
[{"$f":"Table1[[#This Row],[أســــم المشترك]]","v":0},{"$f":"Table1[[#This Row],[كود المشترك]]","v":0},{"$f":"Table1[[#This Row],[رقم الموبايـــل]]","v":0},{"$f":"Table1[[#This Row],[مده الاشتراك]]","v":0},{"$f":"Table1[[#This Row],[بدايه الاشتراك]]","v":"00:00:00"},{"$f":"Table1[[#This Row],[نهايه الاشتراك]]","v":"00:00:00"}]
[{"$f":"Table1[[#This Row],[أســــم المشترك]]","v":0},{"$f":"Table1[[#This Row],[كود المشترك]]","v":0},{"$f":"Table1[[#This Row],[رقم الموبايـــل]]","v":0},{"$f":"Table1[[#This Row],[مده الاشتراك]]","v":0},{"$f":"Table1[[#This Row],[بدايه الاشتراك]]","v":"00:00:00"},{"$f":"Table1[[#This Row],[نهايه الاشتراك]]","v":"00:00:00"}]
[{"$f":"Table1[[#This Row],[أســــم المشترك]]","v":0},{"$f":"Table1[[#This Row],[كود المشترك]]","v":0},{"$f":"Table1[[#This Row],[رقم الموبايـــل]]","v":0},{"$f":"Table1[[#This Row],[مده الاشتراك]]","v":0},{"$f":"Table1[[#This Row],[بدايه الاشتراك]]","v":"00:00:00"},{"$f":"Table1[[#This Row],[نهايه الاشتراك]]","v":"00:00:00"}]
[{"$f":"Table1[[#This Row],[أســــم المشترك]]","v":0},{"$f":"Table1[[#This Row],[كود المشترك]]","v":0},{"$f":"Table1[[#This Row],[رقم الموبايـــل]]","v":0},{"$f":"Table1[[#This Row],[مده الاشتراك]]","v":0},{"$f":"Table1[[#This Row],[بدايه الاشتراك]]","v":"00:00:00"},{"$f":"Table1[[#This Row],[نهايه الاشتراك]]","v":"00:00:00"}]
[{"$f":"Table1[[#This Row],[أســــم المشترك]]","v":0},{"$f":"Table1[[#This Row],[كود المشترك]]","v":0},{"$f":"Table1[[#This Row],[رقم الموبايـــل]]","v":0},{"$f":"Table1[[#This Row],[مده الاشتراك]]","v":0},{"$f":"Table1[[#This Row],[بدايه الاشتراك]]","v":"00:00:00"},{"$f":"Table1[[#This Row],[نهايه الاشتراك]]","v":"00:00:00"}]
[{"$f":"Table1[[#This Row],[أســــم المشترك]]","v":0},{"$f":"Table1[[#This Row],[كود المشترك]]","v":0},{"$f":"Table1[[#This Row],[رقم الموبايـــل]]","v":0},{"$f":"Table1[[#This Row],[مده الاشتراك]]","v":0},{"$f":"Table1[[#This Row],[بدايه الاشتراك]]","v":"00:00:00"},{"$f":"Table1[[#This Row],[نهايه الاشتراك]]","v":"00:00:00"}]
[{"$f":"Table1[[#This Row],[أســــم المشترك]]","v":0},{"$f":"Table1[[#This Row],[كود المشترك]]","v":0},{"$f":"Table1[[#This Row],[رقم الموبايـــل]]","v":0},{"$f":"Table1[[#This Row],[مده الاشتراك]]","v":0},{"$f":"Table1[[#This Row],[بدايه الاشتراك]]","v":"00:00:00"},{"$f":"Table1[[#This Row],[نهايه الاشتراك]]","v":"00:00:00"}]
[{"$f":"Table1[[#This Row],[أســــم المشترك]]","v":0},{"$f":"Table1[[#This Row],[كود المشترك]]","v":0},{"$f":"Table1[[#This Row],[رقم الموبايـــل]]","v":0},{"$f":"Table1[[#This Row],[مده الاشتراك]]","v":0},{"$f":"Table1[[#This Row],[بدايه الاشتراك]]","v":"00:00:00"},{"$f":"Table1[[#This Row],[نهايه الاشتراك]]","v":"00:00:00"}]
[{"$f":"Table1[[#This Row],[أســــم المشترك]]","v":0},{"$f":"Table1[[#This Row],[كود المشترك]]","v":0},{"$f":"Table1[[#This Row],[رقم الموبايـــل]]","v":0},{"$f":"Table1[[#This Row],[مده الاشتراك]]","v":0},{"$f":"Table1[[#This Row],[بدايه الاشتراك]]","v":"00:00:00"},{"$f":"Table1[[#This Row],[نهايه الاشتراك]]","v":"00:00:00"}]
[{"$f":"Table1[[#This Row],[أســــم المشترك]]","v":0},{"$f":"Table1[[#This Row],[كود المشترك]]","v":0},{"$f":"Table1[[#This Row],[رقم الموبايـــل]]","v":0},{"$f":"Table1[[#This Row],[مده الاشتراك]]","v":0},{"$f":"Table1[[#This Row],[بدايه الاشتراك]]","v":"00:00:00"},{"$f":"Table1[[#This Row],[نهايه الاشتراك]]","v":"00:00:00"}]
[{"$f":"Table1[[#This Row],[أســــم المشترك]]","v":0},{"$f":"Table1[[#This Row],[كود المشترك]]","v":0},{"$f":"Table1[[#This Row],[رقم الموبايـــل]]","v":0},{"$f":"Table1[[#This Row],[مده الاشتراك]]","v":0},{"$f":"Table1[[#This Row],[بدايه الاشتراك]]","v":"00:00:00"},{"$f":"Table1[[#This Row],[نهايه الاشتراك]]","v":"00:00:00"}]
[{"$f":"Table1[[#This Row],[أســــم المشترك]]","v":0},{"$f":"Table1[[#This Row],[كود المشترك]]","v":0},{"$f":"Table1[[#This Row],[رقم الموبايـــل]]","v":0},{"$f":"Table1[[#This Row],[مده الاشتراك]]","v":0},{"$f":"Table1[[#This Row],[بدايه الاشتراك]]","v":"00:00:00"},{"$f":"Table1[[#This Row],[نهايه الاشتراك]]","v":"00:00:00"}]
[{"$f":"Table1[[#This Row],[أســــم المشترك]]","v":0},{"$f":"Table1[[#This Row],[كود المشترك]]","v":0},{"$f":"Table1[[#This Row],[رقم الموبايـــل]]","v":0},{"$f":"Table1[[#This Row],[مده الاشتراك]]","v":0},{"$f":"Table1[[#This Row],[بدايه الاشتراك]]","v":"00:00:00"},{"$f":"Table1[[#This Row],[نهايه الاشتراك]]","v":"00:00:00"}]
[{"$f":"Table1[[#This Row],[أســــم المشترك]]","v":0},{"$f":"Table1[[#This Row],[كود المشترك]]","v":0},{"$f":"Table1[[#This Row],[رقم الموبايـــل]]","v":0},{"$f":"Table1[[#This Row],[مده الاشتراك]]","v":0},{"$f":"Table1[[#This Row],[بدايه الاشتراك]]","v":"00:00:00"},{"$f":"Table1[[#This Row],[نهايه الاشتراك]]","v":"00:00:00"}]
[{"$f":"Table1[[#This Row],[أســــم المشترك]]","v":0},{"$f":"Table1[[#This Row],[كود المشترك]]","v":0},{"$f":"Table1[[#This Row],[رقم الموبايـــل]]","v":0},{"$f":"Table1[[#This Row],[مده الاشتراك]]","v":0},{"$f":"Table1[[#This Row],[بدايه الاشتراك]]","v":"00:00:00"},{"$f":"Table1[[#This Row],[نهايه الاشتراك]]","v":"00:00:00"}]
[{"$f":"Table1[[#This Row],[أســــم المشترك]]","v":0},{"$f":"Table1[[#This Row],[كود المشترك]]","v":0},{"$f":"Table1[[#This Row],[رقم الموبايـــل]]","v":0},{"$f":"Table1[[#This Row],[مده الاشتراك]]","v":0},{"$f":"Table1[[#This Row],[بدايه الاشتراك]]","v":"00:00:00"},{"$f":"Table1[[#This Row],[نهايه الاشتراك]]","v":"00:00:00"}]
[{"$f":"Table1[[#This Row],[أســــم المشترك]]","v":0},{"$f":"Table1[[#This Row],[كود المشترك]]","v":0},{"$f":"Table1[[#This Row],[رقم الموبايـــل]]","v":0},{"$f":"Table1[[#This Row],[مده الاشتراك]]","v":0},{"$f":"Table1[[#This Row],[بدايه الاشتراك]]","v":"00:00:00"},{"$f":"Table1[[#This Row],[نهايه الاشتراك]]","v":"00:00:00"}]
[{"$f":"Table1[[#This Row],[أســــم المشترك]]","v":0},{"$f":"Table1[[#This Row],[كود المشترك]]","v":0},{"$f":"Table1[[#This Row],[رقم الموبايـــل]]","v":0},{"$f":"Table1[[#This Row],[مده الاشتراك]]","v":0},{"$f":"Table1[[#This Row],[بدايه الاشتراك]]","v":"00:00:00"},{"$f":"Table1[[#This Row],[نهايه الاشتراك]]","v":"00:00:00"}]
[{"$f":"Table1[[#This Row],[أســــم المشترك]]","v":0},{"$f":"Table1[[#This Row],[كود المشترك]]","v":0},{"$f":"Table1[[#This Row],[رقم الموبايـــل]]","v":0},{"$f":"Table1[[#This Row],[مده الاشتراك]]","v":0},{"$f":"Table1[[#This Row],[بدايه الاشتراك]]","v":"00:00:00"},{"$f":"Table1[[#This Row],[نهايه الاشتراك]]","v":"00:00:00"}]
[{"$f":"Table1[[#This Row],[أســــم المشترك]]","v":0},{"$f":"Table1[[#This Row],[كود المشترك]]","v":0},{"$f":"Table1[[#This Row],[رقم الموبايـــل]]","v":0},{"$f":"Table1[[#This Row],[مده الاشتراك]]","v":0},{"$f":"Table1[[#This Row],[بدايه الاشتراك]]","v":"00:00:00"},{"$f":"Table1[[#This Row],[نهايه الاشتراك]]","v":"00:00:00"}]
[{"$f":"Table1[[#This Row],[أســــم المشترك]]","v":0},{"$f":"Table1[[#This Row],[كود المشترك]]","v":0},{"$f":"Table1[[#This Row],[رقم الموبايـــل]]","v":0},{"$f":"Table1[[#This Row],[مده الاشتراك]]","v":0},{"$f":"Table1[[#This Row],[بدايه الاشتراك]]","v":"00:00:00"},{"$f":"Table1[[#This Row],[نهايه الاشتراك]]","v":"00:00:00"}]
[{"$f":"Table1[[#This Row],[أســــم المشترك]]","v":0},{"$f":"Table1[[#This Row],[كود المشترك]]","v":0},{"$f":"Table1[[#This Row],[رقم الموبايـــل]]","v":0},{"$f":"Table1[[#This Row],[مده الاشتراك]]","v":0},{"$f":"Table1[[#This Row],[بدايه الاشتراك]]","v":"00:00:00"},{"$f":"Table1[[#This Row],[نهايه الاشتراك]]","v":"00:00:00"}]
[{"$f":"Table1[[#This Row],[أســــم المشترك]]","v":0},{"$f":"Table1[[#This Row],[كود المشترك]]","v":0},{"$f":"Table1[[#This Row],[رقم الموبايـــل]]","v":0},{"$f":"Table1[[#This Row],[مده الاشتراك]]","v":0},{"$f":"Table1[[#This Row],[بدايه الاشتراك]]","v":"00:00:00"},{"$f":"Table1[[#This Row],[نهايه الاشتراك]]","v":"00:00:00"}]
[{"$f":"Table1[[#This Row],[أســــم المشترك]]","v":0},{"$f":"Table1[[#This Row],[كود المشترك]]","v":0},{"$f":"Table1[[#This Row],[رقم الموبايـــل]]","v":0},{"$f":"Table1[[#This Row],[مده الاشتراك]]","v":0},{"$f":"Table1[[#This Row],[بدايه الاشتراك]]","v":"00:00:00"},{"$f":"Table1[[#This Row],[نهايه الاشتراك]]","v":"00:00:00"}]
[{"$f":"Table1[[#This Row],[أســــم المشترك]]","v":0},{"$f":"Table1[[#This Row],[كود المشترك]]","v":0},{"$f":"Table1[[#This Row],[رقم الموبايـــل]]","v":0},{"$f":"Table1[[#This Row],[مده الاشتراك]]","v":0},{"$f":"Table1[[#This Row],[بدايه الاشتراك]]","v":"00:00:00"},{"$f":"Table1[[#This Row],[نهايه الاشتراك]]","v":"00:00:00"}]
[{"$f":"Table1[[#This Row],[أســــم المشترك]]","v":0},{"$f":"Table1[[#This Row],[كود المشترك]]","v":0},{"$f":"Table1[[#This Row],[رقم الموبايـــل]]","v":0},{"$f":"Table1[[#This Row],[مده الاشتراك]]","v":0},{"$f":"Table1[[#This Row],[بدايه الاشتراك]]","v":"00:00:00"},{"$f":"Table1[[#This Row],[نهايه الاشتراك]]","v":"00:00:00"}]
[{"$f":"Table1[[#This Row],[أســــم المشترك]]","v":0},{"$f":"Table1[[#This Row],[كود المشترك]]","v":0},{"$f":"Table1[[#This Row],[رقم الموبايـــل]]","v":0},{"$f":"Table1[[#This Row],[مده الاشتراك]]","v":0},{"$f":"Table1[[#This Row],[بدايه الاشتراك]]","v":"00:00:00"},{"$f":"Table1[[#This Row],[نهايه الاشتراك]]","v":"00:00:00"}]
[{"$f":"Table1[[#This Row],[أســــم المشترك]]","v":0},{"$f":"Table1[[#This Row],[كود المشترك]]","v":0},{"$f":"Table1[[#This Row],[رقم الموبايـــل]]","v":0},{"$f":"Table1[[#This Row],[مده الاشتراك]]","v":0},{"$f":"Table1[[#This Row],[بدايه الاشتراك]]","v":"00:00:00"},{"$f":"Table1[[#This Row],[نهايه الاشتراك]]","v":"00:00:00"}]
[{"$f":"Table1[[#This Row],[أســــم المشترك]]","v":0},{"$f":"Table1[[#This Row],[كود المشترك]]","v":0},{"$f":"Table1[[#This Row],[رقم الموبايـــل]]","v":0},{"$f":"Table1[[#This Row],[مده الاشتراك]]","v":0},{"$f":"Table1[[#This Row],[بدايه الاشتراك]]","v":"00:00:00"},{"$f":"Table1[[#This Row],[نهايه الاشتراك]]","v":"00:00:00"}]
[{"$f":"Table1[[#This Row],[أســــم المشترك]]","v":0},{"$f":"Table1[[#This Row],[كود المشترك]]","v":0},{"$f":"Table1[[#This Row],[رقم الموبايـــل]]","v":0},{"$f":"Table1[[#This Row],[مده الاشتراك]]","v":0},{"$f":"Table1[[#This Row],[بدايه الاشتراك]]","v":"00:00:00"},{"$f":"Table1[[#This Row],[نهايه الاشتراك]]","v":"00:00:00"}]
[{"$f":"Table1[[#This Row],[أســــم المشترك]]","v":0},{"$f":"Table1[[#This Row],[كود المشترك]]","v":0},{"$f":"Table1[[#This Row],[رقم الموبايـــل]]","v":0},{"$f":"Table1[[#This Row],[مده الاشتراك]]","v":0},{"$f":"Table1[[#This Row],[بدايه الاشتراك]]","v":"00:00:00"},{"$f":"Table1[[#This Row],[نهايه الاشتراك]]","v":"00:00:00"}]
[{"$f":"Table1[[#This Row],[أســــم المشترك]]","v":0},{"$f":"Table1[[#This Row],[كود المشترك]]","v":0},{"$f":"Table1[[#This Row],[رقم الموبايـــل]]","v":0},{"$f":"Table1[[#This Row],[مده الاشتراك]]","v":0},{"$f":"Table1[[#This Row],[بدايه الاشتراك]]","v":"00:00:00"},{"$f":"Table1[[#This Row],[نهايه الاشتراك]]","v":"00:00:00"}]
[{"$f":"Table1[[#This Row],[أســــم المشترك]]","v":0},{"$f":"Table1[[#This Row],[كود المشترك]]","v":0},{"$f":"Table1[[#This Row],[رقم الموبايـــل]]","v":0},{"$f":"Table1[[#This Row],[مده الاشتراك]]","v":0},{"$f":"Table1[[#This Row],[بدايه الاشتراك]]","v":"00:00:00"},{"$f":"Table1[[#This Row],[نهايه الاشتراك]]","v":"00:00:00"}]
[{"$f":"Table1[[#This Row],[أســــم المشترك]]","v":0},{"$f":"Table1[[#This Row],[كود المشترك]]","v":0},{"$f":"Table1[[#This Row],[رقم الموبايـــل]]","v":0},{"$f":"Table1[[#This Row],[مده الاشتراك]]","v":0},{"$f":"Table1[[#This Row],[بدايه الاشتراك]]","v":"00:00:00"},{"$f":"Table1[[#This Row],[نهايه الاشتراك]]","v":"00:00:00"}]
[{"$f":"Table1[[#This Row],[أســــم المشترك]]","v":0},{"$f":"Table1[[#This Row],[كود المشترك]]","v":0},{"$f":"Table1[[#This Row],[رقم الموبايـــل]]","v":0},{"$f":"Table1[[#This Row],[مده الاشتراك]]","v":0},{"$f":"Table1[[#This Row],[بدايه الاشتراك]]","v":"00:00:00"},{"$f":"Table1[[#This Row],[نهايه الاشتراك]]","v":"00:00:00"}]
[{"$f":"Table1[[#This Row],[أســــم المشترك]]","v":0},{"$f":"Table1[[#This Row],[كود المشترك]]","v":0},{"$f":"Table1[[#This Row],[رقم الموبايـــل]]","v":0},{"$f":"Table1[[#This Row],[مده الاشتراك]]","v":0},{"$f":"Table1[[#This Row],[بدايه الاشتراك]]","v":"00:00:00"},{"$f":"Table1[[#This Row],[نهايه الاشتراك]]","v":"00:00:00"}]
[{"$f":"Table1[[#This Row],[أســــم المشترك]]","v":0},{"$f":"Table1[[#This Row],[كود المشترك]]","v":0},{"$f":"Table1[[#This Row],[رقم الموبايـــل]]","v":0},{"$f":"Table1[[#This Row],[مده الاشتراك]]","v":0},{"$f":"Table1[[#This Row],[بدايه الاشتراك]]","v":"00:00:00"},{"$f":"Table1[[#This Row],[نهايه الاشتراك]]","v":"00:00:00"}]
[{"$f":"Table1[[#This Row],[أســــم المشترك]]","v":0},{"$f":"Table1[[#This Row],[كود المشترك]]","v":0},{"$f":"Table1[[#This Row],[رقم الموبايـــل]]","v":0},{"$f":"Table1[[#This Row],[مده الاشتراك]]","v":0},{"$f":"Table1[[#This Row],[بدايه الاشتراك]]","v":"00:00:00"},{"$f":"Table1[[#This Row],[نهايه الاشتراك]]","v":"00:00:00"}]
[{"$f":"Table1[[#This Row],[أســــم المشترك]]","v":0},{"$f":"Table1[[#This Row],[كود المشترك]]","v":0},{"$f":"Table1[[#This Row],[رقم الموبايـــل]]","v":0},{"$f":"Table1[[#This Row],[مده الاشتراك]]","v":0},{"$f":"Table1[[#This Row],[بدايه الاشتراك]]","v":"00:00:00"},{"$f":"Table1[[#This Row],[نهايه الاشتراك]]","v":"00:00:00"}]
[{"$f":"Table1[[#This Row],[أســــم المشترك]]","v":0},{"$f":"Table1[[#This Row],[كود المشترك]]","v":0},{"$f":"Table1[[#This Row],[رقم الموبايـــل]]","v":0},{"$f":"Table1[[#This Row],[مده الاشتراك]]","v":0},{"$f":"Table1[[#This Row],[بدايه الاشتراك]]","v":"00:00:00"},{"$f":"Table1[[#This Row],[نهايه الاشتراك]]","v":"00:00:00"}]
[{"$f":"Table1[[#This Row],[أســــم المشترك]]","v":0},{"$f":"Table1[[#This Row],[كود المشترك]]","v":0},{"$f":"Table1[[#This Row],[رقم الموبايـــل]]","v":0},{"$f":"Table1[[#This Row],[مده الاشتراك]]","v":0},{"$f":"Table1[[#This Row],[بدايه الاشتراك]]","v":"00:00:00"},{"$f":"Table1[[#This Row],[نهايه الاشتراك]]","v":"00:00:00"}]
[{"$f":"Table1[[#This Row],[أســــم المشترك]]","v":0},{"$f":"Table1[[#This Row],[كود المشترك]]","v":0},{"$f":"Table1[[#This Row],[رقم الموبايـــل]]","v":0},{"$f":"Table1[[#This Row],[مده الاشتراك]]","v":0},{"$f":"Table1[[#This Row],[بدايه الاشتراك]]","v":"00:00:00"},{"$f":"Table1[[#This Row],[نهايه الاشتراك]]","v":"00:00:00"}]
[{"$f":"Table1[[#This Row],[أســــم المشترك]]","v":0},{"$f":"Table1[[#This Row],[كود المشترك]]","v":0},{"$f":"Table1[[#This Row],[رقم الموبايـــل]]","v":0},{"$f":"Table1[[#This Row],[مده الاشتراك]]","v":0},{"$f":"Table1[[#This Row],[بدايه الاشتراك]]","v":"00:00:00"},{"$f":"Table1[[#This Row],[نهايه الاشتراك]]","v":"00:00:00"}]
[{"$f":"Table1[[#This Row],[أســــم المشترك]]","v":0},{"$f":"Table1[[#This Row],[كود المشترك]]","v":0},{"$f":"Table1[[#This Row],[رقم الموبايـــل]]","v":0},{"$f":"Table1[[#This Row],[مده الاشتراك]]","v":0},{"$f":"Table1[[#This Row],[بدايه الاشتراك]]","v":"00:00:00"},{"$f":"Table1[[#This Row],[نهايه الاشتراك]]","v":"00:00:00"}]
[{"$f":"Table1[[#This Row],[أســــم المشترك]]","v":0},{"$f":"Table1[[#This Row],[كود المشترك]]","v":0},{"$f":"Table1[[#This Row],[رقم الموبايـــل]]","v":0},{"$f":"Table1[[#This Row],[مده الاشتراك]]","v":0},{"$f":"Table1[[#This Row],[بدايه الاشتراك]]","v":"00:00:00"},{"$f":"Table1[[#This Row],[نهايه الاشتراك]]","v":"00:00:00"}]
[{"$f":"Table1[[#This Row],[أســــم المشترك]]","v":0},{"$f":"Table1[[#This Row],[كود المشترك]]","v":0},{"$f":"Table1[[#This Row],[رقم الموبايـــل]]","v":0},{"$f":"Table1[[#This Row],[مده الاشتراك]]","v":0},{"$f":"Table1[[#This Row],[بدايه الاشتراك]]","v":"00:00:00"},{"$f":"Table1[[#This Row],[نهايه الاشتراك]]","v":"00:00:00"}]
[{"$f":"Table1[[#This Row],[أســــم المشترك]]","v":0},{"$f":"Table1[[#This Row],[كود المشترك]]","v":0},{"$f":"Table1[[#This Row],[رقم الموبايـــل]]","v":0},{"$f":"Table1[[#This Row],[مده الاشتراك]]","v":0},{"$f":"Table1[[#This Row],[بدايه الاشتراك]]","v":"00:00:00"},{"$f":"Table1[[#This Row],[نهايه الاشتراك]]","v":"00:00:00"}]
[{"$f":"Table1[[#This Row],[أســــم المشترك]]","v":0},{"$f":"Table1[[#This Row],[كود المشترك]]","v":0},{"$f":"Table1[[#This Row],[رقم الموبايـــل]]","v":0},{"$f":"Table1[[#This Row],[مده الاشتراك]]","v":0},{"$f":"Table1[[#This Row],[بدايه الاشتراك]]","v":"00:00:00"},{"$f":"Table1[[#This Row],[نهايه الاشتراك]]","v":"00:00:00"}]
[{"$f":"Table1[[#This Row],[أســــم المشترك]]","v":0},{"$f":"Table1[[#This Row],[كود المشترك]]","v":0},{"$f":"Table1[[#This Row],[رقم الموبايـــل]]","v":0},{"$f":"Table1[[#This Row],[مده الاشتراك]]","v":0},{"$f":"Table1[[#This Row],[بدايه الاشتراك]]","v":"00:00:00"},{"$f":"Table1[[#This Row],[نهايه الاشتراك]]","v":"00:00:00"}]
[{"$f":"Table1[[#This Row],[أســــم المشترك]]","v":0},{"$f":"Table1[[#This Row],[كود المشترك]]","v":0},{"$f":"Table1[[#This Row],[رقم الموبايـــل]]","v":0},{"$f":"Table1[[#This Row],[مده الاشتراك]]","v":0},{"$f":"Table1[[#This Row],[بدايه الاشتراك]]","v":"00:00:00"},{"$f":"Table1[[#This Row],[نهايه الاشتراك]]","v":"00:00:00"}]
[{"$f":"Table1[[#This Row],[أســــم المشترك]]","v":0},{"$f":"Table1[[#This Row],[كود المشترك]]","v":0},{"$f":"Table1[[#This Row],[رقم الموبايـــل]]","v":0},{"$f":"Table1[[#This Row],[مده الاشتراك]]","v":0},{"$f":"Table1[[#This Row],[بدايه الاشتراك]]","v":"00:00:00"},{"$f":"Table1[[#This Row],[نهايه الاشتراك]]","v":"00:00:00"}]
[{"$f":"Table1[[#This Row],[أســــم المشترك]]","v":0},{"$f":"Table1[[#This Row],[كود المشترك]]","v":0},{"$f":"Table1[[#This Row],[رقم الموبايـــل]]","v":0},{"$f":"Table1[[#This Row],[مده الاشتراك]]","v":0},{"$f":"Table1[[#This Row],[بدايه الاشتراك]]","v":"00:00:00"},{"$f":"Table1[[#This Row],[نهايه الاشتراك]]","v":"00:00:00"}]
[{"$f":"Table1[[#This Row],[أســــم المشترك]]","v":0},{"$f":"Table1[[#This Row],[كود المشترك]]","v":0},{"$f":"Table1[[#This Row],[رقم الموبايـــل]]","v":0},{"$f":"Table1[[#This Row],[مده الاشتراك]]","v":0},{"$f":"Table1[[#This Row],[بدايه الاشتراك]]","v":"00:00:00"},{"$f":"Table1[[#This Row],[نهايه الاشتراك]]","v":"00:00:00"}]
[{"$f":"Table1[[#This Row],[أســــم المشترك]]","v":0},{"$f":"Table1[[#This Row],[كود المشترك]]","v":0},{"$f":"Table1[[#This Row],[رقم الموبايـــل]]","v":0},{"$f":"Table1[[#This Row],[مده الاشتراك]]","v":0},{"$f":"Table1[[#This Row],[بدايه الاشتراك]]","v":"00:00:00"},{"$f":"Table1[[#This Row],[نهايه الاشتراك]]","v":"00:00:00"}]
[{"$f":"Table1[[#This Row],[أســــم المشترك]]","v":0},{"$f":"Table1[[#This Row],[كود المشترك]]","v":0},{"$f":"Table1[[#This Row],[رقم الموبايـــل]]","v":0},{"$f":"Table1[[#This Row],[مده الاشتراك]]","v":0},{"$f":"Table1[[#This Row],[بدايه الاشتراك]]","v":"00:00:00"},{"$f":"Table1[[#This Row],[نهايه الاشتراك]]","v":"00:00:00"}]
[{"$f":"Table1[[#This Row],[أســــم المشترك]]","v":0},{"$f":"Table1[[#This Row],[كود المشترك]]","v":0},{"$f":"Table1[[#This Row],[رقم الموبايـــل]]","v":0},{"$f":"Table1[[#This Row],[مده الاشتراك]]","v":0},{"$f":"Table1[[#This Row],[بدايه الاشتراك]]","v":"00:00:00"},{"$f":"Table1[[#This Row],[نهايه الاشتراك]]","v":"00:00:00"}]
[{"$f":"Table1[[#This Row],[أســــم المشترك]]","v":0},{"$f":"Table1[[#This Row],[كود المشترك]]","v":0},{"$f":"Table1[[#This Row],[رقم الموبايـــل]]","v":0},{"$f":"Table1[[#This Row],[مده الاشتراك]]","v":0},{"$f":"Table1[[#This Row],[بدايه الاشتراك]]","v":"00:00:00"},{"$f":"Table1[[#This Row],[نهايه الاشتراك]]","v":"00:00:00"}]
[{"$f":"Table1[[#This Row],[أســــم المشترك]]","v":0},{"$f":"Table1[[#This Row],[كود المشترك]]","v":0},{"$f":"Table1[[#This Row],[رقم الموبايـــل]]","v":0},{"$f":"Table1[[#This Row],[مده الاشتراك]]","v":0},{"$f":"Table1[[#This Row],[بدايه الاشتراك]]","v":"00:00:00"},{"$f":"Table1[[#This Row],[نهايه الاشتراك]]","v":"00:00:00"}]
[{"$f":"Table1[[#This Row],[أســــم المشترك]]","v":0},{"$f":"Table1[[#This Row],[كود المشترك]]","v":0},{"$f":"Table1[[#This Row],[رقم الموبايـــل]]","v":0},{"$f":"Table1[[#This Row],[مده الاشتراك]]","v":0},{"$f":"Table1[[#This Row],[بدايه الاشتراك]]","v":"00:00:00"},{"$f":"Table1[[#This Row],[نهايه الاشتراك]]","v":"00:00:00"}]
[{"$f":"Table1[[#This Row],[أســــم المشترك]]","v":0},{"$f":"Table1[[#This Row],[كود المشترك]]","v":0},{"$f":"Table1[[#This Row],[رقم الموبايـــل]]","v":0},{"$f":"Table1[[#This Row],[مده الاشتراك]]","v":0},{"$f":"Table1[[#This Row],[بدايه الاشتراك]]","v":"00:00:00"},{"$f":"Table1[[#This Row],[نهايه الاشتراك]]","v":"00:00:00"}]
[{"$f":"Table1[[#This Row],[أســــم المشترك]]","v":0},{"$f":"Table1[[#This Row],[كود المشترك]]","v":0},{"$f":"Table1[[#This Row],[رقم الموبايـــل]]","v":0},{"$f":"Table1[[#This Row],[مده الاشتراك]]","v":0},{"$f":"Table1[[#This Row],[بدايه الاشتراك]]","v":"00:00:00"},{"$f":"Table1[[#This Row],[نهايه الاشتراك]]","v":"00:00:00"}]
[{"$f":"Table1[[#This Row],[أســــم المشترك]]","v":0},{"$f":"Table1[[#This Row],[كود المشترك]]","v":0},{"$f":"Table1[[#This Row],[رقم الموبايـــل]]","v":0},{"$f":"Table1[[#This Row],[مده الاشتراك]]","v":0},{"$f":"Table1[[#This Row],[بدايه الاشتراك]]","v":"00:00:00"},{"$f":"Table1[[#This Row],[نهايه الاشتراك]]","v":"00:00:00"}]
[{"$f":"Table1[[#This Row],[أســــم المشترك]]","v":0},{"$f":"Table1[[#This Row],[كود المشترك]]","v":0},{"$f":"Table1[[#This Row],[رقم الموبايـــل]]","v":0},{"$f":"Table1[[#This Row],[مده الاشتراك]]","v":0},{"$f":"Table1[[#This Row],[بدايه الاشتراك]]","v":"00:00:00"},{"$f":"Table1[[#This Row],[نهايه الاشتراك]]","v":"00:00:00"}]
[{"$f":"Table1[[#This Row],[أســــم المشترك]]","v":0},{"$f":"Table1[[#This Row],[كود المشترك]]","v":0},{"$f":"Table1[[#This Row],[رقم الموبايـــل]]","v":0},{"$f":"Table1[[#This Row],[مده الاشتراك]]","v":0},{"$f":"Table1[[#This Row],[بدايه الاشتراك]]","v":"00:00:00"},{"$f":"Table1[[#This Row],[نهايه الاشتراك]]","v":"00:00:00"}]
[{"$f":"Table1[[#This Row],[أســــم المشترك]]","v":0},{"$f":"Table1[[#This Row],[كود المشترك]]","v":0},{"$f":"Table1[[#This Row],[رقم الموبايـــل]]","v":0},{"$f":"Table1[[#This Row],[مده الاشتراك]]","v":0},{"$f":"Table1[[#This Row],[بدايه الاشتراك]]","v":"00:00:00"},{"$f":"Table1[[#This Row],[نهايه الاشتراك]]","v":"00:00:00"}]
[{"$f":"Table1[[#This Row],[أســــم المشترك]]","v":0},{"$f":"Table1[[#This Row],[كود المشترك]]","v":0},{"$f":"Table1[[#This Row],[رقم الموبايـــل]]","v":0},{"$f":"Table1[[#This Row],[مده الاشتراك]]","v":0},{"$f":"Table1[[#This Row],[بدايه الاشتراك]]","v":"00:00:00"},{"$f":"Table1[[#This Row],[نهايه الاشتراك]]","v":"00:00:00"}]
[{"$f":"Table1[[#This Row],[أســــم المشترك]]","v":0},{"$f":"Table1[[#This Row],[كود المشترك]]","v":0},{"$f":"Table1[[#This Row],[رقم الموبايـــل]]","v":0},{"$f":"Table1[[#This Row],[مده الاشتراك]]","v":0},{"$f":"Table1[[#This Row],[بدايه الاشتراك]]","v":"00:00:00"},{"$f":"Table1[[#This Row],[نهايه الاشتراك]]","v":"00:00:00"}]
[{"$f":"Table1[[#This Row],[أســــم المشترك]]","v":0},{"$f":"Table1[[#This Row],[كود المشترك]]","v":0},{"$f":"Table1[[#This Row],[رقم الموبايـــل]]","v":0},{"$f":"Table1[[#This Row],[مده الاشتراك]]","v":0},{"$f":"Table1[[#This Row],[بدايه الاشتراك]]","v":"00:00:00"},{"$f":"Table1[[#This Row],[نهايه الاشتراك]]","v":"00:00:00"}]
[{"$f":"Table1[[#This Row],[أســــم المشترك]]","v":0},{"$f":"Table1[[#This Row],[كود المشترك]]","v":0},{"$f":"Table1[[#This Row],[رقم الموبايـــل]]","v":0},{"$f":"Table1[[#This Row],[مده الاشتراك]]","v":0},{"$f":"Table1[[#This Row],[بدايه الاشتراك]]","v":"00:00:00"},{"$f":"Table1[[#This Row],[نهايه الاشتراك]]","v":"00:00:00"}]
[{"$f":"Table1[[#This Row],[أســــم المشترك]]","v":0},{"$f":"Table1[[#This Row],[كود المشترك]]","v":0},{"$f":"Table1[[#This Row],[رقم الموبايـــل]]","v":0},{"$f":"Table1[[#This Row],[مده الاشتراك]]","v":0},{"$f":"Table1[[#This Row],[بدايه الاشتراك]]","v":"00:00:00"},{"$f":"Table1[[#This Row],[نهايه الاشتراك]]","v":"00:00:00"}]
[{"$f":"Table1[[#This Row],[أســــم المشترك]]","v":0},{"$f":"Table1[[#This Row],[كود المشترك]]","v":0},{"$f":"Table1[[#This Row],[رقم الموبايـــل]]","v":0},{"$f":"Table1[[#This Row],[مده الاشتراك]]","v":0},{"$f":"Table1[[#This Row],[بدايه الاشتراك]]","v":"00:00:00"},{"$f":"Table1[[#This Row],[نهايه الاشتراك]]","v":"00:00:00"}]
[{"$f":"Table1[[#This Row],[أســــم المشترك]]","v":0},{"$f":"Table1[[#This Row],[كود المشترك]]","v":0},{"$f":"Table1[[#This Row],[رقم الموبايـــل]]","v":0},{"$f":"Table1[[#This Row],[مده الاشتراك]]","v":0},{"$f":"Table1[[#This Row],[بدايه الاشتراك]]","v":"00:00:00"},{"$f":"Table1[[#This Row],[نهايه الاشتراك]]","v":"00:00:00"}]
[{"$f":"Table1[[#This Row],[أســــم المشترك]]","v":0},{"$f":"Table1[[#This Row],[كود المشترك]]","v":0},{"$f":"Table1[[#This Row],[رقم الموبايـــل]]","v":0},{"$f":"Table1[[#This Row],[مده الاشتراك]]","v":0},{"$f":"Table1[[#This Row],[بدايه الاشتراك]]","v":"00:00:00"},{"$f":"Table1[[#This Row],[نهايه الاشتراك]]","v":"00:00:00"}]
[{"$f":"Table1[[#This Row],[أســــم المشترك]]","v":0},{"$f":"Table1[[#This Row],[كود المشترك]]","v":0},{"$f":"Table1[[#This Row],[رقم الموبايـــل]]","v":0},{"$f":"Table1[[#This Row],[مده الاشتراك]]","v":0},{"$f":"Table1[[#This Row],[بدايه الاشتراك]]","v":"00:00:00"},{"$f":"Table1[[#This Row],[نهايه الاشتراك]]","v":"00:00:00"}]
[{"$f":"Table1[[#This Row],[أســــم المشترك]]","v":0},{"$f":"Table1[[#This Row],[كود المشترك]]","v":0},{"$f":"Table1[[#This Row],[رقم الموبايـــل]]","v":0},{"$f":"Table1[[#This Row],[مده الاشتراك]]","v":0},{"$f":"Table1[[#This Row],[بدايه الاشتراك]]","v":"00:00:00"},{"$f":"Table1[[#This Row],[نهايه الاشتراك]]","v":"00:00:00"}]
[{"$f":"Table1[[#This Row],[أســــم المشترك]]","v":0},{"$f":"Table1[[#This Row],[كود المشترك]]","v":0},{"$f":"Table1[[#This Row],[رقم الموبايـــل]]","v":0},{"$f":"Table1[[#This Row],[مده الاشتراك]]","v":0},{"$f":"Table1[[#This Row],[بدايه الاشتراك]]","v":"00:00:00"},{"$f":"Table1[[#This Row],[نهايه الاشتراك]]","v":"00:00:00"}]
[{"$f":"Table1[[#This Row],[أســــم المشترك]]","v":0},{"$f":"Table1[[#This Row],[كود المشترك]]","v":0},{"$f":"Table1[[#This Row],[رقم الموبايـــل]]","v":0},{"$f":"Table1[[#This Row],[مده الاشتراك]]","v":0},{"$f":"Table1[[#This Row],[بدايه الاشتراك]]","v":"00:00:00"},{"$f":"Table1[[#This Row],[نهايه الاشتراك]]","v":"00:00:00"}]
[{"$f":"Table1[[#This Row],[أســــم المشترك]]","v":0},{"$f":"Table1[[#This Row],[كود المشترك]]","v":0},{"$f":"Table1[[#This Row],[رقم الموبايـــل]]","v":0},{"$f":"Table1[[#This Row],[مده الاشتراك]]","v":0},{"$f":"Table1[[#This Row],[بدايه الاشتراك]]","v":"00:00:00"},{"$f":"Table1[[#This Row],[نهايه الاشتراك]]","v":"00:00:00"}]
[{"$f":"Table1[[#This Row],[أســــم المشترك]]","v":0},{"$f":"Table1[[#This Row],[كود المشترك]]","v":0},{"$f":"Table1[[#This Row],[رقم الموبايـــل]]","v":0},{"$f":"Table1[[#This Row],[مده الاشتراك]]","v":0},{"$f":"Table1[[#This Row],[بدايه الاشتراك]]","v":"00:00:00"},{"$f":"Table1[[#This Row],[نهايه الاشتراك]]","v":"00:00:00"}]
[{"$f":"Table1[[#This Row],[أســــم المشترك]]","v":0},{"$f":"Table1[[#This Row],[كود المشترك]]","v":0},{"$f":"Table1[[#This Row],[رقم الموبايـــل]]","v":0},{"$f":"Table1[[#This Row],[مده الاشتراك]]","v":0},{"$f":"Table1[[#This Row],[بدايه الاشتراك]]","v":"00:00:00"},{"$f":"Table1[[#This Row],[نهايه الاشتراك]]","v":"00:00:00"}]
[{"$f":"Table1[[#This Row],[أســــم المشترك]]","v":0},{"$f":"Table1[[#This Row],[كود المشترك]]","v":0},{"$f":"Table1[[#This Row],[رقم الموبايـــل]]","v":0},{"$f":"Table1[[#This Row],[مده الاشتراك]]","v":0},{"$f":"Table1[[#This Row],[بدايه الاشتراك]]","v":"00:00:00"},{"$f":"Table1[[#This Row],[نهايه الاشتراك]]","v":"00:00:00"}]
[{"$f":"Table1[[#This Row],[أســــم المشترك]]","v":0},{"$f":"Table1[[#This Row],[كود المشترك]]","v":0},{"$f":"Table1[[#This Row],[رقم الموبايـــل]]","v":0},{"$f":"Table1[[#This Row],[مده الاشتراك]]","v":0},{"$f":"Table1[[#This Row],[بدايه الاشتراك]]","v":"00:00:00"},{"$f":"Table1[[#This Row],[نهايه الاشتراك]]","v":"00:00:00"}]
[{"$f":"Table1[[#This Row],[أســــم المشترك]]","v":0},{"$f":"Table1[[#This Row],[كود المشترك]]","v":0},{"$f":"Table1[[#This Row],[رقم الموبايـــل]]","v":0},{"$f":"Table1[[#This Row],[مده الاشتراك]]","v":0},{"$f":"Table1[[#This Row],[بدايه الاشتراك]]","v":"00:00:00"},{"$f":"Table1[[#This Row],[نهايه الاشتراك]]","v":"00:00:00"}]
[{"$f":"Table1[[#This Row],[أســــم المشترك]]","v":0},{"$f":"Table1[[#This Row],[كود المشترك]]","v":0},{"$f":"Table1[[#This Row],[رقم الموبايـــل]]","v":0},{"$f":"Table1[[#This Row],[مده الاشتراك]]","v":0},{"$f":"Table1[[#This Row],[بدايه الاشتراك]]","v":"00:00:00"},{"$f":"Table1[[#This Row],[نهايه الاشتراك]]","v":"00:00:00"}]
[{"$f":"Table1[[#This Row],[أســــم المشترك]]","v":0},{"$f":"Table1[[#This Row],[كود المشترك]]","v":0},{"$f":"Table1[[#This Row],[رقم الموبايـــل]]","v":0},{"$f":"Table1[[#This Row],[مده الاشتراك]]","v":0},{"$f":"Table1[[#This Row],[بدايه الاشتراك]]","v":"00:00:00"},{"$f":"Table1[[#This Row],[نهايه الاشتراك]]","v":"00:00:00"}]
[{"$f":"Table1[[#This Row],[أســــم المشترك]]","v":0},{"$f":"Table1[[#This Row],[كود المشترك]]","v":0},{"$f":"Table1[[#This Row],[رقم الموبايـــل]]","v":0},{"$f":"Table1[[#This Row],[مده الاشتراك]]","v":0},{"$f":"Table1[[#This Row],[بدايه الاشتراك]]","v":"00:00:00"},{"$f":"Table1[[#This Row],[نهايه الاشتراك]]","v":"00:00:00"}]
[{"$f":"Table1[[#This Row],[أســــم المشترك]]","v":0},{"$f":"Table1[[#This Row],[كود المشترك]]","v":0},{"$f":"Table1[[#This Row],[رقم الموبايـــل]]","v":0},{"$f":"Table1[[#This Row],[مده الاشتراك]]","v":0},{"$f":"Table1[[#This Row],[بدايه الاشتراك]]","v":"00:00:00"},{"$f":"Table1[[#This Row],[نهايه الاشتراك]]","v":"00:00:00"}]
[{"$f":"Table1[[#This Row],[أســــم المشترك]]","v":0},{"$f":"Table1[[#This Row],[كود المشترك]]","v":0},{"$f":"Table1[[#This Row],[رقم الموبايـــل]]","v":0},{"$f":"Table1[[#This Row],[مده الاشتراك]]","v":0},{"$f":"Table1[[#This Row],[بدايه الاشتراك]]","v":"00:00:00"},{"$f":"Table1[[#This Row],[نهايه الاشتراك]]","v":"00:00:00"}]
[{"$f":"Table1[[#This Row],[أســــم المشترك]]","v":0},{"$f":"Table1[[#This Row],[كود المشترك]]","v":0},{"$f":"Table1[[#This Row],[رقم الموبايـــل]]","v":0},{"$f":"Table1[[#This Row],[مده الاشتراك]]","v":0},{"$f":"Table1[[#This Row],[بدايه الاشتراك]]","v":"00:00:00"},{"$f":"Table1[[#This Row],[نهايه الاشتراك]]","v":"00:00:00"}]
[{"$f":"Table1[[#This Row],[أســــم المشترك]]","v":0},{"$f":"Table1[[#This Row],[كود المشترك]]","v":0},{"$f":"Table1[[#This Row],[رقم الموبايـــل]]","v":0},{"$f":"Table1[[#This Row],[مده الاشتراك]]","v":0},{"$f":"Table1[[#This Row],[بدايه الاشتراك]]","v":"00:00:00"},{"$f":"Table1[[#This Row],[نهايه الاشتراك]]","v":"00:00:00"}]
[{"$f":"Table1[[#This Row],[أســــم المشترك]]","v":0},{"$f":"Table1[[#This Row],[كود المشترك]]","v":0},{"$f":"Table1[[#This Row],[رقم الموبايـــل]]","v":0},{"$f":"Table1[[#This Row],[مده الاشتراك]]","v":0},{"$f":"Table1[[#This Row],[بدايه الاشتراك]]","v":"00:00:00"},{"$f":"Table1[[#This Row],[نهايه الاشتراك]]","v":"00:00:00"}]
[{"$f":"Table1[[#This Row],[أســــم المشترك]]","v":0},{"$f":"Table1[[#This Row],[كود المشترك]]","v":0},{"$f":"Table1[[#This Row],[رقم الموبايـــل]]","v":0},{"$f":"Table1[[#This Row],[مده الاشتراك]]","v":0},{"$f":"Table1[[#This Row],[بدايه الاشتراك]]","v":"00:00:00"},{"$f":"Table1[[#This Row],[نهايه الاشتراك]]","v":"00:00:00"}]
[{"$f":"Table1[[#This Row],[أســــم المشترك]]","v":0},{"$f":"Table1[[#This Row],[كود المشترك]]","v":0},{"$f":"Table1[[#This Row],[رقم الموبايـــل]]","v":0},{"$f":"Table1[[#This Row],[مده الاشتراك]]","v":0},{"$f":"Table1[[#This Row],[بدايه الاشتراك]]","v":"00:00:00"},{"$f":"Table1[[#This Row],[نهايه الاشتراك]]","v":"00:00:00"}]
[{"$f":"Table1[[#This Row],[أســــم المشترك]]","v":0},{"$f":"Table1[[#This Row],[كود المشترك]]","v":0},{"$f":"Table1[[#This Row],[رقم الموبايـــل]]","v":0},{"$f":"Table1[[#This Row],[مده الاشتراك]]","v":0},{"$f":"Table1[[#This Row],[بدايه الاشتراك]]","v":"00:00:00"},{"$f":"Table1[[#This Row],[نهايه الاشتراك]]","v":"00:00:00"}]
[{"$f":"Table1[[#This Row],[أســــم المشترك]]","v":0},{"$f":"Table1[[#This Row],[كود المشترك]]","v":0},{"$f":"Table1[[#This Row],[رقم الموبايـــل]]","v":0},{"$f":"Table1[[#This Row],[مده الاشتراك]]","v":0},{"$f":"Table1[[#This Row],[بدايه الاشتراك]]","v":"00:00:00"},{"$f":"Table1[[#This Row],[نهايه الاشتراك]]","v":"00:00:00"}]
[{"$f":"Table1[[#This Row],[أســــم المشترك]]","v":0},{"$f":"Table1[[#This Row],[كود المشترك]]","v":0},{"$f":"Table1[[#This Row],[رقم الموبايـــل]]","v":0},{"$f":"Table1[[#This Row],[مده الاشتراك]]","v":0},{"$f":"Table1[[#This Row],[بدايه الاشتراك]]","v":"00:00:00"},{"$f":"Table1[[#This Row],[نهايه الاشتراك]]","v":"00:00:00"}]
[{"$f":"Table1[[#This Row],[أســــم المشترك]]","v":0},{"$f":"Table1[[#This Row],[كود المشترك]]","v":0},{"$f":"Table1[[#This Row],[رقم الموبايـــل]]","v":0},{"$f":"Table1[[#This Row],[مده الاشتراك]]","v":0},{"$f":"Table1[[#This Row],[بدايه الاشتراك]]","v":"00:00:00"},{"$f":"Table1[[#This Row],[نهايه الاشتراك]]","v":"00:00:00"}]
[{"$f":"Table1[[#This Row],[أســــم المشترك]]","v":0},{"$f":"Table1[[#This Row],[كود المشترك]]","v":0},{"$f":"Table1[[#This Row],[رقم الموبايـــل]]","v":0},{"$f":"Table1[[#This Row],[مده الاشتراك]]","v":0},{"$f":"Table1[[#This Row],[بدايه الاشتراك]]","v":"00:00:00"},{"$f":"Table1[[#This Row],[نهايه الاشتراك]]","v":"00:00:00"}]
[{"$f":"Table1[[#This Row],[أســــم المشترك]]","v":0},{"$f":"Table1[[#This Row],[كود المشترك]]","v":0},{"$f":"Table1[[#This Row],[رقم الموبايـــل]]","v":0},{"$f":"Table1[[#This Row],[مده الاشتراك]]","v":0},{"$f":"Table1[[#This Row],[بدايه الاشتراك]]","v":"00:00:00"},{"$f":"Table1[[#This Row],[نهايه الاشتراك]]","v":"00:00:00"}]
[{"$f":"Table1[[#This Row],[أســــم المشترك]]","v":0},{"$f":"Table1[[#This Row],[كود المشترك]]","v":0},{"$f":"Table1[[#This Row],[رقم الموبايـــل]]","v":0},{"$f":"Table1[[#This Row],[مده الاشتراك]]","v":0},{"$f":"Table1[[#This Row],[بدايه الاشتراك]]","v":"00:00:00"},{"$f":"Table1[[#This Row],[نهايه الاشتراك]]","v":"00:00:00"}]
[{"$f":"Table1[[#This Row],[أســــم المشترك]]","v":0},{"$f":"Table1[[#This Row],[كود المشترك]]","v":0},{"$f":"Table1[[#This Row],[رقم الموبايـــل]]","v":0},{"$f":"Table1[[#This Row],[مده الاشتراك]]","v":0},{"$f":"Table1[[#This Row],[بدايه الاشتراك]]","v":"00:00:00"},{"$f":"Table1[[#This Row],[نهايه الاشتراك]]","v":"00:00:00"}]
[{"$f":"Table1[[#This Row],[أســــم المشترك]]","v":0},{"$f":"Table1[[#This Row],[كود المشترك]]","v":0},{"$f":"Table1[[#This Row],[رقم الموبايـــل]]","v":0},{"$f":"Table1[[#This Row],[مده الاشتراك]]","v":0},{"$f":"Table1[[#This Row],[بدايه الاشتراك]]","v":"00:00:00"},{"$f":"Table1[[#This Row],[نهايه الاشتراك]]","v":"00:00:00"}]
[{"$f":"Table1[[#This Row],[أســــم المشترك]]","v":0},{"$f":"Table1[[#This Row],[كود المشترك]]","v":0},{"$f":"Table1[[#This Row],[رقم الموبايـــل]]","v":0},{"$f":"Table1[[#This Row],[مده الاشتراك]]","v":0},{"$f":"Table1[[#This Row],[بدايه الاشتراك]]","v":"00:00:00"},{"$f":"Table1[[#This Row],[نهايه الاشتراك]]","v":"00:00:00"}]
[{"$f":"Table1[[#This Row],[أســــم المشترك]]","v":0},{"$f":"Table1[[#This Row],[كود المشترك]]","v":0},{"$f":"Table1[[#This Row],[رقم الموبايـــل]]","v":0},{"$f":"Table1[[#This Row],[مده الاشتراك]]","v":0},{"$f":"Table1[[#This Row],[بدايه الاشتراك]]","v":"00:00:00"},{"$f":"Table1[[#This Row],[نهايه الاشتراك]]","v":"00:00:00"}]
[{"$f":"Table1[[#This Row],[أســــم المشترك]]","v":0},{"$f":"Table1[[#This Row],[كود المشترك]]","v":0},{"$f":"Table1[[#This Row],[رقم الموبايـــل]]","v":0},{"$f":"Table1[[#This Row],[مده الاشتراك]]","v":0},{"$f":"Table1[[#This Row],[بدايه الاشتراك]]","v":"00:00:00"},{"$f":"Table1[[#This Row],[نهايه الاشتراك]]","v":"00:00:00"}]
[{"$f":"Table1[[#This Row],[أســــم المشترك]]","v":0},{"$f":"Table1[[#This Row],[كود المشترك]]","v":0},{"$f":"Table1[[#This Row],[رقم الموبايـــل]]","v":0},{"$f":"Table1[[#This Row],[مده الاشتراك]]","v":0},{"$f":"Table1[[#This Row],[بدايه الاشتراك]]","v":"00:00:00"},{"$f":"Table1[[#This Row],[نهايه الاشتراك]]","v":"00:00:00"}]
[{"$f":"Table1[[#This Row],[أســــم المشترك]]","v":0},{"$f":"Table1[[#This Row],[كود المشترك]]","v":0},{"$f":"Table1[[#This Row],[رقم الموبايـــل]]","v":0},{"$f":"Table1[[#This Row],[مده الاشتراك]]","v":0},{"$f":"Table1[[#This Row],[بدايه الاشتراك]]","v":"00:00:00"},{"$f":"Table1[[#This Row],[نهايه الاشتراك]]","v":"00:00:00"}]
[{"$f":"Table1[[#This Row],[أســــم المشترك]]","v":0},{"$f":"Table1[[#This Row],[كود المشترك]]","v":0},{"$f":"Table1[[#This Row],[رقم الموبايـــل]]","v":0},{"$f":"Table1[[#This Row],[مده الاشتراك]]","v":0},{"$f":"Table1[[#This Row],[بدايه الاشتراك]]","v":"00:00:00"},{"$f":"Table1[[#This Row],[نهايه الاشتراك]]","v":"00:00:00"}]
[{"$f":"Table1[[#This Row],[أســــم المشترك]]","v":0},{"$f":"Table1[[#This Row],[كود المشترك]]","v":0},{"$f":"Table1[[#This Row],[رقم الموبايـــل]]","v":0},{"$f":"Table1[[#This Row],[مده الاشتراك]]","v":0},{"$f":"Table1[[#This Row],[بدايه الاشتراك]]","v":"00:00:00"},{"$f":"Table1[[#This Row],[نهايه الاشتراك]]","v":"00:00:00"}]
[{"$f":"Table1[[#This Row],[أســــم المشترك]]","v":0},{"$f":"Table1[[#This Row],[كود المشترك]]","v":0},{"$f":"Table1[[#This Row],[رقم الموبايـــل]]","v":0},{"$f":"Table1[[#This Row],[مده الاشتراك]]","v":0},{"$f":"Table1[[#This Row],[بدايه الاشتراك]]","v":"00:00:00"},{"$f":"Table1[[#This Row],[نهايه الاشتراك]]","v":"00:00:00"}]
[{"$f":"Table1[[#This Row],[أســــم المشترك]]","v":0},{"$f":"Table1[[#This Row],[كود المشترك]]","v":0},{"$f":"Table1[[#This Row],[رقم الموبايـــل]]","v":0},{"$f":"Table1[[#This Row],[مده الاشتراك]]","v":0},{"$f":"Table1[[#This Row],[بدايه الاشتراك]]","v":"00:00:00"},{"$f":"Table1[[#This Row],[نهايه الاشتراك]]","v":"00:00:00"}]
[{"$f":"Table1[[#This Row],[أســــم المشترك]]","v":0},{"$f":"Table1[[#This Row],[كود المشترك]]","v":0},{"$f":"Table1[[#This Row],[رقم الموبايـــل]]","v":0},{"$f":"Table1[[#This Row],[مده الاشتراك]]","v":0},{"$f":"Table1[[#This Row],[بدايه الاشتراك]]","v":"00:00:00"},{"$f":"Table1[[#This Row],[نهايه الاشتراك]]","v":"00:00:00"}]
[{"$f":"Table1[[#This Row],[أســــم المشترك]]","v":0},{"$f":"Table1[[#This Row],[كود المشترك]]","v":0},{"$f":"Table1[[#This Row],[رقم الموبايـــل]]","v":0},{"$f":"Table1[[#This Row],[مده الاشتراك]]","v":0},{"$f":"Table1[[#This Row],[بدايه الاشتراك]]","v":"00:00:00"},{"$f":"Table1[[#This Row],[نهايه الاشتراك]]","v":"00:00:00"}]
[{"$f":"Table1[[#This Row],[أســــم المشترك]]","v":0},{"$f":"Table1[[#This Row],[كود المشترك]]","v":0},{"$f":"Table1[[#This Row],[رقم الموبايـــل]]","v":0},{"$f":"Table1[[#This Row],[مده الاشتراك]]","v":0},{"$f":"Table1[[#This Row],[بدايه الاشتراك]]","v":"00:00:00"},{"$f":"Table1[[#This Row],[نهايه الاشتراك]]","v":"00:00:00"}]
[{"$f":"Table1[[#This Row],[أســــم المشترك]]","v":0},{"$f":"Table1[[#This Row],[كود المشترك]]","v":0},{"$f":"Table1[[#This Row],[رقم الموبايـــل]]","v":0},{"$f":"Table1[[#This Row],[مده الاشتراك]]","v":0},{"$f":"Table1[[#This Row],[بدايه الاشتراك]]","v":"00:00:00"},{"$f":"Table1[[#This Row],[نهايه الاشتراك]]","v":"00:00:00"}]
[{"$f":"Table1[[#This Row],[أســــم المشترك]]","v":0},{"$f":"Table1[[#This Row],[كود المشترك]]","v":0},{"$f":"Table1[[#This Row],[رقم الموبايـــل]]","v":0},{"$f":"Table1[[#This Row],[مده الاشتراك]]","v":0},{"$f":"Table1[[#This Row],[بدايه الاشتراك]]","v":"00:00:00"},{"$f":"Table1[[#This Row],[نهايه الاشتراك]]","v":"00:00:00"}]
[{"$f":"Table1[[#This Row],[أســــم المشترك]]","v":0},{"$f":"Table1[[#This Row],[كود المشترك]]","v":0},{"$f":"Table1[[#This Row],[رقم الموبايـــل]]","v":0},{"$f":"Table1[[#This Row],[مده الاشتراك]]","v":0},{"$f":"Table1[[#This Row],[بدايه الاشتراك]]","v":"00:00:00"},{"$f":"Table1[[#This Row],[نهايه الاشتراك]]","v":"00:00:00"}]
[{"$f":"Table1[[#This Row],[أســــم المشترك]]","v":0},{"$f":"Table1[[#This Row],[كود المشترك]]","v":0},{"$f":"Table1[[#This Row],[رقم الموبايـــل]]","v":0},{"$f":"Table1[[#This Row],[مده الاشتراك]]","v":0},{"$f":"Table1[[#This Row],[بدايه الاشتراك]]","v":"00:00:00"},{"$f":"Table1[[#This Row],[نهايه الاشتراك]]","v":"00:00:00"}]
[{"$f":"Table1[[#This Row],[أســــم المشترك]]","v":0},{"$f":"Table1[[#This Row],[كود المشترك]]","v":0},{"$f":"Table1[[#This Row],[رقم الموبايـــل]]","v":0},{"$f":"Table1[[#This Row],[مده الاشتراك]]","v":0},{"$f":"Table1[[#This Row],[بدايه الاشتراك]]","v":"00:00:00"},{"$f":"Table1[[#This Row],[نهايه الاشتراك]]","v":"00:00:00"}]
[{"$f":"Table1[[#This Row],[أســــم المشترك]]","v":0},{"$f":"Table1[[#This Row],[كود المشترك]]","v":0},{"$f":"Table1[[#This Row],[رقم الموبايـــل]]","v":0},{"$f":"Table1[[#This Row],[مده الاشتراك]]","v":0},{"$f":"Table1[[#This Row],[بدايه الاشتراك]]","v":"00:00:00"},{"$f":"Table1[[#This Row],[نهايه الاشتراك]]","v":"00:00:00"}]
[{"$f":"Table1[[#This Row],[أســــم المشترك]]","v":0},{"$f":"Table1[[#This Row],[كود المشترك]]","v":0},{"$f":"Table1[[#This Row],[رقم الموبايـــل]]","v":0},{"$f":"Table1[[#This Row],[مده الاشتراك]]","v":0},{"$f":"Table1[[#This Row],[بدايه الاشتراك]]","v":"00:00:00"},{"$f":"Table1[[#This Row],[نهايه الاشتراك]]","v":"00:00:00"}]
[{"$f":"Table1[[#This Row],[أســــم المشترك]]","v":0},{"$f":"Table1[[#This Row],[كود المشترك]]","v":0},{"$f":"Table1[[#This Row],[رقم الموبايـــل]]","v":0},{"$f":"Table1[[#This Row],[مده الاشتراك]]","v":0},{"$f":"Table1[[#This Row],[بدايه الاشتراك]]","v":"00:00:00"},{"$f":"Table1[[#This Row],[نهايه الاشتراك]]","v":"00:00:00"}]
[{"$f":"Table1[[#This Row],[أســــم المشترك]]","v":0},{"$f":"Table1[[#This Row],[كود المشترك]]","v":0},{"$f":"Table1[[#This Row],[رقم الموبايـــل]]","v":0},{"$f":"Table1[[#This Row],[مده الاشتراك]]","v":0},{"$f":"Table1[[#This Row],[بدايه الاشتراك]]","v":"00:00:00"},{"$f":"Table1[[#This Row],[نهايه الاشتراك]]","v":"00:00:00"}]
[{"$f":"Table1[[#This Row],[أســــم المشترك]]","v":0},{"$f":"Table1[[#This Row],[كود المشترك]]","v":0},{"$f":"Table1[[#This Row],[رقم الموبايـــل]]","v":0},{"$f":"Table1[[#This Row],[مده الاشتراك]]","v":0},{"$f":"Table1[[#This Row],[بدايه الاشتراك]]","v":"00:00:00"},{"$f":"Table1[[#This Row],[نهايه الاشتراك]]","v":"00:00:00"}]
[{"$f":"Table1[[#This Row],[أســــم المشترك]]","v":0},{"$f":"Table1[[#This Row],[كود المشترك]]","v":0},{"$f":"Table1[[#This Row],[رقم الموبايـــل]]","v":0},{"$f":"Table1[[#This Row],[مده الاشتراك]]","v":0},{"$f":"Table1[[#This Row],[بدايه الاشتراك]]","v":"00:00:00"},{"$f":"Table1[[#This Row],[نهايه الاشتراك]]","v":"00:00:00"}]
[{"$f":"Table1[[#This Row],[أســــم المشترك]]","v":0},{"$f":"Table1[[#This Row],[كود المشترك]]","v":0},{"$f":"Table1[[#This Row],[رقم الموبايـــل]]","v":0},{"$f":"Table1[[#This Row],[مده الاشتراك]]","v":0},{"$f":"Table1[[#This Row],[بدايه الاشتراك]]","v":"00:00:00"},{"$f":"Table1[[#This Row],[نهايه الاشتراك]]","v":"00:00:00"}]
[{"$f":"Table1[[#This Row],[أســــم المشترك]]","v":0},{"$f":"Table1[[#This Row],[كود المشترك]]","v":0},{"$f":"Table1[[#This Row],[رقم الموبايـــل]]","v":0},{"$f":"Table1[[#This Row],[مده الاشتراك]]","v":0},{"$f":"Table1[[#This Row],[بدايه الاشتراك]]","v":"00:00:00"},{"$f":"Table1[[#This Row],[نهايه الاشتراك]]","v":"00:00:00"}]
[{"$f":"Table1[[#This Row],[أســــم المشترك]]","v":0},{"$f":"Table1[[#This Row],[كود المشترك]]","v":0},{"$f":"Table1[[#This Row],[رقم الموبايـــل]]","v":0},{"$f":"Table1[[#This Row],[مده الاشتراك]]","v":0},{"$f":"Table1[[#This Row],[بدايه الاشتراك]]","v":"00:00:00"},{"$f":"Table1[[#This Row],[نهايه الاشتراك]]","v":"00:00:00"}]
[{"$f":"Table1[[#This Row],[أســــم المشترك]]","v":0},{"$f":"Table1[[#This Row],[كود المشترك]]","v":0},{"$f":"Table1[[#This Row],[رقم الموبايـــل]]","v":0},{"$f":"Table1[[#This Row],[مده الاشتراك]]","v":0},{"$f":"Table1[[#This Row],[بدايه الاشتراك]]","v":"00:00:00"},{"$f":"Table1[[#This Row],[نهايه الاشتراك]]","v":"00:00:00"}]
[{"$f":"Table1[[#This Row],[أســــم المشترك]]","v":0},{"$f":"Table1[[#This Row],[كود المشترك]]","v":0},{"$f":"Table1[[#This Row],[رقم الموبايـــل]]","v":0},{"$f":"Table1[[#This Row],[مده الاشتراك]]","v":0},{"$f":"Table1[[#This Row],[بدايه الاشتراك]]","v":"00:00:00"},{"$f":"Table1[[#This Row],[نهايه الاشتراك]]","v":"00:00:00"}]
[{"$f":"Table1[[#This Row],[أســــم المشترك]]","v":0},{"$f":"Table1[[#This Row],[كود المشترك]]","v":0},{"$f":"Table1[[#This Row],[رقم الموبايـــل]]","v":0},{"$f":"Table1[[#This Row],[مده الاشتراك]]","v":0},{"$f":"Table1[[#This Row],[بدايه الاشتراك]]","v":"00:00:00"},{"$f":"Table1[[#This Row],[نهايه الاشتراك]]","v":"00:00:00"}]
[{"$f":"Table1[[#This Row],[أســــم المشترك]]","v":0},{"$f":"Table1[[#This Row],[كود المشترك]]","v":0},{"$f":"Table1[[#This Row],[رقم الموبايـــل]]","v":0},{"$f":"Table1[[#This Row],[مده الاشتراك]]","v":0},{"$f":"Table1[[#This Row],[بدايه الاشتراك]]","v":"00:00:00"},{"$f":"Table1[[#This Row],[نهايه الاشتراك]]","v":"00:00:00"}]
[{"$f":"Table1[[#This Row],[أســــم المشترك]]","v":0},{"$f":"Table1[[#This Row],[كود المشترك]]","v":0},{"$f":"Table1[[#This Row],[رقم الموبايـــل]]","v":0},{"$f":"Table1[[#This Row],[مده الاشتراك]]","v":0},{"$f":"Table1[[#This Row],[بدايه الاشتراك]]","v":"00:00:00"},{"$f":"Table1[[#This Row],[نهايه الاشتراك]]","v":"00:00:00"}]
[{"$f":"Table1[[#This Row],[أســــم المشترك]]","v":0},{"$f":"Table1[[#This Row],[كود المشترك]]","v":0},{"$f":"Table1[[#This Row],[رقم الموبايـــل]]","v":0},{"$f":"Table1[[#This Row],[مده الاشتراك]]","v":0},{"$f":"Table1[[#This Row],[بدايه الاشتراك]]","v":"00:00:00"},{"$f":"Table1[[#This Row],[نهايه الاشتراك]]","v":"00:00:00"}]
[{"$f":"Table1[[#This Row],[أســــم المشترك]]","v":0},{"$f":"Table1[[#This Row],[كود المشترك]]","v":0},{"$f":"Table1[[#This Row],[رقم الموبايـــل]]","v":0},{"$f":"Table1[[#This Row],[مده الاشتراك]]","v":0},{"$f":"Table1[[#This Row],[بدايه الاشتراك]]","v":"00:00:00"},{"$f":"Table1[[#This Row],[نهايه الاشتراك]]","v":"00:00:00"}]
[{"$f":"Table1[[#This Row],[أســــم المشترك]]","v":0},{"$f":"Table1[[#This Row],[كود المشترك]]","v":0},{"$f":"Table1[[#This Row],[رقم الموبايـــل]]","v":0},{"$f":"Table1[[#This Row],[مده الاشتراك]]","v":0},{"$f":"Table1[[#This Row],[بدايه الاشتراك]]","v":"00:00:00"},{"$f":"Table1[[#This Row],[نهايه الاشتراك]]","v":"00:00:00"}]
[{"$f":"Table1[[#This Row],[أســــم المشترك]]","v":0},{"$f":"Table1[[#This Row],[كود المشترك]]","v":0},{"$f":"Table1[[#This Row],[رقم الموبايـــل]]","v":0},{"$f":"Table1[[#This Row],[مده الاشتراك]]","v":0},{"$f":"Table1[[#This Row],[بدايه الاشتراك]]","v":"00:00:00"},{"$f":"Table1[[#This Row],[نهايه الاشتراك]]","v":"00:00:00"}]
[{"$f":"Table1[[#This Row],[أســــم المشترك]]","v":0},{"$f":"Table1[[#This Row],[كود المشترك]]","v":0},{"$f":"Table1[[#This Row],[رقم الموبايـــل]]","v":0},{"$f":"Table1[[#This Row],[مده الاشتراك]]","v":0},{"$f":"Table1[[#This Row],[بدايه الاشتراك]]","v":"00:00:00"},{"$f":"Table1[[#This Row],[نهايه الاشتراك]]","v":"00:00:00"}]
[{"$f":"Table1[[#This Row],[أســــم المشترك]]","v":0},{"$f":"Table1[[#This Row],[كود المشترك]]","v":0},{"$f":"Table1[[#This Row],[رقم الموبايـــل]]","v":0},{"$f":"Table1[[#This Row],[مده الاشتراك]]","v":0},{"$f":"Table1[[#This Row],[بدايه الاشتراك]]","v":"00:00:00"},{"$f":"Table1[[#This Row],[نهايه الاشتراك]]","v":"00:00:00"}]
[{"$f":"Table1[[#This Row],[أســــم المشترك]]","v":0},{"$f":"Table1[[#This Row],[كود المشترك]]","v":0},{"$f":"Table1[[#This Row],[رقم الموبايـــل]]","v":0},{"$f":"Table1[[#This Row],[مده الاشتراك]]","v":0},{"$f":"Table1[[#This Row],[بدايه الاشتراك]]","v":"00:00:00"},{"$f":"Table1[[#This Row],[نهايه الاشتراك]]","v":"00:00:00"}]
[{"$f":"Table1[[#This Row],[أســــم المشترك]]","v":0},{"$f":"Table1[[#This Row],[كود المشترك]]","v":0},{"$f":"Table1[[#This Row],[رقم الموبايـــل]]","v":0},{"$f":"Table1[[#This Row],[مده الاشتراك]]","v":0},{"$f":"Table1[[#This Row],[بدايه الاشتراك]]","v":"00:00:00"},{"$f":"Table1[[#This Row],[نهايه الاشتراك]]","v":"00:00:00"}]
[{"$f":"Table1[[#This Row],[أســــم المشترك]]","v":0},{"$f":"Table1[[#This Row],[كود المشترك]]","v":0},{"$f":"Table1[[#This Row],[رقم الموبايـــل]]","v":0},{"$f":"Table1[[#This Row],[مده الاشتراك]]","v":0},{"$f":"Table1[[#This Row],[بدايه الاشتراك]]","v":"00:00:00"},{"$f":"Table1[[#This Row],[نهايه الاشتراك]]","v":"00:00:00"}]
[{"$f":"Table1[[#This Row],[أســــم المشترك]]","v":0},{"$f":"Table1[[#This Row],[كود المشترك]]","v":0},{"$f":"Table1[[#This Row],[رقم الموبايـــل]]","v":0},{"$f":"Table1[[#This Row],[مده الاشتراك]]","v":0},{"$f":"Table1[[#This Row],[بدايه الاشتراك]]","v":"00:00:00"},{"$f":"Table1[[#This Row],[نهايه الاشتراك]]","v":"00:00:00"}]
[{"$f":"Table1[[#This Row],[أســــم المشترك]]","v":0},{"$f":"Table1[[#This Row],[كود المشترك]]","v":0},{"$f":"Table1[[#This Row],[رقم الموبايـــل]]","v":0},{"$f":"Table1[[#This Row],[مده الاشتراك]]","v":0},{"$f":"Table1[[#This Row],[بدايه الاشتراك]]","v":"00:00:00"},{"$f":"Table1[[#This Row],[نهايه الاشتراك]]","v":"00:00:00"}]
[{"$f":"Table1[[#This Row],[أســــم المشترك]]","v":0},{"$f":"Table1[[#This Row],[كود المشترك]]","v":0},{"$f":"Table1[[#This Row],[رقم الموبايـــل]]","v":0},{"$f":"Table1[[#This Row],[مده الاشتراك]]","v":0},{"$f":"Table1[[#This Row],[بدايه الاشتراك]]","v":"00:00:00"},{"$f":"Table1[[#This Row],[نهايه الاشتراك]]","v":"00:00:00"}]
[{"$f":"Table1[[#This Row],[أســــم المشترك]]","v":0},{"$f":"Table1[[#This Row],[كود المشترك]]","v":0},{"$f":"Table1[[#This Row],[رقم الموبايـــل]]","v":0},{"$f":"Table1[[#This Row],[مده الاشتراك]]","v":0},{"$f":"Table1[[#This Row],[بدايه الاشتراك]]","v":"00:00:00"},{"$f":"Table1[[#This Row],[نهايه الاشتراك]]","v":"00:00:00"}]
[{"$f":"Table1[[#This Row],[أســــم المشترك]]","v":0},{"$f":"Table1[[#This Row],[كود المشترك]]","v":0},{"$f":"Table1[[#This Row],[رقم الموبايـــل]]","v":0},{"$f":"Table1[[#This Row],[مده الاشتراك]]","v":0},{"$f":"Table1[[#This Row],[بدايه الاشتراك]]","v":"00:00:00"},{"$f":"Table1[[#This Row],[نهايه الاشتراك]]","v":"00:00:00"}]
[{"$f":"Table1[[#This Row],[أســــم المشترك]]","v":0},{"$f":"Table1[[#This Row],[كود المشترك]]","v":0},{"$f":"Table1[[#This Row],[رقم الموبايـــل]]","v":0},{"$f":"Table1[[#This Row],[مده الاشتراك]]","v":0},{"$f":"Table1[[#This Row],[بدايه الاشتراك]]","v":"00:00:00"},{"$f":"Table1[[#This Row],[نهايه الاشتراك]]","v":"00:00:00"}]
[{"$f":"Table1[[#This Row],[أســــم المشترك]]","v":0},{"$f":"Table1[[#This Row],[كود المشترك]]","v":0},{"$f":"Table1[[#This Row],[رقم الموبايـــل]]","v":0},{"$f":"Table1[[#This Row],[مده الاشتراك]]","v":0},{"$f":"Table1[[#This Row],[بدايه الاشتراك]]","v":"00:00:00"},{"$f":"Table1[[#This Row],[نهايه الاشتراك]]","v":"00:00:00"}]
[{"$f":"Table1[[#This Row],[أســــم المشترك]]","v":0},{"$f":"Table1[[#This Row],[كود المشترك]]","v":0},{"$f":"Table1[[#This Row],[رقم الموبايـــل]]","v":0},{"$f":"Table1[[#This Row],[مده الاشتراك]]","v":0},{"$f":"Table1[[#This Row],[بدايه الاشتراك]]","v":"00:00:00"},{"$f":"Table1[[#This Row],[نهايه الاشتراك]]","v":"00:00:00"}]
[{"$f":"Table1[[#This Row],[أســــم المشترك]]","v":0},{"$f":"Table1[[#This Row],[كود المشترك]]","v":0},{"$f":"Table1[[#This Row],[رقم الموبايـــل]]","v":0},{"$f":"Table1[[#This Row],[مده الاشتراك]]","v":0},{"$f":"Table1[[#This Row],[بدايه الاشتراك]]","v":"00:00:00"},{"$f":"Table1[[#This Row],[نهايه الاشتراك]]","v":"00:00:00"}]
[{"$f":"Table1[[#This Row],[أســــم المشترك]]","v":0},{"$f":"Table1[[#This Row],[كود المشترك]]","v":0},{"$f":"Table1[[#This Row],[رقم الموبايـــل]]","v":0},{"$f":"Table1[[#This Row],[مده الاشتراك]]","v":0},{"$f":"Table1[[#This Row],[بدايه الاشتراك]]","v":"00:00:00"},{"$f":"Table1[[#This Row],[نهايه الاشتراك]]","v":"00:00:00"}]
[{"$f":"Table1[[#This Row],[أســــم المشترك]]","v":0},{"$f":"Table1[[#This Row],[كود المشترك]]","v":0},{"$f":"Table1[[#This Row],[رقم الموبايـــل]]","v":0},{"$f":"Table1[[#This Row],[مده الاشتراك]]","v":0},{"$f":"Table1[[#This Row],[بدايه الاشتراك]]","v":"00:00:00"},{"$f":"Table1[[#This Row],[نهايه الاشتراك]]","v":"00:00:00"}]
[{"$f":"Table1[[#This Row],[أســــم المشترك]]","v":0},{"$f":"Table1[[#This Row],[كود المشترك]]","v":0},{"$f":"Table1[[#This Row],[رقم الموبايـــل]]","v":0},{"$f":"Table1[[#This Row],[مده الاشتراك]]","v":0},{"$f":"Table1[[#This Row],[بدايه الاشتراك]]","v":"00:00:00"},{"$f":"Table1[[#This Row],[نهايه الاشتراك]]","v":"00:00:00"}]
[{"$f":"Table1[[#This Row],[أســــم المشترك]]","v":0},{"$f":"Table1[[#This Row],[كود المشترك]]","v":0},{"$f":"Table1[[#This Row],[رقم الموبايـــل]]","v":0},{"$f":"Table1[[#This Row],[مده الاشتراك]]","v":0},{"$f":"Table1[[#This Row],[بدايه الاشتراك]]","v":"00:00:00"},{"$f":"Table1[[#This Row],[نهايه الاشتراك]]","v":"00:00:00"}]
[{"$f":"Table1[[#This Row],[أســــم المشترك]]","v":0},{"$f":"Table1[[#This Row],[كود المشترك]]","v":0},{"$f":"Table1[[#This Row],[رقم الموبايـــل]]","v":0},{"$f":"Table1[[#This Row],[مده الاشتراك]]","v":0},{"$f":"Table1[[#This Row],[بدايه الاشتراك]]","v":"00:00:00"},{"$f":"Table1[[#This Row],[نهايه الاشتراك]]","v":"00:00:00"}]
[{"$f":"Table1[[#This Row],[أســــم المشترك]]","v":0},{"$f":"Table1[[#This Row],[كود المشترك]]","v":0},{"$f":"Table1[[#This Row],[رقم الموبايـــل]]","v":0},{"$f":"Table1[[#This Row],[مده الاشتراك]]","v":0},{"$f":"Table1[[#This Row],[بدايه الاشتراك]]","v":"00:00:00"},{"$f":"Table1[[#This Row],[نهايه الاشتراك]]","v":"00:00:00"}]
[{"$f":"Table1[[#This Row],[أســــم المشترك]]","v":0},{"$f":"Table1[[#This Row],[كود المشترك]]","v":0},{"$f":"Table1[[#This Row],[رقم الموبايـــل]]","v":0},{"$f":"Table1[[#This Row],[مده الاشتراك]]","v":0},{"$f":"Table1[[#This Row],[بدايه الاشتراك]]","v":"00:00:00"},{"$f":"Table1[[#This Row],[نهايه الاشتراك]]","v":"00:00:00"}]
[{"$f":"Table1[[#This Row],[أســــم المشترك]]","v":0},{"$f":"Table1[[#This Row],[كود المشترك]]","v":0},{"$f":"Table1[[#This Row],[رقم الموبايـــل]]","v":0},{"$f":"Table1[[#This Row],[مده الاشتراك]]","v":0},{"$f":"Table1[[#This Row],[بدايه الاشتراك]]","v":"00:00:00"},{"$f":"Table1[[#This Row],[نهايه الاشتراك]]","v":"00:00:00"}]
[{"$f":"Table1[[#This Row],[أســــم المشترك]]","v":0},{"$f":"Table1[[#This Row],[كود المشترك]]","v":0},{"$f":"Table1[[#This Row],[رقم الموبايـــل]]","v":0},{"$f":"Table1[[#This Row],[مده الاشتراك]]","v":0},{"$f":"Table1[[#This Row],[بدايه الاشتراك]]","v":"00:00:00"},{"$f":"Table1[[#This Row],[نهايه الاشتراك]]","v":"00:00:00"}]

{"sheet":"Store Order","index":3,"n_rows":0,"n_cols":0,"rows_kept":0,"cut":false,"hidden":false,"merged":[]}

{"sheet":"SEALS","index":4,"n_rows":0,"n_cols":0,"rows_kept":0,"cut":false,"hidden":false,"merged":[]}

{"sheet":"TRANSFIR OUT","index":5,"n_rows":0,"n_cols":0,"rows_kept":0,"cut":false,"hidden":false,"merged":[]}

{"sheet":"TRANSFIR IN ","index":6,"n_rows":0,"n_cols":0,"rows_kept":0,"cut":false,"hidden":false,"merged":[]}